Workbook

Sheet Portada
F2: Modelo Empresa Eficiente Móvil | O2: Desarrollado por:
F3: Portada
C6: Diagrama de Modelo
C54: Contenidos
D56: Hoja | E56: Descripción
D57: Portada | E57: Presentación del Modelo
D58: Demanda | E58: Proyecciones de Demanda
D59: Proyección | E59: Proyecciones de Demanda
D60: RRHH | E60: Detalle de los recursos humanos
D61: BBSS | E61: Detalle de los bienes y servicios
D62: TI | E62: Tecnologías de Información
D63: Sitios | E63: Costos operación Sitios móviles
D64: Edificios | E64: Diseño de los edificios
D65: Espectro | E65: Costos de adquisición de espectro radioeléctrico
D66: Param.Red.M | E66: Parámetros de diseño Red Móvil
D67: Fact.Util | E67: Factores de utilización de la red
D68: Tablas Erlang | E68: Tablas erlang
D69: Dda.Red.M | E69: Diseño de la red móvil
D70: Sal.Red | E70: Salida de elementos de red
D71: BD.Costos | E71: Base de datos de costos
D72: Asignadores | E72: Criterios de asignación
D73: Cálculo Tarifario | E73: Calculo tarifario
D74: LRIC_Puro | E74: Long Run Incremental Costs
D75: Control | E75: Panel de control del modelo
D76: Estilos | E76: Formatos utilizados en el modelo

Sheet Parámetros
E2: Modelo Empresa Eficiente Móvil
E3: Parámetros
B6: Parámetros financieros
C8: id | D8: Parámetro | F8: Valor | H8: 2025 | I8: 2026 | J8: 2027 | K8: 2028 | L8: 2029 | M8: 2030
C9: 1 | D9: Tasa de Costo de Capital | E9: [%] | F9: 0.1157 | G9: tcc
C10: 2 | D10: Tasa de Tributación | E10: [%] | F10: =-PMT(tcc,5,NPV(tcc,I10:M10)) -> 0.35 | G10: tax | H10: 0.35 | I10: 0.35 | J10: 0.35 | K10: 0.35 | L10: 0.35 | M10: 0.35 | N10: tax.evo
C11: 3 | D11: Tipo de Cambio Dólar | E11: [$] | F11: 4071.75 | G11: tc.dolar
C12: 4 | D12: Contribución CRC | E12: [%] | F12: 0.00137 | G12: p.contr
C14: id | D14: Parámetros
C15: 1 | D15: Días Año | E15: [días] | F15: 365
C16: 2 | D16: Dias de Facuturación | E16: [días] | F16: 60
C17: 3 | D17: Valor Proporción Costo Capital | E17: [%] | F17: =F16/F15 -> 0.1643835616 | G17: r.trab
C19: id | D19: Parámetros
C20: 1 | D20: Años Estudio Tarifario | F20: 0 | G20: 1 | H20: 2 | I20: 3 | J20: 4 | K20: 5 | L20: años
C21: 2 | D21: Años calendario | F21: 2025 | G21: 2026 | H21: 2027 | I21: 2028 | J21: 2029 | K21: 2030 | L21: años.calendario
C22: 3 | D22: Columnas | F22: 1 | G22: 2 | H22: 3 | I22: 4 | J22: 5 | K22: 6 | L22: columnas
B24: Lista de Departamentos
C26: id | D26: Departamento | F26: Capital | G26: Población | H26: Nombre | I26: % Población | J26: DP | K26: Año | L26: 2021
C27: 1 | D27: Antioquia | F27: Medellín | G27: =AA99 -> 6921884 | H27: Antioquia | I27: =G27/SUM($G$27:$G$59) -> 0.1345375887 | J27: 5
C28: 2 | D28: Atlántico | F28: Barranquilla | G28: =AA100 -> 2634813 | H28: Atlántico | I28: 0.05121169145 | J28: 8
C29: 3 | D29: Bogotá | F29: Bogotá | G29: 8481744 | H29: Bogotá | I29: 0.1648558955 | J29: 11
C30: 4 | D30: Bolívar | F30: Cartagena (Turbaco) | G30: 2242869 | H30: Bolívar | I30: 0.04359364979 | J30: 13
C31: 5 | D31: Boyacá | F31: Tunja | G31: 1289425 | H31: Boyacá | I31: 0.02506198172 | J31: 15
C32: 6 | D32: Caldas | F32: Manizales | G32: 999835 | H32: Caldas | I32: 0.01943334936 | J32: 17
C33: 7 | D33: Caquetá | F33: Florencia | G33: 514634 | H33: Caquetá | I33: 0.01000271276 | J33: 18
C34: 8 | D34: Cauca | F34: Popayán | G34: 1447035 | H34: Cauca | I34: 0.02812537737 | J34: 19
C35: 9 | D35: Cesar | F35: Valledupar | G35: 1102093 | H35: Cesar | I35: 0.02142089274 | J35: 20
C36: 10 | D36: Córdoba | F36: Montería | G36: 1863003 | H36: Córdoba | I36: 0.03621036286 | J36: 23
C37: 11 | D37: Cundinamarca | F37: Bogotá | G37: 2928556 | H37: Cundinamarca | I37: 0.05692104383 | J37: 25
C38: 12 | D38: Chocó | F38: Quibdó | G38: 530698 | H38: Chocó | I38: 0.0103149416 | J38: 27
C39: 13 | D39: Huila | F39: Neiva | G39: 1239370 | H39: Huila | I39: 0.02408908489 | J39: 41
C40: 14 | D40: La Guajira | F40: Riohacha | G40: 1120855 | H40: La Guajira | I40: 0.02178556141 | J40: 44
C41: 15 | D41: Magdalena | F41: Santa Marta | G41: 1340581 | H41: Magdalena | I41: 0.0260562782 | J41: 47
C42: 16 | D42: Meta | F42: Villavicencio | G42: 1072268 | H42: Meta | I42: 0.02084119745 | J42: 50
C43: 17 | D43: Nariño | F43: San Juan de Pasto | G43: 1872645 | H43: Nariño | I43: 0.03639777014 | J43: 52
C44: 18 | D44: Norte de Santander | F44: Cúcuta | G44: 1425023 | H44: Norte de Santander | I44: 0.02769753989 | J44: 54
C45: 19 | D45: Quindio | F45: Armenia | G45: 584796 | H45: Quindio | I45: 0.01136642043 | J45: 63
C46: 20 | D46: Risaralda | F46: Pereira | G46: 983382 | H46: Risaralda | I46: 0.01911355969 | J46: 66
C47: 21 | D47: Santander | F47: Bucaramanga | G47: 2120451 | H47: Santander | I47: 0.04121426543 | J47: 68
C48: 22 | D48: Sucre | F48: Sincelejo | G48: 903099 | H48: Sucre | I48: 0.01755313464 | J48: 70
C49: 23 | D49: Tolima | F49: Ibagué | G49: 1431142 | H49: Tolima | I49: 0.02781647218 | J49: 73
C50: 24 | D50: Valle del Cauca | F50: Cali | G50: 4900263 | H50: Valle del Cauca | I50: 0.09524423812 | J50: 76
C51: 25 | D51: Arauca | F51: Arauca | G51: 278801 | H51: Arauca | I51: 0.005418931358 | J51: 81
C52: 26 | D52: Casanare | F52: Yopal | G52: 393979 | H52: Casanare | I52: 0.007657595049 | J52: 85
C53: 27 | D53: Putumayo | F53: Mocoa | G53: 368818 | H53: Putumayo | I53: 0.007168551854 | J53: 86
C54: 28 | D54: San Andrés | F54: San Andrés | G54: 80347 | H54: San Andrés | I54: 0.001561668996 | J54: 88
C55: 29 | D55: Amazonas | F55: Leticia | G55: 81621 | H55: Amazonas | I55: 0.001586431169 | J55: 91
C56: 30 | D56: Guainía | F56: Puerto Inírida | G56: 45499 | H56: Guainía | I56: 0.0008843438791 | J56: 94
C57: 31 | D57: Guaviare | F57: San José del Guaviare | G57: 120928 | H57: Guaviare | I57: 0.002350423891 | J57: 95
C58: 32 | D58: Vaupés | F58: Mitú | G58: 46275 | H58: Vaupés | I58: 0.0008994266469 | J58: 97
C59: 33 | D59: Vichada | F59: Puerto Carreño | G59: 82711 | H59: Vichada | I59: 0.001607617015 | J59: 99
D60: L.depa.num | F60: L.depa.cap | H60: L.depa.nom | I60: p.depa.pobl
G61: =SUM(G27:G59) -> 51449443
B63: Recuperación de costos por geotipo
G65: 1 | H65: 2 | I65: 3 | J65: 4 | K65: 5
C66: ID | D66: Geotipos | F66: Zona | G66: Aux Zona 1 | H66: Aux Zona 2 | I66: Aux Zona 3 | J66: Aux Zona 4 | K66: Aux Zona 5
C67: 1 | D67: =INDEX(L.geo.nom,C67) -> Z1: Muy Denso | F67: 1 | G67: =IF($F67=G$65,1,0) -> 1 | H67: =IF($F67=H$65,1,0) -> 0 | I67: =IF($F67=I$65,1,0) -> 0 | J67: =IF($F67=J$65,1,0) -> 0 | K67: =IF($F67=K$65,1,0) -> 0
C68: 2 | D68: Z1: Denso | F68: 1 | G68: =IF($F68=G$65,1,0) -> 1 | H68: 0 | I68: 0 | J68: 0 | K68: 0
C69: 3 | D69: Z1: Poco Denso | F69: 1 | G69: 1 | H69: 0 | I69: 0 | J69: 0 | K69: 0
C70: 4 | D70: Z1: Carreteras | F70: 1 | G70: 1 | H70: 0 | I70: 0 | J70: 0 | K70: 0
C71: 5 | D71: Z1: Soluciones especiales | F71: 1 | G71: 1 | H71: 0 | I71: 0 | J71: 0 | K71: 0
C72: 6 | D72: Z2: Muy Denso | F72: =F67+1 -> 2 | G72: 0 | H72: 1 | I72: 0 | J72: 0 | K72: 0
C73: 7 | D73: Z2: Denso | F73: =F68+1 -> 2 | G73: 0 | H73: 1 | I73: 0 | J73: 0 | K73: 0
C74: 8 | D74: Z2: Poco Denso | F74: 2 | G74: 0 | H74: 1 | I74: 0 | J74: 0 | K74: 0
C75: 9 | D75: Z2: Carreteras | F75: 2 | G75: 0 | H75: 1 | I75: 0 | J75: 0 | K75: 0
C76: 10 | D76: Z2: Soluciones especiales | F76: 2 | G76: 0 | H76: 1 | I76: 0 | J76: 0 | K76: 0
C77: 11 | D77: Z3: Muy Denso | F77: 3 | G77: 0 | H77: 0 | I77: 1 | J77: 0 | K77: 0
C78: 12 | D78: Z3: Denso | F78: 3 | G78: 0 | H78: 0 | I78: 1 | J78: 0 | K78: 0
C79: 13 | D79: Z3: Poco Denso | F79: 3 | G79: 0 | H79: 0 | I79: 1 | J79: 0 | K79: 0
C80: 14 | D80: Z3: Carreteras | F80: 3 | G80: 0 | H80: 0 | I80: 1 | J80: 0 | K80: 0
C81: 15 | D81: Z3: Soluciones especiales | F81: 3 | G81: 0 | H81: 0 | I81: 1 | J81: 0 | K81: 0
C82: 16 | D82: Z4: Muy Denso | F82: 4 | G82: 0 | H82: 0 | I82: 0 | J82: 1 | K82: 0
C83: 17 | D83: Z4: Denso | F83: 4 | G83: 0 | H83: 0 | I83: 0 | J83: 1 | K83: 0
C84: 18 | D84: Z4: Poco Denso | F84: 4 | G84: 0 | H84: 0 | I84: 0 | J84: 1 | K84: 0
C85: 19 | D85: Z4: Carreteras | F85: 4 | G85: 0 | H85: 0 | I85: 0 | J85: 1 | K85: 0
C86: 20 | D86: Z4: Soluciones especiales | F86: 4 | G86: 0 | H86: 0 | I86: 0 | J86: 1 | K86: 0
C87: 21 | D87: Z5: Muy Denso | F87: 5 | G87: 0 | H87: 0 | I87: 0 | J87: 0 | K87: 1
C88: 22 | D88: Z5: Denso | F88: 5 | G88: 0 | H88: 0 | I88: 0 | J88: 0 | K88: 1
C89: 23 | D89: Z5: Poco Denso | F89: 5 | G89: 0 | H89: 0 | I89: 0 | J89: 0 | K89: 1
C90: 24 | D90: Z5: Carreteras | F90: 5 | G90: 0 | H90: 0 | I90: 0 | J90: 0 | K90: 1
C91: 25 | D91: Z5: Soluciones especiales | F91: 5 | G91: 0 | H91: 0 | I91: 0 | J91: 0 | K91: 1
F92: L.geo.tar | G92: L.geo.tar.z1 | H92: L.geo.tar.z2 | I92: L.geo.tar.z3 | J92: L.geo.tar.z4 | K92: L.geo.tar.z5 | L92: L.geo.tar.zon
B94: Población por Departamento
B96: Total por departamento
B98: id | C98: DP | D98: Departamento | F98: 2000 | G98: 2001 | H98: 2002 | I98: 2003 | J98: 2004 | K98: 2005 | L98: 2006 | M98: 2007 | N98: 2008 | O98: 2009 | P98: 2010 | Q98: 2011 | R98: 2012 | S98: 2013 | T98: 2014 | U98: 2015 | V98: 2016 | W98: 2017 | X98: 2018 | Y98: 2019 | Z98: 2020 | AA98: 2021 | AB98: 2022 | AC98: 2023 | AD98: 2024 | AE98: 2025
B99: 1 | C99: 5 | D99: =L.depa.nom -> Antioquia | E99: [Personas] | F99: 5289912 | G99: 5368957 | H99: 5447841 | I99: 5526457 | J99: 5604712 | K99: 5682310 | L99: 5757973 | M99: 5834865 | N99: 5911399 | O99: 5988552 | P99: 6066003 | Q99: 6143809 | R99: 6221817 | S99: 6299990 | T99: 6378132 | U99: 6456299 | V99: 6534857 | W99: 6613118 | X99: 6691030 | Y99: 6768388 | Z99: 6845093 | AA99: =ROUND(IF(Z99>0,IF(_xlfn.FORECAST.ETS(AA$98,$F99:$Z99,$F$98:$Z$98,1)<0,0,_xlfn.FORECAST.ETS(AA$98,$F99:$Z99,$F$98:$Z$98,1)),0),0) -> 6921884 | AB99: =ROUND(IF(AA99>0,IF(_xlfn.FORECAST.ETS(AB$98,$F99:$Z99,$F$98:$Z$98,1)<0,0,_xlfn.FORECAST.ETS(AB$98,$F99:$Z99,$F$98:$Z$98,1)),0),0) -> 6998601 | AC99: =ROUND(IF(AB99>0,IF(_xlfn.FORECAST.ETS(AC$98,$F99:$Z99,$F$98:$Z$98,1)<0,0,_xlfn.FORECAST.ETS(AC$98,$F99:$Z99,$F$98:$Z$98,1)),0),0) -> 7075318 | AD99: =ROUND(IF(AC99>0,IF(_xlfn.FORECAST.ETS(AD$98,$F99:$Z99,$F$98:$Z$98,1)<0,0,_xlfn.FORECAST.ETS(AD$98,$F99:$Z99,$F$98:$Z$98,1)),0),0) -> 7152035 | AE99: =ROUND(IF(AD99>0,IF(_xlfn.FORECAST.ETS(AE$98,$F99:$Z99,$F$98:$Z$98,1)<0,0,_xlfn.FORECAST.ETS(AE$98,$F99:$Z99,$F$98:$Z$98,1)),0),0) -> 7228753
B100: 2 | C100: 8 | D100: Atlántico | E100: [Personas] | F100: 2017388 | G100: 2046777 | H100: 2076366 | I100: 2106173 | J100: 2136070 | K100: 2166020 | L100: 2195776 | M100: 2225481 | N100: 2255143 | O100: 2284841 | P100: 2314460 | Q100: 2344077 | R100: 2373550 | S100: 2402910 | T100: 2432003 | U100: 2460863 | V100: 2489514 | W100: 2517897 | X100: 2545924 | Y100: 2573591 | Z100: 2600904 | AA100: =ROUND(IF(Z100>0,IF(_xlfn.FORECAST.ETS(AA$98,$F100:$Z100,$F$98:$Z$98,1)<0,0,_xlfn.FORECAST.ETS(AA$98,$F100:$Z100,$F$98:$Z$98,1)),0),0) -> 2634813 | AB100: =ROUND(IF(AA100>0,IF(_xlfn.FORECAST.ETS(AB$98,$F100:$Z100,$F$98:$Z$98,1)<0,0,_xlfn.FORECAST.ETS(AB$98,$F100:$Z100,$F$98:$Z$98,1)),0),0) -> 2664152 | AC100: =ROUND(IF(AB100>0,IF(_xlfn.FORECAST.ETS(AC$98,$F100:$Z100,$F$98:$Z$98,1)<0,0,_xlfn.FORECAST.ETS(AC$98,$F100:$Z100,$F$98:$Z$98,1)),0),0) -> 2693491 | AD100: =ROUND(IF(AC100>0,IF(_xlfn.FORECAST.ETS(AD$98,$F100:$Z100,$F$98:$Z$98,1)<0,0,_xlfn.FORECAST.ETS(AD$98,$F100:$Z100,$F$98:$Z$98,1)),0),0) -> 2722830 | AE100: =ROUND(IF(AD100>0,IF(_xlfn.FORECAST.ETS(AE$98,$F100:$Z100,$F$98:$Z$98,1)<0,0,_xlfn.FORECAST.ETS(AE$98,$F100:$Z100,$F$98:$Z$98,1)),0),0) -> 2752169
B101: 3 | C101: 11 | D101: Bogotá | E101: [Personas] | F101: 6302881 | G101: 6412400 | H101: 6520473 | I101: 6627568 | J101: 6734041 | K101: 6840116 | L101: 6945216 | M101: 7050228 | N101: 7155052 | O101: 7259597 | P101: 7363782 | Q101: 7467804 | R101: 7571345 | S101: 7674366 | T101: 7776845 | U101: 7878783 | V101: 7980001 | W101: 8080734 | X101: 8181047 | Y101: 8281030 | Z101: 8380801 | AA101: =ROUND(IF(Z101>0,IF(_xlfn.FORECAST.ETS(AA$98,$F101:$Z101,$F$98:$Z$98,1)<0,0,_xlfn.FORECAST.ETS(AA$98,$F101:$Z101,$F$98:$Z$98,1)),0),0) -> 8481744 | AB101: =ROUND(IF(AA101>0,IF(_xlfn.FORECAST.ETS(AB$98,$F101:$Z101,$F$98:$Z$98,1)<0,0,_xlfn.FORECAST.ETS(AB$98,$F101:$Z101,$F$98:$Z$98,1)),0),0) -> 8580987 | AC101: =ROUND(IF(AB101>0,IF(_xlfn.FORECAST.ETS(AC$98,$F101:$Z101,$F$98:$Z$98,1)<0,0,_xlfn.FORECAST.ETS(AC$98,$F101:$Z101,$F$98:$Z$98,1)),0),0) -> 8680230 | AD101: =ROUND(IF(AC101>0,IF(_xlfn.FORECAST.ETS(AD$98,$F101:$Z101,$F$98:$Z$98,1)<0,0,_xlfn.FORECAST.ETS(AD$98,$F101:$Z101,$F$98:$Z$98,1)),0),0) -> 8779474 | AE101: =ROUND(IF(AD101>0,IF(_xlfn.FORECAST.ETS(AE$98,$F101:$Z101,$F$98:$Z$98,1)<0,0,_xlfn.FORECAST.ETS(AE$98,$F101:$Z101,$F$98:$Z$98,1)),0),0) -> 8878717
B102: 4 | C102: 13 | D102: Bolívar | E102: [Personas] | F102: 1792634 | G102: 1810899 | H102: 1828057 | I102: 1844798 | J102: 1861840 | K102: 1879480 | L102: 1898031 | M102: 1917345 | N102: 1937500 | O102: 1958431 | P102: 1980012 | Q102: 2002531 | R102: 2025573 | S102: 2049109 | T102: 2073004 | U102: 2097161 | V102: 2121956 | W102: 2146696 | X102: 2171280 | Y102: 2195495 | Z102: 2219139 | AA102: =ROUND(IF(Z102>0,IF(_xlfn.FORECAST.ETS(AA$98,$F102:$Z102,$F$98:$Z$98,1)<0,0,_xlfn.FORECAST.ETS(AA$98,$F102:$Z102,$F$98:$Z$98,1)),0),0) -> 2242869 | AB102: =ROUND(IF(AA102>0,IF(_xlfn.FORECAST.ETS(AB$98,$F102:$Z102,$F$98:$Z$98,1)<0,0,_xlfn.FORECAST.ETS(AB$98,$F102:$Z102,$F$98:$Z$98,1)),0),0) -> 2266535 | AC102: =ROUND(IF(AB102>0,IF(_xlfn.FORECAST.ETS(AC$98,$F102:$Z102,$F$98:$Z$98,1)<0,0,_xlfn.FORECAST.ETS(AC$98,$F102:$Z102,$F$98:$Z$98,1)),0),0) -> 2290201 | AD102: =ROUND(IF(AC102>0,IF(_xlfn.FORECAST.ETS(AD$98,$F102:$Z102,$F$98:$Z$98,1)<0,0,_xlfn.FORECAST.ETS(AD$98,$F102:$Z102,$F$98:$Z$98,1)),0),0) -> 2313868 | AE102: =ROUND(IF(AD102>0,IF(_xlfn.FORECAST.ETS(AE$98,$F102:$Z102,$F$98:$Z$98,1)<0,0,_xlfn.FORECAST.ETS(AE$98,$F102:$Z102,$F$98:$Z$98,1)),0),0) -> 2337534
B103: 5 | C103: 15 | D103: Boyacá | E103: [Personas] | F103: 1234550 | G103: 1239693 | H103: 1244292 | I103: 1248391 | J103: 1252027 | K103: 1255314 | L103: 1258195 | M103: 1260821 | N103: 1263252 | O103: 1265513 | P103: 1267652 | Q103: 1269405 | R103: 1271133 | S103: 1272855 | T103: 1274615 | U103: 1276407 | V103: 1278107 | W103: 1279955 | X103: 1282063 | Y103: 1284375 | Z103: 1287032 | AA103: =ROUND(IF(Z103>0,IF(_xlfn.FORECAST.ETS(AA$98,$F103:$Z103,$F$98:$Z$98,1)<0,0,_xlfn.FORECAST.ETS(AA$98,$F103:$Z103,$F$98:$Z$98,1)),0),0) -> 1289425 | AB103: =ROUND(IF(AA103>0,IF(_xlfn.FORECAST.ETS(AB$98,$F103:$Z103,$F$98:$Z$98,1)<0,0,_xlfn.FORECAST.ETS(AB$98,$F103:$Z103,$F$98:$Z$98,1)),0),0) -> 1291819 | AC103: =ROUND(IF(AB103>0,IF(_xlfn.FORECAST.ETS(AC$98,$F103:$Z103,$F$98:$Z$98,1)<0,0,_xlfn.FORECAST.ETS(AC$98,$F103:$Z103,$F$98:$Z$98,1)),0),0) -> 1294213 | AD103: =ROUND(IF(AC103>0,IF(_xlfn.FORECAST.ETS(AD$98,$F103:$Z103,$F$98:$Z$98,1)<0,0,_xlfn.FORECAST.ETS(AD$98,$F103:$Z103,$F$98:$Z$98,1)),0),0) -> 1296608 | AE103: =ROUND(IF(AD103>0,IF(_xlfn.FORECAST.ETS(AE$98,$F103:$Z103,$F$98:$Z$98,1)<0,0,_xlfn.FORECAST.ETS(AE$98,$F103:$Z103,$F$98:$Z$98,1)),0),0) -> 1299002
B104: 6 | C104: 17 | D104: Caldas | E104: [Personas] | F104: 959483 | G104: 961277 | H104: 962996 | I104: 964745 | J104: 966596 | K104: 968586 | L104: 970651 | M104: 972591 | N104: 974493 | O104: 976423 | P104: 978342 | Q104: 980267 | R104: 982207 | S104: 984115 | T104: 986042 | U104: 987991 | V104: 989934 | W104: 991860 | X104: 993866 | Y104: 995822 | Z104: 997831 | AA104: =ROUND(IF(Z104>0,IF(_xlfn.FORECAST.ETS(AA$98,$F104:$Z104,$F$98:$Z$98,1)<0,0,_xlfn.FORECAST.ETS(AA$98,$F104:$Z104,$F$98:$Z$98,1)),0),0) -> 999835 | AB104: =ROUND(IF(AA104>0,IF(_xlfn.FORECAST.ETS(AB$98,$F104:$Z104,$F$98:$Z$98,1)<0,0,_xlfn.FORECAST.ETS(AB$98,$F104:$Z104,$F$98:$Z$98,1)),0),0) -> 1001839 | AC104: =ROUND(IF(AB104>0,IF(_xlfn.FORECAST.ETS(AC$98,$F104:$Z104,$F$98:$Z$98,1)<0,0,_xlfn.FORECAST.ETS(AC$98,$F104:$Z104,$F$98:$Z$98,1)),0),0) -> 1003843 | AD104: =ROUND(IF(AC104>0,IF(_xlfn.FORECAST.ETS(AD$98,$F104:$Z104,$F$98:$Z$98,1)<0,0,_xlfn.FORECAST.ETS(AD$98,$F104:$Z104,$F$98:$Z$98,1)),0),0) -> 1005847 | AE104: =ROUND(IF(AD104>0,IF(_xlfn.FORECAST.ETS(AE$98,$F104:$Z104,$F$98:$Z$98,1)<0,0,_xlfn.FORECAST.ETS(AE$98,$F104:$Z104,$F$98:$Z$98,1)),0),0) -> 1007851
B105: 7 | C105: 18 | D105: Caquetá | E105: [Personas] | F105: 398736 | G105: 402694 | H105: 406734 | I105: 410991 | J105: 415586 | K105: 420518 | L105: 425748 | M105: 431020 | N105: 436485 | O105: 442071 | P105: 447767 | Q105: 453588 | R105: 459515 | S105: 465487 | T105: 471541 | U105: 477642 | V105: 483846 | W105: 490056 | X105: 496241 | Y105: 502410 | Z105: 508517 | AA105: =ROUND(IF(Z105>0,IF(_xlfn.FORECAST.ETS(AA$98,$F105:$Z105,$F$98:$Z$98,1)<0,0,_xlfn.FORECAST.ETS(AA$98,$F105:$Z105,$F$98:$Z$98,1)),0),0) -> 514634 | AB105: =ROUND(IF(AA105>0,IF(_xlfn.FORECAST.ETS(AB$98,$F105:$Z105,$F$98:$Z$98,1)<0,0,_xlfn.FORECAST.ETS(AB$98,$F105:$Z105,$F$98:$Z$98,1)),0),0) -> 520745 | AC105: =ROUND(IF(AB105>0,IF(_xlfn.FORECAST.ETS(AC$98,$F105:$Z105,$F$98:$Z$98,1)<0,0,_xlfn.FORECAST.ETS(AC$98,$F105:$Z105,$F$98:$Z$98,1)),0),0) -> 526856 | AD105: =ROUND(IF(AC105>0,IF(_xlfn.FORECAST.ETS(AD$98,$F105:$Z105,$F$98:$Z$98,1)<0,0,_xlfn.FORECAST.ETS(AD$98,$F105:$Z105,$F$98:$Z$98,1)),0),0) -> 532967 | AE105: =ROUND(IF(AD105>0,IF(_xlfn.FORECAST.ETS(AE$98,$F105:$Z105,$F$98:$Z$98,1)<0,0,_xlfn.FORECAST.ETS(AE$98,$F105:$Z105,$F$98:$Z$98,1)),0),0) -> 539078
B106: 8 | C106: 19 | D106: Cauca | E106: [Personas] | F106: 1215944 | G106: 1227525 | H106: 1238420 | I106: 1248825 | J106: 1258885 | K106: 1268830 | L106: 1278185 | M106: 1287746 | N106: 1297703 | O106: 1308183 | P106: 1319120 | Q106: 1330756 | R106: 1342650 | S106: 1354733 | T106: 1366984 | U106: 1379169 | V106: 1391836 | W106: 1404205 | X106: 1415933 | Y106: 1426938 | Z106: 1436916 | AA106: =ROUND(IF(Z106>0,IF(_xlfn.FORECAST.ETS(AA$98,$F106:$Z106,$F$98:$Z$98,1)<0,0,_xlfn.FORECAST.ETS(AA$98,$F106:$Z106,$F$98:$Z$98,1)),0),0) -> 1447035 | AB106: =ROUND(IF(AA106>0,IF(_xlfn.FORECAST.ETS(AB$98,$F106:$Z106,$F$98:$Z$98,1)<0,0,_xlfn.FORECAST.ETS(AB$98,$F106:$Z106,$F$98:$Z$98,1)),0),0) -> 1457042 | AC106: =ROUND(IF(AB106>0,IF(_xlfn.FORECAST.ETS(AC$98,$F106:$Z106,$F$98:$Z$98,1)<0,0,_xlfn.FORECAST.ETS(AC$98,$F106:$Z106,$F$98:$Z$98,1)),0),0) -> 1467049 | AD106: =ROUND(IF(AC106>0,IF(_xlfn.FORECAST.ETS(AD$98,$F106:$Z106,$F$98:$Z$98,1)<0,0,_xlfn.FORECAST.ETS(AD$98,$F106:$Z106,$F$98:$Z$98,1)),0),0) -> 1477055 | AE106: =ROUND(IF(AD106>0,IF(_xlfn.FORECAST.ETS(AE$98,$F106:$Z106,$F$98:$Z$98,1)<0,0,_xlfn.FORECAST.ETS(AE$98,$F106:$Z106,$F$98:$Z$98,1)),0),0) -> 1487062
B107: 9 | C107: 20 | D107: Cesar | E107: [Personas] | F107: 844564 | G107: 855971 | H107: 867510 | I107: 879257 | J107: 891245 | K107: 903423 | L107: 915900 | M107: 928571 | N107: 941258 | O107: 953866 | P107: 966450 | Q107: 979054 | R107: 991584 | S107: 1004058 | T107: 1016533 | U107: 1028890 | V107: 1041204 | W107: 1053475 | X107: 1065673 | Y107: 1077770 | Z107: 1089792 | AA107: =ROUND(IF(Z107>0,IF(_xlfn.FORECAST.ETS(AA$98,$F107:$Z107,$F$98:$Z$98,1)<0,0,_xlfn.FORECAST.ETS(AA$98,$F107:$Z107,$F$98:$Z$98,1)),0),0) -> 1102093 | AB107: =ROUND(IF(AA107>0,IF(_xlfn.FORECAST.ETS(AB$98,$F107:$Z107,$F$98:$Z$98,1)<0,0,_xlfn.FORECAST.ETS(AB$98,$F107:$Z107,$F$98:$Z$98,1)),0),0) -> 1114394 | AC107: =ROUND(IF(AB107>0,IF(_xlfn.FORECAST.ETS(AC$98,$F107:$Z107,$F$98:$Z$98,1)<0,0,_xlfn.FORECAST.ETS(AC$98,$F107:$Z107,$F$98:$Z$98,1)),0),0) -> 1126695 | AD107: =ROUND(IF(AC107>0,IF(_xlfn.FORECAST.ETS(AD$98,$F107:$Z107,$F$98:$Z$98,1)<0,0,_xlfn.FORECAST.ETS(AD$98,$F107:$Z107,$F$98:$Z$98,1)),0),0) -> 1138995 | AE107: =ROUND(IF(AD107>0,IF(_xlfn.FORECAST.ETS(AE$98,$F107:$Z107,$F$98:$Z$98,1)<0,0,_xlfn.FORECAST.ETS(AE$98,$F107:$Z107,$F$98:$Z$98,1)),0),0) -> 1151296
B108: 10 | C108: 23 | D108: Córdoba | E108: [Personas] | F108: 1361658 | G108: 1383011 | H108: 1404175 | I108: 1425297 | J108: 1446552 | K108: 1467906 | L108: 1489745 | M108: 1512031 | N108: 1535414 | O108: 1558833 | P108: 1582784 | Q108: 1607519 | R108: 1632637 | S108: 1658067 | T108: 1683782 | U108: 1709644 | V108: 1736170 | W108: 1762530 | X108: 1788507 | Y108: 1813854 | Z108: 1838371 | AA108: =ROUND(IF(Z108>0,IF(_xlfn.FORECAST.ETS(AA$98,$F108:$Z108,$F$98:$Z$98,1)<0,0,_xlfn.FORECAST.ETS(AA$98,$F108:$Z108,$F$98:$Z$98,1)),0),0) -> 1863003 | AB108: =ROUND(IF(AA108>0,IF(_xlfn.FORECAST.ETS(AB$98,$F108:$Z108,$F$98:$Z$98,1)<0,0,_xlfn.FORECAST.ETS(AB$98,$F108:$Z108,$F$98:$Z$98,1)),0),0) -> 1887542 | AC108: =ROUND(IF(AB108>0,IF(_xlfn.FORECAST.ETS(AC$98,$F108:$Z108,$F$98:$Z$98,1)<0,0,_xlfn.FORECAST.ETS(AC$98,$F108:$Z108,$F$98:$Z$98,1)),0),0) -> 1912081 | AD108: =ROUND(IF(AC108>0,IF(_xlfn.FORECAST.ETS(AD$98,$F108:$Z108,$F$98:$Z$98,1)<0,0,_xlfn.FORECAST.ETS(AD$98,$F108:$Z108,$F$98:$Z$98,1)),0),0) -> 1936620 | AE108: =ROUND(IF(AD108>0,IF(_xlfn.FORECAST.ETS(AE$98,$F108:$Z108,$F$98:$Z$98,1)<0,0,_xlfn.FORECAST.ETS(AE$98,$F108:$Z108,$F$98:$Z$98,1)),0),0) -> 1961159
B109: 11 | C109: 25 | D109: Cundinamarca | E109: [Personas] | F109: 2076798 | G109: 2118567 | H109: 2159796 | I109: 2200405 | J109: 2240428 | K109: 2280158 | L109: 2318959 | M109: 2358115 | N109: 2397511 | O109: 2437151 | P109: 2477036 | Q109: 2517215 | R109: 2557623 | S109: 2598245 | T109: 2639059 | U109: 2680041 | V109: 2721368 | W109: 2762784 | X109: 2804238 | Y109: 2845668 | Z109: 2887005 | AA109: =ROUND(IF(Z109>0,IF(_xlfn.FORECAST.ETS(AA$98,$F109:$Z109,$F$98:$Z$98,1)<0,0,_xlfn.FORECAST.ETS(AA$98,$F109:$Z109,$F$98:$Z$98,1)),0),0) -> 2928556 | AB109: =ROUND(IF(AA109>0,IF(_xlfn.FORECAST.ETS(AB$98,$F109:$Z109,$F$98:$Z$98,1)<0,0,_xlfn.FORECAST.ETS(AB$98,$F109:$Z109,$F$98:$Z$98,1)),0),0) -> 2969999 | AC109: =ROUND(IF(AB109>0,IF(_xlfn.FORECAST.ETS(AC$98,$F109:$Z109,$F$98:$Z$98,1)<0,0,_xlfn.FORECAST.ETS(AC$98,$F109:$Z109,$F$98:$Z$98,1)),0),0) -> 3011442 | AD109: =ROUND(IF(AC109>0,IF(_xlfn.FORECAST.ETS(AD$98,$F109:$Z109,$F$98:$Z$98,1)<0,0,_xlfn.FORECAST.ETS(AD$98,$F109:$Z109,$F$98:$Z$98,1)),0),0) -> 3052884 | AE109: =ROUND(IF(AD109>0,IF(_xlfn.FORECAST.ETS(AE$98,$F109:$Z109,$F$98:$Z$98,1)<0,0,_xlfn.FORECAST.ETS(AE$98,$F109:$Z109,$F$98:$Z$98,1)),0),0) -> 3094327
B110: 12 | C110: 27 | D110: Chocó | E110: [Personas] | F110: 437343 | G110: 437951 | H110: 441828 | I110: 445794 | J110: 449877 | K110: 454053 | L110: 458317 | M110: 462683 | N110: 467074 | O110: 471598 | P110: 476149 | Q110: 480820 | R110: 485543 | S110: 490317 | T110: 495151 | U110: 500093 | V110: 505016 | W110: 510047 | X110: 515145 | Y110: 520296 | Z110: 525505 | AA110: =ROUND(IF(Z110>0,IF(_xlfn.FORECAST.ETS(AA$98,$F110:$Z110,$F$98:$Z$98,1)<0,0,_xlfn.FORECAST.ETS(AA$98,$F110:$Z110,$F$98:$Z$98,1)),0),0) -> 530698 | AB110: =ROUND(IF(AA110>0,IF(_xlfn.FORECAST.ETS(AB$98,$F110:$Z110,$F$98:$Z$98,1)<0,0,_xlfn.FORECAST.ETS(AB$98,$F110:$Z110,$F$98:$Z$98,1)),0),0) -> 535909 | AC110: =ROUND(IF(AB110>0,IF(_xlfn.FORECAST.ETS(AC$98,$F110:$Z110,$F$98:$Z$98,1)<0,0,_xlfn.FORECAST.ETS(AC$98,$F110:$Z110,$F$98:$Z$98,1)),0),0) -> 541121 | AD110: =ROUND(IF(AC110>0,IF(_xlfn.FORECAST.ETS(AD$98,$F110:$Z110,$F$98:$Z$98,1)<0,0,_xlfn.FORECAST.ETS(AD$98,$F110:$Z110,$F$98:$Z$98,1)),0),0) -> 546332 | AE110: =ROUND(IF(AD110>0,IF(_xlfn.FORECAST.ETS(AE$98,$F110:$Z110,$F$98:$Z$98,1)<0,0,_xlfn.FORECAST.ETS(AE$98,$F110:$Z110,$F$98:$Z$98,1)),0),0) -> 551544
B111: 13 | C111: 41 | D111: Huila | E111: [Personas] | F111: 938244 | G111: 953031 | H111: 967773 | I111: 982377 | J111: 996874 | K111: 1011405 | L111: 1025738 | M111: 1040086 | N111: 1054423 | O111: 1068844 | P111: 1083189 | Q111: 1097584 | R111: 1111947 | S111: 1126316 | T111: 1140539 | U111: 1154777 | V111: 1168869 | W111: 1182944 | X111: 1197081 | Y111: 1211163 | Z111: 1225343 | AA111: =ROUND(IF(Z111>0,IF(_xlfn.FORECAST.ETS(AA$98,$F111:$Z111,$F$98:$Z$98,1)<0,0,_xlfn.FORECAST.ETS(AA$98,$F111:$Z111,$F$98:$Z$98,1)),0),0) -> 1239370 | AB111: =ROUND(IF(AA111>0,IF(_xlfn.FORECAST.ETS(AB$98,$F111:$Z111,$F$98:$Z$98,1)<0,0,_xlfn.FORECAST.ETS(AB$98,$F111:$Z111,$F$98:$Z$98,1)),0),0) -> 1253379 | AC111: =ROUND(IF(AB111>0,IF(_xlfn.FORECAST.ETS(AC$98,$F111:$Z111,$F$98:$Z$98,1)<0,0,_xlfn.FORECAST.ETS(AC$98,$F111:$Z111,$F$98:$Z$98,1)),0),0) -> 1267388 | AD111: =ROUND(IF(AC111>0,IF(_xlfn.FORECAST.ETS(AD$98,$F111:$Z111,$F$98:$Z$98,1)<0,0,_xlfn.FORECAST.ETS(AD$98,$F111:$Z111,$F$98:$Z$98,1)),0),0) -> 1281397 | AE111: =ROUND(IF(AD111>0,IF(_xlfn.FORECAST.ETS(AE$98,$F111:$Z111,$F$98:$Z$98,1)<0,0,_xlfn.FORECAST.ETS(AE$98,$F111:$Z111,$F$98:$Z$98,1)),0),0) -> 1295406
B112: 14 | C112: 44 | D112: La Guajira | E112: [Personas] | F112: 548879 | G112: 573624 | H112: 599517 | I112: 626358 | J112: 653834 | K112: 681534 | L112: 708768 | M112: 736050 | N112: 763496 | O112: 791083 | P112: 818740 | Q112: 846641 | R112: 874532 | S112: 902367 | T112: 930143 | U112: 957797 | V112: 985452 | W112: 1012926 | X112: 1040157 | Y112: 1067063 | Z112: 1093671 | AA112: =ROUND(IF(Z112>0,IF(_xlfn.FORECAST.ETS(AA$98,$F112:$Z112,$F$98:$Z$98,1)<0,0,_xlfn.FORECAST.ETS(AA$98,$F112:$Z112,$F$98:$Z$98,1)),0),0) -> 1120855 | AB112: =ROUND(IF(AA112>0,IF(_xlfn.FORECAST.ETS(AB$98,$F112:$Z112,$F$98:$Z$98,1)<0,0,_xlfn.FORECAST.ETS(AB$98,$F112:$Z112,$F$98:$Z$98,1)),0),0) -> 1148038 | AC112: =ROUND(IF(AB112>0,IF(_xlfn.FORECAST.ETS(AC$98,$F112:$Z112,$F$98:$Z$98,1)<0,0,_xlfn.FORECAST.ETS(AC$98,$F112:$Z112,$F$98:$Z$98,1)),0),0) -> 1175220 | AD112: =ROUND(IF(AC112>0,IF(_xlfn.FORECAST.ETS(AD$98,$F112:$Z112,$F$98:$Z$98,1)<0,0,_xlfn.FORECAST.ETS(AD$98,$F112:$Z112,$F$98:$Z$98,1)),0),0) -> 1202403 | AE112: =ROUND(IF(AD112>0,IF(_xlfn.FORECAST.ETS(AE$98,$F112:$Z112,$F$98:$Z$98,1)<0,0,_xlfn.FORECAST.ETS(AE$98,$F112:$Z112,$F$98:$Z$98,1)),0),0) -> 1229585
B113: 15 | C113: 47 | D113: Magdalena | E113: [Personas] | F113: 1118977 | G113: 1120576 | H113: 1121975 | I113: 1131036 | J113: 1140396 | K113: 1150064 | L113: 1159895 | M113: 1169866 | N113: 1180134 | O113: 1190666 | P113: 1201501 | Q113: 1212559 | R113: 1223875 | S113: 1235532 | T113: 1247514 | U113: 1259822 | V113: 1272442 | W113: 1285384 | X113: 1298691 | Y113: 1312428 | Z113: 1326525 | AA113: =ROUND(IF(Z113>0,IF(_xlfn.FORECAST.ETS(AA$98,$F113:$Z113,$F$98:$Z$98,1)<0,0,_xlfn.FORECAST.ETS(AA$98,$F113:$Z113,$F$98:$Z$98,1)),0),0) -> 1340581 | AB113: =ROUND(IF(AA113>0,IF(_xlfn.FORECAST.ETS(AB$98,$F113:$Z113,$F$98:$Z$98,1)<0,0,_xlfn.FORECAST.ETS(AB$98,$F113:$Z113,$F$98:$Z$98,1)),0),0) -> 1354638 | AC113: =ROUND(IF(AB113>0,IF(_xlfn.FORECAST.ETS(AC$98,$F113:$Z113,$F$98:$Z$98,1)<0,0,_xlfn.FORECAST.ETS(AC$98,$F113:$Z113,$F$98:$Z$98,1)),0),0) -> 1368694 | AD113: =ROUND(IF(AC113>0,IF(_xlfn.FORECAST.ETS(AD$98,$F113:$Z113,$F$98:$Z$98,1)<0,0,_xlfn.FORECAST.ETS(AD$98,$F113:$Z113,$F$98:$Z$98,1)),0),0) -> 1382751 | AE113: =ROUND(IF(AD113>0,IF(_xlfn.FORECAST.ETS(AE$98,$F113:$Z113,$F$98:$Z$98,1)<0,0,_xlfn.FORECAST.ETS(AE$98,$F113:$Z113,$F$98:$Z$98,1)),0),0) -> 1396808
B114: 16 | C114: 50 | D114: Meta | E114: [Personas] | F114: 697478 | G114: 714759 | H114: 732007 | I114: 749153 | J114: 766214 | K114: 783285 | L114: 800581 | M114: 817969 | N114: 835526 | O114: 853166 | P114: 870921 | Q114: 888802 | R114: 906805 | S114: 924871 | T114: 943072 | U114: 961334 | V114: 979710 | W114: 998162 | X114: 1016701 | Y114: 1035256 | Z114: 1053867 | AA114: =ROUND(IF(Z114>0,IF(_xlfn.FORECAST.ETS(AA$98,$F114:$Z114,$F$98:$Z$98,1)<0,0,_xlfn.FORECAST.ETS(AA$98,$F114:$Z114,$F$98:$Z$98,1)),0),0) -> 1072268 | AB114: =ROUND(IF(AA114>0,IF(_xlfn.FORECAST.ETS(AB$98,$F114:$Z114,$F$98:$Z$98,1)<0,0,_xlfn.FORECAST.ETS(AB$98,$F114:$Z114,$F$98:$Z$98,1)),0),0) -> 1090868 | AC114: =ROUND(IF(AB114>0,IF(_xlfn.FORECAST.ETS(AC$98,$F114:$Z114,$F$98:$Z$98,1)<0,0,_xlfn.FORECAST.ETS(AC$98,$F114:$Z114,$F$98:$Z$98,1)),0),0) -> 1109469 | AD114: =ROUND(IF(AC114>0,IF(_xlfn.FORECAST.ETS(AD$98,$F114:$Z114,$F$98:$Z$98,1)<0,0,_xlfn.FORECAST.ETS(AD$98,$F114:$Z114,$F$98:$Z$98,1)),0),0) -> 1128070 | AE114: =ROUND(IF(AD114>0,IF(_xlfn.FORECAST.ETS(AE$98,$F114:$Z114,$F$98:$Z$98,1)<0,0,_xlfn.FORECAST.ETS(AE$98,$F114:$Z114,$F$98:$Z$98,1)),0),0) -> 1146671
B115: 17 | C115: 52 | D115: Nariño | E115: [Personas] | F115: 1446493 | G115: 1464826 | H115: 1483416 | I115: 1502757 | J115: 1522205 | K115: 1541692 | L115: 1560872 | M115: 1580109 | N115: 1599646 | O115: 1619461 | P115: 1639560 | Q115: 1660062 | R115: 1680795 | S115: 1701782 | T115: 1722945 | U115: 1744228 | V115: 1765906 | W115: 1787545 | X115: 1809116 | Y115: 1830473 | Z115: 1851477 | AA115: =ROUND(IF(Z115>0,IF(_xlfn.FORECAST.ETS(AA$98,$F115:$Z115,$F$98:$Z$98,1)<0,0,_xlfn.FORECAST.ETS(AA$98,$F115:$Z115,$F$98:$Z$98,1)),0),0) -> 1872645 | AB115: =ROUND(IF(AA115>0,IF(_xlfn.FORECAST.ETS(AB$98,$F115:$Z115,$F$98:$Z$98,1)<0,0,_xlfn.FORECAST.ETS(AB$98,$F115:$Z115,$F$98:$Z$98,1)),0),0) -> 1893693 | AC115: =ROUND(IF(AB115>0,IF(_xlfn.FORECAST.ETS(AC$98,$F115:$Z115,$F$98:$Z$98,1)<0,0,_xlfn.FORECAST.ETS(AC$98,$F115:$Z115,$F$98:$Z$98,1)),0),0) -> 1914742 | AD115: =ROUND(IF(AC115>0,IF(_xlfn.FORECAST.ETS(AD$98,$F115:$Z115,$F$98:$Z$98,1)<0,0,_xlfn.FORECAST.ETS(AD$98,$F115:$Z115,$F$98:$Z$98,1)),0),0) -> 1935790 | AE115: =ROUND(IF(AD115>0,IF(_xlfn.FORECAST.ETS(AE$98,$F115:$Z115,$F$98:$Z$98,1)<0,0,_xlfn.FORECAST.ETS(AE$98,$F115:$Z115,$F$98:$Z$98,1)),0),0) -> 1956839
B116: 18 | C116: 54 | D116: Norte de Santander | E116: [Personas] | F116: 1189505 | G116: 1200639 | H116: 1211502 | I116: 1222289 | J116: 1233069 | K116: 1243861 | L116: 1254386 | M116: 1265056 | N116: 1275834 | O116: 1286830 | P116: 1297951 | Q116: 1309265 | R116: 1320777 | S116: 1332378 | T116: 1344038 | U116: 1355787 | V116: 1367708 | W116: 1379533 | X116: 1391239 | Y116: 1402695 | Z116: 1413837 | AA116: =ROUND(IF(Z116>0,IF(_xlfn.FORECAST.ETS(AA$98,$F116:$Z116,$F$98:$Z$98,1)<0,0,_xlfn.FORECAST.ETS(AA$98,$F116:$Z116,$F$98:$Z$98,1)),0),0) -> 1425023 | AB116: =ROUND(IF(AA116>0,IF(_xlfn.FORECAST.ETS(AB$98,$F116:$Z116,$F$98:$Z$98,1)<0,0,_xlfn.FORECAST.ETS(AB$98,$F116:$Z116,$F$98:$Z$98,1)),0),0) -> 1436173 | AC116: =ROUND(IF(AB116>0,IF(_xlfn.FORECAST.ETS(AC$98,$F116:$Z116,$F$98:$Z$98,1)<0,0,_xlfn.FORECAST.ETS(AC$98,$F116:$Z116,$F$98:$Z$98,1)),0),0) -> 1447324 | AD116: =ROUND(IF(AC116>0,IF(_xlfn.FORECAST.ETS(AD$98,$F116:$Z116,$F$98:$Z$98,1)<0,0,_xlfn.FORECAST.ETS(AD$98,$F116:$Z116,$F$98:$Z$98,1)),0),0) -> 1458474 | AE116: =ROUND(IF(AD116>0,IF(_xlfn.FORECAST.ETS(AE$98,$F116:$Z116,$F$98:$Z$98,1)<0,0,_xlfn.FORECAST.ETS(AE$98,$F116:$Z116,$F$98:$Z$98,1)),0),0) -> 1469624
B117: 19 | C117: 63 | D117: Quindio | E117: [Personas] | F117: 519805 | G117: 522634 | H117: 525498 | I117: 528413 | J117: 531424 | K117: 534506 | L117: 537530 | M117: 540533 | N117: 543579 | O117: 546593 | P117: 549662 | Q117: 552755 | R117: 555836 | S117: 558969 | T117: 562114 | U117: 565310 | V117: 568506 | W117: 571733 | X117: 575010 | Y117: 578268 | Z117: 581552 | AA117: =ROUND(IF(Z117>0,IF(_xlfn.FORECAST.ETS(AA$98,$F117:$Z117,$F$98:$Z$98,1)<0,0,_xlfn.FORECAST.ETS(AA$98,$F117:$Z117,$F$98:$Z$98,1)),0),0) -> 584796 | AB117: =ROUND(IF(AA117>0,IF(_xlfn.FORECAST.ETS(AB$98,$F117:$Z117,$F$98:$Z$98,1)<0,0,_xlfn.FORECAST.ETS(AB$98,$F117:$Z117,$F$98:$Z$98,1)),0),0) -> 588107 | AC117: =ROUND(IF(AB117>0,IF(_xlfn.FORECAST.ETS(AC$98,$F117:$Z117,$F$98:$Z$98,1)<0,0,_xlfn.FORECAST.ETS(AC$98,$F117:$Z117,$F$98:$Z$98,1)),0),0) -> 591419 | AD117: =ROUND(IF(AC117>0,IF(_xlfn.FORECAST.ETS(AD$98,$F117:$Z117,$F$98:$Z$98,1)<0,0,_xlfn.FORECAST.ETS(AD$98,$F117:$Z117,$F$98:$Z$98,1)),0),0) -> 594730 | AE117: =ROUND(IF(AD117>0,IF(_xlfn.FORECAST.ETS(AE$98,$F117:$Z117,$F$98:$Z$98,1)<0,0,_xlfn.FORECAST.ETS(AE$98,$F117:$Z117,$F$98:$Z$98,1)),0),0) -> 598042
B118: 20 | C118: 66 | D118: Risaralda | E118: [Personas] | F118: 869888 | G118: 875120 | H118: 880472 | I118: 885964 | J118: 891636 | K118: 897413 | L118: 903052 | M118: 908644 | N118: 914171 | O118: 919641 | P118: 925117 | Q118: 930518 | R118: 935910 | S118: 941275 | T118: 946632 | U118: 951953 | V118: 957254 | W118: 962529 | X118: 967767 | Y118: 972978 | Z118: 978173 | AA118: =ROUND(IF(Z118>0,IF(_xlfn.FORECAST.ETS(AA$98,$F118:$Z118,$F$98:$Z$98,1)<0,0,_xlfn.FORECAST.ETS(AA$98,$F118:$Z118,$F$98:$Z$98,1)),0),0) -> 983382 | AB118: =ROUND(IF(AA118>0,IF(_xlfn.FORECAST.ETS(AB$98,$F118:$Z118,$F$98:$Z$98,1)<0,0,_xlfn.FORECAST.ETS(AB$98,$F118:$Z118,$F$98:$Z$98,1)),0),0) -> 988568 | AC118: =ROUND(IF(AB118>0,IF(_xlfn.FORECAST.ETS(AC$98,$F118:$Z118,$F$98:$Z$98,1)<0,0,_xlfn.FORECAST.ETS(AC$98,$F118:$Z118,$F$98:$Z$98,1)),0),0) -> 993754 | AD118: =ROUND(IF(AC118>0,IF(_xlfn.FORECAST.ETS(AD$98,$F118:$Z118,$F$98:$Z$98,1)<0,0,_xlfn.FORECAST.ETS(AD$98,$F118:$Z118,$F$98:$Z$98,1)),0),0) -> 998939 | AE118: =ROUND(IF(AD118>0,IF(_xlfn.FORECAST.ETS(AE$98,$F118:$Z118,$F$98:$Z$98,1)<0,0,_xlfn.FORECAST.ETS(AE$98,$F118:$Z118,$F$98:$Z$98,1)),0),0) -> 1004125
B119: 21 | C119: 68 | D119: Santander | E119: [Personas] | F119: 1905077 | G119: 1916945 | H119: 1927772 | I119: 1937920 | J119: 1947837 | K119: 1957775 | L119: 1968351 | M119: 1978976 | N119: 1989514 | O119: 1999999 | P119: 2010393 | Q119: 2020604 | R119: 2030775 | S119: 2040932 | T119: 2051022 | U119: 2061079 | V119: 2071016 | W119: 2080938 | X119: 2090839 | Y119: 2100704 | Z119: 2110580 | AA119: =ROUND(IF(Z119>0,IF(_xlfn.FORECAST.ETS(AA$98,$F119:$Z119,$F$98:$Z$98,1)<0,0,_xlfn.FORECAST.ETS(AA$98,$F119:$Z119,$F$98:$Z$98,1)),0),0) -> 2120451 | AB119: =ROUND(IF(AA119>0,IF(_xlfn.FORECAST.ETS(AB$98,$F119:$Z119,$F$98:$Z$98,1)<0,0,_xlfn.FORECAST.ETS(AB$98,$F119:$Z119,$F$98:$Z$98,1)),0),0) -> 2130323 | AC119: =ROUND(IF(AB119>0,IF(_xlfn.FORECAST.ETS(AC$98,$F119:$Z119,$F$98:$Z$98,1)<0,0,_xlfn.FORECAST.ETS(AC$98,$F119:$Z119,$F$98:$Z$98,1)),0),0) -> 2140195 | AD119: =ROUND(IF(AC119>0,IF(_xlfn.FORECAST.ETS(AD$98,$F119:$Z119,$F$98:$Z$98,1)<0,0,_xlfn.FORECAST.ETS(AD$98,$F119:$Z119,$F$98:$Z$98,1)),0),0) -> 2150067 | AE119: =ROUND(IF(AD119>0,IF(_xlfn.FORECAST.ETS(AE$98,$F119:$Z119,$F$98:$Z$98,1)<0,0,_xlfn.FORECAST.ETS(AE$98,$F119:$Z119,$F$98:$Z$98,1)),0),0) -> 2159939
B120: 22 | C120: 70 | D120: Sucre | E120: [Personas] | F120: 734647 | G120: 742217 | H120: 749636 | I120: 757033 | J120: 764503 | K120: 772042 | L120: 779515 | M120: 787153 | N120: 794914 | O120: 802736 | P120: 810664 | Q120: 818689 | R120: 826780 | S120: 834937 | T120: 843202 | U120: 851515 | V120: 859913 | W120: 868438 | X120: 877057 | Y120: 885835 | Z120: 894785 | AA120: =ROUND(IF(Z120>0,IF(_xlfn.FORECAST.ETS(AA$98,$F120:$Z120,$F$98:$Z$98,1)<0,0,_xlfn.FORECAST.ETS(AA$98,$F120:$Z120,$F$98:$Z$98,1)),0),0) -> 903099 | AB120: =ROUND(IF(AA120>0,IF(_xlfn.FORECAST.ETS(AB$98,$F120:$Z120,$F$98:$Z$98,1)<0,0,_xlfn.FORECAST.ETS(AB$98,$F120:$Z120,$F$98:$Z$98,1)),0),0) -> 911914 | AC120: =ROUND(IF(AB120>0,IF(_xlfn.FORECAST.ETS(AC$98,$F120:$Z120,$F$98:$Z$98,1)<0,0,_xlfn.FORECAST.ETS(AC$98,$F120:$Z120,$F$98:$Z$98,1)),0),0) -> 920729 | AD120: =ROUND(IF(AC120>0,IF(_xlfn.FORECAST.ETS(AD$98,$F120:$Z120,$F$98:$Z$98,1)<0,0,_xlfn.FORECAST.ETS(AD$98,$F120:$Z120,$F$98:$Z$98,1)),0),0) -> 929544 | AE120: =ROUND(IF(AD120>0,IF(_xlfn.FORECAST.ETS(AE$98,$F120:$Z120,$F$98:$Z$98,1)<0,0,_xlfn.FORECAST.ETS(AE$98,$F120:$Z120,$F$98:$Z$98,1)),0),0) -> 938359
B121: 23 | C121: 73 | D121: Tolima | E121: [Personas] | F121: 1336721 | G121: 1342648 | H121: 1348498 | I121: 1354239 | J121: 1359765 | K121: 1365082 | L121: 1369841 | M121: 1374437 | N121: 1378903 | O121: 1383304 | P121: 1387621 | Q121: 1391876 | R121: 1396038 | S121: 1400140 | T121: 1404262 | U121: 1408272 | V121: 1412220 | W121: 1416124 | X121: 1419947 | Y121: 1423719 | Z121: 1427427 | AA121: =ROUND(IF(Z121>0,IF(_xlfn.FORECAST.ETS(AA$98,$F121:$Z121,$F$98:$Z$98,1)<0,0,_xlfn.FORECAST.ETS(AA$98,$F121:$Z121,$F$98:$Z$98,1)),0),0) -> 1431142 | AB121: =ROUND(IF(AA121>0,IF(_xlfn.FORECAST.ETS(AB$98,$F121:$Z121,$F$98:$Z$98,1)<0,0,_xlfn.FORECAST.ETS(AB$98,$F121:$Z121,$F$98:$Z$98,1)),0),0) -> 1434851 | AC121: =ROUND(IF(AB121>0,IF(_xlfn.FORECAST.ETS(AC$98,$F121:$Z121,$F$98:$Z$98,1)<0,0,_xlfn.FORECAST.ETS(AC$98,$F121:$Z121,$F$98:$Z$98,1)),0),0) -> 1438560 | AD121: =ROUND(IF(AC121>0,IF(_xlfn.FORECAST.ETS(AD$98,$F121:$Z121,$F$98:$Z$98,1)<0,0,_xlfn.FORECAST.ETS(AD$98,$F121:$Z121,$F$98:$Z$98,1)),0),0) -> 1442268 | AE121: =ROUND(IF(AD121>0,IF(_xlfn.FORECAST.ETS(AE$98,$F121:$Z121,$F$98:$Z$98,1)<0,0,_xlfn.FORECAST.ETS(AE$98,$F121:$Z121,$F$98:$Z$98,1)),0),0) -> 1445977
B122: 24 | C122: 76 | D122: Valle del Cauca | E122: [Personas] | F122: 3949031 | G122: 3990355 | H122: 4032191 | I122: 4074590 | J122: 4117760 | K122: 4161470 | L122: 4205228 | M122: 4249220 | N122: 4293541 | O122: 4338216 | P122: 4383277 | Q122: 4428675 | R122: 4474369 | S122: 4520480 | T122: 4566875 | U122: 4613684 | V122: 4660741 | W122: 4708262 | X122: 4756113 | Y122: 4804489 | Z122: 4853327 | AA122: =ROUND(IF(Z122>0,IF(_xlfn.FORECAST.ETS(AA$98,$F122:$Z122,$F$98:$Z$98,1)<0,0,_xlfn.FORECAST.ETS(AA$98,$F122:$Z122,$F$98:$Z$98,1)),0),0) -> 4900263 | AB122: =ROUND(IF(AA122>0,IF(_xlfn.FORECAST.ETS(AB$98,$F122:$Z122,$F$98:$Z$98,1)<0,0,_xlfn.FORECAST.ETS(AB$98,$F122:$Z122,$F$98:$Z$98,1)),0),0) -> 4948930 | AC122: =ROUND(IF(AB122>0,IF(_xlfn.FORECAST.ETS(AC$98,$F122:$Z122,$F$98:$Z$98,1)<0,0,_xlfn.FORECAST.ETS(AC$98,$F122:$Z122,$F$98:$Z$98,1)),0),0) -> 4997598 | AD122: =ROUND(IF(AC122>0,IF(_xlfn.FORECAST.ETS(AD$98,$F122:$Z122,$F$98:$Z$98,1)<0,0,_xlfn.FORECAST.ETS(AD$98,$F122:$Z122,$F$98:$Z$98,1)),0),0) -> 5046266 | AE122: =ROUND(IF(AD122>0,IF(_xlfn.FORECAST.ETS(AE$98,$F122:$Z122,$F$98:$Z$98,1)<0,0,_xlfn.FORECAST.ETS(AE$98,$F122:$Z122,$F$98:$Z$98,1)),0),0) -> 5094934
B123: 25 | C123: 81 | D123: Arauca | E123: [Personas] | F123: 215979 | G123: 220976 | H123: 224831 | I123: 227738 | J123: 230019 | K123: 232129 | L123: 235252 | M123: 238361 | N123: 241446 | O123: 244507 | P123: 247541 | Q123: 250569 | R123: 253565 | S123: 256527 | T123: 259447 | U123: 262315 | V123: 265190 | W123: 267992 | X123: 270708 | Y123: 273321 | Z123: 275814 | AA123: =ROUND(IF(Z123>0,IF(_xlfn.FORECAST.ETS(AA$98,$F123:$Z123,$F$98:$Z$98,1)<0,0,_xlfn.FORECAST.ETS(AA$98,$F123:$Z123,$F$98:$Z$98,1)),0),0) -> 278801 | AB123: =ROUND(IF(AA123>0,IF(_xlfn.FORECAST.ETS(AB$98,$F123:$Z123,$F$98:$Z$98,1)<0,0,_xlfn.FORECAST.ETS(AB$98,$F123:$Z123,$F$98:$Z$98,1)),0),0) -> 281739 | AC123: =ROUND(IF(AB123>0,IF(_xlfn.FORECAST.ETS(AC$98,$F123:$Z123,$F$98:$Z$98,1)<0,0,_xlfn.FORECAST.ETS(AC$98,$F123:$Z123,$F$98:$Z$98,1)),0),0) -> 284678 | AD123: =ROUND(IF(AC123>0,IF(_xlfn.FORECAST.ETS(AD$98,$F123:$Z123,$F$98:$Z$98,1)<0,0,_xlfn.FORECAST.ETS(AD$98,$F123:$Z123,$F$98:$Z$98,1)),0),0) -> 287616 | AE123: =ROUND(IF(AD123>0,IF(_xlfn.FORECAST.ETS(AE$98,$F123:$Z123,$F$98:$Z$98,1)<0,0,_xlfn.FORECAST.ETS(AE$98,$F123:$Z123,$F$98:$Z$98,1)),0),0) -> 290555
B124: 26 | C124: 85 | D124: Casanare | E124: [Personas] | F124: 263956 | G124: 270318 | H124: 276648 | I124: 282913 | J124: 289117 | K124: 295276 | L124: 301371 | M124: 307441 | N124: 313431 | O124: 319515 | P124: 325621 | Q124: 331734 | R124: 337886 | S124: 344040 | T124: 350239 | U124: 356479 | V124: 362721 | W124: 368989 | X124: 375249 | Y124: 381554 | Z124: 387828 | AA124: =ROUND(IF(Z124>0,IF(_xlfn.FORECAST.ETS(AA$98,$F124:$Z124,$F$98:$Z$98,1)<0,0,_xlfn.FORECAST.ETS(AA$98,$F124:$Z124,$F$98:$Z$98,1)),0),0) -> 393979 | AB124: =ROUND(IF(AA124>0,IF(_xlfn.FORECAST.ETS(AB$98,$F124:$Z124,$F$98:$Z$98,1)<0,0,_xlfn.FORECAST.ETS(AB$98,$F124:$Z124,$F$98:$Z$98,1)),0),0) -> 400142 | AC124: =ROUND(IF(AB124>0,IF(_xlfn.FORECAST.ETS(AC$98,$F124:$Z124,$F$98:$Z$98,1)<0,0,_xlfn.FORECAST.ETS(AC$98,$F124:$Z124,$F$98:$Z$98,1)),0),0) -> 406305 | AD124: =ROUND(IF(AC124>0,IF(_xlfn.FORECAST.ETS(AD$98,$F124:$Z124,$F$98:$Z$98,1)<0,0,_xlfn.FORECAST.ETS(AD$98,$F124:$Z124,$F$98:$Z$98,1)),0),0) -> 412469 | AE124: =ROUND(IF(AD124>0,IF(_xlfn.FORECAST.ETS(AE$98,$F124:$Z124,$F$98:$Z$98,1)<0,0,_xlfn.FORECAST.ETS(AE$98,$F124:$Z124,$F$98:$Z$98,1)),0),0) -> 418632
B125: 27 | C125: 86 | D125: Putumayo | E125: [Personas] | F125: 293525 | G125: 297363 | H125: 300865 | I125: 304095 | J125: 307144 | K125: 310132 | L125: 313126 | M125: 316209 | N125: 319390 | O125: 322681 | P125: 326093 | Q125: 329598 | R125: 333247 | S125: 337054 | T125: 341034 | U125: 345204 | V125: 349537 | W125: 354094 | X125: 358896 | Y125: 363967 | Z125: 369332 | AA125: =ROUND(IF(Z125>0,IF(_xlfn.FORECAST.ETS(AA$98,$F125:$Z125,$F$98:$Z$98,1)<0,0,_xlfn.FORECAST.ETS(AA$98,$F125:$Z125,$F$98:$Z$98,1)),0),0) -> 368818 | AB125: =ROUND(IF(AA125>0,IF(_xlfn.FORECAST.ETS(AB$98,$F125:$Z125,$F$98:$Z$98,1)<0,0,_xlfn.FORECAST.ETS(AB$98,$F125:$Z125,$F$98:$Z$98,1)),0),0) -> 372458 | AC125: =ROUND(IF(AB125>0,IF(_xlfn.FORECAST.ETS(AC$98,$F125:$Z125,$F$98:$Z$98,1)<0,0,_xlfn.FORECAST.ETS(AC$98,$F125:$Z125,$F$98:$Z$98,1)),0),0) -> 376099 | AD125: =ROUND(IF(AC125>0,IF(_xlfn.FORECAST.ETS(AD$98,$F125:$Z125,$F$98:$Z$98,1)<0,0,_xlfn.FORECAST.ETS(AD$98,$F125:$Z125,$F$98:$Z$98,1)),0),0) -> 379740 | AE125: =ROUND(IF(AD125>0,IF(_xlfn.FORECAST.ETS(AE$98,$F125:$Z125,$F$98:$Z$98,1)<0,0,_xlfn.FORECAST.ETS(AE$98,$F125:$Z125,$F$98:$Z$98,1)),0),0) -> 383381
B126: 28 | C126: 88 | D126: San Andrés | E126: [Personas] | F126: 67672 | G126: 68177 | H126: 68717 | I126: 69300 | J126: 69920 | K126: 70554 | L126: 71075 | M126: 71613 | N126: 72167 | O126: 72735 | P126: 73320 | Q126: 73925 | R126: 74541 | S126: 75167 | T126: 75801 | U126: 76442 | V126: 77101 | W126: 77759 | X126: 78413 | Y126: 79060 | Z126: 79693 | AA126: =ROUND(IF(Z126>0,IF(_xlfn.FORECAST.ETS(AA$98,$F126:$Z126,$F$98:$Z$98,1)<0,0,_xlfn.FORECAST.ETS(AA$98,$F126:$Z126,$F$98:$Z$98,1)),0),0) -> 80347 | AB126: =ROUND(IF(AA126>0,IF(_xlfn.FORECAST.ETS(AB$98,$F126:$Z126,$F$98:$Z$98,1)<0,0,_xlfn.FORECAST.ETS(AB$98,$F126:$Z126,$F$98:$Z$98,1)),0),0) -> 80987 | AC126: =ROUND(IF(AB126>0,IF(_xlfn.FORECAST.ETS(AC$98,$F126:$Z126,$F$98:$Z$98,1)<0,0,_xlfn.FORECAST.ETS(AC$98,$F126:$Z126,$F$98:$Z$98,1)),0),0) -> 81628 | AD126: =ROUND(IF(AC126>0,IF(_xlfn.FORECAST.ETS(AD$98,$F126:$Z126,$F$98:$Z$98,1)<0,0,_xlfn.FORECAST.ETS(AD$98,$F126:$Z126,$F$98:$Z$98,1)),0),0) -> 82268 | AE126: =ROUND(IF(AD126>0,IF(_xlfn.FORECAST.ETS(AE$98,$F126:$Z126,$F$98:$Z$98,1)<0,0,_xlfn.FORECAST.ETS(AE$98,$F126:$Z126,$F$98:$Z$98,1)),0),0) -> 82909
B127: 29 | C127: 91 | D127: Amazonas | E127: [Personas] | F127: 62065 | G127: 63451 | H127: 64701 | I127: 65825 | J127: 66827 | K127: 67726 | L127: 68613 | M127: 69474 | N127: 70313 | O127: 71167 | P127: 72017 | Q127: 72858 | R127: 73699 | S127: 74541 | T127: 75388 | U127: 76243 | V127: 77088 | W127: 77948 | X127: 78830 | Y127: 79739 | Z127: 80682 | AA127: =ROUND(IF(Z127>0,IF(_xlfn.FORECAST.ETS(AA$98,$F127:$Z127,$F$98:$Z$98,1)<0,0,_xlfn.FORECAST.ETS(AA$98,$F127:$Z127,$F$98:$Z$98,1)),0),0) -> 81621 | AB127: =ROUND(IF(AA127>0,IF(_xlfn.FORECAST.ETS(AB$98,$F127:$Z127,$F$98:$Z$98,1)<0,0,_xlfn.FORECAST.ETS(AB$98,$F127:$Z127,$F$98:$Z$98,1)),0),0) -> 82561 | AC127: =ROUND(IF(AB127>0,IF(_xlfn.FORECAST.ETS(AC$98,$F127:$Z127,$F$98:$Z$98,1)<0,0,_xlfn.FORECAST.ETS(AC$98,$F127:$Z127,$F$98:$Z$98,1)),0),0) -> 83500 | AD127: =ROUND(IF(AC127>0,IF(_xlfn.FORECAST.ETS(AD$98,$F127:$Z127,$F$98:$Z$98,1)<0,0,_xlfn.FORECAST.ETS(AD$98,$F127:$Z127,$F$98:$Z$98,1)),0),0) -> 84439 | AE127: =ROUND(IF(AD127>0,IF(_xlfn.FORECAST.ETS(AE$98,$F127:$Z127,$F$98:$Z$98,1)<0,0,_xlfn.FORECAST.ETS(AE$98,$F127:$Z127,$F$98:$Z$98,1)),0),0) -> 85379
B128: 30 | C128: 94 | D128: Guainía | E128: [Personas] | F128: 31640 | G128: 32490 | H128: 33261 | I128: 33968 | J128: 34614 | K128: 35230 | L128: 35846 | M128: 36464 | N128: 37084 | O128: 37705 | P128: 38328 | Q128: 38949 | R128: 39574 | S128: 40203 | T128: 40839 | U128: 41482 | V128: 42123 | W128: 42777 | X128: 43446 | Y128: 44134 | Z128: 44844 | AA128: =ROUND(IF(Z128>0,IF(_xlfn.FORECAST.ETS(AA$98,$F128:$Z128,$F$98:$Z$98,1)<0,0,_xlfn.FORECAST.ETS(AA$98,$F128:$Z128,$F$98:$Z$98,1)),0),0) -> 45499 | AB128: =ROUND(IF(AA128>0,IF(_xlfn.FORECAST.ETS(AB$98,$F128:$Z128,$F$98:$Z$98,1)<0,0,_xlfn.FORECAST.ETS(AB$98,$F128:$Z128,$F$98:$Z$98,1)),0),0) -> 46155 | AC128: =ROUND(IF(AB128>0,IF(_xlfn.FORECAST.ETS(AC$98,$F128:$Z128,$F$98:$Z$98,1)<0,0,_xlfn.FORECAST.ETS(AC$98,$F128:$Z128,$F$98:$Z$98,1)),0),0) -> 46811 | AD128: =ROUND(IF(AC128>0,IF(_xlfn.FORECAST.ETS(AD$98,$F128:$Z128,$F$98:$Z$98,1)<0,0,_xlfn.FORECAST.ETS(AD$98,$F128:$Z128,$F$98:$Z$98,1)),0),0) -> 47466 | AE128: =ROUND(IF(AD128>0,IF(_xlfn.FORECAST.ETS(AE$98,$F128:$Z128,$F$98:$Z$98,1)<0,0,_xlfn.FORECAST.ETS(AE$98,$F128:$Z128,$F$98:$Z$98,1)),0),0) -> 48122
B129: 31 | C129: 95 | D129: Guaviare | E129: [Personas] | F129: 89038 | G129: 90360 | H129: 91633 | I129: 92889 | J129: 94181 | K129: 95551 | L129: 97135 | M129: 98688 | N129: 100208 | O129: 101759 | P129: 103307 | Q129: 104846 | R129: 106386 | S129: 107934 | T129: 109490 | U129: 111060 | V129: 112621 | W129: 114207 | X129: 115829 | Y129: 117494 | Z129: 119214 | AA129: =ROUND(IF(Z129>0,IF(_xlfn.FORECAST.ETS(AA$98,$F129:$Z129,$F$98:$Z$98,1)<0,0,_xlfn.FORECAST.ETS(AA$98,$F129:$Z129,$F$98:$Z$98,1)),0),0) -> 120928 | AB129: =ROUND(IF(AA129>0,IF(_xlfn.FORECAST.ETS(AB$98,$F129:$Z129,$F$98:$Z$98,1)<0,0,_xlfn.FORECAST.ETS(AB$98,$F129:$Z129,$F$98:$Z$98,1)),0),0) -> 122642 | AC129: =ROUND(IF(AB129>0,IF(_xlfn.FORECAST.ETS(AC$98,$F129:$Z129,$F$98:$Z$98,1)<0,0,_xlfn.FORECAST.ETS(AC$98,$F129:$Z129,$F$98:$Z$98,1)),0),0) -> 124356 | AD129: =ROUND(IF(AC129>0,IF(_xlfn.FORECAST.ETS(AD$98,$F129:$Z129,$F$98:$Z$98,1)<0,0,_xlfn.FORECAST.ETS(AD$98,$F129:$Z129,$F$98:$Z$98,1)),0),0) -> 126070 | AE129: =ROUND(IF(AD129>0,IF(_xlfn.FORECAST.ETS(AE$98,$F129:$Z129,$F$98:$Z$98,1)<0,0,_xlfn.FORECAST.ETS(AE$98,$F129:$Z129,$F$98:$Z$98,1)),0),0) -> 127784
B130: 32 | C130: 97 | D130: Vaupés | E130: [Personas] | F130: 36151 | G130: 36905 | H130: 37602 | I130: 38230 | J130: 38787 | K130: 39279 | L130: 39741 | M130: 40198 | N130: 40649 | O130: 41094 | P130: 41534 | Q130: 41965 | R130: 42392 | S130: 42817 | T130: 43240 | U130: 43665 | V130: 44079 | W130: 44500 | X130: 44928 | Y130: 45367 | Z130: 45822 | AA130: =ROUND(IF(Z130>0,IF(_xlfn.FORECAST.ETS(AA$98,$F130:$Z130,$F$98:$Z$98,1)<0,0,_xlfn.FORECAST.ETS(AA$98,$F130:$Z130,$F$98:$Z$98,1)),0),0) -> 46275 | AB130: =ROUND(IF(AA130>0,IF(_xlfn.FORECAST.ETS(AB$98,$F130:$Z130,$F$98:$Z$98,1)<0,0,_xlfn.FORECAST.ETS(AB$98,$F130:$Z130,$F$98:$Z$98,1)),0),0) -> 46729 | AC130: =ROUND(IF(AB130>0,IF(_xlfn.FORECAST.ETS(AC$98,$F130:$Z130,$F$98:$Z$98,1)<0,0,_xlfn.FORECAST.ETS(AC$98,$F130:$Z130,$F$98:$Z$98,1)),0),0) -> 47182 | AD130: =ROUND(IF(AC130>0,IF(_xlfn.FORECAST.ETS(AD$98,$F130:$Z130,$F$98:$Z$98,1)<0,0,_xlfn.FORECAST.ETS(AD$98,$F130:$Z130,$F$98:$Z$98,1)),0),0) -> 47635 | AE130: =ROUND(IF(AD130>0,IF(_xlfn.FORECAST.ETS(AE$98,$F130:$Z130,$F$98:$Z$98,1)<0,0,_xlfn.FORECAST.ETS(AE$98,$F130:$Z130,$F$98:$Z$98,1)),0),0) -> 48088
B131: 33 | C131: 99 | D131: Vichada | E131: [Personas] | F131: 48901 | G131: 50405 | H131: 51821 | I131: 53171 | J131: 54504 | K131: 55872 | L131: 57344 | M131: 58885 | N131: 60494 | O131: 62071 | P131: 63670 | Q131: 65282 | R131: 66917 | S131: 68575 | T131: 70260 | U131: 71974 | V131: 73702 | W131: 75468 | X131: 77276 | Y131: 79134 | Z131: 81048 | AA131: =ROUND(IF(Z131>0,IF(_xlfn.FORECAST.ETS(AA$98,$F131:$Z131,$F$98:$Z$98,1)<0,0,_xlfn.FORECAST.ETS(AA$98,$F131:$Z131,$F$98:$Z$98,1)),0),0) -> 82711 | AB131: =ROUND(IF(AA131>0,IF(_xlfn.FORECAST.ETS(AB$98,$F131:$Z131,$F$98:$Z$98,1)<0,0,_xlfn.FORECAST.ETS(AB$98,$F131:$Z131,$F$98:$Z$98,1)),0),0) -> 84578 | AC131: =ROUND(IF(AB131>0,IF(_xlfn.FORECAST.ETS(AC$98,$F131:$Z131,$F$98:$Z$98,1)<0,0,_xlfn.FORECAST.ETS(AC$98,$F131:$Z131,$F$98:$Z$98,1)),0),0) -> 86446 | AD131: =ROUND(IF(AC131>0,IF(_xlfn.FORECAST.ETS(AD$98,$F131:$Z131,$F$98:$Z$98,1)<0,0,_xlfn.FORECAST.ETS(AD$98,$F131:$Z131,$F$98:$Z$98,1)),0),0) -> 88314 | AE131: =ROUND(IF(AD131>0,IF(_xlfn.FORECAST.ETS(AE$98,$F131:$Z131,$F$98:$Z$98,1)<0,0,_xlfn.FORECAST.ETS(AE$98,$F131:$Z131,$F$98:$Z$98,1)),0),0) -> 90182
B132: T | C132: Total | F132: =SUM(F99:F131) -> 40295563 | G132: 40813541 | H132: 41328824 | I132: 41848959 | J132: 42368489 | K132: 42888592 | L132: 43405956 | M132: 43926929 | N132: 44451147 | O132: 44978832 | P132: 45509584 | Q132: 46044601 | R132: 46581823 | S132: 47121089 | T132: 47661787 | U132: 48203405 | V132: 48747708 | W132: 49291609 | X132: 49834240 | Y132: 50374478 | Z132: 50911747 | AA132: 51449443 | AB132: 51987037 | AC132: 52524637 | AD132: 53062231 | AE132: 53599833
B134: Proporción por departamento
B136: id | C136: DP | D136: Departamento | F136: 2000 | G136: 2001 | H136: 2002 | I136: 2003 | J136: 2004 | K136: 2005 | L136: 2006 | M136: 2007 | N136: 2008 | O136: 2009 | P136: 2010 | Q136: 2011 | R136: 2012 | S136: 2013 | T136: 2014 | U136: 2015 | V136: 2016 | W136: 2017 | X136: 2018 | Y136: 2019 | Z136: 2020 | AA136: 2021 | AB136: 2022 | AC136: 2023 | AD136: 2024 | AE136: 2025
B137: 1 | C137: 5 | D137: Antioquia | E137: [%] | F137: =F99/F$132 -> 0.1312777786 | G137: =G99/G$132 -> 0.1315484241 | H137: 0.1318169856 | I137: 0.1320572156 | J137: 0.1322849158 | K137: 0.1324900104 | L137: 0.1326539842 | M137: 0.1328311615 | N137: 0.1329864222 | O137: 0.1331415631 | P137: 0.1332906713 | Q137: 0.1334316916 | R137: 0.1335674862 | S137: 0.1336978863 | T137: 0.1338206643 | U137: 0.1339386502 | V137: 0.1340546513 | W137: 0.1341631595 | X137: 0.1342657177 | Y137: 0.1343614518 | Z137: 0.1344501692 | AA137: 0.1345375887 | AB137: 0.1346220405 | AC137: 0.1347047482 | AD137: 0.1347857952 | AE137: 0.134865215
B138: 2 | C138: 8 | D138: Atlántico | E138: [%] | F138: 0.05006476768 | G138: =G100/G$132 -> 0.05014945897 | H138: 0.05024014233 | I138: 0.05032796634 | J138: 0.05041647815 | K138: 0.05050340659 | L138: 0.05058697475 | M138: 0.05066325033 | N138: 0.05073306657 | O138: 0.05079813989 | P138: 0.05085654046 | Q138: 0.05090883511 | R138: 0.05095442486 | S138: 0.05099436475 | T138: 0.05102626555 | U138: 0.05105164251 | V138: 0.05106935489 | W138: 0.0510816557 | X138: 0.05108784643 | Y138: 0.05108918449 | Z138: 0.05108652037 | AA138: 0.05121169145 | AB138: 0.05124646746 | AC138: 0.05128052575 | AD138: 0.05131389971 | AE138: 0.05134659655
B139: 3 | C139: 11 | D139: Bogotá | E139: [%] | F139: 0.1564162536 | G139: 0.1571145224 | H139: 0.1577705913 | I139: 0.1583687661 | J139: 0.1589398432 | K139: 0.159485674 | L139: 0.16000606 | M139: 0.160498996 | N139: 0.1609643954 | O139: 0.1614003005 | P139: 0.16180728 | Q139: 0.1621863115 | R139: 0.1625386151 | S139: 0.1628647844 | T139: 0.1631672979 | U139: 0.1634486817 | V139: 0.1637000246 | W139: 0.1639373144 | X139: 0.1641651804 | Y139: 0.1643893958 | Z139: 0.1646142883 | AA139: 0.1648558955 | AB139: 0.1650601284 | AC139: 0.1652601616 | AD139: 0.1654561792 | AE139: 0.1656482213
B140: 4 | C140: 13 | D140: Bolívar | E140: [%] | F140: 0.04448713125 | G140: 0.04437005356 | H140: 0.04423201105 | I140: 0.04408229127 | J140: 0.04394397922 | K140: 0.04382237589 | L140: 0.04372743224 | M140: 0.04364851001 | N140: 0.04358717673 | O140: 0.04354117066 | P140: 0.04350758293 | Q140: 0.04349111419 | R140: 0.04348419339 | S140: 0.04348602809 | T140: 0.04349404692 | U140: 0.04350649088 | V140: 0.04352934911 | W140: 0.04355094191 | X140: 0.04357004341 | Y140: 0.04358347892 | Z140: 0.04358795623 | AA140: 0.04359364979 | AB140: 0.04359808004 | AC140: 0.04360241462 | AD140: 0.04360668514 | AE140: 0.04361084483
B141: 5 | C141: 15 | D141: Boyacá | E141: [%] | F141: 0.03063736819 | G141: 0.03037455143 | H141: 0.0301071233 | I141: 0.02983087345 | J141: 0.02955090043 | K141: 0.02926918188 | L141: 0.02898669021 | M141: 0.02870268941 | N141: 0.02841888422 | O141: 0.02813574617 | P141: 0.02785461629 | Q141: 0.0275690303 | R141: 0.02728817633 | S141: 0.02701242749 | T141: 0.02674291251 | U141: 0.02647960243 | V141: 0.02621881217 | W141: 0.02596699572 | X141: 0.02572654865 | Y141: 0.02549654212 | Z141: 0.02527966679 | AA141: 0.02506198172 | AB141: 0.02484886761 | AC141: 0.02464011317 | AD141: 0.02443561033 | AE141: 0.02423518745
B142: 6 | C142: 17 | D142: Caldas | E142: [%] | F142: 0.02381113275 | G142: 0.02355289388 | H142: 0.02330083237 | I142: 0.02305302266 | J142: 0.02281403049 | K142: 0.02258376773 | L142: 0.02236216154 | M142: 0.02214111075 | N142: 0.02192278638 | O142: 0.02170850057 | P142: 0.0214974938 | Q142: 0.02128951014 | R142: 0.02108562819 | S142: 0.0208848102 | T142: 0.02068831368 | U142: 0.02049629067 | V142: 0.02030729322 | W142: 0.02012228897 | X142: 0.01994343648 | Y142: 0.01976838351 | Z142: 0.01959922923 | AA142: 0.01943334936 | AB142: 0.01927093864 | AC142: 0.01911185031 | AD142: 0.01895598773 | AE142: 0.01880324888
B143: 7 | C143: 18 | D143: Caquetá | E143: [%] | F143: 0.009895283012 | G143: 0.009866676356 | H143: 0.009841412376 | I143: 0.009820817765 | J143: 0.009808846381 | K143: 0.009804891706 | L143: 0.009808515679 | M143: 0.009812204263 | N143: 0.009819431656 | O143: 0.00982842329 | P143: 0.009838960514 | Q143: 0.009851057239 | R143: 0.009864684772 | S143: 0.009878528062 | T143: 0.009893481333 | U143: 0.009908885067 | V143: 0.009925512806 | W143: 0.009941976128 | X143: 0.009957832205 | Y143: 0.009973502852 | Z143: 0.009988205669 | AA143: 0.01000271276 | AB143: 0.010016824 | AC143: 0.01003064524 | AD143: 0.01004418755 | AE143: 0.01005745671
B144: 8 | C144: 19 | D144: Cauca | E144: [%] | F144: 0.03017563001 | G144: 0.03007641508 | H144: 0.02996504328 | I144: 0.02984124408 | J144: 0.02971276601 | K144: 0.02958432396 | L144: 0.02944722609 | M144: 0.02931563916 | N144: 0.02919391484 | O144: 0.02908441464 | P144: 0.02898554291 | Q144: 0.02890145579 | R144: 0.02882347477 | S144: 0.02875003589 | T144: 0.0286809221 | U144: 0.02861144353 | V144: 0.02855182443 | W144: 0.02848770873 | X144: 0.02841285429 | Y144: 0.02832660618 | Z144: 0.0282236632 | AA144: 0.02812537737 | AB144: 0.02802702528 | AC144: 0.02793068327 | AD144: 0.02783627775 | AE144: 0.02774378047
B145: 9 | C145: 20 | D145: Cesar | E145: [%] | F145: 0.02095923067 | G145: 0.02097272079 | H145: 0.02099043515 | I145: 0.02101024783 | J145: 0.02103556254 | K145: 0.02106441265 | L145: 0.02110079087 | M145: 0.02113899198 | N145: 0.02117511163 | O145: 0.02120699799 | P145: 0.02123618621 | Q145: 0.02126316612 | R145: 0.02128692988 | S145: 0.02130803895 | T145: 0.0213280505 | U145: 0.0213447577 | V145: 0.02135903497 | W145: 0.02137229888 | X145: 0.02138435341 | Y145: 0.02139515967 | Z145: 0.02140551178 | AA145: 0.02142089274 | AB145: 0.02143599759 | AC145: 0.0214507908 | AD145: 0.02146526783 | AE145: 0.02147946991
B146: 10 | C146: 23 | D146: Córdoba | E146: [%] | F146: 0.03379176015 | G146: 0.03388608207 | H146: 0.03397568244 | I146: 0.03405812317 | J146: 0.03414216636 | K146: 0.03422602449 | L146: 0.03432121159 | M146: 0.03442150486 | N146: 0.03454160587 | O146: 0.034657036 | P146: 0.03477913575 | Q146: 0.03491221479 | R146: 0.03504880004 | S146: 0.03518736589 | T146: 0.03532771442 | U146: 0.03546728701 | V146: 0.03561541806 | W146: 0.0357572016 | X146: 0.03588911961 | Y146: 0.03600740041 | Z146: 0.03610897501 | AA146: 0.03621036286 | AB146: 0.03630793576 | AC146: 0.03640350718 | AD146: 0.03649714615 | AE146: 0.03658890131
B147: 11 | C147: 25 | D147: Cundinamarca | E147: [%] | F147: 0.05153912355 | G147: 0.05190843402 | H147: 0.0522588303 | I147: 0.05257968305 | J147: 0.05287958228 | K147: 0.05316467372 | L147: 0.05342490326 | M147: 0.05368267379 | N147: 0.05393586357 | O147: 0.05418439945 | P147: 0.05442888689 | Q147: 0.05466905881 | R147: 0.05490603062 | S147: 0.05513974857 | T147: 0.05537054244 | U147: 0.05559858271 | V147: 0.05582555799 | W147: 0.05604978324 | X147: 0.05627131065 | Y147: 0.05649027271 | Z147: 0.05670606825 | AA147: =AA109/AA$132 -> 0.05692104383 | AB147: 0.05712960714 | AC147: 0.05733389457 | AD147: 0.05753403018 | AE147: 0.05773016121
B148: 12 | C148: 27 | D148: Chocó | E148: [%] | F148: 0.01085337857 | G148: 0.01073053181 | H148: 0.0106905534 | I148: 0.01065245135 | J148: 0.01061819788 | K148: 0.01058680126 | L148: 0.0105588505 | M148: 0.01053301495 | N148: 0.01050758038 | O148: 0.01048488765 | P148: 0.01046260937 | Q148: 0.0104424838 | R148: 0.0104234435 | S148: 0.01040546835 | T148: 0.01038884673 | U148: 0.01037464055 | V148: 0.01035978963 | W148: 0.01034754211 | X148: 0.01033716979 | Y148: 0.0103285636 | Z148: 0.01032188112 | AA148: 0.0103149416 | AB148: 0.0103085121 | AC148: 0.01030223207 | AD148: 0.01029606162 | AE148: 0.01029003206
B149: 13 | C149: 41 | D149: Huila | E149: [%] | F149: 0.02328405239 | G149: 0.02335085309 | H149: 0.02341641756 | I149: 0.02347434735 | J149: 0.02352866537 | K149: 0.02358214511 | L149: 0.02363127309 | M149: 0.02367763975 | N149: 0.0237209402 | O149: 0.02376326713 | P149: 0.0238013382 | Q149: 0.0238374093 | R149: 0.02387083477 | S149: 0.0239025885 | T149: 0.02392984132 | U149: 0.02395633669 | V149: 0.02397792733 | W149: 0.02399889198 | X149: 0.02402125527 | Y149: 0.02404318711 | Z149: 0.0240679818 | AA149: 0.02408908489 | AB149: 0.02410945252 | AC149: 0.02412940046 | AD149: 0.02414894692 | AE149: 0.02416809769
B150: 14 | C150: 44 | D150: La Guajira | E150: [%] | F150: 0.013621326 | G150: 0.01405474717 | H150: 0.01450602611 | I150: 0.01496711065 | J150: 0.01543208208 | K150: 0.01589079912 | L150: 0.01632881902 | M150: 0.01675623625 | N150: 0.01717606972 | O150: 0.01758789557 | P150: 0.01799049624 | Q150: 0.01838741094 | R150: 0.01877410423 | S150: 0.01914996065 | T150: 0.01951548732 | U150: 0.01986990338 | V150: 0.02021535043 | W150: 0.02054966394 | X150: 0.02087233597 | Y150: 0.02118261156 | Z150: 0.02148170244 | AA150: 0.02178556141 | AB150: 0.02208315892 | AC150: 0.02237464297 | AD150: 0.02266024208 | AE150: 0.02294009013
B151: 15 | C151: 47 | D151: Magdalena | E151: [%] | F151: 0.02776923603 | G151: 0.02745598575 | H151: 0.02714751816 | I151: 0.0270266221 | J151: 0.02691613572 | K151: 0.02681514935 | L151: 0.02672202405 | M151: 0.02663209167 | N151: 0.02654901121 | O151: 0.02647169673 | P151: 0.02640105434 | Q151: 0.02633444473 | R151: 0.02627366044 | S151: 0.02622036176 | T151: 0.02617430186 | U151: 0.0261355396 | V151: 0.02610260158 | W151: 0.02607713617 | X151: 0.02606021482 | Y151: 0.02605343126 | Z151: 0.02605538168 | AA151: 0.0260562782 | AB151: 0.02605722654 | AC151: 0.02605813344 | AD151: 0.02605904377 | AE151: 0.02605993194
B152: 16 | C152: 50 | D152: Meta | E152: [%] | F152: 0.01730905212 | G152: 0.01751279067 | H152: 0.01771177907 | I152: 0.01790135329 | J152: 0.01808452503 | K152: 0.01826324818 | L152: 0.01844403565 | M152: 0.01862112874 | N152: 0.01879650035 | O152: 0.01896816707 | P152: 0.01913708989 | Q152: 0.01930306661 | R152: 0.01946692812 | S152: 0.01962753874 | T152: 0.01978675286 | U152: 0.01994327994 | V152: 0.02009756028 | W152: 0.02025014034 | X152: 0.02040165557 | Y152: 0.02055120055 | Z152: 0.02069987895 | AA152: 0.02084119745 | AB152: 0.0209834617 | AC152: 0.02112283042 | AD152: 0.0212593775 | AE152: 0.02139318233
B153: 17 | C153: 52 | D153: Nariño | E153: [%] | F153: 0.03589707879 | G153: 0.03589068638 | H153: 0.03589301259 | I153: 0.03590906526 | J153: 0.03592776226 | K153: 0.03594643536 | L153: 0.03595985767 | M153: 0.03597130589 | N153: 0.03598660795 | O153: 0.03600495895 | P153: 0.03602669715 | Q153: 0.03605334749 | R153: 0.03608263678 | S153: 0.03611508215 | T153: 0.03614939994 | U153: 0.0361847467 | V153: 0.03622541597 | W153: 0.03626469162 | X153: 0.03630267061 | Y153: 0.03633730954 | Z153: 0.03636640086 | AA153: 0.03639777014 | AB153: 0.03642625372 | AC153: 0.03645416912 | AD153: 0.03648150414 | AE153: 0.03650830405
B154: 18 | C154: 54 | D154: Norte de Santander | E154: [%] | F154: 0.02951950318 | G154: 0.02941766312 | H154: 0.02931373029 | I154: 0.02920715423 | J154: 0.02910344525 | K154: 0.02900214118 | L154: 0.02889893728 | M154: 0.02879909952 | N154: 0.02870193653 | O154: 0.02860968022 | P154: 0.02852038815 | Q154: 0.02843471268 | R154: 0.02835391393 | S154: 0.02827561986 | T154: 0.0281994882 | U154: 0.02812637406 | V154: 0.02805686782 | W154: 0.02798717729 | X154: 0.02791733154 | Y154: 0.02784535058 | Z154: 0.02777034935 | AA154: 0.02769753989 | AB154: 0.02762559828 | AC154: 0.02755514522 | AD154: 0.027486104 | AE154: 0.02741844364
B155: 19 | C155: 63 | D155: Quindio | E155: [%] | F155: 0.01289980736 | G155: 0.01280540691 | H155: 0.01271504846 | I155: 0.01262667012 | J155: 0.01254290659 | K155: 0.0124626614 | L155: 0.01238378438 | M155: 0.01230527634 | N155: 0.01222868332 | O155: 0.01215222752 | P155: 0.01207793945 | Q155: 0.01200477337 | R155: 0.01193246559 | S155: 0.01186239563 | T155: 0.01179380874 | U155: 0.01172759476 | V155: 0.01166220984 | W155: 0.01159899244 | X155: 0.01153845228 | Y155: 0.01147938446 | Z155: 0.0114227469 | AA155: 0.01136642043 | AB155: 0.01131257009 | AC155: 0.01125983983 | AD155: 0.01120816047 | AE155: 0.01115753476
B156: 20 | C156: 66 | D156: Risaralda | E156: [%] | F156: 0.02158768696 | G156: 0.02144190331 | H156: 0.02130406614 | I156: 0.02117051466 | J156: 0.02104479109 | K156: 0.02092428215 | L156: 0.02080479462 | M156: 0.02068535226 | N156: 0.02056574603 | O156: 0.0204460845 | P156: 0.02032795993 | Q156: 0.02020905774 | R156: 0.02009174265 | S156: 0.01997566313 | T156: 0.01986144582 | U156: 0.01974866713 | V156: 0.01963690272 | W156: 0.0195272384 | X156: 0.01941972026 | Y156: 0.0193148999 | Z156: 0.01921311009 | AA156: 0.01911355969 | AB156: 0.01901566346 | AC156: 0.01891976902 | AD156: 0.01882580097 | AE156: 0.01873373374
B157: 21 | C157: 68 | D157: Santander | E157: [%] | F157: 0.04727758736 | G157: 0.04696835788 | H157: 0.04664473395 | I157: 0.04630748402 | J157: 0.04597371882 | K157: 0.04564791961 | L157: 0.04534748641 | M157: 0.04505154458 | N157: 0.04475731526 | O157: 0.04446533872 | P157: 0.0441751566 | Q157: 0.04388362492 | R157: 0.04359586786 | S157: 0.04331249645 | T157: 0.04303283887 | U157: 0.04275795455 | V157: 0.04248437691 | W157: 0.04221688117 | X157: 0.04195587211 | Y157: 0.04170175222 | Z157: 0.04145565855 | AA157: 0.04121426543 | AB157: 0.04097796533 | AC157: 0.04074649769 | AD157: 0.04051972485 | AE157: 0.04029749496
B158: 22 | C158: 70 | D158: Sucre | E158: [%] | F158: 0.01823146136 | G158: =G120/G$132 -> 0.01818555758 | H158: 0.01813833367 | I158: 0.01808964949 | J158: 0.01804414125 | K158: 0.01800110388 | L158: 0.01795871055 | M158: 0.01791960007 | N158: 0.01788286813 | O158: 0.01784697299 | P158: 0.01781303912 | Q158: 0.01778034736 | R158: 0.01774898333 | S158: 0.01771896655 | T158: 0.01769136352 | U158: 0.01766503839 | V158: 0.01764007038 | W158: 0.01761837395 | X158: 0.01759948582 | Y158: 0.01758499612 | Z158: 0.01757521697 | AA158: 0.01755313464 | AB158: 0.01754118051 | AC158: 0.01752946908 | AD158: 0.01751799693 | AE158: 0.01750675231
B159: 23 | C159: 73 | D159: Tolima | E159: [%] | F159: 0.0331729079 | G159: 0.03289712108 | H159: 0.03262851128 | I159: 0.03236015978 | J159: 0.03209378083 | K159: 0.03182855711 | L159: 0.03155882571 | M159: 0.03128916661 | N159: 0.03102063935 | O159: 0.03075455583 | P159: 0.03049074235 | Q159: 0.0302288644 | R159: 0.02996958706 | S159: 0.02971365963 | T159: 0.02946305811 | U159: 0.02921519756 | V159: 0.02896997742 | W159: 0.02872951459 | X159: 0.02849340132 | Y159: 0.02826270478 | Z159: 0.02803728185 | AA159: 0.02781647218 | AB159: 0.02760016887 | AC159: 0.02738829018 | AD159: 0.02718068903 | AE159: 0.02697726689
B160: 24 | C160: 76 | D160: Valle del Cauca | E160: [%] | F160: 0.09800163358 | G160: 0.09777036989 | H160: 0.09756365194 | I160: 0.09736419011 | J160: 0.09718921059 | K160: 0.09702976493 | L160: 0.09688135886 | M160: 0.09673382813 | N160: 0.09659010599 | O160: 0.09645017016 | P160: 0.09631547061 | Q160: 0.09618228639 | R160: 0.09605396938 | S160: 0.09593326674 | T160: 0.09581837542 | U160: 0.09571282361 | V160: 0.0956094387 | W160: 0.09551852933 | X160: 0.09543865824 | Y160: 0.09537545977 | Z160: 0.09532823535 | AA160: 0.09524423812 | AB160: 0.0951954619 | AC160: 0.09514769231 | AD160: 0.09510090143 | AE160: 0.09505503497
B161: 25 | C161: 81 | D161: Arauca | E161: [%] | F161: 0.005359870515 | G161: 0.0054142815 | H161: 0.00544005317 | I161: 0.005441903585 | J161: 0.005429011169 | K161: 0.005412371663 | L161: 0.005419809208 | M161: 0.005426306947 | N161: 0.005431715857 | O161: 0.005436046005 | P161: 0.005439315815 | Q161: 0.005441875802 | R161: 0.005443432302 | S161: 0.005443995575 | T161: 0.005443501311 | U161: 0.005441835489 | V161: 0.005440050638 | W161: 0.005436868575 | X161: 0.005432168726 | Y161: 0.005425783271 | Z161: 0.005417492352 | AA161: 0.005418931358 | AB161: 0.005419408688 | AC161: 0.005419894668 | AD161: 0.005420352567 | AE161: 0.005420819128
B162: 26 | C162: 85 | D162: Casanare | E162: [%] | F162: 0.00655049788 | G162: 0.006623243007 | H162: 0.006693827049 | I162: 0.006760335424 | J162: 0.006823868559 | K162: 0.006884721233 | L162: 0.006943079424 | M162: 0.00699891859 | N162: 0.007051134136 | O162: 0.007103674902 | P162: 0.007154998385 | Q162: 0.007204623187 | R162: 0.007253601904 | S162: 0.007301189495 | T162: 0.007348423591 | U162: 0.007395307448 | V162: 0.0074407806 | W162: 0.007485838005 | X162: 0.007529943268 | Y162: 0.00757435144 | Z162: 0.007617652563 | AA162: 0.007657595049 | AB162: 0.007696957224 | AC162: 0.007735512765 | AD162: 0.00777330678 | AE162: 0.007810322842
B163: 27 | C163: 86 | D163: Putumayo | E163: [%] | F163: 0.007284300755 | G163: 0.007285890729 | H163: 0.007279786137 | I163: 0.007266488994 | J163: 0.007249349865 | K163: 0.007231107051 | L163: 0.007213894794 | M163: 0.007198522801 | N163: 0.007185191419 | O163: 0.007174063568 | P163: 0.007165369826 | Q163: 0.007158233383 | R163: 0.007154013702 | S163: 0.007152933159 | T163: 0.007155291932 | U163: 0.00716140281 | V163: 0.007170326859 | W163: 0.007183656756 | X163: 0.007201795392 | Y163: 0.007225226235 | Z163: 0.007254357231 | AA163: 0.007168551854 | AB163: 0.007164439858 | AC163: 0.007160430257 | AD163: 0.007156502711 | AE163: 0.007152652882
B164: 28 | C164: 88 | D164: San Andrés | E164: [%] | F164: 0.001679390855 | G164: 0.001670450501 | H164: 0.001662689459 | I164: 0.00165595517 | J164: 0.001650283068 | K164: 0.001645052838 | L164: 0.001637448096 | M164: 0.001630275588 | N164: 0.001623512662 | O164: 0.001617094014 | P164: 0.001611089216 | Q164: 0.001605508537 | R164: 0.001600216462 | S164: 0.001595188091 | T164: 0.001590393579 | U164: 0.001585821583 | V164: 0.001581633335 | W164: 0.001577530163 | X164: 0.001573476389 | Y164: 0.001569445543 | Z164: 0.001565316547 | AA164: 0.001561668996 | AB164: 0.001557830657 | AC164: 0.00155408975 | AD164: 0.001550405975 | AE164: 0.001546814521
B165: 29 | C165: 91 | D165: Amazonas | E165: [%] | F165: 0.001540244021 | G165: 0.001554655598 | H165: 0.001565517567 | I165: 0.001572918457 | J165: 0.0015772807 | K165: 0.001579114558 | L165: 0.001580727769 | M165: 0.001581581084 | N165: 0.001581803952 | O165: 0.001582233171 | P165: 0.001582457884 | Q165: 0.001582335353 | R165: 0.001582140742 | S165: 0.001581903169 | T165: 0.001581728356 | U165: 0.001581693243 | V165: 0.001581366656 | W165: 0.001581364487 | X165: 0.00158184413 | Y165: 0.001582924591 | Z165: 0.001584742319 | AA165: 0.001586431169 | AB165: 0.001588107435 | AC165: 0.001589730168 | AD165: 0.001591320199 | AE165: 0.001592896754
B166: 30 | C166: 94 | D166: Guainía | E166: [%] | F166: 0.0007851981123 | G166: 0.0007960593275 | H166: 0.0008047894128 | I166: 0.0008116808831 | J166: 0.0008169750873 | K166: 0.0008214305566 | L166: 0.0008258313675 | M166: 0.0008301058333 | N166: 0.0008342641867 | O166: 0.0008382832173 | P166: 0.0008421962284 | Q166: 0.0008458972204 | R166: 0.0008495588505 | S166: 0.0008531848659 | T166: 0.000856849954 | U166: 0.0008605616139 | V166: 0.0008641021646 | W166: 0.0008678353348 | X166: 0.0008718102253 | Y166: 0.0008761182597 | Z166: 0.0008808183306 | AA166: 0.0008843438791 | AB166: 0.0008878174765 | AC166: 0.000891219867 | AD166: 0.0008945345702 | AE166: 0.0008978013047
B167: 31 | C167: 95 | D167: Guaviare | E167: [%] | F167: 0.00220962293 | G167: 0.002213971094 | H167: 0.002217169305 | I167: 0.002219625105 | J167: 0.002222902025 | K167: 0.002227888479 | L167: 0.002237826532 | M167: 0.002246640096 | N167: 0.002254340029 | O167: 0.002262375332 | P167: 0.002270005369 | Q167: 0.002277053069 | R167: 0.002283852223 | S167: 0.002290566757 | T167: 0.002297228176 | U167: 0.002303986617 | V167: 0.002310282978 | W167: 0.002316966362 | X167: 0.002324285471 | Y167: 0.002332411266 | Z167: 0.002341581404 | AA167: 0.002350423891 | AB167: 0.002359088093 | AC167: 0.002367574668 | AD167: 0.002375889548 | AE167: 0.002384037279
B168: 32 | C168: 97 | D168: Vaupés | E168: [%] | F168: 0.0008971459215 | G168: 0.0009042342099 | H168: 0.0009098250654 | I168: 0.0009135233209 | J168: 0.0009154680971 | K168: 0.0009158379459 | L168: =L130/L$132 -> 0.0009155655966 | M168: 0.0009151106375 | N168: 0.0009144645919 | O168: 0.0009136297714 | P168: 0.0009126429281 | Q168: 0.0009113989282 | R168: 0.0009100545507 | S168: 0.0009086589658 | T168: 0.0009072257404 | U168: 0.000905848871 | V168: 0.000904227128 | W168: 0.0009027905744 | X168: 0.0009015488146 | Y168: 0.0009005949402 | Z168: 0.0009000280426 | AA168: 0.0008994266469 | AB168: 0.0008988586905 | AC168: 0.000898283219 | AD168: 0.0008977195098 | AE168: 0.0008971669744
B169: 33 | C169: 99 | D169: Vichada | E169: [%] | F169: 0.001213557929 | G169: 0.001235006784 | H169: 0.001253870664 | I169: 0.001270545344 | J169: 0.001286427751 | K169: 0.001302724044 | L169: 0.00132110902 | M169: 0.001340521665 | N169: 0.001360909765 | O169: 0.00138000471 | P169: 0.001399045968 | Q169: 0.001417799233 | R169: 0.00143654747 | S169: 0.001455293192 | T169: 0.001474136922 | U169: 0.001493131035 | V169: 0.00151190698 | W169: 0.001531051664 | X169: 0.001550660751 | Y169: 0.001570914541 | Z169: 0.00159193123 | AA169: 0.001607617015 | AB169: 0.001626905569 | AC169: 0.001645818133 | AD169: 0.00166434766 | AE169: 0.001682505242
B170: T | C170: Total | E170: [%] | F170: =SUM(F137:F169) -> 1 | G170: 1 | H170: 1 | I170: 1 | J170: 1 | K170: 1 | L170: 1 | M170: 1 | N170: 1 | O170: 1 | P170: 1 | Q170: 1 | R170: 1 | S170: 1 | T170: 1 | U170: 1 | V170: 1 | W170: 1 | X170: 1 | Y170: 1 | Z170: 1 | AA170: 1 | AB170: 1 | AC170: 1 | AD170: 1 | AE170: 1

Sheet Proyección
E2: Modelo Empresa Eficiente Móvil
E3: Demanda de Servicios Móviles
B6: Parámetros
B8: Operadores | J8: OMVs
C10: id | D10: Operador | E10: Código | F10: Razón Social | J10: id | K10: Operador | L10: OMV | M10: Quien lo atiende | N10: Código | O10: Razón Social
C11: 1 | D11: Comcel | E11: 800153993 | F11: Comunicacion Celular S.A. | J11: 1 | K11: Exito | L11: Sí | M11: Tigo | N11: 900389508 | O11: Almacenes Exito Inversiones S.A.S.
C12: =+C11+1 -> 2 | D12: Partners | E12: 830016046 | F12: Partners Telecom Colombia Sas | J12: =+J11+1 -> 2 | K12: Uff | L12: Sí | M12: Tigo | N12: 900367669 | O12: Uff Movil S.A.S.
C13: 3 | D13: Tigo | E13: 830114921 | F13: Colombia Movil S.A. E.S.P. | J13: 3 | K13: Virgin | L13: Sí | M13: Movistar | N13: 900420122 | O13: Virgin Mobile Colombia S.A.S.
C14: 4 | D14: Movistar | E14: 830122566 | F14: Colombia Telecomunicaciones S.A. E.S.P. | J14: 4 | K14: Dime | L14: Sí | O14: Comunicaciones Dime S.A. ESP
C15: 5 | D15: ETB | E15: 899999115 | F15: Empresa de Telecomunicaciones de Bogotá S.A. E.S.P. | J15: 5 | K15: Suma | L15: Sí | M15: Tigo | N15: 900973532 | O15: Suma Movil S.A.S.
C16: 6 | D16: OMVs | J16: 6 | K16: Scarlet | L16: Sí | O16: Scarlet Mobile Colombia S.A.S.
C17: 7 | D17: libre | J17: 7 | K17: Vilacom | L17: Sí | O17: Vilacom Mobile S.A.S.
C18: 8 | D18: libre | J18: 8 | K18: Flash | L18: Sí | M18: Movistar | N18: 901162121 | O18: Logistica Flash Colombia S.A.S.
C19: 9 | D19: libre | J19: 9 | K19: Mega | L19: Sí | O19: MEGAMOVIL
C20: 10 | D20: libre | J20: 10 | K20: EzTalk | L20: Sí | O20: EZTALK MOBILE S.A.S.
C21: 11 | D21: libre | J21: 11 | K21: Setroc | L21: Sí | M21: Movistar | O21: Setroc Mobile Group SAS
C22: 12 | D22: libre | J22: 12 | K22: Plintron | L22: Sí | O22: PLINTRON Colombia SAS
C23: 13 | D23: libre | J23: 13 | K23: Cellvoz | L23: Sí | M23: Tigo | O23: CELLVOZ Colombia Servicios Integrales S.A. E.S.P.
C24: 14 | D24: libre | J24: 14 | K24: Lov | L24: Sí | M24: Tigo | O24: LOV Telecomunicaciones SAS
C25: 15 | D25: libre | J25: 15 | K25: EPM | L25: Sí | M25: Tigo | N25: 900092385 | O25: Une Epm Telecomunicaciones S.A. E.S.P. - Une Epm Telco S.A.
D26: L.oper.nom
B29: Proyecciones de Demanda de Mercado de Servicios Provistos
C31: id | D31: Variable | I31: 2020 | J31: 2021 | K31: 2022 | L31: 2023 | M31: 2024 | N31: 2025 | O31: 2026 | P31: 2027 | Q31: 2028 | R31: 2029 | S31: 2030 | T31: 2031
C32: 1 | D32: =Dda.L.Servicios -> Abonados | H32: =Dda.L.Unidades -> [Abonados] | I32: =AT147 -> 67672570 | J32: =AX147 -> 75056111 | K32: =BB147 -> 80812165 | L32: =BF147 -> 87365916 | M32: =BJ147 -> 92072138 | N32: =BN147 -> 95773198.68 | O32: =BR147 -> 100393419.3 | P32: =BV147 -> 105013639.9 | Q32: =BZ147 -> 109636845.5 | R32: =CD147 -> 114280556.6 | S32: =CH147 -> 118924267.8 | T32: =CL147 -> 123567978.9
C33: 2 | D33: Abonados pospago | H33: [Abonados] | I33: =AT113 -> 14588253 | J33: =AX113 -> 17507581 | K33: =BB113 -> 19877211 | L33: =BF113 -> 21825447 | M33: =BJ113 -> 22753166 | N33: =BN113 -> 23774616.2 | O33: =BR113 -> 25522520.08 | P33: =BV113 -> 27270423.96 | Q33: =BZ113 -> 29018327.85 | R33: =CD113 -> 30766231.73 | S33: =CH113 -> 32514135.62 | T33: =CL113 -> 34262039.5
C34: 3 | D34: Abonados prepago | H34: [Abonados] | I34: =AT130 -> 53084317 | J34: =AX130 -> 57548530 | K34: =BB130 -> 60934954 | L34: =BF130 -> 65540469 | M34: =BJ130 -> 69357396 | N34: =BN130 -> 71998582.48 | O34: =BR130 -> 74870899.23 | P34: =BV130 -> 77743215.97 | Q34: =BZ130 -> 80618517.64 | R34: =CD130 -> 83514324.89 | S34: =CH130 -> 86410132.14 | T34: =CL130 -> 89305939.39
C35: 4 | D35: 0 | H35: 0
C36: 5 | D36: Abonados de datos | H36: [Abonados] | I36: =SUM(I37:I38) -> 32516679 | J36: 37963699 | K36: 40110413 | L36: 44951700 | M36: 51082948 | N36: 55406476 | O36: 60285049 | P36: 65324383 | Q36: 70518097 | R36: 75884941 | S36: 81282550 | T36: 86739958
C37: 6 | D37: Abonados por demanda | H37: [Abonados] | I37: =DJ981 -> 18952808 | J37: =DV981 -> 21563219 | K37: =EH981 -> 21206426 | L37: =ET981 -> 24312056 | M37: =FF981 -> 29444171 | N37: =FR981 -> 32296091 | O37: =GD981 -> 35316005 | P37: =GP981 -> 38469874 | Q37: =HB981 -> 41759338 | R37: =HN981 -> 45195554 | S37: =HZ981 -> 48768414 | T37: =IL981 -> 52477918
C38: 7 | D38: Abonados por suscripción | H38: [Abonados] | I38: =DJ960 -> 13563871 | J38: =DV960 -> 16400480 | K38: =EH960 -> 18903987 | L38: =ET960 -> 20639644 | M38: =FF960 -> 21638777 | N38: =FR960 -> 23110385 | O38: =GD960 -> 24969044 | P38: =GP960 -> 26854509 | Q38: =HB960 -> 28758759 | R38: =HN960 -> 30689387 | S38: =HZ960 -> 32514136 | T38: =IL960 -> 34262040
C39: 8 | D39: 0 | H39: 0
C40: 9 | D40: Tráfico Voz Móvil Salida | H40: [Minutos] | I40: =SUM(I42:I43,I44:I45) -> 171913710322 | J40: 159176846456 | K40: 1.333722099e+11 | L40: 1.032982399e+11 | M40: 9.534265465e+10 | N40: 9.186841123e+10 | O40: 9.202974598e+10 | P40: 9.218935236e+10 | Q40: 9.170453812e+10 | R40: 9.064491556e+10 | S40: 8.950600882e+10 | T40: 8.942680254e+10
C41: 10 | D41: Tráfico Móvil a Móvil (Salida) | H41: [Minutos] | I41: =SUM(CY292:DJ292) -> 162108176381 | J41: =SUM(DK292:DV292) -> 150630212588 | K41: =SUM(DW292:EH292) -> 128549582617 | L41: =SUM(EI292:ET292) -> 98884637349 | M41: =SUM(EU292:FF292) -> 91451195137 | N41: =SUM(FG292:FR292) -> 8.796451195e+10 | O41: =SUM(FS292:GD292) -> 8.820291192e+10 | P41: =SUM(GE292:GP292) -> 8.793679482e+10 | Q41: =SUM(GQ292:HB292) -> 8.699546826e+10 | R41: =SUM(HC292:HN292) -> 8.544843992e+10 | S41: =SUM(HO292:HZ292) -> 8.37902239e+10 | T41: =SUM(IA292:IL292) -> 8.316007494e+10
C42: 11 | D42: Tráfico Móvil a otra Móvil (Salida) | H42: [Minutos] | I42: =SUM(CY313:DJ313) -> 62903962287 | J42: =SUM(DK313:DV313) -> 59553919475 | K42: =SUM(DW313:EH313) -> 53858698913 | L42: =SUM(EI313:ET313) -> 45761914345 | M42: =SUM(EU313:FF313) -> 41837471198 | N42: =SUM(FG313:FR313) -> 4.206253215e+10 | O42: =SUM(FS313:GD313) -> 4.73657938e+10 | P42: =SUM(GE313:GP313) -> 5.313813238e+10 | Q42: =SUM(GQ313:HB313) -> 5.920683743e+10 | R42: =SUM(HC313:HN313) -> 6.55727942e+10 | S42: =SUM(HO313:HZ313) -> 7.224197747e+10 | T42: =SUM(IA313:IL313) -> 7.920843678e+10
C43: 12 | D43: Tráfico Móvil a misma Móvil (Salida) | H43: [Minutos] | I43: =SUM(CY334:DJ334) -> 99204214094 | J43: =SUM(DK334:DV334) -> 91076293113 | K43: =SUM(DW334:EH334) -> 74690883704 | L43: =SUM(EI334:ET334) -> 53122723004 | M43: =SUM(EU334:FF334) -> 49613723939 | N43: =SUM(FG334:FR334) -> 4.59019798e+10 | O43: =SUM(FS334:GD334) -> 4.083711812e+10 | P43: =SUM(GE334:GP334) -> 3.479866244e+10 | Q43: =SUM(GQ334:HB334) -> 2.778863084e+10 | R43: =SUM(HC334:HN334) -> 1.987564572e+10 | S43: =SUM(HO334:HZ334) -> 1.154824643e+10 | T43: =SUM(IA334:IL334) -> 3951638153
C44: 13 | D44: Tráfico Móvil a Fijo (Salida) | H44: [Minutos] | I44: =SUM(CY355:DJ355) -> 8621216136 | J44: =SUM(DK355:DV355) -> 7353206718 | K44: =SUM(DW355:EH355) -> 4024168198 | L44: =SUM(EI355:ET355) -> 3792031204 | M44: =SUM(EU355:FF355) -> 3353278925 | N44: =SUM(FG355:FR355) -> 2974314833 | O44: =SUM(FS355:GD355) -> 3376866480 | P44: =SUM(GE355:GP355) -> 3842991100 | Q44: =SUM(GQ355:HB355) -> 4339904566 | R44: =SUM(HC355:HN355) -> 4867711484 | S44: =SUM(HO355:HZ355) -> 5427370190 | T44: =SUM(IA355:IL355) -> 6017946695
C45: 14 | D45: Tráfico Móvil a Larga Distancia (Salida) | H45: [Minutos] | I45: =SUM(AQ418:AT418) -> 1184317805 | J45: =SUM(AU418:AX418) -> 1193427150 | K45: =SUM(AY418:BB418) -> 798459062.8 | L45: =SUM(BC418:BF418) -> 621571312.2 | M45: =SUM(BG418:BJ418) -> 538180588.4 | N45: =SUM(BK418:BN418) -> 929584451.8 | O45: =SUM(BO418:BR418) -> 449967580.2 | P45: =SUM(BS418:BV418) -> 409566438.1 | Q45: =SUM(BW418:BZ418) -> 369165296.1 | R45: =SUM(CA418:CD418) -> 328764154 | S45: =SUM(CE418:CH418) -> 288414727.7 | T45: =SUM(CI418:CL418) -> 248780912.1
C46: 15 | D46: Tráfico Voz Móvil Entrada | H46: [Minutos] | I46: =I47+I48+I49 -> 65078510414 | J46: 6.167370509e+10 | K46: 5.566028285e+10 | L46: 4.756934593e+10 | M46: 4.377183819e+10 | N46: 4.469971641e+10 | O46: 4.96853005e+10 | P46: 5.568541415e+10 | Q46: 6.199917682e+10 | R46: 6.862753487e+10 | S46: 7.557702942e+10 | T46: 8.284202373e+10
C47: 16 | D47: Tráfico Móvil a Móvil (Entrada) | H47: [Minutos] | I47: =I42 -> 62903962287 | J47: 59553919475 | K47: 53858698913 | L47: 45761914345 | M47: 41837471198 | N47: =N42 -> 4.206253215e+10 | O47: 4.73657938e+10 | P47: 5.313813238e+10 | Q47: 5.920683743e+10 | R47: 6.55727942e+10 | S47: 7.224197747e+10 | T47: 7.920843678e+10
C48: 17 | D48: Tráfico Fijo a Móvil (Entrada) | H48: [Minutos] | I48: =SUM(CY376:DJ376) -> 753366761 | J48: =SUM(DK376:DV376) -> 687673031.9 | K48: =SUM(DW376:EH376) -> 843433065.5 | L48: =SUM(EI376:ET376) -> 1061546011 | M48: =SUM(EU376:FF376) -> 1288550289 | N48: =SUM(FG376:FR376) -> 1521682920 | O48: =SUM(FS376:GD376) -> 1779545606 | P48: =SUM(GE376:GP376) -> 2055802039 | Q48: =SUM(GQ376:HB376) -> 2349341037 | R48: =SUM(HC376:HN376) -> 2660223685 | S48: =SUM(HO376:HZ376) -> 2988954282 | T48: =SUM(IA376:IL376) -> 3335049849
B49: 1.2 | C49: 18 | D49: Tráfico Móvil a Larga Distancia (Entrada) | H49: [Minutos] | I49: =I45*$B$49 -> 1421181366 | J49: 1432112580 | K49: 958150875.4 | L49: 745885574.7 | M49: 645816706 | N49: 1115501342 | O49: 539961096.2 | P49: 491479725.8 | Q49: 442998355.3 | R49: 394516984.9 | S49: 346097673.2 | T49: 298537094.5
C50: 19 | D50: Tráfico Voz Móvil Salida Pospago | H50: [Minutos] | I50: =SUM(I51:I52,I54:I55) -> 1.384306498e+11 | J50: 1.274440787e+11 | K50: 1.090416561e+11 | L50: 9.36350129e+10 | M50: 8.89319163e+10 | N50: 8.716983819e+10 | O50: 9.051776706e+10 | P50: 9.403870743e+10 | Q50: 9.716030763e+10 | R50: 9.988258055e+10 | S50: 1.02251121e+11 | T50: 1.061872975e+11
C51: 20 | D51: Tráfico Móvil a Móvil (Salida) Pospago | H51: [Minutos] | I51: =SUM(CY483:DJ483) -> 92774521069 | J51: =SUM(DK483:DV483) -> 85240632878 | K51: =SUM(DW483:EH483) -> 72737600939 | L51: =SUM(EI483:ET483) -> 60730402826 | M51: =SUM(EU483:FF483) -> 58491966755 | N51: =SUM(FG483:FR483) -> 5.716403807e+10 | O51: =SUM(FS483:GD483) -> 5.738975736e+10 | P51: =SUM(GE483:GP483) -> 5.716396904e+10 | Q51: =SUM(GQ483:HB483) -> 5.63391375e+10 | R51: =SUM(HC483:HN483) -> 5.491526274e+10 | S51: =SUM(HO483:HZ483) -> 5.293859755e+10 | T51: =SUM(IA483:IL483) -> 5.232584671e+10
C52: 21 | D52: Tráfico Móvil a otra Móvil (Salida) Pospago | H52: [Minutos] | I52: =SUM(CY504:DJ504) -> 38900358340 | J52: =SUM(DK504:DV504) -> 36358571769 | K52: =SUM(DW504:EH504) -> 32957759752 | L52: =SUM(EI504:ET504) -> 29731968878 | M52: =SUM(EU504:FF504) -> 27637902387 | N52: =SUM(FG504:FR504) -> 2.72815396e+10 | O52: =SUM(FS504:GD504) -> 3.041369813e+10 | P52: =SUM(GE504:GP504) -> 3.385503851e+10 | Q52: =SUM(GQ504:HB504) -> 3.747339392e+10 | R52: =SUM(HC504:HN504) -> 4.126876435e+10 | S52: =SUM(HO504:HZ504) -> 4.52411498e+10 | T52: =SUM(IA504:IL504) -> 4.939055028e+10
C53: 22 | D53: Tráfico Móvil a misma Móvil (Salida) Pospago | H53: [Minutos] | I53: =SUM(CY525:DJ525) -> 53874162729 | J53: =SUM(DK525:DV525) -> 48882061109 | K53: =SUM(DW525:EH525) -> 39779841187 | L53: =SUM(EI525:ET525) -> 30998433948 | M53: =SUM(EU525:FF525) -> 30854064368 | N53: =SUM(FG525:FR525) -> 2.988249847e+10 | O53: =SUM(FS525:GD525) -> 2.697605922e+10 | P53: =SUM(GE525:GP525) -> 2.330893053e+10 | Q53: =SUM(GQ525:HB525) -> 1.886574359e+10 | R53: =SUM(HC525:HN525) -> 1.36464984e+10 | S53: =SUM(HO525:HZ525) -> 7697447748 | T53: =SUM(IA525:IL525) -> 2935296426
C54: 23 | D54: Tráfico Móvil a Fijo (Salida) Pospago | H54: [Minutos] | I54: =SUM(CY546:DJ546) -> 6077985201 | J54: =SUM(DK546:DV546) -> 5169521616 | K54: =SUM(DW546:EH546) -> 2894500919 | L54: =SUM(EI546:ET546) -> 2790900639 | M54: =SUM(EU546:FF546) -> 2457828138 | N54: =SUM(FG546:FR546) -> 2120166897 | O54: =SUM(FS546:GD546) -> 2421537448 | P54: =SUM(GE546:GP546) -> 2753458163 | Q54: =SUM(GQ546:HB546) -> 3108701070 | R54: =SUM(HC546:HN546) -> 3487266169 | S54: =SUM(HO546:HZ546) -> 3889153461 | T54: =SUM(IA546:IL546) -> 4314362946
C55: 24 | D55: Tráfico Móvil a Larga Distancia (Salida) Pospago | H55: [Minutos] | I55: =I45*I51/(I51+I61) -> 677785165.5 | J55: 675352466.2 | K55: 451794517.7 | L55: 381740553.3 | M55: 344219023.4 | N55: 604093626.1 | O55: 292774123.7 | P55: 266241716.4 | Q55: 239075147.2 | R55: 211287297 | S55: 182220198.1 | T55: 156537519.7
C56: 25 | D56: Tráfico Voz Móvil Entrada Pospago | H56: [Minutos] | I56: =SUM(I57:I59) -> 3.936912816e+10 | J56: 3.685303275e+10 | K56: 3.340089185e+10 | L56: 3.01834951e+10 | M56: 2.811592945e+10 | N56: 2.793619084e+10 | O56: 3.10033748e+10 | P56: 3.451652833e+10 | Q56: 3.821246133e+10 | R56: 4.209115148e+10 | S56: 4.615295976e+10 | T56: 5.039804511e+10
C57: 26 | D57: Tráfico Móvil a Móvil (Entrada) Pospago | H57: [Minutos] | I57: =I52 -> 38900358340 | J57: 36358571769 | K57: 32957759752 | L57: 29731968878 | M57: 27637902387 | N57: 2.72815396e+10 | O57: 3.041369813e+10 | P57: 3.385503851e+10 | Q57: 3.747339392e+10 | R57: 4.126876435e+10 | S57: 4.52411498e+10 | T57: 4.939055028e+10
C58: 27 | D58: Tráfico Fijo a Móvil (Entrada) Pospago | H58: [Minutos] | I58: =I48*I33/I32 -> 162404130.8 | J58: =J48*J33/J32 -> 160406543.1 | K58: 207457590.2 | L58: 265191704.8 | M58: 318430735.6 | N58: 377740619.5 | O58: 452405035.8 | P58: 533860108.4 | Q58: 621816033.8 | R58: 716176581.3 | S58: 817186153.2 | T58: 924718610
C59: 28 | D59: Tráfico Móvil a Larga Distancia (Entrada) Pospago | H59: [Minutos] | I59: =I49*I33/I32 -> 306365685.9 | J59: =J49*J33/J32 -> 334054438.2 | K59: 235674506.7 | L59: 186334520.6 | M59: 159596323.5 | N59: 276910624.7 | O59: 137271626.1 | P59: 127629710.8 | Q59: 117251380.7 | R59: 106210551.8 | S59: 94623804.67 | T59: 82776216.1
C60: 29 | D60: Tráfico Voz Móvil Salida Prepago | H60: [Minutos] | I60: =SUM(I61:I62,I64:I65) -> 9.638702283e+10 | J60: 9.12866872e+10 | K60: 7.818925266e+10 | L60: 5.542514131e+10 | M60: 4.824820954e+10 | N60: 4.67611052e+10 | O60: 4.887777271e+10 | P60: 5.128877731e+10 | Q60: 5.375106792e+10 | R60: 5.633512921e+10 | S60: 5.949686528e+10 | T60: 6.244794187e+10
C61: 30 | D61: Tráfico Móvil a Móvil (Salida) Prepago | H61: [Minutos] | I61: =SUM(CY569:DJ569) -> 69333655312 | J61: =SUM(DK569:DV569) -> 65389579710 | K61: =SUM(DW569:EH569) -> 55811981678 | L61: =SUM(EI569:ET569) -> 38154234523 | M61: =SUM(EU569:FF569) -> 32959228382 | N61: =SUM(FG569:FR569) -> 3.080047388e+10 | O61: =SUM(FS569:GD569) -> 3.081315456e+10 | P61: =SUM(GE569:GP569) -> 3.077282578e+10 | Q61: =SUM(GQ569:HB569) -> 3.065633076e+10 | R61: =SUM(HC569:HN569) -> 3.053317718e+10 | S61: =SUM(HO569:HZ569) -> 3.085162635e+10 | T61: =SUM(IA569:IL569) -> 3.083422823e+10
C62: 31 | D62: Tráfico Móvil a otra Móvil (Salida) Prepago | H62: [Minutos] | I62: =SUM(CY590:DJ590) -> 24003603947 | J62: =SUM(DK590:DV590) -> 23195347706 | K62: =SUM(DW590:EH590) -> 20900939161 | L62: =SUM(EI590:ET590) -> 16029945467 | M62: =SUM(EU590:FF590) -> 14199568811 | N62: =SUM(FG590:FR590) -> 1.478099256e+10 | O62: =SUM(FS590:GD590) -> 1.695209566e+10 | P62: =SUM(GE590:GP590) -> 1.928309387e+10 | Q62: =SUM(GQ590:HB590) -> 2.173344351e+10 | R62: =SUM(HC590:HN590) -> 2.430402986e+10 | S62: =SUM(HO590:HZ590) -> 2.700082767e+10 | T62: =SUM(IA590:IL590) -> 2.98178865e+10
C63: 32 | D63: Tráfico Móvil a misma Móvil (Salida) Prepago | H63: [Minutos] | I63: =SUM(CY611:DJ611) -> 45330051365 | J63: =SUM(DK611:DV611) -> 42194232004 | K63: =SUM(DW611:EH611) -> 34911042517 | L63: =SUM(EI611:ET611) -> 22124289056 | M63: =SUM(EU611:FF611) -> 18759659571 | N63: =SUM(FG611:FR611) -> 1.601948133e+10 | O63: =SUM(FS611:GD611) -> 1.38610589e+10 | P63: =SUM(GE611:GP611) -> 1.148973191e+10 | Q63: =SUM(GQ611:HB611) -> 8922887250 | R63: =SUM(HC611:HN611) -> 6229147320 | S63: =SUM(HO611:HZ611) -> 3850798685 | T63: =SUM(IA611:IL611) -> 1016341727
C64: 33 | D64: Tráfico Móvil a Fijo (Salida) Prepago | H64: [Minutos] | I64: =SUM(CY632:DJ632) -> 2543230935 | J64: =SUM(DK632:DV632) -> 2183685102 | K64: =SUM(DW632:EH632) -> 1129667279 | L64: =SUM(EI632:ET632) -> 1001130565 | M64: =SUM(EU632:FF632) -> 895450787 | N64: =SUM(FG632:FR632) -> 854147935.2 | O64: =SUM(FS632:GD632) -> 955329032.6 | P64: =SUM(GE632:GP632) -> 1089532937 | Q64: =SUM(GQ632:HB632) -> 1231203496 | R64: =SUM(HC632:HN632) -> 1380445315 | S64: =SUM(HO632:HZ632) -> 1538216729 | T64: =SUM(IA632:IL632) -> 1703583749
C65: 34 | D65: Tráfico Móvil a Larga Distancia (Salida) Prepago | H65: [Minutos] | I65: =I45*I61/(I51+I61) -> 506532639.5 | J65: 518074683.8 | K65: 346664545.1 | L65: 239830758.9 | M65: 193961564.9 | N65: 325490825.7 | O65: 157193456.5 | P65: 143324721.7 | Q65: 130090148.9 | R65: 117476857.1 | S65: 106194529.6 | T65: 92243392.36
C66: 35 | D66: Tráfico Voz Móvil Entrada Prepago | H66: [Minutos] | I66: =SUM(I67:I69) -> 2.570938226e+10 | J66: 2.482067234e+10 | K66: 2.225939101e+10 | L66: 1.738585083e+10 | M66: 1.565671601e+10 | N66: 1.676352557e+10 | O66: 1.86819257e+10 | P66: 2.116888582e+10 | Q66: 2.378671549e+10 | R66: 2.65363834e+10 | S66: 2.942406967e+10 | T66: 3.244397862e+10
C67: 36 | D67: Tráfico Móvil a Móvil (Entrada) Prepago | H67: [Minutos] | I67: =I62 -> 24003603947 | J67: 23195347706 | K67: 20900939161 | L67: 16029945467 | M67: 14199568811 | N67: 1.478099256e+10 | O67: 1.695209566e+10 | P67: 1.928309387e+10 | Q67: 2.173344351e+10 | R67: 2.430402986e+10 | S67: 2.700082767e+10 | T67: 2.98178865e+10
C68: 37 | D68: Tráfico Fijo a Móvil (Entrada) Prepago | H68: [Minutos] | I68: =I48*I34/I32 -> 590962630.2 | J68: 527266488.7 | K68: 635975475.3 | L68: 796354306.4 | M68: 970657297.8 | N68: 1143942301 | O68: 1327140570 | P68: 1521941931 | Q68: 1727525003 | R68: 1944047104 | S68: 2171768129 | T68: 2410331239
C69: 38 | D69: Tráfico Móvil a Larga Distancia (Entrada) Prepago | H69: [Minutos] | I69: =I49*I34/I32 -> 1114815680 | J69: 1098058142 | K69: 722476368.7 | L69: 559551054 | M69: 486489898 | N69: 838590717.5 | O69: 402689470.1 | P69: 363850015 | Q69: 325746974.6 | R69: 288306433.1 | S69: 251473868.5 | T69: 215760878.4
C70: 39 | D70: 0 | H70: 0
C71: 40 | D71: Tráfico de Datos Total | H71: [MB] | I71: =SUM(CY869:DJ869) -> 1.049715924e+12 | J71: =SUM(DK869:DV869) -> 1.940370652e+12 | K71: =SUM(DW869:EH869) -> 4.213982011e+12 | L71: =SUM(EI869:ET869) -> 5.592543747e+12 | M71: =SUM(EU869:FF869) -> 6.618136682e+12 | N71: =SUM(FG869:FR869) -> 7.234397322e+12 | O71: =SUM(FS869:GD869) -> 8.518986428e+12 | P71: =SUM(GE869:GP869) -> 9.920807582e+12 | Q71: =SUM(GQ869:HB869) -> 1.144795092e+13 | R71: =SUM(HC869:HN869) -> 1.310520827e+13 | S71: =SUM(HO869:HZ869) -> 1.486799435e+13 | T71: =SUM(IA869:IL869) -> 1.673602889e+13
C72: 41 | D72: Tráfico de Datos por Suscripción | H72: [MB] | I72: =SUM(CY890:DJ890) -> 8.833601777e+11 | J72: =SUM(DK890:DV890) -> 1.507298566e+12 | K72: =SUM(DW890:EH890) -> 2.787719274e+12 | L72: =SUM(EI890:ET890) -> 3772376833062 | M72: =SUM(EU890:FF890) -> 4389292019602 | N72: =SUM(FG890:FR890) -> 4.818394742e+12 | O72: =SUM(FS890:GD890) -> 5.673499207e+12 | P72: =SUM(GE890:GP890) -> 6.565739583e+12 | Q72: =SUM(GQ890:HB890) -> 7.528467122e+12 | R72: =SUM(HC890:HN890) -> 8.563629307e+12 | S72: =SUM(HO890:HZ890) -> 9.642190045e+12 | T72: =SUM(IA890:IL890) -> 1.076244682e+13
C73: 42 | D73: Tráfico de Datos por Demanda | H73: [MB] | I73: =SUM(CY911:DJ911) -> 1.66355746e+11 | J73: =SUM(DK911:DV911) -> 4.330720857e+11 | K73: =SUM(DW911:EH911) -> 1.426262737e+12 | L73: =SUM(EI911:ET911) -> 1.820166914e+12 | M73: =SUM(EU911:FF911) -> 2.228844662e+12 | N73: =SUM(FG911:FR911) -> 2.41600258e+12 | O73: =SUM(FS911:GD911) -> 2.845487221e+12 | P73: =SUM(GE911:GP911) -> 3.355067999e+12 | Q73: =SUM(GQ911:HB911) -> 3.919483797e+12 | R73: =SUM(HC911:HN911) -> 4.541578963e+12 | S73: =SUM(HO911:HZ911) -> 5.225804305e+12 | T73: =SUM(IA911:IL911) -> 5.973582066e+12
C74: 43 | D74: 0 | H74: 0
C75: 44 | D75: Tráfico SMS Entrada | E75: incluye OMV y RAN | H75: [Mensajes] | I75: =I76 -> 1005725696 | J75: 908033418.5 | K75: 819566454 | L75: 636077637.6 | M75: 587607673.8 | N75: 401452128.3 | O75: 387000023 | P75: 381898078.3 | Q75: 380904370.3 | R75: 409007270 | S75: 456272931.7 | T75: 500472148.1
C76: 45 | D76: Tráfico SMS Salida | E76: incluye OMV y RAN | H76: [Mensajes] | I76: =SUM(AQ1146:AT1146,AQ1167:AT1167)*I42/I41 -> 1005725696 | J76: =SUM(AU1146:AX1146,AU1167:AX1167)*J42/J41 -> 908033418.5 | K76: =SUM(AY1146:BB1146,AY1167:BB1167)*K42/K41 -> 819566454 | L76: =SUM(BC1146:BF1146,BC1167:BF1167)*L42/L41 -> 636077637.6 | M76: =SUM(BG1146:BJ1146,BG1167:BJ1167)*M42/M41 -> 587607673.8 | N76: =SUM(BK1146:BN1146,BK1167:BN1167)*N42/N41 -> 401452128.3 | O76: 387000023 | P76: 381898078.3 | Q76: 380904370.3 | R76: 409007270 | S76: 456272931.7 | T76: 500472148.1
C77: 46 | D77: Tráfico SMS OnNet | E77: incluye OMV y RAN | H77: [Mensajes] | I77: =SUM(AQ1146:AT1146,AQ1167:AT1167)*I43/I41 -> 1586104016 | J77: =SUM(AU1146:AX1146,AU1167:AX1167)*J43/J41 -> 1388662887 | K77: =SUM(AY1146:BB1146,AY1167:BB1167)*K43/K41 -> 1136569281 | L77: =SUM(BC1146:BF1146,BC1167:BF1167)*L43/L41 -> 738390791.4 | M77: =SUM(BG1146:BJ1146,BG1167:BJ1167)*M43/M41 -> 696825216.2 | N77: =SUM(BK1146:BN1146,BK1167:BN1167)*N43/N41 -> 438096484.9 | O77: 333657781 | P77: 250094267.8 | Q77: 178776833.7 | R77: 123973420.6 | S77: 72937541.87 | T77: 24968108.39
C78: 47 | D78: OMV Voz Entrada | H78: [Minutos] | I78: =SUM(CY456:DJ456) -> 1547677759 | J78: =SUM(DK456:DV456) -> 1799174650 | K78: =SUM(DW456:EH456) -> 1586189370 | L78: =SUM(EI456:ET456) -> 1388369006 | M78: =SUM(EU456:FF456) -> 1249806685 | N78: =SUM(FG456:FR456) -> 1105586606 | O78: =SUM(FS456:GD456) -> 1201110384 | P78: =SUM(GE456:GP456) -> 1306135262 | Q78: =SUM(GQ456:HB456) -> 1414881208 | R78: =SUM(HC456:HN456) -> 1527348221 | S78: =SUM(HO456:HZ456) -> 1643536303 | T78: =SUM(IA456:IL456) -> 1763445453
C79: 48 | D79: OMV Voz Salida | H79: [Minutos] | I79: =SUM(CY457:DJ457) -> 1683923787 | J79: =SUM(DK457:DV457) -> 1971943110 | K79: =SUM(DW457:EH457) -> 1751249415 | L79: =SUM(EI457:ET457) -> 1537492589 | M79: =SUM(EU457:FF457) -> 1386015644 | N79: =SUM(FG457:FR457) -> 1242184923 | O79: =SUM(FS457:GD457) -> 1357922874 | P79: =SUM(GE457:GP457) -> 1485361537 | Q79: =SUM(GQ457:HB457) -> 1617996312 | R79: =SUM(HC457:HN457) -> 1755827199 | S79: =SUM(HO457:HZ457) -> 1898854197 | T79: =SUM(IA457:IL457) -> 2047077308
C80: 49 | D80: OMV Voz OnNet | H80: [Minutos] | I80: =SUM(CY458:DJ458) -> 367635336 | J80: =SUM(DK458:DV458) -> 319748872 | K80: =SUM(DW458:EH458) -> 257662057 | L80: =SUM(EI458:ET458) -> 206186600 | M80: =SUM(EU458:FF458) -> 181249410 | N80: =SUM(FG458:FR458) -> 154527405.4 | O80: =SUM(FS458:GD458) -> 180554338.4 | P80: =SUM(GE458:GP458) -> 209509508.7 | Q80: =SUM(GQ458:HB458) -> 240519196.3 | R80: =SUM(HC458:HN458) -> 273583401.1 | S80: =SUM(HO458:HZ458) -> 308702123.1 | T80: =SUM(IA458:IL458) -> 345875362.3
C81: 50 | D81: OMV sms | H81: [Mensajes] | I81: =SUM(AQ1173:AT1173) -> 42064475 | J81: =SUM(AU1173:AX1173) -> 35657612 | K81: =SUM(AY1173:BB1173) -> 19464971 | L81: =SUM(BC1173:BF1173) -> 16478207 | M81: =SUM(BG1173:BJ1173) -> 15888114 | N81: =SUM(BK1173:BN1173) -> 14522712.95 | O81: =SUM(BO1173:BR1173) -> 12909026.78 | P81: =SUM(BS1173:BV1173) -> 11295340.62 | Q81: =SUM(BW1173:BZ1173) -> 9681654.452 | R81: =SUM(CA1173:CD1173) -> 8067968.286 | S81: =SUM(CE1173:CH1173) -> 6454282.119 | T81: =SUM(CI1173:CL1173) -> 4840595.953
C82: 51 | D82: OMV Datos | H82: [MB] | I82: =SUM(CY938:DJ938) -> 1.027697116e+10 | J82: =SUM(DK938:DV938) -> 2.127433392e+10 | K82: =SUM(DW938:EH938) -> 3.494060375e+10 | L82: =SUM(EI938:ET938) -> 4.129819341e+10 | M82: =SUM(EU938:FF938) -> 5.197323415e+10 | N82: =SUM(FG938:FR938) -> 5.584808827e+10 | O82: =SUM(FS938:GD938) -> 6.732800546e+10 | P82: =SUM(GE938:GP938) -> 7.875325835e+10 | Q82: =SUM(GQ938:HB938) -> 9.138903426e+10 | R82: =SUM(HC938:HN938) -> 1.052954653e+11 | S82: =SUM(HO938:HZ938) -> 1.205327373e+11 | T82: =SUM(IA938:IL938) -> 1.371610559e+11
C83: 52 | D83: RAN Voz Entrada | H83: [Minutos] | I83: =SUM(CY439:DJ439) -> 4600158832 | J83: =SUM(DK439:DV439) -> 4473258859 | K83: =SUM(DW439:EH439) -> 2707453973 | L83: =SUM(EI439:ET439) -> 1129205224 | M83: =SUM(EU439:FF439) -> 918367757 | N83: =SUM(FG439:FR439) -> 519215382.6 | O83: =SUM(FS439:GD439) -> 256276160.2 | P83: =SUM(GE439:GP439) -> 318920807.8 | Q83: =SUM(GQ439:HB439) -> 386102912.7 | R83: =SUM(HC439:HN439) -> 457822474.8 | S83: =SUM(HO439:HZ439) -> 534079494.1 | T83: =SUM(IA439:IL439) -> 614873970.7
C84: 53 | D84: RAN Voz Salida | H84: [Minutos] | I84: =I83 -> 4600158832 | J84: 4473258859 | K84: 2707453973 | L84: 1129205224 | M84: 918367757 | N84: 519215382.6 | O84: 256276160.2 | P84: 318920807.8 | Q84: 386102912.7 | R84: 457822474.8 | S84: 534079494.1 | T84: 614873970.7
C85: 54 | D85: RAN sms | H85: [Mensajes] | I85: =SUM(AQ1167:AT1167) -> 410607529 | J85: =SUM(AU1167:AX1167) -> 505104465 | K85: =SUM(AY1167:BB1167) -> 507834395 | L85: =SUM(BC1167:BF1167) -> 247349736 | M85: =SUM(BG1167:BJ1167) -> 308041830 | N85: =SUM(BK1167:BN1167) -> 395856667.9 | O85: =SUM(BO1167:BR1167) -> 382223345.1 | P85: =SUM(BS1167:BV1167) -> 355023241.7 | Q85: =SUM(BW1167:BZ1167) -> 345262577.2 | R85: =SUM(CA1167:CD1167) -> 346637360.8 | S85: =SUM(CE1167:CH1167) -> 348012144.5 | T85: =SUM(CI1167:CL1167) -> 349386928.2
C86: 55 | D86: RAN Datos | H86: [MB] | I86: =SUM(CY932:DJ932) -> 7595387306 | J86: =SUM(DK932:DV932) -> 27235062694 | K86: =SUM(DW932:EH932) -> 66873271150 | L86: =SUM(EI932:ET932) -> 19425472031 | M86: =SUM(EU932:FF932) -> 19830026793 | N86: =SUM(FG932:FR932) -> 1.723899608e+10 | O86: =SUM(FS932:GD932) -> 2.081519992e+10 | P86: =SUM(GE932:GP932) -> 2.492239984e+10 | Q86: =SUM(GQ932:HB932) -> 2.946311534e+10 | R86: =SUM(HC932:HN932) -> 3.445555341e+10 | S86: =SUM(HO932:HZ932) -> 3.982273986e+10 | T86: =SUM(IA932:IL932) -> 4.556935211e+10
C87: 56 | D87: Roaming Internacional Voz Salida | H87: [Minutos] | I87: =SUM(CY1280:DJ1280) -> 4585652 | J87: =SUM(DK1280:DV1280) -> 9363619 | K87: =SUM(DW1280:EH1280) -> 13050017 | L87: =SUM(EI1280:ET1280) -> 13038137 | M87: =SUM(EU1280:FF1280) -> 11453380 | N87: =SUM(FG1280:FR1280) -> 10759337.16 | O87: =SUM(FS1280:GD1280) -> 10673409.47 | P87: =SUM(GE1280:GP1280) -> 10875212.98 | Q87: =SUM(GQ1280:HB1280) -> 11084007.48 | R87: =SUM(HC1280:HN1280) -> 11292801.97 | S87: =SUM(HO1280:HZ1280) -> 11435506.79 | T87: =SUM(IA1280:IL1280) -> 11555293.98
C88: 57 | D88: Roaming Internacional Voz Entrada | H88: [Minutos] | I88: =SUM(CY1301:DJ1301) -> 2939860 | J88: =SUM(DK1301:DV1301) -> 6204378 | K88: =SUM(DW1301:EH1301) -> 8540684 | L88: =SUM(EI1301:ET1301) -> 8966815 | M88: =SUM(EU1301:FF1301) -> 8560701 | N88: =SUM(FG1301:FR1301) -> 9973892.413 | O88: =SUM(FS1301:GD1301) -> 10940724.84 | P88: =SUM(GE1301:GP1301) -> 11420861.43 | Q88: =SUM(GQ1301:HB1301) -> 11901413.53 | R88: =SUM(HC1301:HN1301) -> 12381965.64 | S88: =SUM(HO1301:HZ1301) -> 12862517.75 | T88: =SUM(IA1301:IL1301) -> 13343069.85
C89: 58 | D89: Roaming Internacional sms | H89: [Mensajes] | I89: =SUM(CY1322:DJ1322) -> 191016 | J89: =SUM(DK1322:DV1322) -> 351889 | K89: =SUM(DW1322:EH1322) -> 627765 | L89: =SUM(EI1322:ET1322) -> 757798 | M89: =SUM(EU1322:FF1322) -> 786374 | N89: =SUM(FG1322:FR1322) -> 736783.9727 | O89: =SUM(FS1322:GD1322) -> 790975.6881 | P89: =SUM(GE1322:GP1322) -> 838724.1032 | Q89: =SUM(GQ1322:HB1322) -> 886472.5184 | R89: =SUM(HC1322:HN1322) -> 934220.9336 | S89: =SUM(HO1322:HZ1322) -> 981969.3487 | T89: =SUM(IA1322:IL1322) -> 1029717.764
C90: 59 | D90: Roaming Internacional Datos | H90: [MB] | I90: =SUM(CY1343:DJ1343) -> 239100730 | J90: =SUM(DK1343:DV1343) -> 1023012830 | K90: =SUM(DW1343:EH1343) -> 2361892571 | L90: =SUM(EI1343:ET1343) -> 4154302640 | M90: =SUM(EU1343:FF1343) -> 6042433598 | N90: =SUM(FG1343:FR1343) -> 7587634029 | O90: =SUM(FS1343:GD1343) -> 9025605963 | P90: =SUM(GE1343:GP1343) -> 9925684483 | Q90: =SUM(GQ1343:HB1343) -> 1.0825763e+10 | R90: =SUM(HC1343:HN1343) -> 1.172584152e+10 | S90: =SUM(HO1343:HZ1343) -> 1.262592004e+10 | T90: =SUM(IA1343:IL1343) -> 1.352599856e+10
C91: 60 | D91: Mensajes cortos recibidos + originados | H91: [Mensajes] | I91: =SUM(AQ1236:AT1236,AQ1257:AT1257) -> 30607366525 | J91: =SUM(AU1236:AX1236,AU1257:AX1257) -> 43100550435 | K91: =SUM(AY1236:BB1236,AY1257:BB1257) -> 45019663241 | L91: =SUM(BC1236:BF1236,BC1257:BF1257) -> 49670333455 | M91: =SUM(BG1236:BJ1236,BG1257:BJ1257) -> 47191280666 | N91: =SUM(BK1236:BN1236,BK1257:BN1257) -> 5.225985866e+10 | O91: 5.278122203e+10 | P91: 5.423027771e+10 | Q91: 5.565245361e+10 | R91: 5.707462951e+10 | S91: 5.849680541e+10 | T91: 5.991898131e+10
N92: Proy.pronost
B94: Abonados
C96: id | D96: Operador | E96: Código | F96: Unidad | G96: 2011-03-01 | H96: 2011-06-01 | I96: 2011-09-01 | J96: 2011-12-01 | K96: 2012-03-01 | L96: 2012-06-01 | M96: 2012-09-01 | N96: 2012-12-01 | O96: 2013-03-01 | P96: 2013-06-01 | Q96: 2013-09-01 | R96: 2013-12-01 | S96: 2014-03-01 | T96: 2014-06-01 | U96: 2014-09-01 | V96: 2014-12-01 | W96: 2015-03-01 | X96: 2015-06-01 | Y96: 2015-09-01 | Z96: 2015-12-01 | AA96: 2016-03-01 | AB96: 2016-06-01 | AC96: 2016-09-01 | AD96: 2016-12-01 | AE96: 2017-03-01 | AF96: 2017-06-01 | AG96: 2017-09-01 | AH96: 2017-12-01 | AI96: 2018-03-01 | AJ96: 2018-06-01 | AK96: 2018-09-01 | AL96: 2018-12-01 | AM96: 2019-03-01 | AN96: 2019-06-01 | AO96: 2019-09-01 | AP96: 2019-12-01 | AQ96: 2020-03-01 | AR96: 2020-06-01 | AS96: 2020-09-01 | AT96: 2020-12-01 | AU96: 2021-03-01 | AV96: 2021-06-01 | AW96: 2021-09-01 | AX96: 2021-12-01 | AY96: 2022-03-01 | AZ96: 2022-06-01 | BA96: 2022-09-01 | BB96: 2022-12-01 | BC96: 2023-03-01 | BD96: 2023-06-01 | BE96: 2023-09-01 | BF96: 2023-12-01 | BG96: 2024-03-01 | BH96: 2024-06-01 | BI96: 2024-09-01 | BJ96: 2024-12-01 | BK96: 2025-03-01 | BL96: 2025-06-01 | BM96: 2025-09-01 | BN96: 2025-12-01 | BO96: 2026-03-01 | BP96: 2026-06-01 | BQ96: 2026-09-01 | BR96: 2026-12-01 | BS96: 2027-03-01 | BT96: 2027-06-01 | BU96: 2027-09-01 | BV96: 2027-12-01 | BW96: 2028-03-01 | BX96: 2028-06-01 | BY96: 2028-09-01 | BZ96: 2028-12-01 | CA96: 2029-03-01 | CB96: 2029-06-01 | CC96: 2029-09-01 | CD96: 2029-12-01 | CE96: 2030-03-01 | CF96: 2030-06-01 | CG96: 2030-09-01 | CH96: 2030-12-01 | CI96: 2031-03-01 | CJ96: 2031-06-01 | CK96: 2031-09-01 | CL96: 2031-12-01
B97: Pospago
C98: 1 | D98: =L.oper.nom -> Comcel | E98: 800153993 | F98: [Abonados] | G98: 4304255 | H98: 4408676 | I98: 4577816 | J98: 4755101 | K98: 4900878 | L98: 5040764 | M98: 5194566 | N98: 5351558 | O98: 5451409 | P98: 5519342 | Q98: 5600997 | R98: 5714572 | S98: 5804166 | T98: 5832799 | U98: 5815472 | V98: 5861323 | W98: 5839969 | X98: 5811329 | Y98: 5827131 | Z98: 5869203 | AA98: 5938432 | AB98: 6082968 | AC98: 6223746 | AD98: 6371971 | AE98: 6458774 | AF98: 6553309 | AG98: 6604164 | AH98: 6688246 | AI98: 6683865 | AJ98: 6786534 | AK98: 6886963 | AL98: 6936693 | AM98: 6996809 | AN98: 7114931 | AO98: 7249104 | AP98: 7350590 | AQ98: 7383758 | AR98: 7421749 | AS98: 7563876 | AT98: 7765177 | AU98: 7919053 | AV98: 8078465 | AW98: 8391598 | AX98: 8748884 | AY98: 9048114 | AZ98: 9319713 | BA98: 9534908 | BB98: 9695106 | BC98: 9858903 | BD98: 10030026 | BE98: 10134039 | BF98: 10216679 | BG98: 10342771 | BH98: 10525517 | BI98: 10684459 | BJ98: 10862116 | BK98: 11024617 | BL98: 11223253 | BM98: =IF(BL98>0,IF(_xlfn.FORECAST.ETS(BM$96,$K98:$BL98,$K$96:$BL$96,4)<0,0,_xlfn.FORECAST.ETS(BM$96,$K98:$BL98,$K$96:$BL$96,4)),0) -> 11382278.92 | BN98: =IF(BM98>0,IF(_xlfn.FORECAST.ETS(BN$96,$K98:$BL98,$K$96:$BL$96,4)<0,0,_xlfn.FORECAST.ETS(BN$96,$K98:$BL98,$K$96:$BL$96,4)),0) -> 11700136.02 | BO98: 11984757.37 | BP98: 12183090.45 | BQ98: 12342279.65 | BR98: 12660136.76 | BS98: 12944758.1 | BT98: 13143091.18 | BU98: 13302280.39 | BV98: 13620137.49 | BW98: 13904758.84 | BX98: 14103091.92 | BY98: 14262281.12 | BZ98: 14580138.23 | CA98: 14864759.57 | CB98: 15063092.65 | CC98: 15222281.86 | CD98: 15540138.96 | CE98: 15824760.31 | CF98: 16023093.39 | CG98: 16182282.59 | CH98: 16500139.69 | CI98: 16784761.04 | CJ98: 16983094.12 | CK98: 17142283.32 | CL98: 17460140.43
C99: 2 | D99: Partners | E99: 830016046 | F99: [Abonados] | G99: 0 | H99: 0 | I99: 0 | J99: 0 | K99: 0 | L99: 0 | M99: 0 | N99: 0 | O99: 0 | P99: 0 | Q99: 0 | R99: 158754 | S99: 166594 | T99: 166966 | U99: 173410 | V99: 179548 | W99: 217960 | X99: 277097 | Y99: 310911 | Z99: 325807 | AA99: 339292 | AB99: 365297 | AC99: 390413 | AD99: 372797 | AE99: 357497 | AF99: 358443 | AG99: 429231 | AH99: 480424 | AI99: 540711 | AJ99: 591326 | AK99: 613836 | AL99: 640676 | AM99: 656614 | AN99: 661016 | AO99: 658927 | AP99: 597276 | AQ99: 544173 | AR99: 499510 | AS99: 469411 | AT99: 478242 | AU99: 514014 | AV99: 600984 | AW99: 769789 | AX99: 821918 | AY99: 862167 | AZ99: 959257 | BA99: 1095635 | BB99: 1339978 | BC99: 1488652 | BD99: 1651626 | BE99: 1888009 | BF99: 2037458 | BG99: 2059007 | BH99: 2007016 | BI99: 1913504 | BJ99: 1937221 | BK99: 1808719 | BL99: 1575289 | BM99: =IF(BL99>0,IF(_xlfn.FORECAST.ETS(BM$96,$K99:$BL99,$K$96:$BL$96,4)<0,0,_xlfn.FORECAST.ETS(BM$96,$K99:$BL99,$K$96:$BL$96,4)),0) -> 1590756.865 | BN99: 1654024.252 | BO99: 1676068.834 | BP99: 1718164.38 | BQ99: 1733632.246 | BR99: 1796899.632 | BS99: 1818944.214 | BT99: 1861039.761 | BU99: 1876507.626 | BV99: 1939775.013 | BW99: 1961819.595 | BX99: 2003915.141 | BY99: 2019383.006 | BZ99: 2082650.393 | CA99: 2104694.975 | CB99: 2146790.521 | CC99: 2162258.387 | CD99: 2225525.773 | CE99: 2247570.355 | CF99: 2289665.902 | CG99: 2305133.767 | CH99: 2368401.154 | CI99: 2390445.736 | CJ99: 2432541.282 | CK99: 2448009.147 | CL99: 2511276.534
C100: 3 | D100: Tigo | E100: 830114921 | F100: [Abonados] | G100: 871001 | H100: 902398 | I100: 924505 | J100: 954561 | K100: 984787 | L100: 1011795 | M100: 1031730 | N100: 1053589 | O100: 1072786 | P100: 1126164 | Q100: 1179588 | R100: 1575740 | S100: 1573544 | T100: 1636518 | U100: 1684372 | V100: 1727397 | W100: 1719656 | X100: 1689457 | Y100: 1684952 | Z100: 1675733 | AA100: 1568159 | AB100: 1503683 | AC100: 1532355 | AD100: 1512205 | AE100: 1503121 | AF100: 1539129 | AG100: 1501163 | AH100: 1563860 | AI100: 1593141 | AJ100: 1595868 | AK100: 1612906 | AL100: 1652051 | AM100: 1729695 | AN100: 1759088 | AO100: 1780987 | AP100: 1837235 | AQ100: 1823564 | AR100: 1707182 | AS100: 1740206 | AT100: 1784516 | AU100: 1860932 | AV100: 2099943 | AW100: 2616351 | AX100: 2821441 | AY100: 3079181 | AZ100: 3310818 | BA100: 3214132 | BB100: 3263650 | BC100: 3447006 | BD100: 3589610 | BE100: 3754058 | BF100: 3944757 | BG100: 4034107 | BH100: 4168961 | BI100: 4435411 | BJ100: 4640592 | BK100: 4421511 | BL100: 4480921 | BM100: 4576188.669 | BN100: 4791134.336 | BO100: 4859987.833 | BP100: 4907245.143 | BQ100: 5002525.96 | BR100: 5217471.628 | BS100: 5286325.125 | BT100: 5333582.435 | BU100: 5428863.252 | BV100: 5643808.92 | BW100: 5712662.417 | BX100: 5759919.727 | BY100: 5855200.544 | BZ100: 6070146.212 | CA100: 6138999.709 | CB100: 6186257.019 | CC100: 6281537.836 | CD100: 6496483.504 | CE100: 6565337 | CF100: 6612594.311 | CG100: 6707875.128 | CH100: 6922820.796 | CI100: 6991674.292 | CJ100: 7038931.602 | CK100: 7134212.42 | CL100: 7349158.088
C101: 4 | D101: Movistar | E101: 830122566 | F101: [Abonados] | G101: 2439154 | H101: 2529350 | I101: 2652439 | J101: 2764249 | K101: 2856553 | L101: 2918559 | M101: 2959789 | N101: 3028424 | O101: 3069394 | P101: 3190050 | Q101: 3263848 | R101: 3303208 | S101: 3287289 | T101: 3299475 | U101: 3268298 | V101: 3259884 | W101: 3251694 | X101: 3254694 | Y101: 3313709 | Z101: 3385539 | AA101: 3432238 | AB101: 3506690 | AC101: 3560843 | AD101: 3588464 | AE101: 3628676 | AF101: 3671588 | AG101: 3728814 | AH101: 3732884 | AI101: 3712291 | AJ101: 3772300 | AK101: 3821303 | AL101: 3835482 | AM101: 3868966 | AN101: 3931388 | AO101: 3995407 | AP101: 4077225 | AQ101: 4140576 | AR101: 4154633 | AS101: 4332314 | AT101: 4362606 | AU101: 4520036 | AV101: 4732330 | AW101: 4865308 | AX101: 4984625 | AY101: 5107397 | AZ101: 5204026 | BA101: 5399631 | BB101: 5439450 | BC101: 5475174 | BD101: 5548057 | BE101: 5514447 | BF101: 5430744 | BG101: 5318682 | BH101: 5238038 | BI101: 5174341 | BJ101: 5134307 | BK101: 5162022 | BL101: 5250388 | BM101: 5443104.992 | BN101: 5500427.119 | BO101: 5530755.561 | BP101: 5601527.91 | BQ101: 5649996.448 | BR101: 5707318.575 | BS101: 5737647.018 | BT101: 5808419.366 | BU101: 5856887.904 | BV101: 5914210.031 | BW101: 5944538.474 | BX101: 6015310.822 | BY101: 6063779.36 | BZ101: 6121101.487 | CA101: 6151429.93 | CB101: 6222202.279 | CC101: 6270670.816 | CD101: 6327992.943 | CE101: 6358321.386 | CF101: 6429093.735 | CG101: 6477562.272 | CH101: 6534884.399 | CI101: 6565212.842 | CJ101: 6635985.191 | CK101: 6684453.728 | CL101: 6741775.855
C102: 5 | D102: ETB | E102: 899999115 | F102: [Abonados] | G102: 0 | H102: 0 | I102: 0 | J102: 0 | K102: 0 | L102: 0 | M102: 0 | N102: 0 | O102: 0 | P102: 0 | Q102: 0 | R102: 0 | S102: 0 | T102: 0 | U102: 0 | V102: 15381 | W102: 37395 | X102: 74001 | Y102: 135295 | Z102: 192457 | AA102: 203800 | AB102: 232506 | AC102: 254741 | AD102: 267295 | AE102: 250670 | AF102: 224094 | AG102: 208550 | AH102: 217369 | AI102: 238955 | AJ102: 250744 | AK102: 231760 | AL102: 199351 | AM102: 194535 | AN102: 202416 | AO102: 169586 | AP102: 160575 | AQ102: 182796 | AR102: 169575 | AS102: 179405 | AT102: 197712 | AU102: 200162 | AV102: 182427 | AW102: 154340 | AX102: 130713 | AY102: 130376 | AZ102: 122133 | BA102: 132749 | BB102: 139027 | BC102: 154112 | BD102: 174295 | BE102: 193417 | BF102: 195809 | BG102: 194886 | BH102: 195777 | BI102: 191722 | BJ102: 140506 | BK102: 130850 | BL102: 126048 | BM102: 131044.0626 | BN102: 128894.4662 | BO102: 134278.148 | BP102: 137856.3513 | BQ102: 142843.084 | BR102: 140693.4875 | BS102: 146077.1694 | BT102: 149655.3727 | BU102: 154642.1053 | BV102: 152492.5089 | BW102: 157876.1907 | BX102: 161454.394 | BY102: 166441.1267 | BZ102: 164291.5302 | CA102: 169675.2121 | CB102: 173253.4154 | CC102: 178240.148 | CD102: 176090.5515 | CE102: 181474.2334 | CF102: 185052.4367 | CG102: 190039.1694 | CH102: 187889.5729 | CI102: 193273.2547 | CJ102: 196851.458 | CK102: 201838.1907 | CL102: 199688.5942
C103: 6 | D103: OMVs | F103: [Abonados] | G103: 0 | H103: 0 | I103: 0 | J103: 0 | K103: 0 | L103: 0 | M103: 0 | N103: 0 | O103: 0 | P103: 0 | Q103: 0 | R103: 0 | S103: 0 | T103: 0 | U103: 0 | V103: 0 | W103: 0 | X103: 0 | Y103: 0 | Z103: 0 | AA103: 0 | AB103: 0 | AC103: 0 | AD103: 0 | AE103: 0 | AF103: 0 | AG103: 0 | AH103: 0 | AI103: 0 | AJ103: 0 | AK103: 0 | AL103: 0 | AM103: 0 | AN103: 0 | AO103: 0 | AP103: 0 | AQ103: 0 | AR103: 0 | AS103: 0 | AT103: 0 | AU103: 0 | AV103: 0 | AW103: 0 | AX103: 0 | AY103: 0 | AZ103: 0 | BA103: 0 | BB103: 0 | BC103: 0 | BD103: 0 | BE103: 0 | BF103: 0 | BG103: 0 | BH103: 0 | BI103: 0 | BJ103: 0 | BK103: 0 | BL103: 0 | BM103: 0 | BN103: 0 | BO103: 0 | BP103: 0 | BQ103: 0 | BR103: 0 | BS103: 0 | BT103: 0 | BU103: 0 | BV103: 0 | BW103: 0 | BX103: 0 | BY103: 0 | BZ103: 0 | CA103: 0 | CB103: 0 | CC103: 0 | CD103: 0 | CE103: 0 | CF103: 0 | CG103: 0 | CH103: 0 | CI103: 0 | CJ103: 0 | CK103: 0 | CL103: 0
C104: 7 | D104: libre | F104: [Abonados]
C105: 8 | D105: libre | F105: [Abonados]
C106: 9 | D106: libre | F106: [Abonados]
C107: 10 | D107: libre | F107: [Abonados]
C108: 11 | D108: libre | F108: [Abonados]
C109: 12 | D109: libre | F109: [Abonados]
C110: 13 | D110: libre | F110: [Abonados]
C111: 14 | D111: libre | F111: [Abonados]
C112: 15 | D112: libre | F112: [Abonados]
C113: T | D113: Total | F113: [Abonados] | G113: =SUM(G98:G112) -> 7614410 | H113: 7840424 | I113: 8154760 | J113: 8473911 | K113: 8742218 | L113: 8971118 | M113: 9186085 | N113: 9433571 | O113: 9593589 | P113: 9835556 | Q113: 10044433 | R113: 10752274 | S113: 10831593 | T113: 10935758 | U113: 10941552 | V113: 11043533 | W113: 11066674 | X113: 11106578 | Y113: 11271998 | Z113: 11448739 | AA113: 11481921 | AB113: 11691144 | AC113: 11962098 | AD113: 12112732 | AE113: 12198738 | AF113: 12346563 | AG113: 12471922 | AH113: 12682783 | AI113: 12768963 | AJ113: 12996772 | AK113: 13166768 | AL113: 13264253 | AM113: 13446619 | AN113: 13668839 | AO113: 13854011 | AP113: 14022901 | AQ113: 14074867 | AR113: 13952649 | AS113: 14285212 | AT113: 14588253 | AU113: 15014197 | AV113: 15694149 | AW113: 16797386 | AX113: =SUM(AX98:AX112) -> 17507581 | AY113: =SUM(AY98:AY112) -> 18227235 | AZ113: =SUM(AZ98:AZ112) -> 18915947 | BA113: =SUM(BA98:BA112) -> 19377055 | BB113: =SUM(BB98:BB112) -> 19877211 | BC113: 20423847 | BD113: 20993614 | BE113: 21483970 | BF113: 21825447 | BG113: 21949453 | BH113: 22135309 | BI113: 22399437 | BJ113: 22753166 | BK113: 23098073.42 | BL113: 23273873.73 | BM113: 23123373.51 | BN113: 23774616.2 | BO113: 24185847.75 | BP113: 24547884.23 | BQ113: 24871277.39 | BR113: 25522520.08 | BS113: 25933751.63 | BT113: 26295788.12 | BU113: 26619181.27 | BV113: 27270423.96 | BW113: 27681655.51 | BX113: 28043692 | BY113: 28367085.16 | BZ113: 29018327.85 | CA113: 29429559.4 | CB113: 29791595.89 | CC113: 30114989.04 | CD113: 30766231.73 | CE113: 31177463.28 | CF113: 31539499.77 | CG113: 31862892.93 | CH113: 32514135.62 | CI113: 32925367.16 | CJ113: 33287403.65 | CK113: 33610796.81 | CL113: 34262039.5
B114: Prepago
C115: 1 | D115: =L.oper.nom -> Comcel | E115: 800153993 | F115: [Abonados] | G115: 25709973 | H115: 26274488 | I115: 26619576 | J115: 24063690 | K115: 24119116 | L115: 24334505 | M115: 24767235 | N115: 25019525 | O115: 22209459 | P115: 22285853 | Q115: 22762739 | R115: 23262727 | S115: 23405593 | T115: 23276224 | U115: 23475343 | V115: 23914416 | W115: 23993649 | X115: 23558776 | Y115: 23103921 | Z115: 23103921 | AA115: 22401429 | AB115: 22176568 | AC115: 22265090 | AD115: 22581913 | AE115: 22694370 | AF115: 22671618 | AG115: 22508198 | AH115: 22664585 | AI115: 22717223 | AJ115: 22381248 | AK115: 22345925 | AL115: 22744160 | AM115: 22890292 | AN115: 23029188 | AO115: 23327614 | AP115: 23753480 | AQ115: 23859906 | AR115: 24112825 | AS115: 24459904 | AT115: 25243585 | AU115: 25542054 | AV115: 25765054 | AW115: 25964111 | AX115: 26313067 | AY115: 26661706 | AZ115: 27002170 | BA115: 27308810 | BB115: 27854848 | BC115: 28208948 | BD115: 28393869 | BE115: 28567089 | BF115: 29022929 | BG115: 29401131 | BH115: 29661675 | BI115: 29912791 | BJ115: 30090666 | BK115: 30224971 | BL115: 30454173 | BM115: =IF(BL115>0,IF(_xlfn.FORECAST.ETS(BM$96,$K115:$BL115,$K$96:$BL$96,4)<0,0,_xlfn.FORECAST.ETS(BM$96,$K115:$BL115,$K$96:$BL$96,4)),0) -> 30724032.44 | BN115: =IF(BM115>0,IF(_xlfn.FORECAST.ETS(BN$96,$K115:$BL115,$K$96:$BL$96,4)<0,0,_xlfn.FORECAST.ETS(BN$96,$K115:$BL115,$K$96:$BL$96,4)),0) -> 31401773.43 | BO115: 31508967.42 | BP115: 31533574.84 | BQ115: 31823883.63 | BR115: 32501624.62 | BS115: 32608818.6 | BT115: 32633426.03 | BU115: 32923734.82 | BV115: 33601475.81 | BW115: 33708669.79 | BX115: 33733277.22 | BY115: 34023586 | BZ115: 34701326.99 | CA115: 34808520.98 | CB115: 34833128.4 | CC115: 35123437.19 | CD115: 35801178.18 | CE115: 35908372.16 | CF115: 35932979.59 | CG115: 36223288.37 | CH115: 36901029.36 | CI115: 37008223.35 | CJ115: 37032830.77 | CK115: 37323139.56 | CL115: 38000880.55
C116: 2 | D116: Partners | E116: 830016046 | F116: [Abonados] | G116: 0 | H116: 0 | I116: 0 | J116: 0 | K116: 0 | L116: 0 | M116: 0 | N116: 0 | O116: 0 | P116: 171000 | Q116: 181734 | R116: 34543 | S116: 36816 | T116: 39057 | U116: 71819 | V116: 88307 | W116: 94986 | X116: 156474 | Y116: 239049 | Z116: 371110 | AA116: 454490 | AB116: 611735 | AC116: 708350 | AD116: 832525 | AE116: 993222 | AF116: 1064015 | AG116: 1390314 | AH116: 1502000 | AI116: 1474827 | AJ116: 1461934 | AK116: 1507198 | AL116: 1580942 | AM116: 1630028 | AN116: 1671380 | AO116: 1717157 | AP116: 1705901 | AQ116: 1706597 | AR116: 977951 | AS116: 921302 | AT116: 774606 | AU116: 786381 | AV116: 1070562 | AW116: 1432389 | AX116: 1558131 | AY116: 1390317 | AZ116: 1548307 | BA116: 1578901 | BB116: 1661026 | BC116: 2055179 | BD116: 1987968 | BE116: 2788708 | BF116: 3892497 | BG116: 4554651 | BH116: 4937272 | BI116: 5290473 | BJ116: 5950631 | BK116: 5610816 | BL116: 5251007 | BM116: =IF(BL116>0,IF(_xlfn.FORECAST.ETS(BM$96,$K116:$BL116,$K$96:$BL$96,4)<0,0,_xlfn.FORECAST.ETS(BM$96,$K116:$BL116,$K$96:$BL$96,4)),0) -> 5328691.857 | BN116: 5344915.894 | BO116: 5398064.474 | BP116: 5583398.347 | BQ116: 5661083.205 | BR116: 5677307.241 | BS116: 5730455.821 | BT116: 5915789.695 | BU116: 5993474.552 | BV116: 6009698.589 | BW116: 6062847.169 | BX116: 6248181.042 | BY116: 6325865.899 | BZ116: 6342089.936 | CA116: 6395238.516 | CB116: 6580572.389 | CC116: 6658257.247 | CD116: 6674481.283 | CE116: 6727629.863 | CF116: 6912963.737 | CG116: 6990648.594 | CH116: 7006872.631 | CI116: 7060021.211 | CJ116: 7245355.084 | CK116: 7323039.941 | CL116: 7339263.978
C117: 3 | D117: Tigo | E117: 830114921 | F117: [Abonados] | G117: 4486225 | H117: 4613021 | I117: 4717900 | J117: 4787055 | K117: 4978110 | L117: 5139776 | M117: 5394307 | N117: 5609392 | O117: 5872244 | P117: 5989203 | Q117: 6426588 | R117: 6390618 | S117: 6733595 | T117: 7048667 | U117: 7387814 | V117: 7812481 | W117: 8331544 | X117: 8775619 | Y117: 9051003 | Z117: 9539534 | AA117: 9736984 | AB117: 10060480 | AC117: 9659081 | AD117: 8858780 | AE117: 9002400 | AF117: 9391996 | AG117: 9650034 | AH117: 9877451 | AI117: 9970576 | AJ117: 9967391 | AK117: 10008653 | AL117: 10160441 | AM117: 9826161 | AN117: 9963118 | AO117: 9462024 | AP117: 9804339 | AQ117: 9984620 | AR117: 9329848 | AS117: 9755437 | AT117: 10718770 | AU117: 11179985 | AV117: 10923631 | AW117: 11355405 | AX117: 11695605 | AY117: 11632312 | AZ117: 11400679 | BA117: 11637573 | BB117: 11751292 | BC117: 11621504 | BD117: 11578344 | BE117: 11275395 | BF117: 11256698 | BG117: 11042361 | BH117: 10974372 | BI117: 11546336 | BJ117: 12059357 | BK117: 12421224 | BL117: 12369276 | BM117: =IF(BL117>0,IF(_xlfn.FORECAST.ETS(BM$96,$K117:$BL117,$K$96:$BL$96,4)<0,0,_xlfn.FORECAST.ETS(BM$96,$K117:$BL117,$K$96:$BL$96,4)),0) -> 12534519 | BN117: 12538206.92 | BO117: 12741562.08 | BP117: 12852346.58 | BQ117: 13017589.57 | BR117: 13021277.49 | BS117: 13224632.66 | BT117: 13335417.15 | BU117: 13500660.15 | BV117: 13504348.07 | BW117: 13707703.23 | BX117: 13818487.73 | BY117: 13983730.72 | BZ117: 13987418.64 | CA117: 14190773.81 | CB117: 14301558.3 | CC117: 14466801.3 | CD117: 14470489.22 | CE117: 14673844.38 | CF117: 14784628.88 | CG117: 14949871.87 | CH117: 14953559.79 | CI117: 15156914.96 | CJ117: 15267699.45 | CK117: 15432942.45 | CL117: 15436630.37
C118: 4 | D118: Movistar | E118: 830122566 | F118: [Abonados] | G118: 7531441 | H118: 7420004 | I118: 8047568 | J118: 8626823 | K118: 9076423 | L118: 9439977 | M118: 9045172 | N118: 8675208 | O118: 8446865 | P118: 8490093 | Q118: 8369640 | R118: 8818526 | S118: 9078989 | T118: 8982442 | U118: 9313255 | V118: 9582614 | W118: 9633221 | X118: 9158571 | Y118: 9341847 | Z118: 9510905 | AA118: 9625081 | AB118: 9730236 | AC118: 10018983 | AD118: 10136807 | AE118: 9878442 | AF118: 10096816 | AG118: 10401082 | AH118: 10857671 | AI118: 11003849 | AJ118: 11298360 | AK118: 11469280 | AL118: 11880734 | AM118: 12015286 | AN118: 12097684 | AO118: 12064547 | AP118: 12003146 | AQ118: 11773388 | AR118: 11453582 | AS118: 11405662 | AT118: 11935335 | AU118: 12189416 | AV118: 12476977 | AW118: 13042515 | AX118: 13792471 | AY118: 13758842 | AZ118: 14534038 | BA118: 14609338 | BB118: 15088339 | BC118: 15088235 | BD118: 15528960 | BE118: 15869681 | BF118: 16000551 | BG118: 15389235 | BH118: 15747330 | BI118: 15622047 | BJ118: 15638053 | BK118: 15830190 | BL118: 16417375 | BM118: =IF(BL118>0,IF(_xlfn.FORECAST.ETS(BM$96,$K118:$BL118,$K$96:$BL$96,4)<0,0,_xlfn.FORECAST.ETS(BM$96,$K118:$BL118,$K$96:$BL$96,4)),0) -> 16487979.29 | BN118: 16748239.25 | BO118: 16724939.05 | BP118: 17032430.78 | BQ118: 17103346.11 | BR118: 17363606.06 | BS118: 17340305.86 | BT118: 17647797.59 | BU118: 17718712.92 | BV118: 17978972.87 | BW118: 17955672.67 | BX118: 18263164.4 | BY118: 18334079.73 | BZ118: 18594339.69 | CA118: 18571039.48 | CB118: 18878531.21 | CC118: 18949446.54 | CD118: 19209706.5 | CE118: 19186406.3 | CF118: 19493898.03 | CG118: 19564813.36 | CH118: 19825073.31 | CI118: 19801773.11 | CJ118: 20109264.84 | CK118: 20180180.17 | CL118: 20440440.12
C119: 5 | D119: ETB | E119: 899999115 | F119: [Abonados] | G119: 0 | H119: 0 | I119: 0 | J119: 0 | K119: 0 | L119: 0 | M119: 0 | N119: 0 | O119: 41654 | P119: 44065 | Q119: 44925 | R119: 46814 | S119: 47037 | T119: 34684 | U119: 0 | V119: 5789 | W119: 33475 | X119: 88336 | Y119: 138430 | Z119: 197714 | AA119: 214470 | AB119: 258305 | AC119: 309844 | AD119: 422516 | AE119: 468106 | AF119: 473634 | AG119: 373842 | AH119: 377356 | AI119: 349001 | AJ119: 351529 | AK119: 323246 | AL119: 287046 | AM119: 249645 | AN119: 258103 | AO119: 245554 | AP119: 228722 | AQ119: 209967 | AR119: 181904 | AS119: 148147 | AT119: 125434 | AU119: 121927 | AV119: 112014 | AW119: 107772 | AX119: 105247 | AY119: 107845 | AZ119: 108134 | BA119: 116022 | BB119: 122495 | BC119: 117877 | BD119: 120916 | BE119: 121479 | BF119: 117589 | BG119: 111447 | BH119: 109313 | BI119: 110513 | BJ119: 108158 | BK119: 107510 | BL119: 108609 | BM119: =IF(BL119>0,IF(_xlfn.FORECAST.ETS(BM$96,$K119:$BL119,$K$96:$BL$96,4)<0,0,_xlfn.FORECAST.ETS(BM$96,$K119:$BL119,$K$96:$BL$96,4)),0) -> 83370.44068 | BN119: 67486.58094 | BO119: 67660.93102 | BP119: 85140.34789 | BQ119: 59879.93689 | BR119: 43996.07715 | BS119: 44170.42724 | BT119: 61649.84411 | BU119: 36389.43311 | BV119: 20505.57337 | BW119: 20679.92345 | BX119: 38159.34033 | BY119: 12898.92933 | BZ119: 0 | CA119: 0 | CB119: 0 | CC119: 0 | CD119: 0 | CE119: 0 | CF119: 0 | CG119: 0 | CH119: 0 | CI119: 0 | CJ119: 0 | CK119: 0 | CL119: 0
C120: 6 | D120: OMVs | F120: [Abonados] | G120: 0 | H120: 166772 | I120: 208108 | J120: 248942 | K120: 256918 | L120: 271128 | M120: 306418 | N120: 328663 | O120: 349289 | P120: 497916 | Q120: 807950 | R120: 989612 | S120: 1460996 | T120: 1877180 | U120: 2393881 | V120: 2883587 | W120: 2986343 | X120: 3138102 | Y120: 3112323 | Z120: 3155547 | AA120: 3378246 | AB120: 3398944 | AC120: 3600304 | AD120: 3739651 | AE120: 3839590 | AF120: 3703657 | AG120: 3983504 | AH120: 4258168 | AI120: 4479557 | AJ120: 4455680 | AK120: 4606597 | AL120: 4907480 | AM120: 4910240 | AN120: 5105769 | AO120: 4445145 | AP120: 4764686 | AQ120: 4883152 | AR120: 4858259 | AS120: 4502513 | AT120: 4286587 | AU120: 4608393 | AV120: 4449124 | AW120: 4348735 | AX120: 4084009 | AY120: 4213601 | AZ120: 4363369 | BA120: 4421258 | BB120: 4456954 | BC120: 4655583 | BD120: 4714670 | BE120: 4901530 | BF120: 5250205 | BG120: 5209328 | BH120: 5412746 | BI120: 5580588 | BJ120: 5510531 | BK120: 5728774 | BL120: 5677143 | BM120: =IF(BL120>0,IF(_xlfn.FORECAST.ETS(BM$96,$K120:$BL120,$K$96:$BL$96,4)<0,0,_xlfn.FORECAST.ETS(BM$96,$K120:$BL120,$K$96:$BL$96,4)),0) -> 5814270.185 | BN120: 5897960.413 | BO120: 5955849.188 | BP120: 6042270.326 | BQ120: 6179397.511 | BR120: 6263087.739 | BS120: 6320976.514 | BT120: 6407397.652 | BU120: 6544524.837 | BV120: 6628215.065 | BW120: 6686103.84 | BX120: 6772524.978 | BY120: 6909652.163 | BZ120: 6993342.391 | CA120: 7051231.166 | CB120: 7137652.304 | CC120: 7274779.489 | CD120: 7358469.717 | CE120: 7416358.492 | CF120: 7502779.629 | CG120: 7639906.814 | CH120: 7723597.043 | CI120: 7781485.818 | CJ120: 7867906.955 | CK120: 8005034.14 | CL120: 8088724.369
C121: 7 | D121: libre | F121: [Abonados]
C122: 8 | D122: libre | F122: [Abonados]
C123: 9 | D123: libre | F123: [Abonados]
C124: 10 | D124: libre | F124: [Abonados]
C125: 11 | D125: libre | F125: [Abonados]
C126: 12 | D126: libre | F126: [Abonados]
C127: 13 | D127: libre | F127: [Abonados]
C128: 14 | D128: libre | F128: [Abonados]
C129: 15 | D129: libre | F129: [Abonados]
C130: T | D130: Total | F130: [Abonados] | G130: =SUM(G115:G129) -> 37727639 | H130: 38474285 | I130: 39593152 | J130: 37726510 | K130: 38430567 | L130: 39185386 | M130: 39513132 | N130: 39632788 | O130: 36919511 | P130: 37478130 | Q130: 38593576 | R130: 39542840 | S130: 40763026 | T130: 41258254 | U130: 42642112 | V130: 44287194 | W130: 45073218 | X130: 44875878 | Y130: 44986573 | Z130: 45878731 | AA130: 45810700 | AB130: 46236268 | AC130: 46561652 | AD130: 46572192 | AE130: 46876130 | AF130: 47401736 | AG130: 48306974 | AH130: 49537231 | AI130: 49995033 | AJ130: 49916142 | AK130: 50260899 | AL130: 51560803 | AM130: =SUM(AM115:AM129) -> 51521652 | AN130: 52125242 | AO130: 51262041 | AP130: 52260274 | AQ130: 52417630 | AR130: 50914369 | AS130: 51192965 | AT130: 53084317 | AU130: 54428156 | AV130: 54797362 | AW130: 56250927 | AX130: =SUM(AX115:AX129) -> 57548530 | AY130: 57764623 | AZ130: 58956697 | BA130: 59671902 | BB130: 60934954 | BC130: 61747326 | BD130: 62324727 | BE130: 63523882 | BF130: 65540469 | BG130: 65708153 | BH130: 66842708 | BI130: 68062748 | BJ130: 69357396 | BK130: 69923485 | BL130: 70277583 | BM130: 70972863.22 | BN130: 71998582.48 | BO130: 72397043.14 | BP130: 73129161.22 | BQ130: 73845179.96 | BR130: 74870899.23 | BS130: 75269359.88 | BT130: 76001477.96 | BU130: 76717496.71 | BV130: 77743215.97 | BW130: 78141676.63 | BX130: 78873794.7 | BY130: 79589813.45 | BZ130: 80618517.64 | CA130: 81016803.95 | CB130: 81731442.61 | CC130: 82472721.77 | CD130: 83514324.89 | CE130: 83912611.2 | CF130: 84627249.86 | CG130: 85368529.02 | CH130: 86410132.14 | CI130: 86808418.45 | CJ130: 87523057.1 | CK130: 88264336.26 | CL130: 89305939.39
B131: Total
C132: 1 | D132: =L.oper.nom -> Comcel | E132: 800153993 | F132: [Abonados] | G132: =SUM(G98,G115) -> 30014228 | H132: 30683164 | I132: 31197392 | J132: 28818791 | K132: 29019994 | L132: 29375269 | M132: 29961801 | N132: 30371083 | O132: 27660868 | P132: 27805195 | Q132: 28363736 | R132: 28977299 | S132: 29209759 | T132: 29109023 | U132: 29290815 | V132: 29775739 | W132: 29833618 | X132: 29370105 | Y132: 28931052 | Z132: 28973124 | AA132: 28339861 | AB132: 28259536 | AC132: 28488836 | AD132: 28953884 | AE132: 29153144 | AF132: 29224927 | AG132: 29112362 | AH132: 29352831 | AI132: 29401088 | AJ132: 29167782 | AK132: 29232888 | AL132: 29680853 | AM132: 29887101 | AN132: 30144119 | AO132: 30576718 | AP132: 31104070 | AQ132: 31243664 | AR132: 31534574 | AS132: 32023780 | AT132: 33008762 | AU132: 33461107 | AV132: 33843519 | AW132: 34355709 | AX132: 35061951 | AY132: 35709820 | AZ132: 36321883 | BA132: 36843718 | BB132: 37549954 | BC132: 38067851 | BD132: 38423895 | BE132: 38701128 | BF132: 39239608 | BG132: 39743902 | BH132: 40187192 | BI132: 40597250 | BJ132: 40952782 | BK132: 41249588 | BL132: 41677426 | BM132: 42106311.36 | BN132: 43101909.46 | BO132: 43493724.79 | BP132: 43716665.29 | BQ132: 44166163.28 | BR132: 45161761.38 | BS132: =SUM(BS98,BS115) -> 45553576.71 | BT132: 45776517.21 | BU132: 46226015.2 | BV132: 47221613.3 | BW132: 47613428.63 | BX132: 47836369.13 | BY132: 48285867.12 | BZ132: 49281465.22 | CA132: 49673280.55 | CB132: 49896221.05 | CC132: 50345719.04 | CD132: 51341317.14 | CE132: 51733132.47 | CF132: 51956072.97 | CG132: 52405570.96 | CH132: 53401169.06 | CI132: 53792984.39 | CJ132: 54015924.89 | CK132: 54465422.88 | CL132: 55461020.98
C133: 2 | D133: Partners | E133: 830016046 | F133: [Abonados] | G133: 0 | H133: 0 | I133: 0 | J133: 0 | K133: 0 | L133: 0 | M133: 0 | N133: 0 | O133: 0 | P133: 171000 | Q133: 181734 | R133: 193297 | S133: 203410 | T133: 206023 | U133: 245229 | V133: 267855 | W133: 312946 | X133: 433571 | Y133: 549960 | Z133: 696917 | AA133: 793782 | AB133: 977032 | AC133: 1098763 | AD133: 1205322 | AE133: 1350719 | AF133: 1422458 | AG133: 1819545 | AH133: 1982424 | AI133: 2015538 | AJ133: 2053260 | AK133: 2121034 | AL133: 2221618 | AM133: 2286642 | AN133: 2332396 | AO133: 2376084 | AP133: 2303177 | AQ133: 2250770 | AR133: 1477461 | AS133: 1390713 | AT133: 1252848 | AU133: 1300395 | AV133: 1671546 | AW133: 2202178 | AX133: 2380049 | AY133: 2252484 | AZ133: 2507564 | BA133: 2674536 | BB133: 3001004 | BC133: 3543831 | BD133: 3639594 | BE133: 4676717 | BF133: 5929955 | BG133: 6613658 | BH133: 6944288 | BI133: 7203977 | BJ133: 7887852 | BK133: 7419535 | BL133: 6826296 | BM133: 6919448.722 | BN133: 6998940.146 | BO133: 7074133.308 | BP133: 7301562.728 | BQ133: 7394715.45 | BR133: 7474206.874 | BS133: 7549400.036 | BT133: 7776829.455 | BU133: 7869982.178 | BV133: 7949473.601 | BW133: 8024666.763 | BX133: 8252096.183 | BY133: 8345248.906 | BZ133: 8424740.329 | CA133: 8499933.491 | CB133: 8727362.911 | CC133: 8820515.633 | CD133: 8900007.057 | CE133: 8975200.219 | CF133: 9202629.638 | CG133: 9295782.361 | CH133: 9375273.784 | CI133: 9450466.947 | CJ133: 9677896.366 | CK133: 9771049.089 | CL133: 9850540.512
C134: 3 | D134: Tigo | E134: 830114921 | F134: [Abonados] | G134: 5357226 | H134: 5515419 | I134: 5642405 | J134: 5741616 | K134: 5962897 | L134: 6151571 | M134: 6426037 | N134: 6662981 | O134: 6945030 | P134: 7115367 | Q134: 7606176 | R134: 7966358 | S134: 8307139 | T134: 8685185 | U134: 9072186 | V134: 9539878 | W134: 10051200 | X134: 10465076 | Y134: 10735955 | Z134: 11215267 | AA134: 11305143 | AB134: 11564163 | AC134: 11191436 | AD134: 10370985 | AE134: 10505521 | AF134: 10931125 | AG134: 11151197 | AH134: 11441311 | AI134: 11563717 | AJ134: 11563259 | AK134: 11621559 | AL134: 11812492 | AM134: 11555856 | AN134: 11722206 | AO134: 11243011 | AP134: 11641574 | AQ134: 11808184 | AR134: 11037030 | AS134: 11495643 | AT134: 12503286 | AU134: 13040917 | AV134: 13023574 | AW134: 13971756 | AX134: 14517046 | AY134: 14711493 | AZ134: 14711497 | BA134: 14851705 | BB134: 15014942 | BC134: 15068510 | BD134: 15167954 | BE134: 15029453 | BF134: 15201455 | BG134: 15076468 | BH134: 15143333 | BI134: 15981747 | BJ134: 16699949 | BK134: 16842735 | BL134: 16850197 | BM134: 17110707.67 | BN134: 17329341.25 | BO134: 17601549.92 | BP134: 17759591.72 | BQ134: 18020115.53 | BR134: 18238749.12 | BS134: 18510957.78 | BT134: 18668999.59 | BU134: 18929523.4 | BV134: 19148156.99 | BW134: 19420365.65 | BX134: 19578407.45 | BY134: 19838931.27 | BZ134: 20057564.85 | CA134: 20329773.52 | CB134: 20487815.32 | CC134: 20748339.14 | CD134: 20966972.72 | CE134: 21239181.39 | CF134: 21397223.19 | CG134: 21657747 | CH134: 21876380.59 | CI134: 22148589.25 | CJ134: 22306631.05 | CK134: 22567154.87 | CL134: 22785788.45
C135: 4 | D135: Movistar | E135: 830122566 | F135: [Abonados] | G135: 9970595 | H135: 9949354 | I135: 10700007 | J135: 11391072 | K135: 11932976 | L135: 12358536 | M135: 12004961 | N135: 11703632 | O135: 11516259 | P135: 11680143 | Q135: 11633488 | R135: 12121734 | S135: 12366278 | T135: 12281917 | U135: 12581553 | V135: 12842498 | W135: 12884915 | X135: 12413265 | Y135: 12655556 | Z135: 12896444 | AA135: 13057319 | AB135: 13236926 | AC135: 13579826 | AD135: 13725271 | AE135: 13507118 | AF135: 13768404 | AG135: 14129896 | AH135: 14590555 | AI135: 14716140 | AJ135: 15070660 | AK135: 15290583 | AL135: 15716216 | AM135: 15884252 | AN135: 16029072 | AO135: 16059954 | AP135: 16080371 | AQ135: 15913964 | AR135: 15608215 | AS135: 15737976 | AT135: 16297941 | AU135: 16709452 | AV135: 17209307 | AW135: 17907823 | AX135: 18777096 | AY135: 18866239 | AZ135: 19738064 | BA135: 20008969 | BB135: 20527789 | BC135: 20563409 | BD135: 21077017 | BE135: 21384128 | BF135: 21431295 | BG135: 20707917 | BH135: 20985368 | BI135: 20796388 | BJ135: 20772360 | BK135: 20992212 | BL135: 21667763 | BM135: 21931084.29 | BN135: 22248666.37 | BO135: 22255694.61 | BP135: 22633958.69 | BQ135: 22753342.55 | BR135: 23070924.63 | BS135: 23077952.88 | BT135: 23456216.96 | BU135: 23575600.82 | BV135: 23893182.9 | BW135: 23900211.14 | BX135: 24278475.22 | BY135: 24397859.09 | BZ135: 24715441.17 | CA135: 24722469.41 | CB135: 25100733.49 | CC135: 25220117.36 | CD135: 25537699.44 | CE135: 25544727.68 | CF135: 25922991.76 | CG135: 26042375.63 | CH135: 26359957.71 | CI135: 26366985.95 | CJ135: 26745250.03 | CK135: 26864633.9 | CL135: 27182215.98
C136: 5 | D136: ETB | E136: 899999115 | F136: [Abonados] | G136: 0 | H136: 0 | I136: 0 | J136: 0 | K136: 0 | L136: 0 | M136: 0 | N136: 0 | O136: 41654 | P136: 44065 | Q136: 44925 | R136: =SUM(R102,R119) -> 46814 | S136: 47037 | T136: 34684 | U136: 0 | V136: 21170 | W136: 70870 | X136: 162337 | Y136: 273725 | Z136: 390171 | AA136: 418270 | AB136: 490811 | AC136: 564585 | AD136: 689811 | AE136: 718776 | AF136: 697728 | AG136: 582392 | AH136: 594725 | AI136: 587956 | AJ136: 602273 | AK136: 555006 | AL136: 486397 | AM136: 444180 | AN136: 460519 | AO136: 415140 | AP136: 389297 | AQ136: 392763 | AR136: 351479 | AS136: 327552 | AT136: 323146 | AU136: 322089 | AV136: 294441 | AW136: 262112 | AX136: 235960 | AY136: 238221 | AZ136: 230267 | BA136: 248771 | BB136: 261522 | BC136: 271989 | BD136: 295211 | BE136: 314896 | BF136: 313398 | BG136: 306333 | BH136: 305090 | BI136: 302235 | BJ136: 248664 | BK136: 238360 | BL136: 234657 | BM136: 214414.5033 | BN136: 196381.0471 | BO136: 201939.079 | BP136: 222996.6992 | BQ136: 202723.0209 | BR136: 184689.5647 | BS136: 190247.5966 | BT136: 211305.2168 | BU136: 191031.5384 | BV136: 172998.0822 | BW136: 178556.1142 | BX136: 199613.7343 | BY136: 179340.056 | BZ136: 164291.5302 | CA136: 169675.2121 | CB136: 173253.4154 | CC136: 178240.148 | CD136: 176090.5515 | CE136: 181474.2334 | CF136: 185052.4367 | CG136: 190039.1694 | CH136: 187889.5729 | CI136: 193273.2547 | CJ136: 196851.458 | CK136: 201838.1907 | CL136: 199688.5942
C137: 6 | D137: OMVs | F137: [Abonados] | G137: =SUM(G103,G120) -> 0 | H137: 166772 | I137: 208108 | J137: 248942 | K137: 256918 | L137: 271128 | M137: 306418 | N137: 328663 | O137: 349289 | P137: 497916 | Q137: 807950 | R137: 989612 | S137: 1460996 | T137: 1877180 | U137: 2393881 | V137: 2883587 | W137: 2986343 | X137: 3138102 | Y137: 3112323 | Z137: 3155547 | AA137: 3378246 | AB137: 3398944 | AC137: 3600304 | AD137: 3739651 | AE137: 3839590 | AF137: 3703657 | AG137: 3983504 | AH137: 4258168 | AI137: 4479557 | AJ137: 4455680 | AK137: 4606597 | AL137: 4907480 | AM137: 4910240 | AN137: 5105769 | AO137: 4445145 | AP137: 4764686 | AQ137: 4883152 | AR137: 4858259 | AS137: 4502513 | AT137: 4286587 | AU137: 4608393 | AV137: 4449124 | AW137: 4348735 | AX137: 4084009 | AY137: 4213601 | AZ137: 4363369 | BA137: 4421258 | BB137: 4456954 | BC137: 4655583 | BD137: 4714670 | BE137: 4901530 | BF137: 5250205 | BG137: 5209328 | BH137: 5412746 | BI137: 5580588 | BJ137: 5510531 | BK137: 5728774 | BL137: 5677143 | BM137: 5814270.185 | BN137: 5897960.413 | BO137: 5955849.188 | BP137: 6042270.326 | BQ137: 6179397.511 | BR137: 6263087.739 | BS137: 6320976.514 | BT137: 6407397.652 | BU137: 6544524.837 | BV137: 6628215.065 | BW137: 6686103.84 | BX137: 6772524.978 | BY137: 6909652.163 | BZ137: 6993342.391 | CA137: 7051231.166 | CB137: 7137652.304 | CC137: 7274779.489 | CD137: 7358469.717 | CE137: 7416358.492 | CF137: 7502779.629 | CG137: 7639906.814 | CH137: 7723597.043 | CI137: 7781485.818 | CJ137: 7867906.955 | CK137: 8005034.14 | CL137: 8088724.369
C138: 7 | D138: libre | F138: [Abonados]
C139: 8 | D139: libre | F139: [Abonados]
C140: 9 | D140: libre | F140: [Abonados]
C141: 10 | D141: libre | F141: [Abonados]
C142: 11 | D142: libre | F142: [Abonados]
C143: 12 | D143: libre | F143: [Abonados]
C144: 13 | D144: libre | F144: [Abonados]
C145: 14 | D145: libre | F145: [Abonados]
C146: 15 | D146: libre | F146: [Abonados]
C147: T | D147: Total | F147: [Abonados] | G147: =SUM(G132:G146) -> 45342049 | H147: 46314709 | I147: 47747912 | J147: 46200421 | K147: 47172785 | L147: 48156504 | M147: 48699217 | N147: 49066359 | O147: 46513100 | P147: 47313686 | Q147: 48638009 | R147: 50295114 | S147: 51594619 | T147: 52194012 | U147: 53583664 | V147: 55330727 | W147: 56139892 | X147: 55982456 | Y147: 56258571 | Z147: 57327470 | AA147: 57292621 | AB147: 57927412 | AC147: 58523750 | AD147: 58684924 | AE147: 59074868 | AF147: 59748299 | AG147: 60778896 | AH147: 62220014 | AI147: 62763996 | AJ147: 62912914 | AK147: 63427667 | AL147: 64825056 | AM147: =SUM(AM132:AM146) -> 64968271 | AN147: 65794081 | AO147: 65116052 | AP147: 66283175 | AQ147: 66492497 | AR147: 64867018 | AS147: 65478177 | AT147: 67672570 | AU147: 69442353 | AV147: 70491511 | AW147: 73048313 | AX147: 75056111 | AY147: 75991858 | AZ147: 77872644 | BA147: 79048957 | BB147: 80812165 | BC147: 82171173 | BD147: 83318341 | BE147: 85007852 | BF147: 87365916 | BG147: 87657606 | BH147: 88978017 | BI147: 90462185 | BJ147: 92072138 | BK147: 92471204 | BL147: 92933482 | BM147: 94096236.73 | BN147: 95773198.68 | BO147: 96582890.89 | BP147: 97677045.45 | BQ147: 98716457.35 | BR147: 100393419.3 | BS147: 101203111.5 | BT147: 102297266.1 | BU147: 103336678 | BV147: 105013639.9 | BW147: 105823332.1 | BX147: 106917486.7 | BY147: 107956898.6 | BZ147: 109636845.5 | CA147: 110446363.3 | CB147: 111523038.5 | CC147: 112587710.8 | CD147: 114280556.6 | CE147: 115090074.5 | CF147: 116166749.6 | CG147: 117231421.9 | CH147: 118924267.8 | CI147: 119733785.6 | CJ147: 120810460.8 | CK147: 121875133.1 | CL147: 123567978.9
AT148: =AT147/AD147 -> 1.15315085
B149: Gráficos | G149: 2011-03-01 | H149: 2011-06-01 | I149: 2011-09-01 | J149: 2011-12-01 | K149: 2012-03-01 | L149: 2012-06-01 | M149: 2012-09-01 | N149: 2012-12-01 | O149: 2013-03-01 | P149: 2013-06-01 | Q149: 2013-09-01 | R149: 2013-12-01 | S149: 2014-03-01 | T149: 2014-06-01 | U149: 2014-09-01 | V149: 2014-12-01 | W149: 2015-03-01 | X149: 2015-06-01 | Y149: 2015-09-01 | Z149: 2015-12-01 | AA149: 2016-03-01 | AB149: 2016-06-01 | AC149: 2016-09-01 | AD149: 2016-12-01 | AE149: 2017-03-01 | AF149: 2017-06-01 | AG149: 2017-09-01 | AH149: 2017-12-01 | AI149: 2018-03-01 | AJ149: 2018-06-01 | AK149: 2018-09-01 | AL149: 2018-12-01 | AM149: 2019-03-01 | AN149: 2019-06-01 | AO149: 2019-09-01 | AP149: 2019-12-01 | AQ149: 2020-03-01 | AR149: 2020-06-01 | AS149: 2020-09-01 | AT149: 2020-12-01 | AU149: 2021-03-01 | AV149: 2021-06-01 | AW149: 2021-09-01 | AX149: 2021-12-01 | AY149: 2022-03-01 | AZ149: 2022-06-01 | BA149: 2022-09-01 | BB149: 2022-12-01 | BC149: 2023-03-01 | BD149: 2023-06-01 | BE149: 2023-09-01 | BF149: 2023-12-01 | BG149: 2024-03-01 | BH149: 2024-06-01 | BI149: 2024-09-01 | BJ149: 2024-12-01 | BK149: 2025-03-01 | BL149: 2025-06-01 | BM149: 2025-09-01 | BN149: 2025-12-01 | BO149: 2026-03-01 | BP149: 2026-06-01 | BQ149: 2026-09-01 | BR149: 2026-12-01 | BS149: 2027-03-01 | BT149: 2027-06-01 | BU149: 2027-09-01 | BV149: 2027-12-01 | BW149: 2028-03-01 | BX149: 2028-06-01 | BY149: 2028-09-01 | BZ149: 2028-12-01 | CA149: 2029-03-01 | CB149: 2029-06-01 | CC149: 2029-09-01 | CD149: 2029-12-01 | CE149: 2030-03-01 | CF149: 2030-06-01 | CG149: 2030-09-01 | CH149: 2030-12-01 | CI149: 2031-03-01 | CJ149: 2031-06-01 | CK149: 2031-09-01 | CL149: 2031-12-01
D150: Abonados de voz Pospago | F150: [Abonados] | G150: =G113 -> 7614410 | H150: 7840424 | I150: 8154760 | J150: 8473911 | K150: 8742218 | L150: 8971118 | M150: 9186085 | N150: 9433571 | O150: 9593589 | P150: 9835556 | Q150: 10044433 | R150: 10752274 | S150: 10831593 | T150: 10935758 | U150: 10941552 | V150: 11043533 | W150: 11066674 | X150: 11106578 | Y150: 11271998 | Z150: 11448739 | AA150: 11481921 | AB150: 11691144 | AC150: 11962098 | AD150: 12112732 | AE150: 12198738 | AF150: 12346563 | AG150: 12471922 | AH150: 12682783 | AI150: 12768963 | AJ150: 12996772 | AK150: 13166768 | AL150: 13264253 | AM150: 13446619 | AN150: 13668839 | AO150: 13854011 | AP150: 14022901 | AQ150: 14074867 | AR150: 13952649 | AS150: 14285212 | AT150: 14588253 | AU150: 15014197 | AV150: 15694149 | AW150: 16797386 | AX150: 17507581 | AY150: 18227235 | AZ150: 18915947 | BA150: 19377055 | BB150: 19877211 | BC150: 20423847 | BD150: 20993614 | BE150: 21483970 | BF150: 21825447 | BG150: 21949453 | BH150: 22135309 | BI150: 22399437 | BJ150: 22753166 | BK150: 23098073.42 | BL150: 23273873.73 | BM150: 23123373.51 | BN150: 23774616.2 | BO150: 24185847.75 | BP150: 24547884.23 | BQ150: 24871277.39 | BR150: 25522520.08 | BS150: =BS113 -> 25933751.63 | BT150: 26295788.12 | BU150: 26619181.27 | BV150: 27270423.96 | BW150: 27681655.51 | BX150: 28043692 | BY150: 28367085.16 | BZ150: 29018327.85 | CA150: 29429559.4 | CB150: 29791595.89 | CC150: 30114989.04 | CD150: 30766231.73 | CE150: 31177463.28 | CF150: 31539499.77 | CG150: 31862892.93 | CH150: 32514135.62 | CI150: 32925367.16 | CJ150: 33287403.65 | CK150: 33610796.81 | CL150: 34262039.5
D151: Abonados de voz Prepago | F151: [Abonados] | G151: =G130 -> 37727639 | H151: 38474285 | I151: 39593152 | J151: 37726510 | K151: 38430567 | L151: 39185386 | M151: 39513132 | N151: 39632788 | O151: 36919511 | P151: 37478130 | Q151: 38593576 | R151: 39542840 | S151: 40763026 | T151: 41258254 | U151: 42642112 | V151: 44287194 | W151: 45073218 | X151: 44875878 | Y151: 44986573 | Z151: 45878731 | AA151: 45810700 | AB151: 46236268 | AC151: 46561652 | AD151: 46572192 | AE151: 46876130 | AF151: 47401736 | AG151: 48306974 | AH151: 49537231 | AI151: 49995033 | AJ151: 49916142 | AK151: 50260899 | AL151: 51560803 | AM151: 51521652 | AN151: 52125242 | AO151: 51262041 | AP151: 52260274 | AQ151: 52417630 | AR151: 50914369 | AS151: 51192965 | AT151: 53084317 | AU151: 54428156 | AV151: 54797362 | AW151: 56250927 | AX151: 57548530 | AY151: 57764623 | AZ151: 58956697 | BA151: 59671902 | BB151: 60934954 | BC151: 61747326 | BD151: 62324727 | BE151: 63523882 | BF151: 65540469 | BG151: 65708153 | BH151: 66842708 | BI151: 68062748 | BJ151: 69357396 | BK151: 69923485 | BL151: 70277583 | BM151: 70972863.22 | BN151: =BN130 -> 71998582.48 | BO151: =BO130 -> 72397043.14 | BP151: 73129161.22 | BQ151: 73845179.96 | BR151: 74870899.23 | BS151: 75269359.88 | BT151: 76001477.96 | BU151: 76717496.71 | BV151: 77743215.97 | BW151: 78141676.63 | BX151: 78873794.7 | BY151: 79589813.45 | BZ151: 80618517.64 | CA151: 81016803.95 | CB151: 81731442.61 | CC151: 82472721.77 | CD151: 83514324.89 | CE151: 83912611.2 | CF151: 84627249.86 | CG151: 85368529.02 | CH151: 86410132.14 | CI151: 86808418.45 | CJ151: 87523057.1 | CK151: 88264336.26 | CL151: 89305939.39
D152: Abonados de voz Mercado | F152: [Abonados] | G152: =G147 -> 45342049 | H152: 46314709 | I152: 47747912 | J152: 46200421 | K152: 47172785 | L152: 48156504 | M152: 48699217 | N152: 49066359 | O152: 46513100 | P152: 47313686 | Q152: 48638009 | R152: 50295114 | S152: 51594619 | T152: 52194012 | U152: 53583664 | V152: 55330727 | W152: 56139892 | X152: 55982456 | Y152: 56258571 | Z152: 57327470 | AA152: 57292621 | AB152: 57927412 | AC152: 58523750 | AD152: 58684924 | AE152: 59074868 | AF152: 59748299 | AG152: 60778896 | AH152: 62220014 | AI152: 62763996 | AJ152: 62912914 | AK152: 63427667 | AL152: 64825056 | AM152: 64968271 | AN152: 65794081 | AO152: 65116052 | AP152: 66283175 | AQ152: 66492497 | AR152: 64867018 | AS152: 65478177 | AT152: 67672570 | AU152: 69442353 | AV152: 70491511 | AW152: 73048313 | AX152: 75056111 | AY152: 75991858 | AZ152: 77872644 | BA152: 79048957 | BB152: 80812165 | BC152: 82171173 | BD152: 83318341 | BE152: 85007852 | BF152: 87365916 | BG152: 87657606 | BH152: 88978017 | BI152: 90462185 | BJ152: 92072138 | BK152: 92471204 | BL152: 92933482 | BM152: 94096236.73 | BN152: 95773198.68 | BO152: 96582890.89 | BP152: 97677045.45 | BQ152: 98716457.35 | BR152: 100393419.3 | BS152: =BS147 -> 101203111.5 | BT152: 102297266.1 | BU152: 103336678 | BV152: 105013639.9 | BW152: 105823332.1 | BX152: 106917486.7 | BY152: 107956898.6 | BZ152: 109636845.5 | CA152: 110446363.3 | CB152: 111523038.5 | CC152: 112587710.8 | CD152: 114280556.6 | CE152: 115090074.5 | CF152: 116166749.6 | CG152: 117231421.9 | CH152: 118924267.8 | CI152: 119733785.6 | CJ152: 120810460.8 | CK152: 121875133.1 | CL152: 123567978.9
D154: Población | F154: =Parámetros!P132 -> 45509584 | G154: =F154+(J154-F154)/4 -> 45643338.25 | H154: =G154+(J154-F154)/4 -> 45777092.5 | I154: =H154+(J154-F154)/4 -> 45910846.75 | J154: =Parámetros!Q132 -> 46044601 | K154: =J154+(N154-J154)/4 -> 46178906.5 | L154: =K154+(N154-J154)/4 -> 46313212 | M154: =L154+(N154-J154)/4 -> 46447517.5 | N154: =Parámetros!R132 -> 46581823 | O154: =N154+(R154-N154)/4 -> 46716639.5 | P154: =O154+(R154-N154)/4 -> 46851456 | Q154: =P154+(R154-N154)/4 -> 46986272.5 | R154: =Parámetros!S132 -> 47121089 | S154: =R154+(V154-R154)/4 -> 47256263.5 | T154: =S154+(V154-R154)/4 -> 47391438 | U154: =T154+(V154-R154)/4 -> 47526612.5 | V154: =Parámetros!T132 -> 47661787 | W154: =V154+(Z154-V154)/4 -> 47797191.5 | X154: =W154+(Z154-V154)/4 -> 47932596 | Y154: =X154+(Z154-V154)/4 -> 48068000.5 | Z154: =Parámetros!U132 -> 48203405 | AA154: =Z154+(AD154-Z154)/4 -> 48339480.75 | AB154: =AA154+(AD154-Z154)/4 -> 48475556.5 | AC154: =AB154+(AD154-Z154)/4 -> 48611632.25 | AD154: =Parámetros!V132 -> 48747708 | AE154: =AD154+(AH154-AD154)/4 -> 48883683.25 | AF154: =AE154+(AH154-AD154)/4 -> 49019658.5 | AG154: =AF154+(AH154-AD154)/4 -> 49155633.75 | AH154: =Parámetros!W132 -> 49291609 | AI154: =AH154+(AL154-AH154)/4 -> 49427266.75 | AJ154: =AI154+(AL154-AH154)/4 -> 49562924.5 | AK154: =AJ154+(AL154-AH154)/4 -> 49698582.25 | AL154: =Parámetros!X132 -> 49834240 | AM154: =AL154+(AP154-AL154)/4 -> 49969299.5 | AN154: =AM154+(AP154-AL154)/4 -> 50104359 | AO154: =AN154+(AP154-AL154)/4 -> 50239418.5 | AP154: =Parámetros!Y132 -> 50374478 | AQ154: =AP154+(AT154-AP154)/4 -> 50508795.25 | AR154: =AQ154+(AT154-AP154)/4 -> 50643112.5 | AS154: =AR154+(AT154-AP154)/4 -> 50777429.75 | AT154: =Parámetros!Z132 -> 50911747 | AU154: =AT154+(AX154-AT154)/4 -> 51046171 | AV154: =AU154+(AX154-AT154)/4 -> 51180595 | AW154: =AV154+(AX154-AT154)/4 -> 51315019 | AX154: =Parámetros!AA132 -> 51449443 | AY154: =AX154+(BB154-AX154)/4 -> 51583841.5 | AZ154: =AY154+(BB154-AX154)/4 -> 51718240 | BA154: =AZ154+(BB154-AX154)/4 -> 51852638.5 | BB154: =Parámetros!AB132 -> 51987037 | BC154: =BB154+(BF154-BB154)/4 -> 52121437 | BD154: =BC154+(BF154-BB154)/4 -> 52255837 | BE154: =BD154+(BF154-BB154)/4 -> 52390237 | BF154: =Parámetros!AC132 -> 52524637 | BG154: =BF154+(BJ154-BF154)/4 -> 52659035.5 | BH154: =BG154+(BJ154-BF154)/4 -> 52793434 | BI154: =BH154+(BJ154-BF154)/4 -> 52927832.5 | BJ154: =Parámetros!AD132 -> 53062231 | BK154: =BJ154+(BN154-BJ154)/4 -> 53196631.5 | BL154: =BK154+(BN154-BJ154)/4 -> 53331032 | BM154: =BL154+(BN154-BJ154)/4 -> 53465432.5 | BN154: =Parámetros!AE132 -> 53599833 | BO154: =BN154+(BR154-BN154)/4 -> 53734232.25 | BP154: =BO154+(BR154-BN154)/4 -> 53868631.5 | BQ154: =BP154+(BR154-BN154)/4 -> 54003030.75 | BR154: 54137430 | BS154: =BR154+(BV154-BR154)/4 -> 54271828.75 | BT154: =BS154+(BV154-BR154)/4 -> 54406227.5 | BU154: =BT154+(BV154-BR154)/4 -> 54540626.25 | BV154: 54675025 | BW154: =BV154+(BZ154-BV154)/4 -> 54809424 | BX154: =BW154+(BZ154-BV154)/4 -> 54943823 | BY154: =BX154+(BZ154-BV154)/4 -> 55078222 | BZ154: 55212621 | CA154: =BZ154+(CD154-BZ154)/4 -> 55347020 | CB154: =CA154+(CD154-BZ154)/4 -> 55481419 | CC154: =CB154+(CD154-BZ154)/4 -> 55615818 | CD154: 55750217 | CE154: =CD154+(CH154-CD154)/4 -> 55884617 | CF154: =CE154+(CH154-CD154)/4 -> 56019017 | CG154: =CF154+(CH154-CD154)/4 -> 56153417 | CH154: 56287817 | CI154: =CH154+(CL154-CH154)/4 -> 56422216.75 | CJ154: =CI154+(CL154-CH154)/4 -> 56556616.5 | CK154: =CJ154+(CL154-CH154)/4 -> 56691016.25 | CL154: 56825416
D155: Penetración | G155: =+G152/G154 -> 0.9933990531 | H155: 1.011744226 | I155: 1.040013752 | J155: 1.00338411 | K155: 1.021522348 | L155: 1.039800565 | M155: 1.048478361 | N155: 1.053337028 | O155: 0.9956431049 | P155: 1.009865862 | Q155: 1.035153597 | R155: 1.067358906 | S155: 1.091804878 | T155: 1.101338432 | U155: 1.127445471 | V155: 1.160903325 | W155: 1.174543739 | X155: 1.167941248 | Y155: 1.17039549 | Z155: 1.189282583 | AA155: 1.185213828 | AB155: 1.194981887 | AC155: 1.203904236 | AD155: 1.203849912 | AE155: 1.20847825 | AF155: 1.21886404 | AG155: 1.236458395 | AH155: 1.262284094 | AI155: 1.269825344 | AJ155: 1.269354354 | AK155: 1.27624701 | AL155: 1.300813577 | AM155: 1.300163734 | AN155: 1.313140859 | AO155: 1.296114763 | AP155: 1.315808672 | AQ155: 1.316453831 | AR155: 1.280865547 | AS155: 1.289513418 | AT155: 1.329213276 | AU155: 1.360383191 | AV155: 1.37730933 | AW155: 1.42352696 | AX155: 1.458832334 | AY155: 1.473171749 | AZ155: 1.505709475 | BA155: 1.524492471 | BB155: 1.554467607 | BC155: 1.576533145 | BD155: 1.594431279 | BE155: 1.622589568 | BF155: 1.663332124 | BG155: 1.664626121 | BH155: 1.685399306 | BI155: 1.70916096 | BJ155: 1.735172763 | BK155: 1.738290591 | BL155: 1.74257798 | BM155: 1.759945302 | BN155: 1.786818975 | BO155: 1.797418272 | BP155: 1.813245348 | BQ155: 1.827979948 | BR155: 1.854417901 | BS155: =+BS152/BS154 -> 1.86474482 | BT155: 1.880249206 | BU155: 1.894673477 | BV155: 1.920687552 | BW155: 1.930750671 | BX155: 1.945941889 | BY155: 1.960065062 | BZ155: 1.985720719 | CA155: 1.995525023 | CB155: 2.010097083 | CC155: 2.024382898 | CD155: 2.049867476 | CE155: 2.059423159 | CF155: 2.073702036 | CG155: 2.087698812 | CH155: 2.112788772 | CI155: 2.122103535 | CJ155: 2.136097741 | CK155: 2.149813871 | CL155: 2.174519565
C179: id | D179: Operador | E179: Unidad | F179: 2011-12-01 | G179: 2012-01-01 | H179: 2012-02-01 | I179: 2012-03-01 | J179: 2012-04-01 | K179: 2012-05-01 | L179: 2012-06-01 | M179: 2012-07-01 | N179: 2012-08-01 | O179: 2012-09-01 | P179: 2012-10-01 | Q179: 2012-11-01 | R179: 2012-12-01 | S179: 2013-01-01 | T179: 2013-02-01 | U179: 2013-03-01 | V179: 2013-04-01 | W179: 2013-05-01 | X179: 2013-06-01 | Y179: 2013-07-01 | Z179: 2013-08-01 | AA179: 2013-09-01 | AB179: 2013-10-01 | AC179: 2013-11-01 | AD179: 2013-12-01 | AE179: 2014-01-01 | AF179: 2014-02-01 | AG179: 2014-03-01 | AH179: 2014-04-01 | AI179: 2014-05-01 | AJ179: 2014-06-01 | AK179: 2014-07-01 | AL179: 2014-08-01 | AM179: 2014-09-01 | AN179: 2014-10-01 | AO179: 2014-11-01 | AP179: 2014-12-01 | AQ179: 2015-01-01 | AR179: 2015-02-01 | AS179: 2015-03-01 | AT179: 2015-04-01 | AU179: 2015-05-01 | AV179: 2015-06-01 | AW179: 2015-07-01 | AX179: 2015-08-01 | AY179: 2015-09-01 | AZ179: 2015-10-01 | BA179: 2015-11-01 | BB179: 2015-12-01 | BC179: 2016-01-01 | BD179: 2016-02-01 | BE179: 2016-03-01 | BF179: 2016-04-01 | BG179: 2016-05-01 | BH179: 2016-06-01 | BI179: 2016-07-01 | BJ179: 2016-08-01 | BK179: 2016-09-01 | BL179: 2016-10-01 | BM179: 2016-11-01 | BN179: 2016-12-01 | BO179: 2017-01-01 | BP179: 2017-02-01 | BQ179: 2017-03-01 | BR179: 2017-04-01 | BS179: 2017-05-01 | BT179: 2017-06-01 | BU179: 2017-07-01 | BV179: 2017-08-01 | BW179: 2017-09-01 | BX179: 2017-10-01 | BY179: 2017-11-01 | BZ179: 2017-12-01 | CA179: 2018-01-01 | CB179: 2018-02-01 | CC179: 2018-03-01 | CD179: 2018-04-01 | CE179: 2018-05-01 | CF179: 2018-06-01 | CG179: 2018-07-01 | CH179: 2018-08-01 | CI179: 2018-09-01 | CJ179: 2018-10-01 | CK179: 2018-11-01 | CL179: 2018-12-01 | CM179: 2019-01-01 | CN179: 2019-02-01 | CO179: 2019-03-01 | CP179: 2019-04-01 | CQ179: 2019-05-01 | CR179: 2019-06-01 | CS179: 2019-07-01 | CT179: 2019-08-01 | CU179: 2019-09-01 | CV179: 2019-10-01 | CW179: 2019-11-01 | CX179: 2019-12-01 | CY179: 2020-01-01 | CZ179: 2020-02-01 | DA179: 2020-03-01 | DB179: 2020-04-01 | DC179: 2020-05-01 | DD179: 2020-06-01 | DE179: 2020-07-01 | DF179: 2020-08-01 | DG179: 2020-09-01 | DH179: 2020-10-01 | DI179: 2020-11-01 | DJ179: 2020-12-01 | DK179: 2021-01-01 | DL179: 2021-02-01 | DM179: 2021-03-01 | DN179: 2021-04-01 | DO179: 2021-05-01 | DP179: 2021-06-01 | DQ179: 2021-07-01 | DR179: 2021-08-01 | DS179: 2021-09-01 | DT179: 2021-10-01 | DU179: 2021-11-01 | DV179: 2021-12-01 | DW179: 2022-01-01 | DX179: 2022-02-01 | DY179: 2022-03-01 | DZ179: 2022-04-01 | EA179: 2022-05-01 | EB179: 2022-06-01 | EC179: 2022-07-01 | ED179: 2022-08-01 | EE179: 2022-09-01 | EF179: 2022-10-01 | EG179: 2022-11-01 | EH179: 2022-12-01 | EI179: 2023-01-01 | EJ179: 2023-02-01 | EK179: 2023-03-01 | EL179: 2023-04-01 | EM179: 2023-05-01 | EN179: 2023-06-01 | EO179: 2023-07-01 | EP179: 2023-08-01 | EQ179: 2023-09-01 | ER179: 2023-10-01 | ES179: 2023-11-01 | ET179: 2023-12-01 | EU179: 2024-01-01 | EV179: 2024-02-01 | EW179: 2024-03-01 | EX179: 2024-04-01 | EY179: 2024-05-01 | EZ179: 2024-06-01 | FA179: 2024-07-01 | FB179: 2024-08-01 | FC179: 2024-09-01 | FD179: 2024-10-01 | FE179: 2024-11-01 | FF179: 2024-12-01 | FG179: 2025-01-01 | FH179: 2025-02-01 | FI179: 2025-03-01 | FJ179: 2025-04-01 | FK179: 2025-05-01 | FL179: 2025-06-01 | FM179: 2025-07-01 | FN179: 2025-08-01 | FO179: 2025-09-01 | FP179: 2025-10-01 | FQ179: 2025-11-01 | FR179: 2025-12-01 | FS179: 2026-01-01 | FT179: 2026-02-01 | FU179: 2026-03-01 | FV179: 2026-04-01 | FW179: 2026-05-01 | FX179: 2026-06-01 | FY179: 2026-07-01 | FZ179: 2026-08-01 | GA179: 2026-09-01 | GB179: 2026-10-01 | GC179: 2026-11-01 | GD179: 2026-12-01 | GE179: 2027-01-01 | GF179: 2027-02-01 | GG179: 2027-03-01 | GH179: 2027-04-01 | GI179: 2027-05-01 | GJ179: 2027-06-01 | GK179: 2027-07-01 | GL179: 2027-08-01 | GM179: 2027-09-01 | GN179: 2027-10-01 | GO179: 2027-11-01 | GP179: 2027-12-01 | GQ179: 2028-01-01 | GR179: 2028-02-01 | GS179: 2028-03-01 | GT179: 2028-04-01 | GU179: 2028-05-01 | GV179: 2028-06-01 | GW179: 2028-07-01 | GX179: 2028-08-01 | GY179: 2028-09-01 | GZ179: 2028-10-01 | HA179: 2028-11-01 | HB179: 2028-12-01 | HC179: 2029-01-01 | HD179: 2029-02-01 | HE179: 2029-03-01 | HF179: 2029-04-01 | HG179: 2029-05-01 | HH179: 2029-06-01 | HI179: 2029-07-01 | HJ179: 2029-08-01 | HK179: 2029-09-01 | HL179: 2029-10-01 | HM179: 2029-11-01 | HN179: 2029-12-01 | HO179: 2030-01-01 | HP179: 2030-02-01 | HQ179: 2030-03-01 | HR179: 2030-04-01 | HS179: 2030-05-01 | HT179: 2030-06-01 | HU179: 2030-07-01 | HV179: 2030-08-01 | HW179: 2030-09-01 | HX179: 2030-10-01 | HY179: 2030-11-01 | HZ179: 2030-12-01 | IA179: 2031-01-01 | IB179: 2031-02-01 | IC179: 2031-03-01 | ID179: 2031-04-01 | IE179: 2031-05-01 | IF179: 2031-06-01 | IG179: 2031-07-01 | IH179: 2031-08-01 | II179: 2031-09-01 | IJ179: 2031-10-01 | IK179: 2031-11-01 | IL179: 2031-12-01
C180: 1 | D180: Abonados de voz Pospago | E180: [Abonados] | F180: =F212 -> 8473911 | G180: 8563346.667 | H180: 8652782.333 | I180: 8742218 | J180: 8818518 | K180: 8894818 | L180: 8971118 | M180: 9042773.667 | N180: 9114429.333 | O180: 9186085 | P180: 9268580.333 | Q180: 9351075.667 | R180: 9433571 | S180: 9486910.333 | T180: 9540249.667 | U180: 9593589 | V180: 9674244.667 | W180: 9754900.333 | X180: 9835556 | Y180: 9905181.667 | Z180: 9974807.333 | AA180: 10044433 | AB180: 10280380 | AC180: 10516327 | AD180: 10752274 | AE180: 10778713.67 | AF180: 10805153.33 | AG180: 10831593 | AH180: 10866314.67 | AI180: 10901036.33 | AJ180: 10935758 | AK180: 10937689.33 | AL180: 10939620.67 | AM180: 10941552 | AN180: 10975545.67 | AO180: 11009539.33 | AP180: 11043533 | AQ180: 11051246.67 | AR180: 11058960.33 | AS180: 11066674 | AT180: 11079975.33 | AU180: 11093276.67 | AV180: 11106578 | AW180: 11161718 | AX180: 11216858 | AY180: 11271998 | AZ180: 11330911.67 | BA180: 11389825.33 | BB180: 11448739 | BC180: 11459799.67 | BD180: 11470860.33 | BE180: 11481921 | BF180: 11551662 | BG180: 11621403 | BH180: 11691144 | BI180: 11781462 | BJ180: 11871780 | BK180: 11962098 | BL180: 12012309.33 | BM180: 12062520.67 | BN180: 12112732 | BO180: 12141400.67 | BP180: 12170069.33 | BQ180: 12198738 | BR180: =BR212 -> 12248013 | BS180: 12297288 | BT180: 12346563 | BU180: 12388349.33 | BV180: 12430135.67 | BW180: 12471922 | BX180: 12542209 | BY180: 12612496 | BZ180: 12682783 | CA180: 12711509.67 | CB180: 12740236.33 | CC180: 12768963 | CD180: 12844899.33 | CE180: 12920835.67 | CF180: 12996772 | CG180: 13053437.33 | CH180: 13110102.67 | CI180: 13166768 | CJ180: 13199263 | CK180: 13231758 | CL180: 13264253 | CM180: 13325041.67 | CN180: 13385830.33 | CO180: 13446619 | CP180: 13520692.33 | CQ180: 13594765.67 | CR180: 13668839 | CS180: 13730563 | CT180: 13792287 | CU180: 13854011 | CV180: 13910307.67 | CW180: 13966604.33 | CX180: 14022901 | CY180: 14040223 | CZ180: 14057545 | DA180: 14074867 | DB180: 14034127.67 | DC180: 13993388.33 | DD180: 13952649 | DE180: 14063503.33 | DF180: 14174357.67 | DG180: 14285212 | DH180: 14386225.67 | DI180: 14487239.33 | DJ180: 14588253 | DK180: 14730234.33 | DL180: 14872215.67 | DM180: 15014197 | DN180: 15240847.67 | DO180: 15467498.33 | DP180: 15694149 | DQ180: 16061894.67 | DR180: 16429640.33 | DS180: 16797386 | DT180: 17034117.67 | DU180: 17270849.33 | DV180: 17507581 | DW180: 17747465.67 | DX180: 17987350.33 | DY180: 18227235 | DZ180: 18456805.67 | EA180: 18686376.33 | EB180: 18915947 | EC180: 19069649.67 | ED180: =ED212 -> 19223352.33 | EE180: 19377055 | EF180: 19543773.67 | EG180: 19710492.33 | EH180: 19877211 | EI180: 20059423 | EJ180: 20241635 | EK180: 20423847 | EL180: 20613769.33 | EM180: 20803691.67 | EN180: 20993614 | EO180: 21157066 | EP180: 21320518 | EQ180: 21483970 | ER180: 21597795.67 | ES180: 21711621.33 | ET180: 21825447 | EU180: 21866782.33 | EV180: 21908117.67 | EW180: 21949453 | EX180: 22011405 | EY180: 22073357 | EZ180: 22135309 | FA180: 22223351.67 | FB180: 22311394.33 | FC180: 22399437 | FD180: 22504538.67 | FE180: 22609640.33 | FF180: 22714742 | FG180: 22659067.67 | FH180: 22603393.33 | FI180: 22547719 | FJ180: 22583779 | FK180: 22619839 | FL180: 22655899 | FM180: 22811723.84 | FN180: 22967548.67 | FO180: 23123373.51 | FP180: 23340454.4 | FQ180: 23557535.3 | FR180: 23774616.2 | FS180: 23911693.38 | FT180: 24048770.56 | FU180: 24185847.75 | FV180: 24306526.58 | FW180: 24427205.4 | FX180: 24547884.23 | FY180: 24655681.95 | FZ180: 24763479.67 | GA180: 24871277.39 | GB180: 25088358.29 | GC180: 25305439.18 | GD180: 25522520.08 | GE180: 25659597.26 | GF180: 25796674.45 | GG180: 25933751.63 | GH180: 26054430.46 | GI180: 26175109.29 | GJ180: 26295788.12 | GK180: 26403585.84 | GL180: 26511383.56 | GM180: 26619181.27 | GN180: 26836262.17 | GO180: 27053343.07 | GP180: =GP212 -> 27270423.96 | GQ180: 27407501.15 | GR180: 27544578.33 | GS180: 27681655.51 | GT180: 27802334.34 | GU180: 27923013.17 | GV180: 28043692 | GW180: 28151489.72 | GX180: 28259287.44 | GY180: 28367085.16 | GZ180: 28584166.05 | HA180: 28801246.95 | HB180: 29018327.85 | HC180: 29155405.03 | HD180: 29292482.21 | HE180: 29429559.4 | HF180: 29550238.23 | HG180: 29670917.06 | HH180: 29791595.89 | HI180: 29899393.6 | HJ180: 30007191.32 | HK180: 30114989.04 | HL180: 30332069.94 | HM180: 30549150.84 | HN180: 30766231.73 | HO180: 30903308.91 | HP180: 31040386.1 | HQ180: 31177463.28 | HR180: 31298142.11 | HS180: 31418820.94 | HT180: 31539499.77 | HU180: 31647297.49 | HV180: 31755095.21 | HW180: 31862892.93 | HX180: 32079973.82 | HY180: 32297054.72 | HZ180: 32514135.62 | IA180: 32651212.8 | IB180: 32788289.98 | IC180: 32925367.16 | ID180: 33046045.99 | IE180: 33166724.82 | IF180: 33287403.65 | IG180: 33395201.37 | IH180: 33502999.09 | II180: 33610796.81 | IJ180: 33827877.71 | IK180: 34044958.6 | IL180: 34262039.5
C181: 2 | D181: Abonados de voz Prepago | E181: [Abonados] | F181: =F229 -> 37726510 | G181: 37961195.67 | H181: 38195881.33 | I181: 38430567 | J181: 38682173.33 | K181: 38933779.67 | L181: 39185386 | M181: 39294634.67 | N181: 39403883.33 | O181: 39513132 | P181: 39553017.33 | Q181: 39592902.67 | R181: 39632788 | S181: 38728362.33 | T181: 37823936.67 | U181: 36919511 | V181: 37105717.33 | W181: 37291923.67 | X181: 37478130 | Y181: 37849945.33 | Z181: 38221760.67 | AA181: 38593576 | AB181: 38909997.33 | AC181: 39226418.67 | AD181: 39542840 | AE181: 39949568.67 | AF181: 40356297.33 | AG181: 40763026 | AH181: 40928102 | AI181: 41093178 | AJ181: 41258254 | AK181: 41719540 | AL181: 42180826 | AM181: 42642112 | AN181: 43190472.67 | AO181: 43738833.33 | AP181: 44287194 | AQ181: 44549202 | AR181: 44811210 | AS181: 45073218 | AT181: 45007438 | AU181: 44941658 | AV181: 44875878 | AW181: 44912776.33 | AX181: 44949674.67 | AY181: 44986573 | AZ181: 45283959 | BA181: 45581345 | BB181: 45878731 | BC181: 45856054 | BD181: 45833377 | BE181: 45810700 | BF181: 45952556 | BG181: 46094412 | BH181: 46236268 | BI181: 46344729.33 | BJ181: 46453190.67 | BK181: 46561652 | BL181: 46565165.33 | BM181: 46568678.67 | BN181: 46572192 | BO181: 46673504.67 | BP181: 46774817.33 | BQ181: 46876130 | BR181: =BR229 -> 47051332 | BS181: 47226534 | BT181: 47401736 | BU181: 47703482 | BV181: 48005228 | BW181: 48306974 | BX181: 48717059.67 | BY181: 49127145.33 | BZ181: 49537231 | CA181: 49689831.67 | CB181: 49842432.33 | CC181: 49995033 | CD181: 49968736 | CE181: 49942439 | CF181: 49916142 | CG181: 50031061 | CH181: 50145980 | CI181: 50260899 | CJ181: 50694200.33 | CK181: 51127501.67 | CL181: 51560803 | CM181: 51547752.67 | CN181: 51534702.33 | CO181: 51521652 | CP181: 51722848.67 | CQ181: 51924045.33 | CR181: 52125242 | CS181: 51837508.33 | CT181: 51549774.67 | CU181: 51262041 | CV181: 51594785.33 | CW181: 51927529.67 | CX181: 52260274 | CY181: 52312726 | CZ181: 52365178 | DA181: 52417630 | DB181: 51916543 | DC181: 51415456 | DD181: 50914369 | DE181: 51007234.33 | DF181: 51100099.67 | DG181: 51192965 | DH181: 51823415.67 | DI181: 52453866.33 | DJ181: 53084317 | DK181: 53532263.33 | DL181: 53980209.67 | DM181: 54428156 | DN181: 54551224.67 | DO181: 54674293.33 | DP181: 54797362 | DQ181: 55281883.67 | DR181: 55766405.33 | DS181: 56250927 | DT181: 56683461.33 | DU181: 57115995.67 | DV181: 57548530 | DW181: 57620561 | DX181: 57692592 | DY181: 57764623 | DZ181: 58161981 | EA181: 58559339 | EB181: 58956697 | EC181: 59195098.67 | ED181: =ED229 -> 59433500.33 | EE181: 59671902 | EF181: 60092919.33 | EG181: 60513936.67 | EH181: 60934954 | EI181: 61205744.67 | EJ181: 61476535.33 | EK181: 61747326 | EL181: 61939793 | EM181: 62132260 | EN181: 62324727 | EO181: 62724445.33 | EP181: 63124163.67 | EQ181: 63523882 | ER181: 64196077.67 | ES181: 64868273.33 | ET181: 65540469 | EU181: 65596363.67 | EV181: 65652258.33 | EW181: 65708153 | EX181: 66086338 | EY181: 66464523 | EZ181: 66842708 | FA181: 67249388 | FB181: 67656068 | FC181: 68062748 | FD181: 68494297.33 | FE181: 68925846.67 | FF181: 69357396 | FG181: 69546092.33 | FH181: 69734788.67 | FI181: 69923485 | FJ181: 70041517.67 | FK181: 70159550.33 | FL181: 70277583 | FM181: 70509343.07 | FN181: 70741103.15 | FO181: 70972863.22 | FP181: 71314769.64 | FQ181: 71656676.06 | FR181: 71998582.48 | FS181: 72131402.7 | FT181: 72264222.92 | FU181: 72397043.14 | FV181: 72641082.5 | FW181: 72885121.86 | FX181: 73129161.22 | FY181: 73367834.13 | FZ181: 73606507.05 | GA181: 73845179.96 | GB181: 74187086.38 | GC181: 74528992.81 | GD181: 74870899.23 | GE181: 75003719.45 | GF181: 75136539.67 | GG181: 75269359.88 | GH181: 75513399.24 | GI181: 75757438.6 | GJ181: 76001477.96 | GK181: 76240150.87 | GL181: 76478823.79 | GM181: 76717496.71 | GN181: 77059403.13 | GO181: 77401309.55 | GP181: =GP229 -> 77743215.97 | GQ181: 77876036.19 | GR181: 78008856.41 | GS181: 78141676.63 | GT181: 78385715.99 | GU181: 78629755.34 | GV181: 78873794.7 | GW181: 79112467.62 | GX181: 79351140.53 | GY181: 79589813.45 | GZ181: 79932714.85 | HA181: 80275616.25 | HB181: 80618517.64 | HC181: 80751279.75 | HD181: 80884041.85 | HE181: 81016803.95 | HF181: 81255016.84 | HG181: 81493229.72 | HH181: 81731442.61 | HI181: 81978535.66 | HJ181: 82225628.72 | HK181: 82472721.77 | HL181: 82819922.81 | HM181: 83167123.85 | HN181: 83514324.89 | HO181: 83647086.99 | HP181: 83779849.1 | HQ181: 83912611.2 | HR181: 84150824.08 | HS181: 84389036.97 | HT181: 84627249.86 | HU181: 84874342.91 | HV181: 85121435.96 | HW181: 85368529.02 | HX181: 85715730.06 | HY181: 86062931.1 | HZ181: 86410132.14 | IA181: 86542894.24 | IB181: 86675656.34 | IC181: 86808418.45 | ID181: 87046631.33 | IE181: 87284844.22 | IF181: 87523057.1 | IG181: 87770150.16 | IH181: 88017243.21 | II181: 88264336.26 | IJ181: 88611537.3 | IK181: 88958738.35 | IL181: 89305939.39
C182: 3 | D182: Abonados de voz Mercado | E182: [Abonados] | F182: =F246 -> 46200421 | G182: 46524542.33 | H182: 46848663.67 | I182: 47172785 | J182: 47500691.33 | K182: 47828597.67 | L182: 48156504 | M182: 48337408.33 | N182: 48518312.67 | O182: 48699217 | P182: 48821597.67 | Q182: 48943978.33 | R182: 49066359 | S182: 48215272.67 | T182: 47364186.33 | U182: 46513100 | V182: 46779962 | W182: 47046824 | X182: 47313686 | Y182: 47755127 | Z182: 48196568 | AA182: 48638009 | AB182: 49190377.33 | AC182: 49742745.67 | AD182: 50295114 | AE182: 50728282.33 | AF182: 51161450.67 | AG182: 51594619 | AH182: 51794416.67 | AI182: 51994214.33 | AJ182: 52194012 | AK182: 52657229.33 | AL182: 53120446.67 | AM182: 53583664 | AN182: 54166018.33 | AO182: 54748372.67 | AP182: 55330727 | AQ182: 55600448.67 | AR182: 55870170.33 | AS182: 56139892 | AT182: 56087413.33 | AU182: 56034934.67 | AV182: 55982456 | AW182: 56074494.33 | AX182: 56166532.67 | AY182: 56258571 | AZ182: 56614870.67 | BA182: 56971170.33 | BB182: 57327470 | BC182: 57315853.67 | BD182: 57304237.33 | BE182: 57292621 | BF182: 57504218 | BG182: 57715815 | BH182: 57927412 | BI182: 58126191.33 | BJ182: 58324970.67 | BK182: 58523750 | BL182: 58577474.67 | BM182: 58631199.33 | BN182: 58684924 | BO182: 58814905.33 | BP182: 58944886.67 | BQ182: 59074868 | BR182: =BR246 -> 59299345 | BS182: 59523822 | BT182: 59748299 | BU182: 60091831.33 | BV182: 60435363.67 | BW182: 60778896 | BX182: 61259268.67 | BY182: 61739641.33 | BZ182: 62220014 | CA182: 62401341.33 | CB182: 62582668.67 | CC182: 62763996 | CD182: 62813635.33 | CE182: 62863274.67 | CF182: 62912914 | CG182: 63084498.33 | CH182: 63256082.67 | CI182: 63427667 | CJ182: 63893463.33 | CK182: 64359259.67 | CL182: 64825056 | CM182: 64872794.33 | CN182: 64920532.67 | CO182: 64968271 | CP182: 65243541 | CQ182: 65518811 | CR182: 65794081 | CS182: 65568071.33 | CT182: 65342061.67 | CU182: 65116052 | CV182: 65505093 | CW182: 65894134 | CX182: 66283175 | CY182: 66352949 | CZ182: 66422723 | DA182: 66492497 | DB182: 65950670.67 | DC182: 65408844.33 | DD182: 64867018 | DE182: 65070737.67 | DF182: 65274457.33 | DG182: 65478177 | DH182: 66209641.33 | DI182: 66941105.67 | DJ182: 67672570 | DK182: 68262497.67 | DL182: 68852425.33 | DM182: 69442353 | DN182: 69792072.33 | DO182: 70141791.67 | DP182: 70491511 | DQ182: 71343778.33 | DR182: 72196045.67 | DS182: 73048313 | DT182: 73717579 | DU182: 74386845 | DV182: 75056111 | DW182: 75368026.67 | DX182: 75679942.33 | DY182: 75991858 | DZ182: 76618786.67 | EA182: 77245715.33 | EB182: 77872644 | EC182: 78264748.33 | ED182: =ED246 -> 78656852.67 | EE182: 79048957 | EF182: 79636693 | EG182: 80224429 | EH182: 80812165 | EI182: 81265167.67 | EJ182: 81718170.33 | EK182: 82171173 | EL182: 82553562.33 | EM182: 82935951.67 | EN182: 83318341 | EO182: 83881511.33 | EP182: 84444681.67 | EQ182: 85007852 | ER182: 85793873.33 | ES182: 86579894.67 | ET182: 87365916 | EU182: 87463146 | EV182: 87560376 | EW182: 87657606 | EX182: 88097743 | EY182: 88537880 | EZ182: 88978017 | FA182: 89472739.67 | FB182: 89967462.33 | FC182: 90462185 | FD182: 90998836 | FE182: 91535487 | FF182: 92072138 | FG182: 92205160 | FH182: 92338182 | FI182: 92471204 | FJ182: 92625296.67 | FK182: 92779389.33 | FL182: 92933482 | FM182: 93321066.91 | FN182: 93708651.82 | FO182: 94096236.73 | FP182: 94655224.04 | FQ182: 95214211.36 | FR182: 95773198.68 | FS182: 96043096.08 | FT182: 96312993.48 | FU182: 96582890.89 | FV182: 96947609.07 | FW182: 97312327.26 | FX182: 97677045.45 | FY182: 98023516.08 | FZ182: 98369986.72 | GA182: 98716457.35 | GB182: 99275444.67 | GC182: 99834431.99 | GD182: 100393419.3 | GE182: 100663316.7 | GF182: 100933214.1 | GG182: 101203111.5 | GH182: 101567829.7 | GI182: 101932547.9 | GJ182: 102297266.1 | GK182: 102643736.7 | GL182: 102990207.3 | GM182: 103336678 | GN182: 103895665.3 | GO182: 104454652.6 | GP182: =GP246 -> 105013639.9 | GQ182: 105283537.3 | GR182: 105553434.7 | GS182: 105823332.1 | GT182: 106188050.3 | GU182: 106552768.5 | GV182: 106917486.7 | GW182: 107263957.3 | GX182: 107610428 | GY182: 107956898.6 | GZ182: 108516880.9 | HA182: 109076863.2 | HB182: 109636845.5 | HC182: 109906684.8 | HD182: 110176524.1 | HE182: 110446363.3 | HF182: 110805255.1 | HG182: 111164146.8 | HH182: 111523038.5 | HI182: 111877929.3 | HJ182: 112232820 | HK182: 112587710.8 | HL182: 113151992.7 | HM182: 113716274.7 | HN182: 114280556.6 | HO182: 114550395.9 | HP182: 114820235.2 | HQ182: 115090074.5 | HR182: 115448966.2 | HS182: 115807857.9 | HT182: 116166749.6 | HU182: 116521640.4 | HV182: 116876531.2 | HW182: 117231421.9 | HX182: 117795703.9 | HY182: 118359985.8 | HZ182: 118924267.8 | IA182: 119194107 | IB182: 119463946.3 | IC182: 119733785.6 | ID182: 120092677.3 | IE182: 120451569 | IF182: 120810460.8 | IG182: 121165351.5 | IH182: 121520242.3 | II182: 121875133.1 | IJ182: 122439415 | IK182: 123003696.9 | IL182: 123567978.9
B193: Abonados (Matriz Auxiliar Mensual)
C195: id | D195: Operador | E195: Unidad | F195: 2011-12-01 | G195: 2012-01-01 | H195: 2012-02-01 | I195: 2012-03-01 | J195: 2012-04-01 | K195: 2012-05-01 | L195: 2012-06-01 | M195: 2012-07-01 | N195: 2012-08-01 | O195: 2012-09-01 | P195: 2012-10-01 | Q195: 2012-11-01 | R195: 2012-12-01 | S195: 2013-01-01 | T195: 2013-02-01 | U195: 2013-03-01 | V195: 2013-04-01 | W195: 2013-05-01 | X195: 2013-06-01 | Y195: 2013-07-01 | Z195: 2013-08-01 | AA195: 2013-09-01 | AB195: 2013-10-01 | AC195: 2013-11-01 | AD195: 2013-12-01 | AE195: 2014-01-01 | AF195: 2014-02-01 | AG195: 2014-03-01 | AH195: 2014-04-01 | AI195: 2014-05-01 | AJ195: 2014-06-01 | AK195: 2014-07-01 | AL195: 2014-08-01 | AM195: 2014-09-01 | AN195: 2014-10-01 | AO195: 2014-11-01 | AP195: 2014-12-01 | AQ195: 2015-01-01 | AR195: 2015-02-01 | AS195: 2015-03-01 | AT195: 2015-04-01 | AU195: 2015-05-01 | AV195: 2015-06-01 | AW195: 2015-07-01 | AX195: 2015-08-01 | AY195: 2015-09-01 | AZ195: 2015-10-01 | BA195: 2015-11-01 | BB195: 2015-12-01 | BC195: 2016-01-01 | BD195: 2016-02-01 | BE195: 2016-03-01 | BF195: 2016-04-01 | BG195: 2016-05-01 | BH195: 2016-06-01 | BI195: 2016-07-01 | BJ195: 2016-08-01 | BK195: 2016-09-01 | BL195: 2016-10-01 | BM195: 2016-11-01 | BN195: 2016-12-01 | BO195: 2017-01-01 | BP195: 2017-02-01 | BQ195: 2017-03-01 | BR195: 2017-04-01 | BS195: 2017-05-01 | BT195: 2017-06-01 | BU195: 2017-07-01 | BV195: 2017-08-01 | BW195: 2017-09-01 | BX195: 2017-10-01 | BY195: 2017-11-01 | BZ195: 2017-12-01 | CA195: 2018-01-01 | CB195: 2018-02-01 | CC195: 2018-03-01 | CD195: 2018-04-01 | CE195: 2018-05-01 | CF195: 2018-06-01 | CG195: 2018-07-01 | CH195: 2018-08-01 | CI195: 2018-09-01 | CJ195: 2018-10-01 | CK195: 2018-11-01 | CL195: 2018-12-01 | CM195: 2019-01-01 | CN195: 2019-02-01 | CO195: 2019-03-01 | CP195: 2019-04-01 | CQ195: 2019-05-01 | CR195: 2019-06-01 | CS195: 2019-07-01 | CT195: 2019-08-01 | CU195: 2019-09-01 | CV195: 2019-10-01 | CW195: 2019-11-01 | CX195: 2019-12-01 | CY195: 2020-01-01 | CZ195: 2020-02-01 | DA195: 2020-03-01 | DB195: 2020-04-01 | DC195: 2020-05-01 | DD195: 2020-06-01 | DE195: 2020-07-01 | DF195: 2020-08-01 | DG195: 2020-09-01 | DH195: 2020-10-01 | DI195: 2020-11-01 | DJ195: 2020-12-01 | DK195: 2021-01-01 | DL195: 2021-02-01 | DM195: 2021-03-01 | DN195: 2021-04-01 | DO195: 2021-05-01 | DP195: 2021-06-01 | DQ195: 2021-07-01 | DR195: 2021-08-01 | DS195: 2021-09-01 | DT195: 2021-10-01 | DU195: 2021-11-01 | DV195: 2021-12-01 | DW195: 2022-01-01 | DX195: 2022-02-01 | DY195: 2022-03-01 | DZ195: 2022-04-01 | EA195: 2022-05-01 | EB195: 2022-06-01 | EC195: 2022-07-01 | ED195: 2022-08-01 | EE195: 2022-09-01 | EF195: 2022-10-01 | EG195: 2022-11-01 | EH195: 2022-12-01 | EI195: 2023-01-01 | EJ195: 2023-02-01 | EK195: 2023-03-01 | EL195: 2023-04-01 | EM195: 2023-05-01 | EN195: 2023-06-01 | EO195: 2023-07-01 | EP195: 2023-08-01 | EQ195: 2023-09-01 | ER195: 2023-10-01 | ES195: 2023-11-01 | ET195: 2023-12-01 | EU195: 2024-01-01 | EV195: 2024-02-01 | EW195: 2024-03-01 | EX195: 2024-04-01 | EY195: 2024-05-01 | EZ195: 2024-06-01 | FA195: 2024-07-01 | FB195: 2024-08-01 | FC195: 2024-09-01 | FD195: 2024-10-01 | FE195: 2024-11-01 | FF195: 2024-12-01 | FG195: 2025-01-01 | FH195: 2025-02-01 | FI195: 2025-03-01 | FJ195: 2025-04-01 | FK195: 2025-05-01 | FL195: 2025-06-01 | FM195: 2025-07-01 | FN195: 2025-08-01 | FO195: 2025-09-01 | FP195: 2025-10-01 | FQ195: 2025-11-01 | FR195: 2025-12-01 | FS195: 2026-01-01 | FT195: 2026-02-01 | FU195: 2026-03-01 | FV195: 2026-04-01 | FW195: 2026-05-01 | FX195: 2026-06-01 | FY195: 2026-07-01 | FZ195: 2026-08-01 | GA195: 2026-09-01 | GB195: 2026-10-01 | GC195: 2026-11-01 | GD195: 2026-12-01 | GE195: 2027-01-01 | GF195: 2027-02-01 | GG195: 2027-03-01 | GH195: 2027-04-01 | GI195: 2027-05-01 | GJ195: 2027-06-01 | GK195: 2027-07-01 | GL195: 2027-08-01 | GM195: 2027-09-01 | GN195: 2027-10-01 | GO195: 2027-11-01 | GP195: 2027-12-01 | GQ195: 2028-01-01 | GR195: 2028-02-01 | GS195: 2028-03-01 | GT195: 2028-04-01 | GU195: 2028-05-01 | GV195: 2028-06-01 | GW195: 2028-07-01 | GX195: 2028-08-01 | GY195: 2028-09-01 | GZ195: 2028-10-01 | HA195: 2028-11-01 | HB195: 2028-12-01 | HC195: 2029-01-01 | HD195: 2029-02-01 | HE195: 2029-03-01 | HF195: 2029-04-01 | HG195: 2029-05-01 | HH195: 2029-06-01 | HI195: 2029-07-01 | HJ195: 2029-08-01 | HK195: 2029-09-01 | HL195: 2029-10-01 | HM195: 2029-11-01 | HN195: 2029-12-01 | HO195: 2030-01-01 | HP195: 2030-02-01 | HQ195: 2030-03-01 | HR195: 2030-04-01 | HS195: 2030-05-01 | HT195: 2030-06-01 | HU195: 2030-07-01 | HV195: 2030-08-01 | HW195: 2030-09-01 | HX195: 2030-10-01 | HY195: 2030-11-01 | HZ195: 2030-12-01 | IA195: 2031-01-01 | IB195: 2031-02-01 | IC195: 2031-03-01 | ID195: 2031-04-01 | IE195: 2031-05-01 | IF195: 2031-06-01 | IG195: 2031-07-01 | IH195: 2031-08-01 | II195: 2031-09-01 | IJ195: 2031-10-01 | IK195: 2031-11-01 | IL195: 2031-12-01
B196: Pospago
C197: 1 | D197: =L.oper.nom -> Comcel | E197: [Abonados] | F197: =J98 -> 4755101 | G197: =F197+(I197-F197)/3 -> 4803693.333 | H197: =F197+(I197-F197)/3*2 -> 4852285.667 | I197: =K98 -> 4900878 | J197: =I197+(L197-I197)/3 -> 4947506.667 | K197: =I197+(L197-I197)/3*2 -> 4994135.333 | L197: =L98 -> 5040764 | M197: =L197+(O197-L197)/3 -> 5092031.333 | N197: =L197+(O197-L197)/3*2 -> 5143298.667 | O197: =M98 -> 5194566 | P197: =O197+(R197-O197)/3 -> 5246896.667 | Q197: =O197+(R197-O197)/3*2 -> 5299227.333 | R197: =N98 -> 5351558 | S197: =R197+(U197-R197)/3 -> 5384841.667 | T197: =R197+(U197-R197)/3*2 -> 5418125.333 | U197: =O98 -> 5451409 | V197: =U197+(X197-U197)/3 -> 5474053.333 | W197: =U197+(X197-U197)/3*2 -> 5496697.667 | X197: =P98 -> 5519342 | Y197: =X197+(AA197-X197)/3 -> 5546560.333 | Z197: =X197+(AA197-X197)/3*2 -> 5573778.667 | AA197: =Q98 -> 5600997 | AB197: =AA197+(AD197-AA197)/3 -> 5638855.333 | AC197: =AA197+(AD197-AA197)/3*2 -> 5676713.667 | AD197: =R98 -> 5714572 | AE197: =AD197+(AG197-AD197)/3 -> 5744436.667 | AF197: =AD197+(AG197-AD197)/3*2 -> 5774301.333 | AG197: =S98 -> 5804166 | AH197: =AG197+(AJ197-AG197)/3 -> 5813710.333 | AI197: =AG197+(AJ197-AG197)/3*2 -> 5823254.667 | AJ197: =T98 -> 5832799 | AK197: =AJ197+(AM197-AJ197)/3 -> 5827023.333 | AL197: =AJ197+(AM197-AJ197)/3*2 -> 5821247.667 | AM197: =U98 -> 5815472 | AN197: =AM197+(AP197-AM197)/3 -> 5830755.667 | AO197: =AM197+(AP197-AM197)/3*2 -> 5846039.333 | AP197: =V98 -> 5861323 | AQ197: =AP197+(AS197-AP197)/3 -> 5854205 | AR197: =AP197+(AS197-AP197)/3*2 -> 5847087 | AS197: =W98 -> 5839969 | AT197: =AS197+(AV197-AS197)/3 -> 5830422.333 | AU197: =AS197+(AV197-AS197)/3*2 -> 5820875.667 | AV197: =X98 -> 5811329 | AW197: =AV197+(AY197-AV197)/3 -> 5816596.333 | AX197: =AV197+(AY197-AV197)/3*2 -> 5821863.667 | AY197: =Y98 -> 5827131 | AZ197: =AY197+(BB197-AY197)/3 -> 5841155 | BA197: =AY197+(BB197-AY197)/3*2 -> 5855179 | BB197: =Z98 -> 5869203 | BC197: =BB197+(BE197-BB197)/3 -> 5892279.333 | BD197: =BB197+(BE197-BB197)/3*2 -> 5915355.667 | BE197: =AA98 -> 5938432 | BF197: =BE197+(BH197-BE197)/3 -> 5986610.667 | BG197: =BE197+(BH197-BE197)/3*2 -> 6034789.333 | BH197: =AB98 -> 6082968 | BI197: =BH197+(BK197-BH197)/3 -> 6129894 | BJ197: =BH197+(BK197-BH197)/3*2 -> 6176820 | BK197: =AC98 -> 6223746 | BL197: =BK197+(BN197-BK197)/3 -> 6273154.333 | BM197: =BK197+(BN197-BK197)/3*2 -> 6322562.667 | BN197: =AD98 -> 6371971 | BO197: =BN197+(BQ197-BN197)/3 -> 6400905.333 | BP197: =BN197+(BQ197-BN197)/3*2 -> 6429839.667 | BQ197: =AE98 -> 6458774 | BR197: =BQ197+(BT197-BQ197)/3 -> 6490285.667 | BS197: =BQ197+(BT197-BQ197)/3*2 -> 6521797.333 | BT197: =AF98 -> 6553309 | BU197: =BT197+(BW197-BT197)/3 -> 6570260.667 | BV197: =BT197+(BW197-BT197)/3*2 -> 6587212.333 | BW197: =AG98 -> 6604164 | BX197: =BW197+(BZ197-BW197)/3 -> 6632191.333 | BY197: =BW197+(BZ197-BW197)/3*2 -> 6660218.667 | BZ197: =AH98 -> 6688246 | CA197: =BZ197+(CC197-BZ197)/3 -> 6686785.667 | CB197: =BZ197+(CC197-BZ197)/3*2 -> 6685325.333 | CC197: =AI98 -> 6683865 | CD197: =CC197+(CF197-CC197)/3 -> 6718088 | CE197: =CC197+(CF197-CC197)/3*2 -> 6752311 | CF197: =AJ98 -> 6786534 | CG197: =CF197+(CI197-CF197)/3 -> 6820010.333 | CH197: =CF197+(CI197-CF197)/3*2 -> 6853486.667 | CI197: =AK98 -> 6886963 | CJ197: =CI197+(CL197-CI197)/3 -> 6903539.667 | CK197: =CI197+(CL197-CI197)/3*2 -> 6920116.333 | CL197: =AL98 -> 6936693 | CM197: =CL197+(CO197-CL197)/3 -> 6956731.667 | CN197: =CL197+(CO197-CL197)/3*2 -> 6976770.333 | CO197: =AM98 -> 6996809 | CP197: =CO197+(CR197-CO197)/3 -> 7036183 | CQ197: =CO197+(CR197-CO197)/3*2 -> 7075557 | CR197: =AN98 -> 7114931 | CS197: =CR197+(CU197-CR197)/3 -> 7159655.333 | CT197: =CR197+(CU197-CR197)/3*2 -> 7204379.667 | CU197: =AO98 -> 7249104 | CV197: =CU197+(CX197-CU197)/3 -> 7282932.667 | CW197: =CU197+(CX197-CU197)/3*2 -> 7316761.333 | CX197: =AP98 -> 7350590 | CY197: =CX197+(DA197-CX197)/3 -> 7361646 | CZ197: =CX197+(DA197-CX197)/3*2 -> 7372702 | DA197: =AQ98 -> 7383758 | DB197: =DA197+(DD197-DA197)/3 -> 7396421.667 | DC197: =DA197+(DD197-DA197)/3*2 -> 7409085.333 | DD197: =AR98 -> 7421749 | DE197: =DD197+(DG197-DD197)/3 -> 7469124.667 | DF197: =DD197+(DG197-DD197)/3*2 -> 7516500.333 | DG197: =AS98 -> 7563876 | DH197: =DG197+(DJ197-DG197)/3 -> 7630976.333 | DI197: =DG197+(DJ197-DG197)/3*2 -> 7698076.667 | DJ197: =AT98 -> 7765177 | DK197: =DJ197+(DM197-DJ197)/3 -> 7816469 | DL197: =DJ197+(DM197-DJ197)/3*2 -> 7867761 | DM197: =AU98 -> 7919053 | DN197: =DM197+(DP197-DM197)/3 -> 7972190.333 | DO197: =DM197+(DP197-DM197)/3*2 -> 8025327.667 | DP197: =AV98 -> 8078465 | DQ197: =DP197+(DS197-DP197)/3 -> 8182842.667 | DR197: =DP197+(DS197-DP197)/3*2 -> 8287220.333 | DS197: =AW98 -> 8391598 | DT197: =DS197+(DV197-DS197)/3 -> 8510693.333 | DU197: =DS197+(DV197-DS197)/3*2 -> 8629788.667 | DV197: =AX98 -> 8748884 | DW197: =DV197+(DY197-DV197)/3 -> 8848627.333 | DX197: =DV197+(DY197-DV197)/3*2 -> 8948370.667 | DY197: =AY98 -> 9048114 | DZ197: =DY197+(EB197-DY197)/3 -> 9138647 | EA197: =DY197+(EB197-DY197)/3*2 -> 9229180 | EB197: =AZ98 -> 9319713 | EC197: =EB197+(EE197-EB197)/3 -> 9391444.667 | ED197: =EB197+(EE197-EB197)/3*2 -> 9463176.333 | EE197: =BA98 -> 9534908 | EF197: =EE197+(EH197-EE197)/3 -> 9588307.333 | EG197: =EE197+(EH197-EE197)/3*2 -> 9641706.667 | EH197: =BB98 -> 9695106 | EI197: =EH197+(EK197-EH197)/3 -> 9749705 | EJ197: =EH197+(EK197-EH197)/3*2 -> 9804304 | EK197: =BC98 -> 9858903 | EL197: =EK197+(EN197-EK197)/3 -> 9915944 | EM197: =EK197+(EN197-EK197)/3*2 -> 9972985 | EN197: =BD98 -> 10030026 | EO197: =EN197+(EQ197-EN197)/3 -> 10064697 | EP197: =EN197+(EQ197-EN197)/3*2 -> 10099368 | EQ197: =BE98 -> 10134039 | ER197: =EQ197+(ET197-EQ197)/3 -> 10161585.67 | ES197: =EQ197+(ET197-EQ197)/3*2 -> 10189132.33 | ET197: =BF98 -> 10216679 | EU197: =ET197+(EW197-ET197)/3 -> 10258709.67 | EV197: =ET197+(EW197-ET197)/3*2 -> 10300740.33 | EW197: =BG98 -> 10342771 | EX197: =EW197+(EZ197-EW197)/3 -> 10403686.33 | EY197: =EW197+(EZ197-EW197)/3*2 -> 10464601.67 | EZ197: =BH98 -> 10525517 | FA197: =EZ197+(FC197-EZ197)/3 -> 10578497.67 | FB197: =EZ197+(FC197-EZ197)/3*2 -> 10631478.33 | FC197: =BI98 -> 10684459 | FD197: =FC197+(FF197-FC197)/3 -> 10743678 | FE197: =FC197+(FF197-FC197)/3*2 -> 10802897 | FF197: =BJ98 -> 10862116 | FG197: =FF197+(FI197-FF197)/3 -> 10916283 | FH197: =FF197+(FI197-FF197)/3*2 -> 10970450 | FI197: =BK98 -> 11024617 | FJ197: =FI197+(FL197-FI197)/3 -> 11090829 | FK197: =FI197+(FL197-FI197)/3*2 -> 11157041 | FL197: =BL98 -> 11223253 | FM197: =FL197+(FO197-FL197)/3 -> 11276261.64 | FN197: =FL197+(FO197-FL197)/3*2 -> 11329270.28 | FO197: =BM98 -> 11382278.92 | FP197: =FO197+(FR197-FO197)/3 -> 11488231.29 | FQ197: =FO197+(FR197-FO197)/3*2 -> 11594183.66 | FR197: =BN98 -> 11700136.02 | FS197: =FR197+(FU197-FR197)/3 -> 11795009.81 | FT197: =FR197+(FU197-FR197)/3*2 -> 11889883.59 | FU197: =BO98 -> 11984757.37 | FV197: =FU197+(FX197-FU197)/3 -> 12050868.4 | FW197: =FU197+(FX197-FU197)/3*2 -> 12116979.42 | FX197: =BP98 -> 12183090.45 | FY197: =FX197+(GA197-FX197)/3 -> 12236153.52 | FZ197: =FX197+(GA197-FX197)/3*2 -> 12289216.58 | GA197: =BQ98 -> 12342279.65 | GB197: =GA197+(GD197-GA197)/3 -> 12448232.02 | GC197: =GA197+(GD197-GA197)/3*2 -> 12554184.39 | GD197: =BR98 -> 12660136.76 | GE197: =GD197+(GG197-GD197)/3 -> 12755010.54 | GF197: =GD197+(GG197-GD197)/3*2 -> 12849884.32 | GG197: =BS98 -> 12944758.1 | GH197: =GG197+(GJ197-GG197)/3 -> 13010869.13 | GI197: =GG197+(GJ197-GG197)/3*2 -> 13076980.16 | GJ197: =BT98 -> 13143091.18 | GK197: =GJ197+(GM197-GJ197)/3 -> 13196154.25 | GL197: =GJ197+(GM197-GJ197)/3*2 -> 13249217.32 | GM197: =BU98 -> 13302280.39 | GN197: =GM197+(GP197-GM197)/3 -> 13408232.76 | GO197: =GM197+(GP197-GM197)/3*2 -> 13514185.12 | GP197: =BV98 -> 13620137.49 | GQ197: =GP197+(GS197-GP197)/3 -> 13715011.27 | GR197: =GP197+(GS197-GP197)/3*2 -> 13809885.06 | GS197: =BW98 -> 13904758.84 | GT197: =GS197+(GV197-GS197)/3 -> 13970869.86 | GU197: =GS197+(GV197-GS197)/3*2 -> 14036980.89 | GV197: =BX98 -> 14103091.92 | GW197: =GV197+(GY197-GV197)/3 -> 14156154.99 | GX197: =GV197+(GY197-GV197)/3*2 -> 14209218.05 | GY197: =BY98 -> 14262281.12 | GZ197: =GY197+(HB197-GY197)/3 -> 14368233.49 | HA197: =GY197+(HB197-GY197)/3*2 -> 14474185.86 | HB197: =BZ98 -> 14580138.23 | HC197: =HB197+(HE197-HB197)/3 -> 14675012.01 | HD197: =HB197+(HE197-HB197)/3*2 -> 14769885.79 | HE197: =CA98 -> 14864759.57 | HF197: =HE197+(HH197-HE197)/3 -> 14930870.6 | HG197: =HE197+(HH197-HE197)/3*2 -> 14996981.62 | HH197: =CB98 -> 15063092.65 | HI197: =HH197+(HK197-HH197)/3 -> 15116155.72 | HJ197: =HH197+(HK197-HH197)/3*2 -> 15169218.79 | HK197: =CC98 -> 15222281.86 | HL197: =HK197+(HN197-HK197)/3 -> 15328234.22 | HM197: =HK197+(HN197-HK197)/3*2 -> 15434186.59 | HN197: =CD98 -> 15540138.96 | HO197: =HN197+(HQ197-HN197)/3 -> 15635012.74 | HP197: =HN197+(HQ197-HN197)/3*2 -> 15729886.52 | HQ197: =CE98 -> 15824760.31 | HR197: =HQ197+(HT197-HQ197)/3 -> 15890871.33 | HS197: =HQ197+(HT197-HQ197)/3*2 -> 15956982.36 | HT197: =CF98 -> 16023093.39 | HU197: =HT197+(HW197-HT197)/3 -> 16076156.45 | HV197: =HT197+(HW197-HT197)/3*2 -> 16129219.52 | HW197: =CG98 -> 16182282.59 | HX197: =HW197+(HZ197-HW197)/3 -> 16288234.96 | HY197: =HW197+(HZ197-HW197)/3*2 -> 16394187.33 | HZ197: =CH98 -> 16500139.69 | IA197: =HZ197+(IC197-HZ197)/3 -> 16595013.48 | IB197: =HZ197+(IC197-HZ197)/3*2 -> 16689887.26 | IC197: =CI98 -> 16784761.04 | ID197: =IC197+(IF197-IC197)/3 -> 16850872.07 | IE197: =IC197+(IF197-IC197)/3*2 -> 16916983.09 | IF197: =CJ98 -> 16983094.12 | IG197: =IF197+(II197-IF197)/3 -> 17036157.19 | IH197: =IF197+(II197-IF197)/3*2 -> 17089220.26 | II197: =CK98 -> 17142283.32 | IJ197: =II197+(IL197-II197)/3 -> 17248235.69 | IK197: =II197+(IL197-II197)/3*2 -> 17354188.06 | IL197: =CL98 -> 17460140.43
C198: 2 | D198: Partners | E198: [Abonados] | F198: 0 | G198: 0 | H198: 0 | I198: 0 | J198: 0 | K198: 0 | L198: 0 | M198: 0 | N198: 0 | O198: 0 | P198: 0 | Q198: 0 | R198: 0 | S198: 0 | T198: 0 | U198: 0 | V198: 0 | W198: 0 | X198: 0 | Y198: 0 | Z198: 0 | AA198: 0 | AB198: 52918 | AC198: 105836 | AD198: 158754 | AE198: 161367.3333 | AF198: 163980.6667 | AG198: 166594 | AH198: 166718 | AI198: 166842 | AJ198: 166966 | AK198: 169114 | AL198: 171262 | AM198: 173410 | AN198: 175456 | AO198: 177502 | AP198: 179548 | AQ198: 192352 | AR198: 205156 | AS198: 217960 | AT198: 237672.3333 | AU198: 257384.6667 | AV198: 277097 | AW198: 288368.3333 | AX198: 299639.6667 | AY198: 310911 | AZ198: 315876.3333 | BA198: 320841.6667 | BB198: 325807 | BC198: 330302 | BD198: 334797 | BE198: 339292 | BF198: 347960.3333 | BG198: 356628.6667 | BH198: 365297 | BI198: 373669 | BJ198: 382041 | BK198: 390413 | BL198: 384541 | BM198: 378669 | BN198: 372797 | BO198: 367697 | BP198: 362597 | BQ198: 357497 | BR198: 357812.3333 | BS198: 358127.6667 | BT198: 358443 | BU198: 382039 | BV198: 405635 | BW198: 429231 | BX198: 446295.3333 | BY198: 463359.6667 | BZ198: 480424 | CA198: 500519.6667 | CB198: 520615.3333 | CC198: 540711 | CD198: 557582.6667 | CE198: 574454.3333 | CF198: 591326 | CG198: 598829.3333 | CH198: 606332.6667 | CI198: 613836 | CJ198: 622782.6667 | CK198: 631729.3333 | CL198: 640676 | CM198: 645988.6667 | CN198: 651301.3333 | CO198: 656614 | CP198: 658081.3333 | CQ198: 659548.6667 | CR198: 661016 | CS198: 660319.6667 | CT198: 659623.3333 | CU198: 658927 | CV198: 638376.6667 | CW198: 617826.3333 | CX198: 597276 | CY198: 579575 | CZ198: 561874 | DA198: 544173 | DB198: 529285.3333 | DC198: 514397.6667 | DD198: 499510 | DE198: 489477 | DF198: 479444 | DG198: 469411 | DH198: 472354.6667 | DI198: 475298.3333 | DJ198: 478242 | DK198: 490166 | DL198: 502090 | DM198: 514014 | DN198: 543004 | DO198: 571994 | DP198: 600984 | DQ198: 657252.3333 | DR198: 713520.6667 | DS198: 769789 | DT198: 787165.3333 | DU198: 804541.6667 | DV198: 821918 | DW198: 835334.3333 | DX198: 848750.6667 | DY198: 862167 | DZ198: 894530.3333 | EA198: 926893.6667 | EB198: 959257 | EC198: 1004716.333 | ED198: 1050175.667 | EE198: 1095635 | EF198: 1177082.667 | EG198: 1258530.333 | EH198: 1339978 | EI198: 1389536 | EJ198: 1439094 | EK198: 1488652 | EL198: 1542976.667 | EM198: 1597301.333 | EN198: 1651626 | EO198: 1730420.333 | EP198: 1809214.667 | EQ198: 1888009 | ER198: 1937825.333 | ES198: 1987641.667 | ET198: 2037458 | EU198: 2044641 | EV198: 2051824 | EW198: 2059007 | EX198: 2041676.667 | EY198: 2024346.333 | EZ198: 2007016 | FA198: 1975845.333 | FB198: 1944674.667 | FC198: 1913504 | FD198: 1921409.667 | FE198: 1929315.333 | FF198: 1937221 | FG198: 1894387 | FH198: 1851553 | FI198: 1808719 | FJ198: 1730909 | FK198: 1653099 | FL198: 1575289 | FM198: 1580444.955 | FN198: 1585600.91 | FO198: 1590756.865 | FP198: 1611845.994 | FQ198: 1632935.123 | FR198: 1654024.252 | FS198: 1661372.446 | FT198: 1668720.64 | FU198: 1676068.834 | FV198: 1690100.683 | FW198: 1704132.532 | FX198: 1718164.38 | FY198: 1723320.335 | FZ198: 1728476.291 | GA198: 1733632.246 | GB198: 1754721.375 | GC198: 1775810.503 | GD198: 1796899.632 | GE198: 1804247.826 | GF198: 1811596.02 | GG198: 1818944.214 | GH198: 1832976.063 | GI198: 1847007.912 | GJ198: 1861039.761 | GK198: 1866195.716 | GL198: 1871351.671 | GM198: 1876507.626 | GN198: 1897596.755 | GO198: 1918685.884 | GP198: 1939775.013 | GQ198: 1947123.207 | GR198: 1954471.401 | GS198: 1961819.595 | GT198: 1975851.444 | GU198: 1989883.292 | GV198: 2003915.141 | GW198: 2009071.096 | GX198: 2014227.051 | GY198: 2019383.006 | GZ198: 2040472.135 | HA198: 2061561.264 | HB198: 2082650.393 | HC198: 2089998.587 | HD198: 2097346.781 | HE198: 2104694.975 | HF198: 2118726.824 | HG198: 2132758.673 | HH198: 2146790.521 | HI198: 2151946.477 | HJ198: 2157102.432 | HK198: 2162258.387 | HL198: 2183347.516 | HM198: 2204436.645 | HN198: 2225525.773 | HO198: 2232873.967 | HP198: 2240222.161 | HQ198: 2247570.355 | HR198: 2261602.204 | HS198: 2275634.053 | HT198: 2289665.902 | HU198: 2294821.857 | HV198: 2299977.812 | HW198: 2305133.767 | HX198: 2326222.896 | HY198: 2347312.025 | HZ198: 2368401.154 | IA198: 2375749.348 | IB198: 2383097.542 | IC198: 2390445.736 | ID198: 2404477.585 | IE198: 2418509.433 | IF198: 2432541.282 | IG198: 2437697.237 | IH198: 2442853.192 | II198: 2448009.147 | IJ198: 2469098.276 | IK198: 2490187.405 | IL198: 2511276.534
C199: 3 | D199: Tigo | E199: [Abonados] | F199: 954561 | G199: 964636.3333 | H199: 974711.6667 | I199: 984787 | J199: 993789.6667 | K199: 1002792.333 | L199: 1011795 | M199: 1018440 | N199: 1025085 | O199: 1031730 | P199: 1039016.333 | Q199: 1046302.667 | R199: 1053589 | S199: 1059988 | T199: 1066387 | U199: 1072786 | V199: 1090578.667 | W199: 1108371.333 | X199: 1126164 | Y199: 1143972 | Z199: 1161780 | AA199: 1179588 | AB199: 1311638.667 | AC199: 1443689.333 | AD199: 1575740 | AE199: 1575008 | AF199: 1574276 | AG199: 1573544 | AH199: 1594535.333 | AI199: 1615526.667 | AJ199: 1636518 | AK199: 1652469.333 | AL199: 1668420.667 | AM199: 1684372 | AN199: 1698713.667 | AO199: 1713055.333 | AP199: 1727397 | AQ199: 1724816.667 | AR199: 1722236.333 | AS199: 1719656 | AT199: 1709589.667 | AU199: 1699523.333 | AV199: 1689457 | AW199: 1687955.333 | AX199: 1686453.667 | AY199: 1684952 | AZ199: 1681879 | BA199: 1678806 | BB199: 1675733 | BC199: 1639875 | BD199: 1604017 | BE199: 1568159 | BF199: 1546667 | BG199: 1525175 | BH199: 1503683 | BI199: 1513240.333 | BJ199: 1522797.667 | BK199: 1532355 | BL199: 1525638.333 | BM199: 1518921.667 | BN199: 1512205 | BO199: 1509177 | BP199: 1506149 | BQ199: 1503121 | BR199: 1515123.667 | BS199: 1527126.333 | BT199: 1539129 | BU199: 1526473.667 | BV199: 1513818.333 | BW199: 1501163 | BX199: 1522062 | BY199: 1542961 | BZ199: 1563860 | CA199: 1573620.333 | CB199: 1583380.667 | CC199: 1593141 | CD199: 1594050 | CE199: 1594959 | CF199: 1595868 | CG199: 1601547.333 | CH199: 1607226.667 | CI199: 1612906 | CJ199: 1625954.333 | CK199: 1639002.667 | CL199: 1652051 | CM199: 1677932.333 | CN199: 1703813.667 | CO199: 1729695 | CP199: 1739492.667 | CQ199: 1749290.333 | CR199: 1759088 | CS199: 1766387.667 | CT199: 1773687.333 | CU199: 1780987 | CV199: 1799736.333 | CW199: 1818485.667 | CX199: 1837235 | CY199: 1832678 | CZ199: 1828121 | DA199: 1823564 | DB199: 1784770 | DC199: 1745976 | DD199: 1707182 | DE199: 1718190 | DF199: 1729198 | DG199: 1740206 | DH199: 1754976 | DI199: 1769746 | DJ199: 1784516 | DK199: 1809988 | DL199: 1835460 | DM199: 1860932 | DN199: 1940602.333 | DO199: 2020272.667 | DP199: 2099943 | DQ199: 2272079 | DR199: 2444215 | DS199: 2616351 | DT199: 2684714.333 | DU199: 2753077.667 | DV199: 2821441 | DW199: 2907354.333 | DX199: 2993267.667 | DY199: 3079181 | DZ199: 3156393.333 | EA199: 3233605.667 | EB199: 3310818 | EC199: 3278589.333 | ED199: 3246360.667 | EE199: 3214132 | EF199: 3230638 | EG199: 3247144 | EH199: 3263650 | EI199: 3324768.667 | EJ199: 3385887.333 | EK199: 3447006 | EL199: 3494540.667 | EM199: 3542075.333 | EN199: 3589610 | EO199: 3644426 | EP199: 3699242 | EQ199: 3754058 | ER199: 3817624.333 | ES199: 3881190.667 | ET199: 3944757 | EU199: 3974540.333 | EV199: 4004323.667 | EW199: 4034107 | EX199: 4079058.333 | EY199: 4124009.667 | EZ199: 4168961 | FA199: 4257777.667 | FB199: 4346594.333 | FC199: 4435411 | FD199: 4503804.667 | FE199: 4572198.333 | FF199: 4640592 | FG199: 4567565 | FH199: 4494538 | FI199: 4421511 | FJ199: 4441314.333 | FK199: 4461117.667 | FL199: 4480921 | FM199: 4512676.89 | FN199: 4544432.779 | FO199: 4576188.669 | FP199: 4647837.224 | FQ199: 4719485.78 | FR199: 4791134.336 | FS199: 4814085.502 | FT199: 4837036.667 | FU199: 4859987.833 | FV199: 4875740.269 | FW199: 4891492.706 | FX199: 4907245.143 | FY199: 4939005.415 | FZ199: 4970765.688 | GA199: 5002525.96 | GB199: 5074174.516 | GC199: 5145823.072 | GD199: 5217471.628 | GE199: 5240422.794 | GF199: 5263373.959 | GG199: 5286325.125 | GH199: 5302077.561 | GI199: 5317829.998 | GJ199: 5333582.435 | GK199: 5365342.707 | GL199: 5397102.98 | GM199: 5428863.252 | GN199: 5500511.808 | GO199: 5572160.364 | GP199: 5643808.92 | GQ199: 5666760.085 | GR199: 5689711.251 | GS199: 5712662.417 | GT199: 5728414.853 | GU199: 5744167.29 | GV199: 5759919.727 | GW199: 5791679.999 | GX199: 5823440.272 | GY199: 5855200.544 | GZ199: 5926849.1 | HA199: 5998497.656 | HB199: 6070146.212 | HC199: 6093097.377 | HD199: 6116048.543 | HE199: 6138999.709 | HF199: 6154752.145 | HG199: 6170504.582 | HH199: 6186257.019 | HI199: 6218017.291 | HJ199: 6249777.564 | HK199: 6281537.836 | HL199: 6353186.392 | HM199: 6424834.948 | HN199: 6496483.504 | HO199: 6519434.669 | HP199: 6542385.835 | HQ199: 6565337 | HR199: 6581089.437 | HS199: 6596841.874 | HT199: 6612594.311 | HU199: 6644354.583 | HV199: 6676114.856 | HW199: 6707875.128 | HX199: 6779523.684 | HY199: 6851172.24 | HZ199: 6922820.796 | IA199: 6945771.961 | IB199: 6968723.127 | IC199: 6991674.292 | ID199: 7007426.729 | IE199: 7023179.166 | IF199: 7038931.602 | IG199: 7070691.875 | IH199: 7102452.148 | II199: 7134212.42 | IJ199: 7205860.976 | IK199: 7277509.532 | IL199: 7349158.088
C200: 4 | D200: Movistar | E200: [Abonados] | F200: 2764249 | G200: 2795017 | H200: 2825785 | I200: 2856553 | J200: 2877221.667 | K200: 2897890.333 | L200: 2918559 | M200: 2932302.333 | N200: 2946045.667 | O200: 2959789 | P200: 2982667.333 | Q200: 3005545.667 | R200: 3028424 | S200: 3042080.667 | T200: 3055737.333 | U200: 3069394 | V200: 3109612.667 | W200: 3149831.333 | X200: 3190050 | Y200: 3214649.333 | Z200: 3239248.667 | AA200: 3263848 | AB200: 3276968 | AC200: 3290088 | AD200: 3303208 | AE200: 3297901.667 | AF200: 3292595.333 | AG200: 3287289 | AH200: 3291351 | AI200: 3295413 | AJ200: 3299475 | AK200: 3289082.667 | AL200: 3278690.333 | AM200: 3268298 | AN200: 3265493.333 | AO200: 3262688.667 | AP200: 3259884 | AQ200: 3257154 | AR200: 3254424 | AS200: 3251694 | AT200: 3252694 | AU200: 3253694 | AV200: 3254694 | AW200: 3274365.667 | AX200: 3294037.333 | AY200: 3313709 | AZ200: 3337652.333 | BA200: 3361595.667 | BB200: 3385539 | BC200: 3401105.333 | BD200: 3416671.667 | BE200: 3432238 | BF200: 3457055.333 | BG200: 3481872.667 | BH200: 3506690 | BI200: 3524741 | BJ200: 3542792 | BK200: 3560843 | BL200: 3570050 | BM200: 3579257 | BN200: 3588464 | BO200: 3601868 | BP200: 3615272 | BQ200: 3628676 | BR200: 3642980 | BS200: 3657284 | BT200: 3671588 | BU200: 3690663.333 | BV200: 3709738.667 | BW200: 3728814 | BX200: 3730170.667 | BY200: 3731527.333 | BZ200: 3732884 | CA200: 3726019.667 | CB200: 3719155.333 | CC200: 3712291 | CD200: 3732294 | CE200: 3752297 | CF200: 3772300 | CG200: 3788634.333 | CH200: 3804968.667 | CI200: 3821303 | CJ200: 3826029.333 | CK200: 3830755.667 | CL200: 3835482 | CM200: 3846643.333 | CN200: 3857804.667 | CO200: 3868966 | CP200: 3889773.333 | CQ200: 3910580.667 | CR200: 3931388 | CS200: 3952727.667 | CT200: 3974067.333 | CU200: 3995407 | CV200: 4022679.667 | CW200: 4049952.333 | CX200: 4077225 | CY200: 4098342 | CZ200: 4119459 | DA200: 4140576 | DB200: 4145261.667 | DC200: 4149947.333 | DD200: 4154633 | DE200: 4213860 | DF200: 4273087 | DG200: 4332314 | DH200: 4342411.333 | DI200: 4352508.667 | DJ200: 4362606 | DK200: 4415082.667 | DL200: 4467559.333 | DM200: 4520036 | DN200: 4590800.667 | DO200: 4661565.333 | DP200: 4732330 | DQ200: 4776656 | DR200: 4820982 | DS200: 4865308 | DT200: 4905080.333 | DU200: 4944852.667 | DV200: 4984625 | DW200: 5025549 | DX200: 5066473 | DY200: 5107397 | DZ200: 5139606.667 | EA200: 5171816.333 | EB200: 5204026 | EC200: 5269227.667 | ED200: 5334429.333 | EE200: 5399631 | EF200: 5412904 | EG200: 5426177 | EH200: 5439450 | EI200: 5451358 | EJ200: 5463266 | EK200: 5475174 | EL200: 5499468.333 | EM200: 5523762.667 | EN200: 5548057 | EO200: 5536853.667 | EP200: 5525650.333 | EQ200: 5514447 | ER200: 5486546 | ES200: 5458645 | ET200: 5430744 | EU200: 5393390 | EV200: 5356036 | EW200: 5318682 | EX200: 5291800.667 | EY200: 5264919.333 | EZ200: 5238038 | FA200: 5216805.667 | FB200: 5195573.333 | FC200: 5174341 | FD200: 5160996.333 | FE200: 5147651.667 | FF200: 5134307 | FG200: 5143545.333 | FH200: 5152783.667 | FI200: 5162022 | FJ200: 5191477.333 | FK200: 5220932.667 | FL200: 5250388 | FM200: 5314626.997 | FN200: 5378865.994 | FO200: 5443104.992 | FP200: 5462212.367 | FQ200: 5481319.743 | FR200: 5500427.119 | FS200: 5510536.6 | FT200: 5520646.08 | FU200: 5530755.561 | FV200: 5554346.344 | FW200: 5577937.127 | FX200: 5601527.91 | FY200: 5617684.089 | FZ200: 5633840.269 | GA200: 5649996.448 | GB200: 5669103.823 | GC200: 5688211.199 | GD200: 5707318.575 | GE200: 5717428.056 | GF200: 5727537.537 | GG200: 5737647.018 | GH200: 5761237.8 | GI200: 5784828.583 | GJ200: 5808419.366 | GK200: 5824575.546 | GL200: 5840731.725 | GM200: 5856887.904 | GN200: 5875995.28 | GO200: 5895102.655 | GP200: 5914210.031 | GQ200: 5924319.512 | GR200: 5934428.993 | GS200: 5944538.474 | GT200: 5968129.257 | GU200: 5991720.04 | GV200: 6015310.822 | GW200: 6031467.002 | GX200: 6047623.181 | GY200: 6063779.36 | GZ200: 6082886.736 | HA200: 6101994.111 | HB200: 6121101.487 | HC200: 6131210.968 | HD200: 6141320.449 | HE200: 6151429.93 | HF200: 6175020.713 | HG200: 6198611.496 | HH200: 6222202.279 | HI200: 6238358.458 | HJ200: 6254514.637 | HK200: 6270670.816 | HL200: 6289778.192 | HM200: 6308885.567 | HN200: 6327992.943 | HO200: 6338102.424 | HP200: 6348211.905 | HQ200: 6358321.386 | HR200: 6381912.169 | HS200: 6405502.952 | HT200: 6429093.735 | HU200: 6445249.914 | HV200: 6461406.093 | HW200: 6477562.272 | HX200: 6496669.648 | HY200: 6515777.024 | HZ200: 6534884.399 | IA200: 6544993.88 | IB200: 6555103.361 | IC200: 6565212.842 | ID200: 6588803.625 | IE200: 6612394.408 | IF200: 6635985.191 | IG200: 6652141.37 | IH200: 6668297.549 | II200: 6684453.728 | IJ200: 6703561.104 | IK200: 6722668.48 | IL200: 6741775.855
C201: 5 | D201: ETB | E201: [Abonados] | F201: 0 | G201: 0 | H201: 0 | I201: 0 | J201: 0 | K201: 0 | L201: 0 | M201: 0 | N201: 0 | O201: 0 | P201: 0 | Q201: 0 | R201: 0 | S201: 0 | T201: 0 | U201: 0 | V201: 0 | W201: 0 | X201: 0 | Y201: 0 | Z201: 0 | AA201: 0 | AB201: 0 | AC201: 0 | AD201: 0 | AE201: 0 | AF201: 0 | AG201: 0 | AH201: 0 | AI201: 0 | AJ201: 0 | AK201: 0 | AL201: 0 | AM201: 0 | AN201: 5127 | AO201: 10254 | AP201: 15381 | AQ201: 22719 | AR201: 30057 | AS201: 37395 | AT201: 49597 | AU201: 61799 | AV201: 74001 | AW201: 94432.33333 | AX201: 114863.6667 | AY201: 135295 | AZ201: 154349 | BA201: 173403 | BB201: 192457 | BC201: 196238 | BD201: 200019 | BE201: 203800 | BF201: 213368.6667 | BG201: 222937.3333 | BH201: 232506 | BI201: 239917.6667 | BJ201: 247329.3333 | BK201: 254741 | BL201: 258925.6667 | BM201: 263110.3333 | BN201: 267295 | BO201: 261753.3333 | BP201: 256211.6667 | BQ201: 250670 | BR201: 241811.3333 | BS201: 232952.6667 | BT201: 224094 | BU201: 218912.6667 | BV201: 213731.3333 | BW201: 208550 | BX201: 211489.6667 | BY201: 214429.3333 | BZ201: 217369 | CA201: 224564.3333 | CB201: 231759.6667 | CC201: 238955 | CD201: 242884.6667 | CE201: 246814.3333 | CF201: 250744 | CG201: 244416 | CH201: 238088 | CI201: 231760 | CJ201: 220957 | CK201: 210154 | CL201: 199351 | CM201: 197745.6667 | CN201: 196140.3333 | CO201: 194535 | CP201: 197162 | CQ201: 199789 | CR201: 202416 | CS201: 191472.6667 | CT201: 180529.3333 | CU201: 169586 | CV201: 166582.3333 | CW201: 163578.6667 | CX201: 160575 | CY201: 167982 | CZ201: 175389 | DA201: 182796 | DB201: 178389 | DC201: 173982 | DD201: 169575 | DE201: 172851.6667 | DF201: 176128.3333 | DG201: 179405 | DH201: 185507.3333 | DI201: 191609.6667 | DJ201: 197712 | DK201: 198528.6667 | DL201: 199345.3333 | DM201: 200162 | DN201: 194250.3333 | DO201: 188338.6667 | DP201: 182427 | DQ201: 173064.6667 | DR201: 163702.3333 | DS201: 154340 | DT201: 146464.3333 | DU201: 138588.6667 | DV201: 130713 | DW201: 130600.6667 | DX201: 130488.3333 | DY201: 130376 | DZ201: 127628.3333 | EA201: 124880.6667 | EB201: 122133 | EC201: 125671.6667 | ED201: 129210.3333 | EE201: 132749 | EF201: 134841.6667 | EG201: 136934.3333 | EH201: 139027 | EI201: 144055.3333 | EJ201: 149083.6667 | EK201: 154112 | EL201: 160839.6667 | EM201: 167567.3333 | EN201: 174295 | EO201: 180669 | EP201: 187043 | EQ201: 193417 | ER201: 194214.3333 | ES201: 195011.6667 | ET201: 195809 | EU201: 195501.3333 | EV201: 195193.6667 | EW201: 194886 | EX201: 195183 | EY201: 195480 | EZ201: 195777 | FA201: 194425.3333 | FB201: 193073.6667 | FC201: 191722 | FD201: 174650 | FE201: 157578 | FF201: 140506 | FG201: 137287.3333 | FH201: 134068.6667 | FI201: 130850 | FJ201: 129249.3333 | FK201: 127648.6667 | FL201: 126048 | FM201: 127713.3542 | FN201: 129378.7084 | FO201: 131044.0626 | FP201: 130327.5305 | FQ201: 129610.9983 | FR201: 128894.4662 | FS201: 130689.0268 | FT201: 132483.5874 | FU201: 134278.148 | FV201: 135470.8825 | FW201: 136663.6169 | FX201: 137856.3513 | FY201: 139518.5955 | FZ201: 141180.8398 | GA201: 142843.084 | GB201: 142126.5518 | GC201: 141410.0197 | GD201: 140693.4875 | GE201: 142488.0481 | GF201: 144282.6088 | GG201: 146077.1694 | GH201: 147269.9038 | GI201: 148462.6382 | GJ201: 149655.3727 | GK201: 151317.6169 | GL201: 152979.8611 | GM201: 154642.1053 | GN201: 153925.5732 | GO201: 153209.041 | GP201: 152492.5089 | GQ201: 154287.0695 | GR201: 156081.6301 | GS201: 157876.1907 | GT201: 159068.9251 | GU201: 160261.6596 | GV201: 161454.394 | GW201: 163116.6382 | GX201: 164778.8824 | GY201: 166441.1267 | GZ201: 165724.5945 | HA201: 165008.0624 | HB201: 164291.5302 | HC201: 166086.0908 | HD201: 167880.6514 | HE201: 169675.2121 | HF201: 170867.9465 | HG201: 172060.6809 | HH201: 173253.4154 | HI201: 174915.6596 | HJ201: 176577.9038 | HK201: 178240.148 | HL201: 177523.6159 | HM201: 176807.0837 | HN201: 176090.5515 | HO201: 177885.1122 | HP201: 179679.6728 | HQ201: 181474.2334 | HR201: 182666.9678 | HS201: 183859.7023 | HT201: 185052.4367 | HU201: 186714.6809 | HV201: 188376.9251 | HW201: 190039.1694 | HX201: 189322.6372 | HY201: 188606.105 | HZ201: 187889.5729 | IA201: 189684.1335 | IB201: 191478.6941 | IC201: 193273.2547 | ID201: 194465.9892 | IE201: 195658.7236 | IF201: 196851.458 | IG201: 198513.7023 | IH201: 200175.9465 | II201: 201838.1907 | IJ201: 201121.6585 | IK201: 200405.1264 | IL201: 199688.5942
C202: 6 | D202: OMVs | E202: [Abonados] | F202: 0 | G202: 0 | H202: 0 | I202: 0 | J202: 0 | K202: 0 | L202: 0 | M202: 0 | N202: 0 | O202: 0 | P202: 0 | Q202: 0 | R202: 0 | S202: 0 | T202: 0 | U202: 0 | V202: 0 | W202: 0 | X202: 0 | Y202: 0 | Z202: 0 | AA202: 0 | AB202: 0 | AC202: 0 | AD202: 0 | AE202: 0 | AF202: 0 | AG202: 0 | AH202: 0 | AI202: 0 | AJ202: 0 | AK202: 0 | AL202: 0 | AM202: 0 | AN202: 0 | AO202: 0 | AP202: 0 | AQ202: 0 | AR202: 0 | AS202: 0 | AT202: 0 | AU202: 0 | AV202: 0 | AW202: 0 | AX202: 0 | AY202: 0 | AZ202: 0 | BA202: 0 | BB202: 0 | BC202: 0 | BD202: 0 | BE202: 0 | BF202: 0 | BG202: 0 | BH202: 0 | BI202: 0 | BJ202: 0 | BK202: 0 | BL202: 0 | BM202: 0 | BN202: 0 | BO202: 0 | BP202: 0 | BQ202: 0 | BR202: 0 | BS202: 0 | BT202: 0 | BU202: 0 | BV202: 0 | BW202: 0 | BX202: 0 | BY202: 0 | BZ202: 0 | CA202: 0 | CB202: 0 | CC202: 0 | CD202: 0 | CE202: 0 | CF202: 0 | CG202: 0 | CH202: 0 | CI202: 0 | CJ202: 0 | CK202: 0 | CL202: 0 | CM202: 0 | CN202: 0 | CO202: 0 | CP202: 0 | CQ202: 0 | CR202: 0 | CS202: 0 | CT202: 0 | CU202: 0 | CV202: 0 | CW202: 0 | CX202: 0 | CY202: 0 | CZ202: 0 | DA202: 0 | DB202: 0 | DC202: 0 | DD202: 0 | DE202: 0 | DF202: 0 | DG202: 0 | DH202: 0 | DI202: 0 | DJ202: 0 | DK202: 0 | DL202: 0 | DM202: 0 | DN202: 0 | DO202: 0 | DP202: 0 | DQ202: 0 | DR202: 0 | DS202: 0 | DT202: 0 | DU202: 0 | DV202: 0 | DW202: 0 | DX202: 0 | DY202: 0 | DZ202: 0 | EA202: 0 | EB202: 0 | EC202: 0 | ED202: 0 | EE202: 0 | EF202: 0 | EG202: 0 | EH202: 0 | EI202: 0 | EJ202: 0 | EK202: 0 | EL202: 0 | EM202: 0 | EN202: 0 | EO202: 0 | EP202: 0 | EQ202: 0 | ER202: 0 | ES202: 0 | ET202: 0 | EU202: 0 | EV202: 0 | EW202: 0 | EX202: 0 | EY202: 0 | EZ202: 0 | FA202: 0 | FB202: 0 | FC202: 0 | FD202: 0 | FE202: 0 | FF202: 0 | FG202: 0 | FH202: 0 | FI202: 0 | FJ202: 0 | FK202: 0 | FL202: 0 | FM202: 0 | FN202: 0 | FO202: 0 | FP202: 0 | FQ202: 0 | FR202: 0 | FS202: 0 | FT202: 0 | FU202: 0 | FV202: 0 | FW202: 0 | FX202: 0 | FY202: 0 | FZ202: 0 | GA202: 0 | GB202: 0 | GC202: 0 | GD202: 0 | GE202: 0 | GF202: 0 | GG202: 0 | GH202: 0 | GI202: 0 | GJ202: 0 | GK202: 0 | GL202: 0 | GM202: 0 | GN202: 0 | GO202: 0 | GP202: 0 | GQ202: 0 | GR202: 0 | GS202: 0 | GT202: 0 | GU202: 0 | GV202: 0 | GW202: 0 | GX202: 0 | GY202: 0 | GZ202: 0 | HA202: 0 | HB202: 0 | HC202: 0 | HD202: 0 | HE202: 0 | HF202: 0 | HG202: 0 | HH202: 0 | HI202: 0 | HJ202: 0 | HK202: 0 | HL202: 0 | HM202: 0 | HN202: 0 | HO202: 0 | HP202: 0 | HQ202: 0 | HR202: 0 | HS202: 0 | HT202: 0 | HU202: 0 | HV202: 0 | HW202: 0 | HX202: 0 | HY202: 0 | HZ202: 0 | IA202: 0 | IB202: 0 | IC202: 0 | ID202: 0 | IE202: 0 | IF202: 0 | IG202: 0 | IH202: 0 | II202: 0 | IJ202: 0 | IK202: 0 | IL202: 0
C203: 7 | D203: libre | E203: [Abonados]
C204: 8 | D204: libre | E204: [Abonados]
C205: 9 | D205: libre | E205: [Abonados]
C206: 10 | D206: libre | E206: [Abonados]
C207: 11 | D207: libre | E207: [Abonados]
C208: =+C207+1 -> 12 | D208: libre | E208: [Abonados]
C209: =+C208+1 -> 13 | D209: libre | E209: [Abonados]
C210: =+C209+1 -> 14 | D210: libre | E210: [Abonados]
C211: =+C210+1 -> 15 | D211: libre | E211: [Abonados]
C212: T | D212: Total | E212: [Abonados] | F212: =SUM(F197:F211) -> 8473911 | G212: 8563346.667 | H212: 8652782.333 | I212: 8742218 | J212: 8818518 | K212: 8894818 | L212: 8971118 | M212: 9042773.667 | N212: 9114429.333 | O212: 9186085 | P212: 9268580.333 | Q212: 9351075.667 | R212: 9433571 | S212: 9486910.333 | T212: 9540249.667 | U212: 9593589 | V212: 9674244.667 | W212: 9754900.333 | X212: 9835556 | Y212: 9905181.667 | Z212: 9974807.333 | AA212: 10044433 | AB212: 10280380 | AC212: 10516327 | AD212: 10752274 | AE212: 10778713.67 | AF212: 10805153.33 | AG212: 10831593 | AH212: 10866314.67 | AI212: 10901036.33 | AJ212: 10935758 | AK212: 10937689.33 | AL212: 10939620.67 | AM212: 10941552 | AN212: 10975545.67 | AO212: 11009539.33 | AP212: 11043533 | AQ212: 11051246.67 | AR212: 11058960.33 | AS212: 11066674 | AT212: 11079975.33 | AU212: 11093276.67 | AV212: 11106578 | AW212: 11161718 | AX212: 11216858 | AY212: 11271998 | AZ212: 11330911.67 | BA212: 11389825.33 | BB212: 11448739 | BC212: 11459799.67 | BD212: 11470860.33 | BE212: 11481921 | BF212: 11551662 | BG212: 11621403 | BH212: 11691144 | BI212: 11781462 | BJ212: 11871780 | BK212: 11962098 | BL212: 12012309.33 | BM212: 12062520.67 | BN212: 12112732 | BO212: 12141400.67 | BP212: 12170069.33 | BQ212: 12198738 | BR212: =SUM(BR197:BR211) -> 12248013 | BS212: 12297288 | BT212: 12346563 | BU212: 12388349.33 | BV212: 12430135.67 | BW212: 12471922 | BX212: 12542209 | BY212: 12612496 | BZ212: 12682783 | CA212: 12711509.67 | CB212: 12740236.33 | CC212: 12768963 | CD212: 12844899.33 | CE212: 12920835.67 | CF212: 12996772 | CG212: 13053437.33 | CH212: 13110102.67 | CI212: 13166768 | CJ212: 13199263 | CK212: 13231758 | CL212: 13264253 | CM212: 13325041.67 | CN212: 13385830.33 | CO212: 13446619 | CP212: 13520692.33 | CQ212: 13594765.67 | CR212: 13668839 | CS212: 13730563 | CT212: 13792287 | CU212: 13854011 | CV212: 13910307.67 | CW212: 13966604.33 | CX212: 14022901 | CY212: 14040223 | CZ212: 14057545 | DA212: 14074867 | DB212: 14034127.67 | DC212: 13993388.33 | DD212: 13952649 | DE212: 14063503.33 | DF212: 14174357.67 | DG212: 14285212 | DH212: 14386225.67 | DI212: 14487239.33 | DJ212: 14588253 | DK212: 14730234.33 | DL212: 14872215.67 | DM212: 15014197 | DN212: 15240847.67 | DO212: 15467498.33 | DP212: 15694149 | DQ212: 16061894.67 | DR212: 16429640.33 | DS212: 16797386 | DT212: 17034117.67 | DU212: 17270849.33 | DV212: 17507581 | DW212: 17747465.67 | DX212: 17987350.33 | DY212: 18227235 | DZ212: 18456805.67 | EA212: 18686376.33 | EB212: 18915947 | EC212: 19069649.67 | ED212: =SUM(ED197:ED211) -> 19223352.33 | EE212: 19377055 | EF212: 19543773.67 | EG212: 19710492.33 | EH212: 19877211 | EI212: 20059423 | EJ212: 20241635 | EK212: 20423847 | EL212: 20613769.33 | EM212: 20803691.67 | EN212: 20993614 | EO212: 21157066 | EP212: 21320518 | EQ212: 21483970 | ER212: 21597795.67 | ES212: 21711621.33 | ET212: 21825447 | EU212: 21866782.33 | EV212: 21908117.67 | EW212: 21949453 | EX212: 22011405 | EY212: 22073357 | EZ212: 22135309 | FA212: 22223351.67 | FB212: 22311394.33 | FC212: 22399437 | FD212: 22504538.67 | FE212: 22609640.33 | FF212: 22714742 | FG212: 22659067.67 | FH212: 22603393.33 | FI212: 22547719 | FJ212: 22583779 | FK212: 22619839 | FL212: 22655899 | FM212: 22811723.84 | FN212: 22967548.67 | FO212: 23123373.51 | FP212: 23340454.4 | FQ212: 23557535.3 | FR212: 23774616.2 | FS212: 23911693.38 | FT212: 24048770.56 | FU212: 24185847.75 | FV212: 24306526.58 | FW212: 24427205.4 | FX212: 24547884.23 | FY212: 24655681.95 | FZ212: 24763479.67 | GA212: 24871277.39 | GB212: 25088358.29 | GC212: 25305439.18 | GD212: 25522520.08 | GE212: 25659597.26 | GF212: 25796674.45 | GG212: 25933751.63 | GH212: 26054430.46 | GI212: 26175109.29 | GJ212: 26295788.12 | GK212: 26403585.84 | GL212: 26511383.56 | GM212: 26619181.27 | GN212: 26836262.17 | GO212: 27053343.07 | GP212: =SUM(GP197:GP211) -> 27270423.96 | GQ212: 27407501.15 | GR212: 27544578.33 | GS212: 27681655.51 | GT212: 27802334.34 | GU212: 27923013.17 | GV212: 28043692 | GW212: 28151489.72 | GX212: 28259287.44 | GY212: 28367085.16 | GZ212: 28584166.05 | HA212: 28801246.95 | HB212: 29018327.85 | HC212: 29155405.03 | HD212: 29292482.21 | HE212: 29429559.4 | HF212: 29550238.23 | HG212: 29670917.06 | HH212: 29791595.89 | HI212: 29899393.6 | HJ212: 30007191.32 | HK212: 30114989.04 | HL212: 30332069.94 | HM212: 30549150.84 | HN212: =SUM(HN197:HN211) -> 30766231.73 | HO212: 30903308.91 | HP212: 31040386.1 | HQ212: 31177463.28 | HR212: 31298142.11 | HS212: 31418820.94 | HT212: 31539499.77 | HU212: 31647297.49 | HV212: 31755095.21 | HW212: 31862892.93 | HX212: 32079973.82 | HY212: 32297054.72 | HZ212: 32514135.62 | IA212: 32651212.8 | IB212: 32788289.98 | IC212: 32925367.16 | ID212: 33046045.99 | IE212: 33166724.82 | IF212: 33287403.65 | IG212: 33395201.37 | IH212: 33502999.09 | II212: 33610796.81 | IJ212: 33827877.71 | IK212: 34044958.6 | IL212: 34262039.5
B213: Prepago
C214: 1 | D214: =L.oper.nom -> Comcel | E214: [Abonados] | F214: =J115 -> 24063690 | G214: =F214+(I214-F214)/3 -> 24082165.33 | H214: =F214+(I214-F214)/3*2 -> 24100640.67 | I214: =K115 -> 24119116 | J214: =I214+(L214-I214)/3 -> 24190912.33 | K214: =I214+(L214-I214)/3*2 -> 24262708.67 | L214: =L115 -> 24334505 | M214: =L214+(O214-L214)/3 -> 24478748.33 | N214: =L214+(O214-L214)/3*2 -> 24622991.67 | O214: =M115 -> 24767235 | P214: =O214+(R214-O214)/3 -> 24851331.67 | Q214: =O214+(R214-O214)/3*2 -> 24935428.33 | R214: =N115 -> 25019525 | S214: =R214+(U214-R214)/3 -> 24082836.33 | T214: =R214+(U214-R214)/3*2 -> 23146147.67 | U214: =O115 -> 22209459 | V214: =U214+(X214-U214)/3 -> 22234923.67 | W214: =U214+(X214-U214)/3*2 -> 22260388.33 | X214: =P115 -> 22285853 | Y214: =X214+(AA214-X214)/3 -> 22444815 | Z214: =X214+(AA214-X214)/3*2 -> 22603777 | AA214: =Q115 -> 22762739 | AB214: =AA214+(AD214-AA214)/3 -> 22929401.67 | AC214: =AA214+(AD214-AA214)/3*2 -> 23096064.33 | AD214: =R115 -> 23262727 | AE214: =AD214+(AG214-AD214)/3 -> 23310349 | AF214: =AD214+(AG214-AD214)/3*2 -> 23357971 | AG214: =S115 -> 23405593 | AH214: =AG214+(AJ214-AG214)/3 -> 23362470 | AI214: =AG214+(AJ214-AG214)/3*2 -> 23319347 | AJ214: =T115 -> 23276224 | AK214: =AJ214+(AM214-AJ214)/3 -> 23342597 | AL214: =AJ214+(AM214-AJ214)/3*2 -> 23408970 | AM214: =U115 -> 23475343 | AN214: =AM214+(AP214-AM214)/3 -> 23621700.67 | AO214: =AM214+(AP214-AM214)/3*2 -> 23768058.33 | AP214: =V115 -> 23914416 | AQ214: =AP214+(AS214-AP214)/3 -> 23940827 | AR214: =AP214+(AS214-AP214)/3*2 -> 23967238 | AS214: =W115 -> 23993649 | AT214: =AS214+(AV214-AS214)/3 -> 23848691.33 | AU214: =AS214+(AV214-AS214)/3*2 -> 23703733.67 | AV214: =X115 -> 23558776 | AW214: =AV214+(AY214-AV214)/3 -> 23407157.67 | AX214: =AV214+(AY214-AV214)/3*2 -> 23255539.33 | AY214: =Y115 -> 23103921 | AZ214: =AY214+(BB214-AY214)/3 -> 23103921 | BA214: =AY214+(BB214-AY214)/3*2 -> 23103921 | BB214: =Z115 -> 23103921 | BC214: =BB214+(BE214-BB214)/3 -> 22869757 | BD214: =BB214+(BE214-BB214)/3*2 -> 22635593 | BE214: =AA115 -> 22401429 | BF214: =BE214+(BH214-BE214)/3 -> 22326475.33 | BG214: =BE214+(BH214-BE214)/3*2 -> 22251521.67 | BH214: =AB115 -> 22176568 | BI214: =BH214+(BK214-BH214)/3 -> 22206075.33 | BJ214: =BH214+(BK214-BH214)/3*2 -> 22235582.67 | BK214: =AC115 -> 22265090 | BL214: =BK214+(BN214-BK214)/3 -> 22370697.67 | BM214: =BK214+(BN214-BK214)/3*2 -> 22476305.33 | BN214: =AD115 -> 22581913 | BO214: =BN214+(BQ214-BN214)/3 -> 22619398.67 | BP214: =BN214+(BQ214-BN214)/3*2 -> 22656884.33 | BQ214: =AE115 -> 22694370 | BR214: =BQ214+(BT214-BQ214)/3 -> 22686786 | BS214: =BQ214+(BT214-BQ214)/3*2 -> 22679202 | BT214: =AF115 -> 22671618 | BU214: =BT214+(BW214-BT214)/3 -> 22617144.67 | BV214: =BT214+(BW214-BT214)/3*2 -> 22562671.33 | BW214: =AG115 -> 22508198 | BX214: =BW214+(BZ214-BW214)/3 -> 22560327 | BY214: =BW214+(BZ214-BW214)/3*2 -> 22612456 | BZ214: =AH115 -> 22664585 | CA214: =BZ214+(CC214-BZ214)/3 -> 22682131 | CB214: =BZ214+(CC214-BZ214)/3*2 -> 22699677 | CC214: =AI115 -> 22717223 | CD214: =CC214+(CF214-CC214)/3 -> 22605231.33 | CE214: =CC214+(CF214-CC214)/3*2 -> 22493239.67 | CF214: =AJ115 -> 22381248 | CG214: =CF214+(CI214-CF214)/3 -> 22369473.67 | CH214: =CF214+(CI214-CF214)/3*2 -> 22357699.33 | CI214: =AK115 -> 22345925 | CJ214: =CI214+(CL214-CI214)/3 -> 22478670 | CK214: =CI214+(CL214-CI214)/3*2 -> 22611415 | CL214: =AL115 -> 22744160 | CM214: =CL214+(CO214-CL214)/3 -> 22792870.67 | CN214: =CL214+(CO214-CL214)/3*2 -> 22841581.33 | CO214: =AM115 -> 22890292 | CP214: =CO214+(CR214-CO214)/3 -> 22936590.67 | CQ214: =CO214+(CR214-CO214)/3*2 -> 22982889.33 | CR214: =AN115 -> 23029188 | CS214: =CR214+(CU214-CR214)/3 -> 23128663.33 | CT214: =CR214+(CU214-CR214)/3*2 -> 23228138.67 | CU214: =AO115 -> 23327614 | CV214: =CU214+(CX214-CU214)/3 -> 23469569.33 | CW214: =CU214+(CX214-CU214)/3*2 -> 23611524.67 | CX214: =AP115 -> 23753480 | CY214: =CX214+(DA214-CX214)/3 -> 23788955.33 | CZ214: =CX214+(DA214-CX214)/3*2 -> 23824430.67 | DA214: =AQ115 -> 23859906 | DB214: =DA214+(DD214-DA214)/3 -> 23944212.33 | DC214: =DA214+(DD214-DA214)/3*2 -> 24028518.67 | DD214: =AR115 -> 24112825 | DE214: =DD214+(DG214-DD214)/3 -> 24228518 | DF214: =DD214+(DG214-DD214)/3*2 -> 24344211 | DG214: =AS115 -> 24459904 | DH214: =DG214+(DJ214-DG214)/3 -> 24721131 | DI214: =DG214+(DJ214-DG214)/3*2 -> 24982358 | DJ214: =AT115 -> 25243585 | DK214: =DJ214+(DM214-DJ214)/3 -> 25343074.67 | DL214: =DJ214+(DM214-DJ214)/3*2 -> 25442564.33 | DM214: =AU115 -> 25542054 | DN214: =DM214+(DP214-DM214)/3 -> 25616387.33 | DO214: =DM214+(DP214-DM214)/3*2 -> 25690720.67 | DP214: =AV115 -> 25765054 | DQ214: =DP214+(DS214-DP214)/3 -> 25831406.33 | DR214: =DP214+(DS214-DP214)/3*2 -> 25897758.67 | DS214: =AW115 -> 25964111 | DT214: =DS214+(DV214-DS214)/3 -> 26080429.67 | DU214: =DS214+(DV214-DS214)/3*2 -> 26196748.33 | DV214: =AX115 -> 26313067 | DW214: =DV214+(DY214-DV214)/3 -> 26429280 | DX214: =DV214+(DY214-DV214)/3*2 -> 26545493 | DY214: =AY115 -> 26661706 | DZ214: =DY214+(EB214-DY214)/3 -> 26775194 | EA214: =DY214+(EB214-DY214)/3*2 -> 26888682 | EB214: =AZ115 -> 27002170 | EC214: =EB214+(EE214-EB214)/3 -> 27104383.33 | ED214: =EB214+(EE214-EB214)/3*2 -> 27206596.67 | EE214: =BA115 -> 27308810 | EF214: =EE214+(EH214-EE214)/3 -> 27490822.67 | EG214: =EE214+(EH214-EE214)/3*2 -> 27672835.33 | EH214: =BB115 -> 27854848 | EI214: =EH214+(EK214-EH214)/3 -> 27972881.33 | EJ214: =EH214+(EK214-EH214)/3*2 -> 28090914.67 | EK214: =BC115 -> 28208948 | EL214: =EK214+(EN214-EK214)/3 -> 28270588.33 | EM214: =EK214+(EN214-EK214)/3*2 -> 28332228.67 | EN214: =BD115 -> 28393869 | EO214: =EN214+(EQ214-EN214)/3 -> 28451609 | EP214: =EN214+(EQ214-EN214)/3*2 -> 28509349 | EQ214: =BE115 -> 28567089 | ER214: =EQ214+(ET214-EQ214)/3 -> 28719035.67 | ES214: =EQ214+(ET214-EQ214)/3*2 -> 28870982.33 | ET214: =BF115 -> 29022929 | EU214: =ET214+(EW214-ET214)/3 -> 29148996.33 | EV214: =ET214+(EW214-ET214)/3*2 -> 29275063.67 | EW214: =BG115 -> 29401131 | EX214: =EW214+(EZ214-EW214)/3 -> 29487979 | EY214: =EW214+(EZ214-EW214)/3*2 -> 29574827 | EZ214: =BH115 -> 29661675 | FA214: =EZ214+(FC214-EZ214)/3 -> 29745380.33 | FB214: =EZ214+(FC214-EZ214)/3*2 -> 29829085.67 | FC214: =BI115 -> 29912791 | FD214: =FC214+(FF214-FC214)/3 -> 29972082.67 | FE214: =FC214+(FF214-FC214)/3*2 -> 30031374.33 | FF214: =BJ115 -> 30090666 | FG214: =FF214+(FI214-FF214)/3 -> 30135434.33 | FH214: =FF214+(FI214-FF214)/3*2 -> 30180202.67 | FI214: =BK115 -> 30224971 | FJ214: =FI214+(FL214-FI214)/3 -> 30301371.67 | FK214: =FI214+(FL214-FI214)/3*2 -> 30377772.33 | FL214: =BL115 -> 30454173 | FM214: =FL214+(FO214-FL214)/3 -> 30544126.15 | FN214: =FL214+(FO214-FL214)/3*2 -> 30634079.3 | FO214: =BM115 -> 30724032.44 | FP214: =FO214+(FR214-FO214)/3 -> 30949946.11 | FQ214: =FO214+(FR214-FO214)/3*2 -> 31175859.77 | FR214: =BN115 -> 31401773.43 | FS214: =FR214+(FU214-FR214)/3 -> 31437504.76 | FT214: =FR214+(FU214-FR214)/3*2 -> 31473236.09 | FU214: =BO115 -> 31508967.42 | FV214: =FU214+(FX214-FU214)/3 -> 31517169.89 | FW214: =FU214+(FX214-FU214)/3*2 -> 31525372.37 | FX214: =BP115 -> 31533574.84 | FY214: =FX214+(GA214-FX214)/3 -> 31630344.44 | FZ214: =FX214+(GA214-FX214)/3*2 -> 31727114.03 | GA214: =BQ115 -> 31823883.63 | GB214: =GA214+(GD214-GA214)/3 -> 32049797.29 | GC214: =GA214+(GD214-GA214)/3*2 -> 32275710.96 | GD214: =BR115 -> 32501624.62 | GE214: =GD214+(GG214-GD214)/3 -> 32537355.95 | GF214: =GD214+(GG214-GD214)/3*2 -> 32573087.28 | GG214: =BS115 -> 32608818.6 | GH214: =GG214+(GJ214-GG214)/3 -> 32617021.08 | GI214: =GG214+(GJ214-GG214)/3*2 -> 32625223.55 | GJ214: =BT115 -> 32633426.03 | GK214: =GJ214+(GM214-GJ214)/3 -> 32730195.62 | GL214: =GJ214+(GM214-GJ214)/3*2 -> 32826965.22 | GM214: =BU115 -> 32923734.82 | GN214: =GM214+(GP214-GM214)/3 -> 33149648.48 | GO214: =GM214+(GP214-GM214)/3*2 -> 33375562.14 | GP214: =BV115 -> 33601475.81 | GQ214: =GP214+(GS214-GP214)/3 -> 33637207.13 | GR214: =GP214+(GS214-GP214)/3*2 -> 33672938.46 | GS214: =BW115 -> 33708669.79 | GT214: =GS214+(GV214-GS214)/3 -> 33716872.27 | GU214: =GS214+(GV214-GS214)/3*2 -> 33725074.74 | GV214: =BX115 -> 33733277.22 | GW214: =GV214+(GY214-GV214)/3 -> 33830046.81 | GX214: =GV214+(GY214-GV214)/3*2 -> 33926816.41 | GY214: =BY115 -> 34023586 | GZ214: =GY214+(HB214-GY214)/3 -> 34249499.67 | HA214: =GY214+(HB214-GY214)/3*2 -> 34475413.33 | HB214: =BZ115 -> 34701326.99 | HC214: =HB214+(HE214-HB214)/3 -> 34737058.32 | HD214: =HB214+(HE214-HB214)/3*2 -> 34772789.65 | HE214: =CA115 -> 34808520.98 | HF214: =HE214+(HH214-HE214)/3 -> 34816723.45 | HG214: =HE214+(HH214-HE214)/3*2 -> 34824925.93 | HH214: =CB115 -> 34833128.4 | HI214: =HH214+(HK214-HH214)/3 -> 34929898 | HJ214: =HH214+(HK214-HH214)/3*2 -> 35026667.59 | HK214: =CC115 -> 35123437.19 | HL214: =HK214+(HN214-HK214)/3 -> 35349350.85 | HM214: =HK214+(HN214-HK214)/3*2 -> 35575264.51 | HN214: =CD115 -> 35801178.18 | HO214: =HN214+(HQ214-HN214)/3 -> 35836909.51 | HP214: =HN214+(HQ214-HN214)/3*2 -> 35872640.83 | HQ214: =CE115 -> 35908372.16 | HR214: =HQ214+(HT214-HQ214)/3 -> 35916574.64 | HS214: =HQ214+(HT214-HQ214)/3*2 -> 35924777.11 | HT214: =CF115 -> 35932979.59 | HU214: =HT214+(HW214-HT214)/3 -> 36029749.18 | HV214: =HT214+(HW214-HT214)/3*2 -> 36126518.78 | HW214: =CG115 -> 36223288.37 | HX214: =HW214+(HZ214-HW214)/3 -> 36449202.04 | HY214: =HW214+(HZ214-HW214)/3*2 -> 36675115.7 | HZ214: =CH115 -> 36901029.36 | IA214: =HZ214+(IC214-HZ214)/3 -> 36936760.69 | IB214: =HZ214+(IC214-HZ214)/3*2 -> 36972492.02 | IC214: =CI115 -> 37008223.35 | ID214: =IC214+(IF214-IC214)/3 -> 37016425.82 | IE214: =IC214+(IF214-IC214)/3*2 -> 37024628.3 | IF214: =CJ115 -> 37032830.77 | IG214: =IF214+(II214-IF214)/3 -> 37129600.37 | IH214: =IF214+(II214-IF214)/3*2 -> 37226369.97 | II214: =CK115 -> 37323139.56 | IJ214: =II214+(IL214-II214)/3 -> 37549053.22 | IK214: =II214+(IL214-II214)/3*2 -> 37774966.89 | IL214: =CL115 -> 38000880.55
C215: 2 | D215: Partners | E215: [Abonados] | F215: 0 | G215: 0 | H215: 0 | I215: 0 | J215: 0 | K215: 0 | L215: 0 | M215: 0 | N215: 0 | O215: 0 | P215: 0 | Q215: 0 | R215: 0 | S215: 0 | T215: 0 | U215: 0 | V215: 57000 | W215: 114000 | X215: 171000 | Y215: 174578 | Z215: 178156 | AA215: 181734 | AB215: 132670.3333 | AC215: 83606.66667 | AD215: 34543 | AE215: 35300.66667 | AF215: 36058.33333 | AG215: 36816 | AH215: 37563 | AI215: 38310 | AJ215: 39057 | AK215: 49977.66667 | AL215: 60898.33333 | AM215: 71819 | AN215: 77315 | AO215: 82811 | AP215: 88307 | AQ215: 90533.33333 | AR215: 92759.66667 | AS215: 94986 | AT215: 115482 | AU215: 135978 | AV215: 156474 | AW215: 183999 | AX215: 211524 | AY215: 239049 | AZ215: 283069.3333 | BA215: 327089.6667 | BB215: 371110 | BC215: 398903.3333 | BD215: 426696.6667 | BE215: 454490 | BF215: 506905 | BG215: 559320 | BH215: 611735 | BI215: 643940 | BJ215: 676145 | BK215: 708350 | BL215: 749741.6667 | BM215: 791133.3333 | BN215: 832525 | BO215: 886090.6667 | BP215: 939656.3333 | BQ215: 993222 | BR215: 1016819.667 | BS215: 1040417.333 | BT215: 1064015 | BU215: 1172781.333 | BV215: 1281547.667 | BW215: 1390314 | BX215: 1427542.667 | BY215: 1464771.333 | BZ215: 1502000 | CA215: 1492942.333 | CB215: 1483884.667 | CC215: 1474827 | CD215: 1470529.333 | CE215: 1466231.667 | CF215: 1461934 | CG215: 1477022 | CH215: 1492110 | CI215: 1507198 | CJ215: 1531779.333 | CK215: 1556360.667 | CL215: 1580942 | CM215: 1597304 | CN215: 1613666 | CO215: 1630028 | CP215: 1643812 | CQ215: 1657596 | CR215: 1671380 | CS215: 1686639 | CT215: 1701898 | CU215: 1717157 | CV215: 1713405 | CW215: 1709653 | CX215: 1705901 | CY215: 1706133 | CZ215: 1706365 | DA215: 1706597 | DB215: 1463715 | DC215: 1220833 | DD215: 977951 | DE215: 959068 | DF215: 940185 | DG215: 921302 | DH215: 872403.3333 | DI215: 823504.6667 | DJ215: 774606 | DK215: 778531 | DL215: 782456 | DM215: 786381 | DN215: 881108 | DO215: 975835 | DP215: 1070562 | DQ215: 1191171 | DR215: 1311780 | DS215: 1432389 | DT215: 1474303 | DU215: 1516217 | DV215: 1558131 | DW215: 1502193 | DX215: 1446255 | DY215: 1390317 | DZ215: 1442980.333 | EA215: 1495643.667 | EB215: 1548307 | EC215: 1558505 | ED215: 1568703 | EE215: 1578901 | EF215: 1606276 | EG215: 1633651 | EH215: 1661026 | EI215: 1792410.333 | EJ215: 1923794.667 | EK215: 2055179 | EL215: 2032775.333 | EM215: 2010371.667 | EN215: 1987968 | EO215: 2254881.333 | EP215: 2521794.667 | EQ215: 2788708 | ER215: 3156637.667 | ES215: 3524567.333 | ET215: 3892497 | EU215: 4113215 | EV215: 4333933 | EW215: 4554651 | EX215: 4682191.333 | EY215: 4809731.667 | EZ215: 4937272 | FA215: 5055005.667 | FB215: 5172739.333 | FC215: 5290473 | FD215: 5510525.667 | FE215: 5730578.333 | FF215: 5950631 | FG215: 5837359.333 | FH215: 5724087.667 | FI215: 5610816 | FJ215: 5490879.667 | FK215: 5370943.333 | FL215: 5251007 | FM215: 5276901.952 | FN215: 5302796.905 | FO215: 5328691.857 | FP215: 5334099.869 | FQ215: 5339507.882 | FR215: 5344915.894 | FS215: 5362632.087 | FT215: 5380348.281 | FU215: 5398064.474 | FV215: 5459842.432 | FW215: 5521620.39 | FX215: 5583398.347 | FY215: 5609293.3 | FZ215: 5635188.252 | GA215: 5661083.205 | GB215: 5666491.217 | GC215: 5671899.229 | GD215: 5677307.241 | GE215: 5695023.435 | GF215: 5712739.628 | GG215: 5730455.821 | GH215: 5792233.779 | GI215: 5854011.737 | GJ215: 5915789.695 | GK215: 5941684.647 | GL215: 5967579.599 | GM215: 5993474.552 | GN215: 5998882.564 | GO215: 6004290.576 | GP215: 6009698.589 | GQ215: 6027414.782 | GR215: 6045130.975 | GS215: 6062847.169 | GT215: 6124625.127 | GU215: 6186403.084 | GV215: 6248181.042 | GW215: 6274075.994 | GX215: 6299970.947 | GY215: 6325865.899 | GZ215: 6331273.911 | HA215: 6336681.924 | HB215: 6342089.936 | HC215: 6359806.129 | HD215: 6377522.323 | HE215: 6395238.516 | HF215: 6457016.474 | HG215: 6518794.432 | HH215: 6580572.389 | HI215: 6606467.342 | HJ215: 6632362.294 | HK215: 6658257.247 | HL215: 6663665.259 | HM215: 6669073.271 | HN215: 6674481.283 | HO215: 6692197.477 | HP215: 6709913.67 | HQ215: 6727629.863 | HR215: 6789407.821 | HS215: 6851185.779 | HT215: 6912963.737 | HU215: 6938858.689 | HV215: 6964753.642 | HW215: 6990648.594 | HX215: 6996056.606 | HY215: 7001464.618 | HZ215: 7006872.631 | IA215: 7024588.824 | IB215: 7042305.017 | IC215: 7060021.211 | ID215: 7121799.169 | IE215: 7183577.126 | IF215: 7245355.084 | IG215: 7271250.036 | IH215: 7297144.989 | II215: 7323039.941 | IJ215: 7328447.953 | IK215: 7333855.966 | IL215: 7339263.978
C216: 3 | D216: Tigo | E216: [Abonados] | F216: 4787055 | G216: 4850740 | H216: 4914425 | I216: 4978110 | J216: 5031998.667 | K216: 5085887.333 | L216: 5139776 | M216: 5224619.667 | N216: 5309463.333 | O216: 5394307 | P216: 5466002 | Q216: 5537697 | R216: 5609392 | S216: 5697009.333 | T216: 5784626.667 | U216: 5872244 | V216: 5911230.333 | W216: 5950216.667 | X216: 5989203 | Y216: 6134998 | Z216: 6280793 | AA216: 6426588 | AB216: 6414598 | AC216: 6402608 | AD216: 6390618 | AE216: 6504943.667 | AF216: 6619269.333 | AG216: 6733595 | AH216: 6838619 | AI216: 6943643 | AJ216: 7048667 | AK216: 7161716 | AL216: 7274765 | AM216: 7387814 | AN216: 7529369.667 | AO216: 7670925.333 | AP216: 7812481 | AQ216: 7985502 | AR216: 8158523 | AS216: 8331544 | AT216: 8479569 | AU216: 8627594 | AV216: 8775619 | AW216: 8867413.667 | AX216: 8959208.333 | AY216: 9051003 | AZ216: 9213846.667 | BA216: 9376690.333 | BB216: 9539534 | BC216: 9605350.667 | BD216: 9671167.333 | BE216: 9736984 | BF216: 9844816 | BG216: 9952648 | BH216: 10060480 | BI216: 9926680.333 | BJ216: 9792880.667 | BK216: 9659081 | BL216: 9392314 | BM216: 9125547 | BN216: 8858780 | BO216: 8906653.333 | BP216: 8954526.667 | BQ216: 9002400 | BR216: 9132265.333 | BS216: 9262130.667 | BT216: 9391996 | BU216: 9478008.667 | BV216: 9564021.333 | BW216: 9650034 | BX216: 9725839.667 | BY216: 9801645.333 | BZ216: 9877451 | CA216: 9908492.667 | CB216: 9939534.333 | CC216: 9970576 | CD216: 9969514.333 | CE216: 9968452.667 | CF216: 9967391 | CG216: 9981145 | CH216: 9994899 | CI216: 10008653 | CJ216: 10059249 | CK216: 10109845 | CL216: 10160441 | CM216: 10049014.33 | CN216: 9937587.667 | CO216: 9826161 | CP216: 9871813.333 | CQ216: 9917465.667 | CR216: 9963118 | CS216: 9796086.667 | CT216: 9629055.333 | CU216: 9462024 | CV216: 9576129 | CW216: 9690234 | CX216: 9804339 | CY216: 9864432.667 | CZ216: 9924526.333 | DA216: 9984620 | DB216: 9766362.667 | DC216: 9548105.333 | DD216: 9329848 | DE216: 9471711 | DF216: 9613574 | DG216: 9755437 | DH216: 10076548 | DI216: 10397659 | DJ216: 10718770 | DK216: 10872508.33 | DL216: 11026246.67 | DM216: 11179985 | DN216: 11094533.67 | DO216: 11009082.33 | DP216: 10923631 | DQ216: 11067555.67 | DR216: 11211480.33 | DS216: 11355405 | DT216: 11468805 | DU216: 11582205 | DV216: 11695605 | DW216: 11674507.33 | DX216: 11653409.67 | DY216: 11632312 | DZ216: 11555101 | EA216: 11477890 | EB216: 11400679 | EC216: 11479643.67 | ED216: 11558608.33 | EE216: 11637573 | EF216: 11675479.33 | EG216: 11713385.67 | EH216: 11751292 | EI216: 11708029.33 | EJ216: 11664766.67 | EK216: 11621504 | EL216: 11607117.33 | EM216: 11592730.67 | EN216: 11578344 | EO216: 11477361 | EP216: 11376378 | EQ216: 11275395 | ER216: 11269162.67 | ES216: 11262930.33 | ET216: 11256698 | EU216: 11185252.33 | EV216: 11113806.67 | EW216: 11042361 | EX216: 11019698 | EY216: 10997035 | EZ216: 10974372 | FA216: 11165026.67 | FB216: 11355681.33 | FC216: 11546336 | FD216: 11717343 | FE216: 11888350 | FF216: 12059357 | FG216: 12179979.33 | FH216: 12300601.67 | FI216: 12421224 | FJ216: 12403908 | FK216: 12386592 | FL216: 12369276 | FM216: 12424357 | FN216: 12479438 | FO216: 12534519 | FP216: 12535748.3 | FQ216: 12536977.61 | FR216: 12538206.92 | FS216: 12605991.97 | FT216: 12673777.03 | FU216: 12741562.08 | FV216: 12778490.25 | FW216: 12815418.41 | FX216: 12852346.58 | FY216: 12907427.57 | FZ216: 12962508.57 | GA216: 13017589.57 | GB216: 13018818.88 | GC216: 13020048.18 | GD216: 13021277.49 | GE216: 13089062.55 | GF216: 13156847.6 | GG216: 13224632.66 | GH216: 13261560.82 | GI216: 13298488.99 | GJ216: 13335417.15 | GK216: 13390498.15 | GL216: 13445579.15 | GM216: 13500660.15 | GN216: 13501889.45 | GO216: 13503118.76 | GP216: 13504348.07 | GQ216: 13572133.12 | GR216: 13639918.18 | GS216: 13707703.23 | GT216: 13744631.4 | GU216: 13781559.56 | GV216: 13818487.73 | GW216: 13873568.73 | GX216: 13928649.72 | GY216: 13983730.72 | GZ216: 13984960.03 | HA216: 13986189.34 | HB216: 13987418.64 | HC216: 14055203.7 | HD216: 14122988.75 | HE216: 14190773.81 | HF216: 14227701.97 | HG216: 14264630.14 | HH216: 14301558.3 | HI216: 14356639.3 | HJ216: 14411720.3 | HK216: 14466801.3 | HL216: 14468030.6 | HM216: 14469259.91 | HN216: 14470489.22 | HO216: 14538274.27 | HP216: 14606059.33 | HQ216: 14673844.38 | HR216: 14710772.55 | HS216: 14747700.71 | HT216: 14784628.88 | HU216: 14839709.88 | HV216: 14894790.87 | HW216: 14949871.87 | HX216: 14951101.18 | HY216: 14952330.49 | HZ216: 14953559.79 | IA216: 15021344.85 | IB216: 15089129.9 | IC216: 15156914.96 | ID216: 15193843.12 | IE216: 15230771.29 | IF216: 15267699.45 | IG216: 15322780.45 | IH216: 15377861.45 | II216: 15432942.45 | IJ216: 15434171.76 | IK216: 15435401.06 | IL216: 15436630.37
C217: 4 | D217: Movistar | E217: [Abonados] | F217: 8626823 | G217: 8776689.667 | H217: 8926556.333 | I217: 9076423 | J217: 9197607.667 | K217: 9318792.333 | L217: 9439977 | M217: 9308375.333 | N217: 9176773.667 | O217: 9045172 | P217: 8921850.667 | Q217: 8798529.333 | R217: 8675208 | S217: 8599093.667 | T217: 8522979.333 | U217: 8446865 | V217: 8461274.333 | W217: 8475683.667 | X217: 8490093 | Y217: 8449942 | Z217: 8409791 | AA217: 8369640 | AB217: 8519268.667 | AC217: 8668897.333 | AD217: 8818526 | AE217: 8905347 | AF217: 8992168 | AG217: 9078989 | AH217: 9046806.667 | AI217: 9014624.333 | AJ217: 8982442 | AK217: 9092713 | AL217: 9202984 | AM217: 9313255 | AN217: 9403041.333 | AO217: 9492827.667 | AP217: 9582614 | AQ217: 9599483 | AR217: 9616352 | AS217: 9633221 | AT217: 9475004.333 | AU217: 9316787.667 | AV217: 9158571 | AW217: 9219663 | AX217: 9280755 | AY217: 9341847 | AZ217: 9398199.667 | BA217: 9454552.333 | BB217: 9510905 | BC217: 9548963.667 | BD217: 9587022.333 | BE217: 9625081 | BF217: 9660132.667 | BG217: 9695184.333 | BH217: 9730236 | BI217: 9826485 | BJ217: 9922734 | BK217: 10018983 | BL217: 10058257.67 | BM217: 10097532.33 | BN217: 10136807 | BO217: 10050685.33 | BP217: 9964563.667 | BQ217: 9878442 | BR217: 9951233.333 | BS217: 10024024.67 | BT217: 10096816 | BU217: 10198238 | BV217: 10299660 | BW217: 10401082 | BX217: 10553278.33 | BY217: 10705474.67 | BZ217: 10857671 | CA217: 10906397 | CB217: 10955123 | CC217: 11003849 | CD217: 11102019.33 | CE217: 11200189.67 | CF217: 11298360 | CG217: 11355333.33 | CH217: 11412306.67 | CI217: 11469280 | CJ217: 11606431.33 | CK217: 11743582.67 | CL217: 11880734 | CM217: 11925584.67 | CN217: 11970435.33 | CO217: 12015286 | CP217: 12042752 | CQ217: 12070218 | CR217: 12097684 | CS217: 12086638.33 | CT217: 12075592.67 | CU217: 12064547 | CV217: 12044080 | CW217: 12023613 | CX217: 12003146 | CY217: 11926560 | CZ217: 11849974 | DA217: 11773388 | DB217: 11666786 | DC217: 11560184 | DD217: 11453582 | DE217: 11437608.67 | DF217: 11421635.33 | DG217: 11405662 | DH217: 11582219.67 | DI217: 11758777.33 | DJ217: 11935335 | DK217: 12020028.67 | DL217: 12104722.33 | DM217: 12189416 | DN217: 12285269.67 | DO217: 12381123.33 | DP217: 12476977 | DQ217: 12665489.67 | DR217: 12854002.33 | DS217: 13042515 | DT217: 13292500.33 | DU217: 13542485.67 | DV217: 13792471 | DW217: 13781261.33 | DX217: 13770051.67 | DY217: 13758842 | DZ217: 14017240.67 | EA217: 14275639.33 | EB217: 14534038 | EC217: 14559138 | ED217: 14584238 | EE217: 14609338 | EF217: 14769005 | EG217: 14928672 | EH217: 15088339 | EI217: 15088304.33 | EJ217: 15088269.67 | EK217: 15088235 | EL217: 15235143.33 | EM217: 15382051.67 | EN217: 15528960 | EO217: 15642533.67 | EP217: 15756107.33 | EQ217: 15869681 | ER217: 15913304.33 | ES217: 15956927.67 | ET217: 16000551 | EU217: 15796779 | EV217: 15593007 | EW217: 15389235 | EX217: 15508600 | EY217: 15627965 | EZ217: 15747330 | FA217: 15705569 | FB217: 15663808 | FC217: 15622047 | FD217: 15627382.33 | FE217: 15632717.67 | FF217: 15638053 | FG217: 15702098.67 | FH217: 15766144.33 | FI217: 15830190 | FJ217: 16025918.33 | FK217: 16221646.67 | FL217: 16417375 | FM217: 16440909.76 | FN217: 16464444.53 | FO217: 16487979.29 | FP217: 16574732.61 | FQ217: 16661485.93 | FR217: 16748239.25 | FS217: 16740472.51 | FT217: 16732705.78 | FU217: 16724939.05 | FV217: 16827436.29 | FW217: 16929933.53 | FX217: 17032430.78 | FY217: 17056069.22 | FZ217: 17079707.66 | GA217: 17103346.11 | GB217: 17190099.42 | GC217: 17276852.74 | GD217: 17363606.06 | GE217: 17355839.33 | GF217: 17348072.59 | GG217: 17340305.86 | GH217: 17442803.1 | GI217: 17545300.35 | GJ217: 17647797.59 | GK217: 17671436.03 | GL217: 17695074.48 | GM217: 17718712.92 | GN217: 17805466.24 | GO217: 17892219.55 | GP217: 17978972.87 | GQ217: 17971206.14 | GR217: 17963439.4 | GS217: 17955672.67 | GT217: 18058169.91 | GU217: 18160667.16 | GV217: 18263164.4 | GW217: 18286802.85 | GX217: 18310441.29 | GY217: 18334079.73 | GZ217: 18420833.05 | HA217: 18507586.37 | HB217: 18594339.69 | HC217: 18586572.95 | HD217: 18578806.22 | HE217: 18571039.48 | HF217: 18673536.73 | HG217: 18776033.97 | HH217: 18878531.21 | HI217: 18902169.66 | HJ217: 18925808.1 | HK217: 18949446.54 | HL217: 19036199.86 | HM217: 19122953.18 | HN217: 19209706.5 | HO217: 19201939.76 | HP217: 19194173.03 | HQ217: 19186406.3 | HR217: 19288903.54 | HS217: 19391400.78 | HT217: 19493898.03 | HU217: 19517536.47 | HV217: 19541174.91 | HW217: 19564813.36 | HX217: 19651566.68 | HY217: 19738319.99 | HZ217: 19825073.31 | IA217: 19817306.58 | IB217: 19809539.84 | IC217: 19801773.11 | ID217: 19904270.35 | IE217: 20006767.6 | IF217: 20109264.84 | IG217: 20132903.28 | IH217: 20156541.73 | II217: 20180180.17 | IJ217: 20266933.49 | IK217: 20353686.81 | IL217: 20440440.12
C218: 5 | D218: ETB | E218: [Abonados] | F218: 0 | G218: 0 | H218: 0 | I218: 0 | J218: 0 | K218: 0 | L218: 0 | M218: 0 | N218: 0 | O218: 0 | P218: 0 | Q218: 0 | R218: 0 | S218: 13884.66667 | T218: 27769.33333 | U218: 41654 | V218: 42457.66667 | W218: 43261.33333 | X218: 44065 | Y218: 44351.66667 | Z218: 44638.33333 | AA218: 44925 | AB218: 45554.66667 | AC218: 46184.33333 | AD218: 46814 | AE218: 46888.33333 | AF218: 46962.66667 | AG218: 47037 | AH218: 42919.33333 | AI218: 38801.66667 | AJ218: 34684 | AK218: 23122.66667 | AL218: 11561.33333 | AM218: 0 | AN218: 1929.666667 | AO218: 3859.333333 | AP218: 5789 | AQ218: 15017.66667 | AR218: 24246.33333 | AS218: 33475 | AT218: 51762 | AU218: 70049 | AV218: 88336 | AW218: 105034 | AX218: 121732 | AY218: 138430 | AZ218: 158191.3333 | BA218: 177952.6667 | BB218: 197714 | BC218: 203299.3333 | BD218: 208884.6667 | BE218: 214470 | BF218: 229081.6667 | BG218: 243693.3333 | BH218: 258305 | BI218: 275484.6667 | BJ218: 292664.3333 | BK218: 309844 | BL218: 347401.3333 | BM218: 384958.6667 | BN218: 422516 | BO218: 437712.6667 | BP218: 452909.3333 | BQ218: 468106 | BR218: 469948.6667 | BS218: 471791.3333 | BT218: 473634 | BU218: 440370 | BV218: 407106 | BW218: 373842 | BX218: 375013.3333 | BY218: 376184.6667 | BZ218: 377356 | CA218: 367904.3333 | CB218: 358452.6667 | CC218: 349001 | CD218: 349843.6667 | CE218: 350686.3333 | CF218: 351529 | CG218: 342101.3333 | CH218: 332673.6667 | CI218: 323246 | CJ218: 311179.3333 | CK218: 299112.6667 | CL218: 287046 | CM218: 274579 | CN218: 262112 | CO218: 249645 | CP218: 252464.3333 | CQ218: 255283.6667 | CR218: 258103 | CS218: 253920 | CT218: 249737 | CU218: 245554 | CV218: 239943.3333 | CW218: 234332.6667 | CX218: 228722 | CY218: 222470.3333 | CZ218: 216218.6667 | DA218: 209967 | DB218: 200612.6667 | DC218: 191258.3333 | DD218: 181904 | DE218: 170651.6667 | DF218: 159399.3333 | DG218: 148147 | DH218: 140576 | DI218: 133005 | DJ218: 125434 | DK218: 124265 | DL218: 123096 | DM218: 121927 | DN218: 118622.6667 | DO218: 115318.3333 | DP218: 112014 | DQ218: 110600 | DR218: 109186 | DS218: 107772 | DT218: 106930.3333 | DU218: 106088.6667 | DV218: 105247 | DW218: 106113 | DX218: 106979 | DY218: 107845 | DZ218: 107941.3333 | EA218: 108037.6667 | EB218: 108134 | EC218: 110763.3333 | ED218: 113392.6667 | EE218: 116022 | EF218: 118179.6667 | EG218: 120337.3333 | EH218: 122495 | EI218: 120955.6667 | EJ218: 119416.3333 | EK218: 117877 | EL218: 118890 | EM218: 119903 | EN218: 120916 | EO218: 121103.6667 | EP218: 121291.3333 | EQ218: 121479 | ER218: 120182.3333 | ES218: 118885.6667 | ET218: 117589 | EU218: 115541.6667 | EV218: 113494.3333 | EW218: 111447 | EX218: 110735.6667 | EY218: 110024.3333 | EZ218: 109313 | FA218: 109713 | FB218: 110113 | FC218: 110513 | FD218: 109728 | FE218: 108943 | FF218: 108158 | FG218: 107942 | FH218: 107726 | FI218: 107510 | FJ218: 107876.3333 | FK218: 108242.6667 | FL218: 108609 | FM218: 100196.1469 | FN218: 91783.29378 | FO218: 83370.44068 | FP218: 78075.82076 | FQ218: 72781.20085 | FR218: 67486.58094 | FS218: 67544.69763 | FT218: 67602.81432 | FU218: 67660.93102 | FV218: 73487.40331 | FW218: 79313.8756 | FX218: 85140.34789 | FY218: 76720.21089 | FZ218: 68300.07389 | GA218: 59879.93689 | GB218: 54585.31698 | GC218: 49290.69707 | GD218: 43996.07715 | GE218: 44054.19385 | GF218: 44112.31054 | GG218: 44170.42724 | GH218: 49996.89953 | GI218: 55823.37182 | GJ218: 61649.84411 | GK218: 53229.70711 | GL218: 44809.57011 | GM218: 36389.43311 | GN218: 31094.8132 | GO218: 25800.19329 | GP218: 20505.57337 | GQ218: 20563.69007 | GR218: 20621.80676 | GS218: 20679.92345 | GT218: 26506.39575 | GU218: 32332.86804 | GV218: 38159.34033 | GW218: 29739.20333 | GX218: 21319.06633 | GY218: 12898.92933 | GZ218: 8599.28622 | HA218: 4299.64311 | HB218: 0 | HC218: 0 | HD218: 0 | HE218: 0 | HF218: 0 | HG218: 0 | HH218: 0 | HI218: 0 | HJ218: 0 | HK218: 0 | HL218: 0 | HM218: 0 | HN218: 0 | HO218: 0 | HP218: 0 | HQ218: 0 | HR218: 0 | HS218: 0 | HT218: 0 | HU218: 0 | HV218: 0 | HW218: 0 | HX218: 0 | HY218: 0 | HZ218: 0 | IA218: 0 | IB218: 0 | IC218: 0 | ID218: 0 | IE218: 0 | IF218: 0 | IG218: 0 | IH218: 0 | II218: 0 | IJ218: 0 | IK218: 0 | IL218: 0
C219: 6 | D219: OMVs | E219: [Abonados] | F219: 248942 | G219: 251600.6667 | H219: 254259.3333 | I219: 256918 | J219: 261654.6667 | K219: 266391.3333 | L219: 271128 | M219: 282891.3333 | N219: 294654.6667 | O219: 306418 | P219: 313833 | Q219: 321248 | R219: 328663 | S219: 335538.3333 | T219: 342413.6667 | U219: 349289 | V219: 398831.3333 | W219: 448373.6667 | X219: 497916 | Y219: 601260.6667 | Z219: 704605.3333 | AA219: 807950 | AB219: 868504 | AC219: 929058 | AD219: 989612 | AE219: 1146740 | AF219: 1303868 | AG219: 1460996 | AH219: 1599724 | AI219: 1738452 | AJ219: 1877180 | AK219: 2049413.667 | AL219: 2221647.333 | AM219: 2393881 | AN219: 2557116.333 | AO219: 2720351.667 | AP219: 2883587 | AQ219: 2917839 | AR219: 2952091 | AS219: 2986343 | AT219: 3036929.333 | AU219: 3087515.667 | AV219: 3138102 | AW219: 3129509 | AX219: 3120916 | AY219: 3112323 | AZ219: 3126731 | BA219: 3141139 | BB219: 3155547 | BC219: 3229780 | BD219: 3304013 | BE219: 3378246 | BF219: 3385145.333 | BG219: 3392044.667 | BH219: 3398944 | BI219: 3466064 | BJ219: 3533184 | BK219: 3600304 | BL219: 3646753 | BM219: 3693202 | BN219: 3739651 | BO219: 3772964 | BP219: 3806277 | BQ219: 3839590 | BR219: 3794279 | BS219: 3748968 | BT219: 3703657 | BU219: 3796939.333 | BV219: 3890221.667 | BW219: 3983504 | BX219: 4075058.667 | BY219: 4166613.333 | BZ219: 4258168 | CA219: 4331964.333 | CB219: 4405760.667 | CC219: 4479557 | CD219: 4471598 | CE219: 4463639 | CF219: 4455680 | CG219: 4505985.667 | CH219: 4556291.333 | CI219: 4606597 | CJ219: 4706891.333 | CK219: 4807185.667 | CL219: 4907480 | CM219: 4908400 | CN219: 4909320 | CO219: 4910240 | CP219: 4975416.333 | CQ219: 5040592.667 | CR219: 5105769 | CS219: 4885561 | CT219: 4665353 | CU219: 4445145 | CV219: 4551658.667 | CW219: 4658172.333 | CX219: 4764686 | CY219: 4804174.667 | CZ219: 4843663.333 | DA219: 4883152 | DB219: 4874854.333 | DC219: 4866556.667 | DD219: 4858259 | DE219: 4739677 | DF219: 4621095 | DG219: 4502513 | DH219: 4430537.667 | DI219: 4358562.333 | DJ219: 4286587 | DK219: 4393855.667 | DL219: 4501124.333 | DM219: 4608393 | DN219: 4555303.333 | DO219: 4502213.667 | DP219: 4449124 | DQ219: 4415661 | DR219: 4382198 | DS219: 4348735 | DT219: 4260493 | DU219: 4172251 | DV219: 4084009 | DW219: 4127206.333 | DX219: 4170403.667 | DY219: 4213601 | DZ219: 4263523.667 | EA219: 4313446.333 | EB219: 4363369 | EC219: 4382665.333 | ED219: 4401961.667 | EE219: 4421258 | EF219: 4433156.667 | EG219: 4445055.333 | EH219: 4456954 | EI219: 4523163.667 | EJ219: 4589373.333 | EK219: 4655583 | EL219: 4675278.667 | EM219: 4694974.333 | EN219: 4714670 | EO219: 4776956.667 | EP219: 4839243.333 | EQ219: 4901530 | ER219: 5017755 | ES219: 5133980 | ET219: 5250205 | EU219: 5236579.333 | EV219: 5222953.667 | EW219: 5209328 | EX219: 5277134 | EY219: 5344940 | EZ219: 5412746 | FA219: 5468693.333 | FB219: 5524640.667 | FC219: 5580588 | FD219: 5557235.667 | FE219: 5533883.333 | FF219: 5510531 | FG219: 5583278.667 | FH219: 5656026.333 | FI219: 5728774 | FJ219: 5711563.667 | FK219: 5694353.333 | FL219: 5677143 | FM219: 5722852.062 | FN219: 5768561.123 | FO219: 5814270.185 | FP219: 5842166.928 | FQ219: 5870063.671 | FR219: 5897960.413 | FS219: 5917256.672 | FT219: 5936552.93 | FU219: 5955849.188 | FV219: 5984656.234 | FW219: 6013463.28 | FX219: 6042270.326 | FY219: 6087979.388 | FZ219: 6133688.449 | GA219: 6179397.511 | GB219: 6207294.254 | GC219: 6235190.996 | GD219: 6263087.739 | GE219: 6282383.998 | GF219: 6301680.256 | GG219: 6320976.514 | GH219: 6349783.56 | GI219: 6378590.606 | GJ219: 6407397.652 | GK219: 6453106.713 | GL219: 6498815.775 | GM219: 6544524.837 | GN219: 6572421.58 | GO219: 6600318.322 | GP219: 6628215.065 | GQ219: 6647511.323 | GR219: 6666807.582 | GS219: 6686103.84 | GT219: 6714910.886 | GU219: 6743717.932 | GV219: 6772524.978 | GW219: 6818234.039 | GX219: 6863943.101 | GY219: 6909652.163 | GZ219: 6937548.905 | HA219: 6965445.648 | HB219: 6993342.391 | HC219: 7012638.649 | HD219: 7031934.908 | HE219: 7051231.166 | HF219: 7080038.212 | HG219: 7108845.258 | HH219: 7137652.304 | HI219: 7183361.365 | HJ219: 7229070.427 | HK219: 7274779.489 | HL219: 7302676.231 | HM219: 7330572.974 | HN219: 7358469.717 | HO219: 7377765.975 | HP219: 7397062.233 | HQ219: 7416358.492 | HR219: 7445165.538 | HS219: 7473972.584 | HT219: 7502779.629 | HU219: 7548488.691 | HV219: 7594197.753 | HW219: 7639906.814 | HX219: 7667803.557 | HY219: 7695700.3 | HZ219: 7723597.043 | IA219: 7742893.301 | IB219: 7762189.559 | IC219: 7781485.818 | ID219: 7810292.864 | IE219: 7839099.909 | IF219: 7867906.955 | IG219: 7913616.017 | IH219: 7959325.079 | II219: 8005034.14 | IJ219: 8032930.883 | IK219: 8060827.626 | IL219: 8088724.369
C220: 7 | D220: libre | E220: [Abonados]
C221: 8 | D221: libre | E221: [Abonados]
C222: 9 | D222: libre | E222: [Abonados]
C223: 10 | D223: libre | E223: [Abonados]
C224: 11 | D224: libre | E224: [Abonados]
C225: =+C224+1 -> 12 | D225: libre | E225: [Abonados]
C226: =+C225+1 -> 13 | D226: libre | E226: [Abonados]
C227: =+C226+1 -> 14 | D227: libre | E227: [Abonados]
C228: =+C227+1 -> 15 | D228: libre | E228: [Abonados]
C229: T | D229: Total | E229: [Abonados] | F229: =SUM(F214:F228) -> 37726510 | G229: 37961195.67 | H229: 38195881.33 | I229: 38430567 | J229: 38682173.33 | K229: 38933779.67 | L229: 39185386 | M229: 39294634.67 | N229: 39403883.33 | O229: 39513132 | P229: 39553017.33 | Q229: 39592902.67 | R229: 39632788 | S229: 38728362.33 | T229: 37823936.67 | U229: 36919511 | V229: 37105717.33 | W229: 37291923.67 | X229: 37478130 | Y229: 37849945.33 | Z229: 38221760.67 | AA229: 38593576 | AB229: 38909997.33 | AC229: 39226418.67 | AD229: 39542840 | AE229: 39949568.67 | AF229: 40356297.33 | AG229: 40763026 | AH229: 40928102 | AI229: 41093178 | AJ229: 41258254 | AK229: 41719540 | AL229: 42180826 | AM229: 42642112 | AN229: 43190472.67 | AO229: 43738833.33 | AP229: 44287194 | AQ229: 44549202 | AR229: 44811210 | AS229: 45073218 | AT229: 45007438 | AU229: 44941658 | AV229: 44875878 | AW229: 44912776.33 | AX229: 44949674.67 | AY229: 44986573 | AZ229: 45283959 | BA229: 45581345 | BB229: 45878731 | BC229: 45856054 | BD229: 45833377 | BE229: 45810700 | BF229: 45952556 | BG229: 46094412 | BH229: 46236268 | BI229: 46344729.33 | BJ229: 46453190.67 | BK229: 46561652 | BL229: 46565165.33 | BM229: 46568678.67 | BN229: 46572192 | BO229: 46673504.67 | BP229: 46774817.33 | BQ229: 46876130 | BR229: =SUM(BR214:BR228) -> 47051332 | BS229: 47226534 | BT229: 47401736 | BU229: 47703482 | BV229: 48005228 | BW229: 48306974 | BX229: 48717059.67 | BY229: 49127145.33 | BZ229: 49537231 | CA229: 49689831.67 | CB229: 49842432.33 | CC229: 49995033 | CD229: 49968736 | CE229: 49942439 | CF229: 49916142 | CG229: 50031061 | CH229: 50145980 | CI229: 50260899 | CJ229: 50694200.33 | CK229: 51127501.67 | CL229: 51560803 | CM229: 51547752.67 | CN229: 51534702.33 | CO229: 51521652 | CP229: 51722848.67 | CQ229: 51924045.33 | CR229: 52125242 | CS229: 51837508.33 | CT229: 51549774.67 | CU229: 51262041 | CV229: 51594785.33 | CW229: 51927529.67 | CX229: 52260274 | CY229: 52312726 | CZ229: 52365178 | DA229: 52417630 | DB229: 51916543 | DC229: 51415456 | DD229: 50914369 | DE229: 51007234.33 | DF229: 51100099.67 | DG229: 51192965 | DH229: 51823415.67 | DI229: 52453866.33 | DJ229: 53084317 | DK229: 53532263.33 | DL229: 53980209.67 | DM229: 54428156 | DN229: 54551224.67 | DO229: 54674293.33 | DP229: 54797362 | DQ229: 55281883.67 | DR229: 55766405.33 | DS229: 56250927 | DT229: 56683461.33 | DU229: 57115995.67 | DV229: 57548530 | DW229: 57620561 | DX229: 57692592 | DY229: 57764623 | DZ229: 58161981 | EA229: 58559339 | EB229: 58956697 | EC229: 59195098.67 | ED229: =SUM(ED214:ED228) -> 59433500.33 | EE229: 59671902 | EF229: 60092919.33 | EG229: 60513936.67 | EH229: 60934954 | EI229: 61205744.67 | EJ229: 61476535.33 | EK229: 61747326 | EL229: 61939793 | EM229: 62132260 | EN229: 62324727 | EO229: 62724445.33 | EP229: 63124163.67 | EQ229: 63523882 | ER229: 64196077.67 | ES229: 64868273.33 | ET229: 65540469 | EU229: 65596363.67 | EV229: 65652258.33 | EW229: 65708153 | EX229: 66086338 | EY229: 66464523 | EZ229: 66842708 | FA229: 67249388 | FB229: 67656068 | FC229: 68062748 | FD229: 68494297.33 | FE229: 68925846.67 | FF229: 69357396 | FG229: 69546092.33 | FH229: 69734788.67 | FI229: 69923485 | FJ229: 70041517.67 | FK229: 70159550.33 | FL229: 70277583 | FM229: 70509343.07 | FN229: 70741103.15 | FO229: 70972863.22 | FP229: 71314769.64 | FQ229: 71656676.06 | FR229: 71998582.48 | FS229: 72131402.7 | FT229: 72264222.92 | FU229: 72397043.14 | FV229: 72641082.5 | FW229: 72885121.86 | FX229: 73129161.22 | FY229: 73367834.13 | FZ229: 73606507.05 | GA229: 73845179.96 | GB229: 74187086.38 | GC229: 74528992.81 | GD229: 74870899.23 | GE229: 75003719.45 | GF229: 75136539.67 | GG229: 75269359.88 | GH229: 75513399.24 | GI229: 75757438.6 | GJ229: 76001477.96 | GK229: 76240150.87 | GL229: 76478823.79 | GM229: 76717496.71 | GN229: 77059403.13 | GO229: 77401309.55 | GP229: =SUM(GP214:GP228) -> 77743215.97 | GQ229: 77876036.19 | GR229: 78008856.41 | GS229: 78141676.63 | GT229: 78385715.99 | GU229: 78629755.34 | GV229: 78873794.7 | GW229: 79112467.62 | GX229: 79351140.53 | GY229: 79589813.45 | GZ229: 79932714.85 | HA229: 80275616.25 | HB229: 80618517.64 | HC229: 80751279.75 | HD229: 80884041.85 | HE229: 81016803.95 | HF229: 81255016.84 | HG229: 81493229.72 | HH229: 81731442.61 | HI229: 81978535.66 | HJ229: 82225628.72 | HK229: 82472721.77 | HL229: 82819922.81 | HM229: 83167123.85 | HN229: =SUM(HN214:HN228) -> 83514324.89 | HO229: 83647086.99 | HP229: 83779849.1 | HQ229: 83912611.2 | HR229: 84150824.08 | HS229: 84389036.97 | HT229: 84627249.86 | HU229: 84874342.91 | HV229: 85121435.96 | HW229: 85368529.02 | HX229: 85715730.06 | HY229: 86062931.1 | HZ229: 86410132.14 | IA229: 86542894.24 | IB229: 86675656.34 | IC229: 86808418.45 | ID229: 87046631.33 | IE229: 87284844.22 | IF229: 87523057.1 | IG229: 87770150.16 | IH229: 88017243.21 | II229: 88264336.26 | IJ229: 88611537.3 | IK229: 88958738.35 | IL229: 89305939.39
B230: Total
C231: 1 | D231: =L.oper.nom -> Comcel | E231: [Abonados] | F231: =F197+F214 -> 28818791 | G231: 28885858.67 | H231: 28952926.33 | I231: 29019994 | J231: 29138419 | K231: 29256844 | L231: 29375269 | M231: 29570779.67 | N231: 29766290.33 | O231: 29961801 | P231: 30098228.33 | Q231: 30234655.67 | R231: 30371083 | S231: 29467678 | T231: 28564273 | U231: 27660868 | V231: 27708977 | W231: 27757086 | X231: 27805195 | Y231: 27991375.33 | Z231: 28177555.67 | AA231: 28363736 | AB231: 28568257 | AC231: 28772778 | AD231: 28977299 | AE231: 29054785.67 | AF231: 29132272.33 | AG231: 29209759 | AH231: 29176180.33 | AI231: 29142601.67 | AJ231: 29109023 | AK231: 29169620.33 | AL231: 29230217.67 | AM231: 29290815 | AN231: 29452456.33 | AO231: 29614097.67 | AP231: 29775739 | AQ231: 29795032 | AR231: 29814325 | AS231: 29833618 | AT231: 29679113.67 | AU231: 29524609.33 | AV231: 29370105 | AW231: 29223754 | AX231: 29077403 | AY231: 28931052 | AZ231: 28945076 | BA231: 28959100 | BB231: 28973124 | BC231: 28762036.33 | BD231: 28550948.67 | BE231: 28339861 | BF231: 28313086 | BG231: 28286311 | BH231: 28259536 | BI231: 28335969.33 | BJ231: 28412402.67 | BK231: 28488836 | BL231: 28643852 | BM231: 28798868 | BN231: 28953884 | BO231: 29020304 | BP231: 29086724 | BQ231: 29153144 | BR231: =BR197+BR214 -> 29177071.67 | BS231: 29200999.33 | BT231: 29224927 | BU231: 29187405.33 | BV231: 29149883.67 | BW231: 29112362 | BX231: 29192518.33 | BY231: 29272674.67 | BZ231: 29352831 | CA231: 29368916.67 | CB231: 29385002.33 | CC231: 29401088 | CD231: 29323319.33 | CE231: 29245550.67 | CF231: 29167782 | CG231: 29189484 | CH231: 29211186 | CI231: 29232888 | CJ231: 29382209.67 | CK231: 29531531.33 | CL231: 29680853 | CM231: 29749602.33 | CN231: 29818351.67 | CO231: 29887101 | CP231: 29972773.67 | CQ231: 30058446.33 | CR231: 30144119 | CS231: 30288318.67 | CT231: 30432518.33 | CU231: 30576718 | CV231: 30752502 | CW231: 30928286 | CX231: 31104070 | CY231: 31150601.33 | CZ231: 31197132.67 | DA231: 31243664 | DB231: 31340634 | DC231: 31437604 | DD231: 31534574 | DE231: 31697642.67 | DF231: 31860711.33 | DG231: 32023780 | DH231: 32352107.33 | DI231: 32680434.67 | DJ231: 33008762 | DK231: 33159543.67 | DL231: 33310325.33 | DM231: 33461107 | DN231: 33588577.67 | DO231: 33716048.33 | DP231: 33843519 | DQ231: 34014249 | DR231: 34184979 | DS231: 34355709 | DT231: 34591123 | DU231: 34826537 | DV231: 35061951 | DW231: 35277907.33 | DX231: 35493863.67 | DY231: 35709820 | DZ231: 35913841 | EA231: 36117862 | EB231: 36321883 | EC231: 36495828 | ED231: =ED197+ED214 -> 36669773 | EE231: 36843718 | EF231: 37079130 | EG231: 37314542 | EH231: 37549954 | EI231: 37722586.33 | EJ231: 37895218.67 | EK231: 38067851 | EL231: 38186532.33 | EM231: 38305213.67 | EN231: 38423895 | EO231: 38516306 | EP231: 38608717 | EQ231: 38701128 | ER231: 38880621.33 | ES231: 39060114.67 | ET231: 39239608 | EU231: 39407706 | EV231: 39575804 | EW231: 39743902 | EX231: 39891665.33 | EY231: 40039428.67 | EZ231: 40187192 | FA231: 40323878 | FB231: 40460564 | FC231: 40597250 | FD231: 40715760.67 | FE231: 40834271.33 | FF231: 40952782 | FG231: 41051717.33 | FH231: 41150652.67 | FI231: 41249588 | FJ231: 41392200.67 | FK231: 41534813.33 | FL231: 41677426 | FM231: 41820387.79 | FN231: 41963349.57 | FO231: 42106311.36 | FP231: 42438177.39 | FQ231: 42770043.42 | FR231: 43101909.46 | FS231: 43232514.57 | FT231: 43363119.68 | FU231: 43493724.79 | FV231: 43568038.29 | FW231: 43642351.79 | FX231: 43716665.29 | FY231: 43866497.96 | FZ231: 44016330.62 | GA231: 44166163.28 | GB231: 44498029.31 | GC231: 44829895.35 | GD231: 45161761.38 | GE231: 45292366.49 | GF231: 45422971.6 | GG231: 45553576.71 | GH231: 45627890.21 | GI231: 45702203.71 | GJ231: 45776517.21 | GK231: 45926349.88 | GL231: 46076182.54 | GM231: 46226015.2 | GN231: 46557881.23 | GO231: 46889747.27 | GP231: =GP197+GP214 -> 47221613.3 | GQ231: 47352218.41 | GR231: 47482823.52 | GS231: 47613428.63 | GT231: 47687742.13 | GU231: 47762055.63 | GV231: 47836369.13 | GW231: 47986201.8 | GX231: 48136034.46 | GY231: 48285867.12 | GZ231: 48617733.15 | HA231: 48949599.19 | HB231: 49281465.22 | HC231: 49412070.33 | HD231: 49542675.44 | HE231: 49673280.55 | HF231: 49747594.05 | HG231: 49821907.55 | HH231: 49896221.05 | HI231: 50046053.72 | HJ231: 50195886.38 | HK231: 50345719.04 | HL231: 50677585.07 | HM231: 51009451.11 | HN231: 51341317.14 | HO231: 51471922.25 | HP231: 51602527.36 | HQ231: 51733132.47 | HR231: 51807445.97 | HS231: 51881759.47 | HT231: 51956072.97 | HU231: 52105905.64 | HV231: 52255738.3 | HW231: 52405570.96 | HX231: 52737437 | HY231: 53069303.03 | HZ231: 53401169.06 | IA231: 53531774.17 | IB231: 53662379.28 | IC231: 53792984.39 | ID231: 53867297.89 | IE231: 53941611.39 | IF231: 54015924.89 | IG231: 54165757.56 | IH231: 54315590.22 | II231: 54465422.88 | IJ231: 54797288.92 | IK231: 55129154.95 | IL231: 55461020.98
C232: 2 | D232: Partners | E232: [Abonados] | F232: 0 | G232: 0 | H232: 0 | I232: 0 | J232: 0 | K232: 0 | L232: 0 | M232: 0 | N232: 0 | O232: 0 | P232: 0 | Q232: 0 | R232: 0 | S232: 0 | T232: 0 | U232: 0 | V232: 57000 | W232: 114000 | X232: 171000 | Y232: 174578 | Z232: 178156 | AA232: 181734 | AB232: 185588.3333 | AC232: 189442.6667 | AD232: 193297 | AE232: 196668 | AF232: 200039 | AG232: 203410 | AH232: 204281 | AI232: 205152 | AJ232: 206023 | AK232: 219091.6667 | AL232: 232160.3333 | AM232: 245229 | AN232: 252771 | AO232: 260313 | AP232: 267855 | AQ232: 282885.3333 | AR232: 297915.6667 | AS232: 312946 | AT232: 353154.3333 | AU232: 393362.6667 | AV232: 433571 | AW232: 472367.3333 | AX232: 511163.6667 | AY232: 549960 | AZ232: 598945.6667 | BA232: 647931.3333 | BB232: 696917 | BC232: 729205.3333 | BD232: 761493.6667 | BE232: 793782 | BF232: 854865.3333 | BG232: 915948.6667 | BH232: 977032 | BI232: 1017609 | BJ232: 1058186 | BK232: 1098763 | BL232: 1134282.667 | BM232: 1169802.333 | BN232: 1205322 | BO232: 1253787.667 | BP232: 1302253.333 | BQ232: 1350719 | BR232: 1374632 | BS232: 1398545 | BT232: 1422458 | BU232: 1554820.333 | BV232: 1687182.667 | BW232: 1819545 | BX232: 1873838 | BY232: 1928131 | BZ232: 1982424 | CA232: 1993462 | CB232: 2004500 | CC232: 2015538 | CD232: 2028112 | CE232: 2040686 | CF232: 2053260 | CG232: 2075851.333 | CH232: 2098442.667 | CI232: 2121034 | CJ232: 2154562 | CK232: 2188090 | CL232: 2221618 | CM232: 2243292.667 | CN232: 2264967.333 | CO232: 2286642 | CP232: 2301893.333 | CQ232: 2317144.667 | CR232: 2332396 | CS232: 2346958.667 | CT232: 2361521.333 | CU232: 2376084 | CV232: 2351781.667 | CW232: 2327479.333 | CX232: 2303177 | CY232: 2285708 | CZ232: 2268239 | DA232: 2250770 | DB232: 1993000.333 | DC232: 1735230.667 | DD232: 1477461 | DE232: 1448545 | DF232: 1419629 | DG232: 1390713 | DH232: 1344758 | DI232: 1298803 | DJ232: 1252848 | DK232: 1268697 | DL232: 1284546 | DM232: 1300395 | DN232: 1424112 | DO232: 1547829 | DP232: 1671546 | DQ232: 1848423.333 | DR232: 2025300.667 | DS232: 2202178 | DT232: 2261468.333 | DU232: 2320758.667 | DV232: 2380049 | DW232: 2337527.333 | DX232: 2295005.667 | DY232: 2252484 | DZ232: 2337510.667 | EA232: 2422537.333 | EB232: 2507564 | EC232: 2563221.333 | ED232: 2618878.667 | EE232: 2674536 | EF232: 2783358.667 | EG232: 2892181.333 | EH232: 3001004 | EI232: 3181946.333 | EJ232: 3362888.667 | EK232: 3543831 | EL232: 3575752 | EM232: 3607673 | EN232: 3639594 | EO232: 3985301.667 | EP232: 4331009.333 | EQ232: 4676717 | ER232: 5094463 | ES232: 5512209 | ET232: 5929955 | EU232: 6157856 | EV232: 6385757 | EW232: 6613658 | EX232: 6723868 | EY232: 6834078 | EZ232: 6944288 | FA232: 7030851 | FB232: 7117414 | FC232: 7203977 | FD232: 7431935.333 | FE232: 7659893.667 | FF232: 7887852 | FG232: 7731746.333 | FH232: 7575640.667 | FI232: 7419535 | FJ232: 7221788.667 | FK232: 7024042.333 | FL232: 6826296 | FM232: 6857346.907 | FN232: 6888397.815 | FO232: 6919448.722 | FP232: 6945945.864 | FQ232: 6972443.005 | FR232: 6998940.146 | FS232: 7024004.533 | FT232: 7049068.921 | FU232: 7074133.308 | FV232: 7149943.115 | FW232: 7225752.921 | FX232: 7301562.728 | FY232: 7332613.635 | FZ232: 7363664.543 | GA232: 7394715.45 | GB232: 7421212.591 | GC232: 7447709.732 | GD232: 7474206.874 | GE232: 7499271.261 | GF232: 7524335.648 | GG232: 7549400.036 | GH232: 7625209.842 | GI232: 7701019.649 | GJ232: 7776829.455 | GK232: 7807880.363 | GL232: 7838931.27 | GM232: 7869982.178 | GN232: 7896479.319 | GO232: 7922976.46 | GP232: 7949473.601 | GQ232: 7974537.989 | GR232: 7999602.376 | GS232: 8024666.763 | GT232: 8100476.57 | GU232: 8176286.377 | GV232: 8252096.183 | GW232: 8283147.091 | GX232: 8314197.998 | GY232: 8345248.906 | GZ232: 8371746.047 | HA232: 8398243.188 | HB232: 8424740.329 | HC232: 8449804.716 | HD232: 8474869.104 | HE232: 8499933.491 | HF232: 8575743.298 | HG232: 8651553.104 | HH232: 8727362.911 | HI232: 8758413.818 | HJ232: 8789464.726 | HK232: 8820515.633 | HL232: 8847012.774 | HM232: 8873509.916 | HN232: 8900007.057 | HO232: 8925071.444 | HP232: 8950135.831 | HQ232: 8975200.219 | HR232: 9051010.025 | HS232: 9126819.832 | HT232: 9202629.638 | HU232: 9233680.546 | HV232: 9264731.453 | HW232: 9295782.361 | HX232: 9322279.502 | HY232: 9348776.643 | HZ232: 9375273.784 | IA232: 9400338.172 | IB232: 9425402.559 | IC232: 9450466.947 | ID232: 9526276.753 | IE232: 9602086.56 | IF232: 9677896.366 | IG232: 9708947.274 | IH232: 9739998.181 | II232: 9771049.089 | IJ232: 9797546.23 | IK232: 9824043.371 | IL232: 9850540.512
C233: 3 | D233: Tigo | E233: [Abonados] | F233: 5741616 | G233: 5815376.333 | H233: 5889136.667 | I233: 5962897 | J233: 6025788.333 | K233: 6088679.667 | L233: 6151571 | M233: 6243059.667 | N233: 6334548.333 | O233: 6426037 | P233: 6505018.333 | Q233: 6583999.667 | R233: 6662981 | S233: 6756997.333 | T233: 6851013.667 | U233: 6945030 | V233: 7001809 | W233: 7058588 | X233: 7115367 | Y233: 7278970 | Z233: 7442573 | AA233: 7606176 | AB233: 7726236.667 | AC233: 7846297.333 | AD233: 7966358 | AE233: 8079951.667 | AF233: 8193545.333 | AG233: 8307139 | AH233: 8433154.333 | AI233: 8559169.667 | AJ233: 8685185 | AK233: 8814185.333 | AL233: 8943185.667 | AM233: 9072186 | AN233: 9228083.333 | AO233: 9383980.667 | AP233: 9539878 | AQ233: 9710318.667 | AR233: 9880759.333 | AS233: 10051200 | AT233: 10189158.67 | AU233: 10327117.33 | AV233: 10465076 | AW233: 10555369 | AX233: 10645662 | AY233: 10735955 | AZ233: 10895725.67 | BA233: 11055496.33 | BB233: 11215267 | BC233: 11245225.67 | BD233: 11275184.33 | BE233: 11305143 | BF233: 11391483 | BG233: 11477823 | BH233: 11564163 | BI233: 11439920.67 | BJ233: 11315678.33 | BK233: 11191436 | BL233: 10917952.33 | BM233: 10644468.67 | BN233: 10370985 | BO233: 10415830.33 | BP233: 10460675.67 | BQ233: 10505521 | BR233: 10647389 | BS233: 10789257 | BT233: 10931125 | BU233: 11004482.33 | BV233: 11077839.67 | BW233: 11151197 | BX233: 11247901.67 | BY233: 11344606.33 | BZ233: 11441311 | CA233: 11482113 | CB233: 11522915 | CC233: 11563717 | CD233: 11563564.33 | CE233: 11563411.67 | CF233: 11563259 | CG233: 11582692.33 | CH233: 11602125.67 | CI233: 11621559 | CJ233: 11685203.33 | CK233: 11748847.67 | CL233: 11812492 | CM233: 11726946.67 | CN233: 11641401.33 | CO233: 11555856 | CP233: 11611306 | CQ233: 11666756 | CR233: 11722206 | CS233: 11562474.33 | CT233: 11402742.67 | CU233: 11243011 | CV233: 11375865.33 | CW233: 11508719.67 | CX233: 11641574 | CY233: 11697110.67 | CZ233: 11752647.33 | DA233: 11808184 | DB233: 11551132.67 | DC233: 11294081.33 | DD233: 11037030 | DE233: 11189901 | DF233: 11342772 | DG233: 11495643 | DH233: 11831524 | DI233: 12167405 | DJ233: 12503286 | DK233: 12682496.33 | DL233: 12861706.67 | DM233: 13040917 | DN233: 13035136 | DO233: 13029355 | DP233: 13023574 | DQ233: 13339634.67 | DR233: 13655695.33 | DS233: 13971756 | DT233: 14153519.33 | DU233: 14335282.67 | DV233: 14517046 | DW233: 14581861.67 | DX233: 14646677.33 | DY233: 14711493 | DZ233: 14711494.33 | EA233: 14711495.67 | EB233: 14711497 | EC233: 14758233 | ED233: 14804969 | EE233: 14851705 | EF233: 14906117.33 | EG233: 14960529.67 | EH233: 15014942 | EI233: 15032798 | EJ233: 15050654 | EK233: 15068510 | EL233: 15101658 | EM233: 15134806 | EN233: 15167954 | EO233: 15121787 | EP233: 15075620 | EQ233: 15029453 | ER233: 15086787 | ES233: 15144121 | ET233: 15201455 | EU233: 15159792.67 | EV233: 15118130.33 | EW233: 15076468 | EX233: 15098756.33 | EY233: 15121044.67 | EZ233: 15143333 | FA233: 15422804.33 | FB233: 15702275.67 | FC233: 15981747 | FD233: 16221147.67 | FE233: 16460548.33 | FF233: 16699949 | FG233: 16747544.33 | FH233: 16795139.67 | FI233: 16842735 | FJ233: 16845222.33 | FK233: 16847709.67 | FL233: 16850197 | FM233: 16937033.89 | FN233: 17023870.78 | FO233: 17110707.67 | FP233: 17183585.53 | FQ233: 17256463.39 | FR233: 17329341.25 | FS233: 17420077.47 | FT233: 17510813.7 | FU233: 17601549.92 | FV233: 17654230.52 | FW233: 17706911.12 | FX233: 17759591.72 | FY233: 17846432.99 | FZ233: 17933274.26 | GA233: 18020115.53 | GB233: 18092993.4 | GC233: 18165871.26 | GD233: 18238749.12 | GE233: 18329485.34 | GF233: 18420221.56 | GG233: 18510957.78 | GH233: 18563638.38 | GI233: 18616318.98 | GJ233: 18668999.59 | GK233: 18755840.86 | GL233: 18842682.13 | GM233: 18929523.4 | GN233: 19002401.26 | GO233: 19075279.12 | GP233: 19148156.99 | GQ233: 19238893.21 | GR233: 19329629.43 | GS233: 19420365.65 | GT233: 19473046.25 | GU233: 19525726.85 | GV233: 19578407.45 | GW233: 19665248.72 | GX233: 19752090 | GY233: 19838931.27 | GZ233: 19911809.13 | HA233: 19984686.99 | HB233: 20057564.85 | HC233: 20148301.07 | HD233: 20239037.3 | HE233: 20329773.52 | HF233: 20382454.12 | HG233: 20435134.72 | HH233: 20487815.32 | HI233: 20574656.59 | HJ233: 20661497.86 | HK233: 20748339.14 | HL233: 20821217 | HM233: 20894094.86 | HN233: 20966972.72 | HO233: 21057708.94 | HP233: 21148445.16 | HQ233: 21239181.39 | HR233: 21291861.99 | HS233: 21344542.59 | HT233: 21397223.19 | HU233: 21484064.46 | HV233: 21570905.73 | HW233: 21657747 | HX233: 21730624.86 | HY233: 21803502.73 | HZ233: 21876380.59 | IA233: 21967116.81 | IB233: 22057853.03 | IC233: 22148589.25 | ID233: 22201269.85 | IE233: 22253950.45 | IF233: 22306631.05 | IG233: 22393472.33 | IH233: 22480313.6 | II233: 22567154.87 | IJ233: 22640032.73 | IK233: 22712910.59 | IL233: 22785788.45
C234: 4 | D234: Movistar | E234: [Abonados] | F234: 11391072 | G234: 11571706.67 | H234: 11752341.33 | I234: 11932976 | J234: 12074829.33 | K234: 12216682.67 | L234: 12358536 | M234: 12240677.67 | N234: 12122819.33 | O234: 12004961 | P234: 11904518 | Q234: 11804075 | R234: 11703632 | S234: 11641174.33 | T234: 11578716.67 | U234: 11516259 | V234: 11570887 | W234: 11625515 | X234: 11680143 | Y234: 11664591.33 | Z234: 11649039.67 | AA234: 11633488 | AB234: 11796236.67 | AC234: 11958985.33 | AD234: 12121734 | AE234: 12203248.67 | AF234: 12284763.33 | AG234: 12366278 | AH234: 12338157.67 | AI234: 12310037.33 | AJ234: 12281917 | AK234: 12381795.67 | AL234: 12481674.33 | AM234: 12581553 | AN234: 12668534.67 | AO234: 12755516.33 | AP234: 12842498 | AQ234: 12856637 | AR234: 12870776 | AS234: 12884915 | AT234: 12727698.33 | AU234: 12570481.67 | AV234: 12413265 | AW234: 12494028.67 | AX234: 12574792.33 | AY234: 12655556 | AZ234: 12735852 | BA234: 12816148 | BB234: 12896444 | BC234: 12950069 | BD234: 13003694 | BE234: 13057319 | BF234: 13117188 | BG234: 13177057 | BH234: 13236926 | BI234: 13351226 | BJ234: 13465526 | BK234: 13579826 | BL234: 13628307.67 | BM234: 13676789.33 | BN234: 13725271 | BO234: 13652553.33 | BP234: 13579835.67 | BQ234: =BQ200+BQ217 -> 13507118 | BR234: 13594213.33 | BS234: 13681308.67 | BT234: 13768404 | BU234: 13888901.33 | BV234: 14009398.67 | BW234: 14129896 | BX234: 14283449 | BY234: 14437002 | BZ234: 14590555 | CA234: 14632416.67 | CB234: 14674278.33 | CC234: 14716140 | CD234: 14834313.33 | CE234: 14952486.67 | CF234: 15070660 | CG234: 15143967.67 | CH234: 15217275.33 | CI234: 15290583 | CJ234: 15432460.67 | CK234: 15574338.33 | CL234: 15716216 | CM234: 15772228 | CN234: 15828240 | CO234: 15884252 | CP234: 15932525.33 | CQ234: 15980798.67 | CR234: 16029072 | CS234: 16039366 | CT234: 16049660 | CU234: 16059954 | CV234: 16066759.67 | CW234: 16073565.33 | CX234: 16080371 | CY234: 16024902 | CZ234: 15969433 | DA234: 15913964 | DB234: 15812047.67 | DC234: 15710131.33 | DD234: 15608215 | DE234: 15651468.67 | DF234: 15694722.33 | DG234: 15737976 | DH234: 15924631 | DI234: 16111286 | DJ234: 16297941 | DK234: 16435111.33 | DL234: 16572281.67 | DM234: 16709452 | DN234: 16876070.33 | DO234: 17042688.67 | DP234: 17209307 | DQ234: 17442145.67 | DR234: 17674984.33 | DS234: 17907823 | DT234: 18197580.67 | DU234: 18487338.33 | DV234: 18777096 | DW234: 18806810.33 | DX234: 18836524.67 | DY234: 18866239 | DZ234: 19156847.33 | EA234: 19447455.67 | EB234: 19738064 | EC234: 19828365.67 | ED234: 19918667.33 | EE234: 20008969 | EF234: 20181909 | EG234: 20354849 | EH234: 20527789 | EI234: 20539662.33 | EJ234: 20551535.67 | EK234: 20563409 | EL234: 20734611.67 | EM234: 20905814.33 | EN234: 21077017 | EO234: 21179387.33 | EP234: 21281757.67 | EQ234: 21384128 | ER234: 21399850.33 | ES234: 21415572.67 | ET234: 21431295 | EU234: 21190169 | EV234: 20949043 | EW234: 20707917 | EX234: 20800400.67 | EY234: 20892884.33 | EZ234: 20985368 | FA234: 20922374.67 | FB234: 20859381.33 | FC234: 20796388 | FD234: 20788378.67 | FE234: 20780369.33 | FF234: 20772360 | FG234: 20845644 | FH234: 20918928 | FI234: 20992212 | FJ234: 21217395.67 | FK234: 21442579.33 | FL234: 21667763 | FM234: 21755536.76 | FN234: 21843310.52 | FO234: 21931084.29 | FP234: 22036944.98 | FQ234: 22142805.67 | FR234: 22248666.37 | FS234: 22251009.11 | FT234: 22253351.86 | FU234: 22255694.61 | FV234: 22381782.63 | FW234: 22507870.66 | FX234: 22633958.69 | FY234: 22673753.31 | FZ234: 22713547.93 | GA234: 22753342.55 | GB234: 22859203.25 | GC234: 22965063.94 | GD234: 23070924.63 | GE234: 23073267.38 | GF234: 23075610.13 | GG234: 23077952.88 | GH234: 23204040.9 | GI234: 23330128.93 | GJ234: 23456216.96 | GK234: 23496011.58 | GL234: 23535806.2 | GM234: 23575600.82 | GN234: 23681461.52 | GO234: =GO200+GO217 -> 23787322.21 | GP234: 23893182.9 | GQ234: 23895525.65 | GR234: 23897868.4 | GS234: 23900211.14 | GT234: 24026299.17 | GU234: 24152387.2 | GV234: 24278475.22 | GW234: 24318269.85 | GX234: 24358064.47 | GY234: 24397859.09 | GZ234: 24503719.79 | HA234: 24609580.48 | HB234: 24715441.17 | HC234: 24717783.92 | HD234: 24720126.67 | HE234: 24722469.41 | HF234: 24848557.44 | HG234: 24974645.47 | HH234: 25100733.49 | HI234: 25140528.12 | HJ234: 25180322.74 | HK234: 25220117.36 | HL234: 25325978.05 | HM234: 25431838.75 | HN234: 25537699.44 | HO234: 25540042.19 | HP234: 25542384.93 | HQ234: 25544727.68 | HR234: 25670815.71 | HS234: 25796903.74 | HT234: 25922991.76 | HU234: 25962786.38 | HV234: 26002581.01 | HW234: 26042375.63 | HX234: 26148236.32 | HY234: 26254097.02 | HZ234: 26359957.71 | IA234: 26362300.46 | IB234: 26364643.2 | IC234: 26366985.95 | ID234: 26493073.98 | IE234: 26619162 | IF234: 26745250.03 | IG234: 26785044.65 | IH234: 26824839.28 | II234: 26864633.9 | IJ234: 26970494.59 | IK234: 27076355.29 | IL234: 27182215.98
C235: 5 | D235: ETB | E235: [Abonados] | F235: =F201+F218 -> 0 | G235: 0 | H235: 0 | I235: 0 | J235: 0 | K235: 0 | L235: 0 | M235: 0 | N235: 0 | O235: 0 | P235: 0 | Q235: 0 | R235: 0 | S235: 13884.66667 | T235: 27769.33333 | U235: 41654 | V235: 42457.66667 | W235: 43261.33333 | X235: 44065 | Y235: 44351.66667 | Z235: 44638.33333 | AA235: 44925 | AB235: 45554.66667 | AC235: 46184.33333 | AD235: 46814 | AE235: 46888.33333 | AF235: 46962.66667 | AG235: 47037 | AH235: 42919.33333 | AI235: 38801.66667 | AJ235: 34684 | AK235: 23122.66667 | AL235: 11561.33333 | AM235: 0 | AN235: 7056.666667 | AO235: 14113.33333 | AP235: 21170 | AQ235: 37736.66667 | AR235: 54303.33333 | AS235: 70870 | AT235: 101359 | AU235: 131848 | AV235: 162337 | AW235: 199466.3333 | AX235: 236595.6667 | AY235: 273725 | AZ235: 312540.3333 | BA235: 351355.6667 | BB235: 390171 | BC235: 399537.3333 | BD235: 408903.6667 | BE235: 418270 | BF235: 442450.3333 | BG235: 466630.6667 | BH235: 490811 | BI235: 515402.3333 | BJ235: 539993.6667 | BK235: 564585 | BL235: 606327 | BM235: 648069 | BN235: 689811 | BO235: 699466 | BP235: 709121 | BQ235: 718776 | BR235: 711760 | BS235: 704744 | BT235: 697728 | BU235: 659282.6667 | BV235: 620837.3333 | BW235: 582392 | BX235: 586503 | BY235: 590614 | BZ235: 594725 | CA235: 592468.6667 | CB235: 590212.3333 | CC235: 587956 | CD235: 592728.3333 | CE235: 597500.6667 | CF235: 602273 | CG235: 586517.3333 | CH235: 570761.6667 | CI235: 555006 | CJ235: 532136.3333 | CK235: 509266.6667 | CL235: 486397 | CM235: 472324.6667 | CN235: 458252.3333 | CO235: 444180 | CP235: 449626.3333 | CQ235: 455072.6667 | CR235: 460519 | CS235: 445392.6667 | CT235: 430266.3333 | CU235: 415140 | CV235: 406525.6667 | CW235: 397911.3333 | CX235: =CX201+CX218 -> 389297 | CY235: 390452.3333 | CZ235: 391607.6667 | DA235: 392763 | DB235: 379001.6667 | DC235: 365240.3333 | DD235: 351479 | DE235: 343503.3333 | DF235: 335527.6667 | DG235: 327552 | DH235: 326083.3333 | DI235: 324614.6667 | DJ235: 323146 | DK235: 322793.6667 | DL235: 322441.3333 | DM235: 322089 | DN235: 312873 | DO235: 303657 | DP235: 294441 | DQ235: 283664.6667 | DR235: 272888.3333 | DS235: 262112 | DT235: 253394.6667 | DU235: 244677.3333 | DV235: 235960 | DW235: 236713.6667 | DX235: 237467.3333 | DY235: 238221 | DZ235: 235569.6667 | EA235: 232918.3333 | EB235: 230267 | EC235: 236435 | ED235: 242603 | EE235: 248771 | EF235: 253021.3333 | EG235: 257271.6667 | EH235: 261522 | EI235: 265011 | EJ235: 268500 | EK235: 271989 | EL235: 279729.6667 | EM235: 287470.3333 | EN235: 295211 | EO235: 301772.6667 | EP235: 308334.3333 | EQ235: 314896 | ER235: 314396.6667 | ES235: 313897.3333 | ET235: 313398 | EU235: 311043 | EV235: 308688 | EW235: 306333 | EX235: 305918.6667 | EY235: 305504.3333 | EZ235: 305090 | FA235: 304138.3333 | FB235: 303186.6667 | FC235: 302235 | FD235: 284378 | FE235: 266521 | FF235: 248664 | FG235: 245229.3333 | FH235: 241794.6667 | FI235: 238360 | FJ235: =FJ201+FJ218 -> 237125.6667 | FK235: 235891.3333 | FL235: 234657 | FM235: 227909.5011 | FN235: 221162.0022 | FO235: 214414.5033 | FP235: 208403.3513 | FQ235: 202392.1992 | FR235: 196381.0471 | FS235: 198233.7244 | FT235: 200086.4017 | FU235: 201939.079 | FV235: 208958.2858 | FW235: 215977.4925 | FX235: 222996.6992 | FY235: 216238.8064 | FZ235: 209480.9137 | GA235: 202723.0209 | GB235: 196711.8688 | GC235: 190700.7167 | GD235: 184689.5647 | GE235: 186542.242 | GF235: 188394.9193 | GG235: 190247.5966 | GH235: 197266.8033 | GI235: 204286.0101 | GJ235: 211305.2168 | GK235: 204547.324 | GL235: 197789.4312 | GM235: 191031.5384 | GN235: 185020.3864 | GO235: 179009.2343 | GP235: 172998.0822 | GQ235: 174850.7595 | GR235: 176703.4369 | GS235: 178556.1142 | GT235: 185575.3209 | GU235: 192594.5276 | GV235: 199613.7343 | GW235: 192855.8416 | GX235: 186097.9488 | GY235: 179340.056 | GZ235: 174323.8807 | HA235: 169307.7055 | HB235: 164291.5302 | HC235: 166086.0908 | HD235: 167880.6514 | HE235: 169675.2121 | HF235: 170867.9465 | HG235: 172060.6809 | HH235: 173253.4154 | HI235: 174915.6596 | HJ235: 176577.9038 | HK235: 178240.148 | HL235: 177523.6159 | HM235: 176807.0837 | HN235: 176090.5515 | HO235: 177885.1122 | HP235: 179679.6728 | HQ235: 181474.2334 | HR235: 182666.9678 | HS235: 183859.7023 | HT235: 185052.4367 | HU235: 186714.6809 | HV235: 188376.9251 | HW235: 190039.1694 | HX235: 189322.6372 | HY235: 188606.105 | HZ235: 187889.5729 | IA235: 189684.1335 | IB235: 191478.6941 | IC235: 193273.2547 | ID235: 194465.9892 | IE235: 195658.7236 | IF235: 196851.458 | IG235: 198513.7023 | IH235: 200175.9465 | II235: 201838.1907 | IJ235: 201121.6585 | IK235: 200405.1264 | IL235: 199688.5942
C236: 6 | D236: OMVs | E236: [Abonados] | F236: 248942 | G236: 251600.6667 | H236: 254259.3333 | I236: 256918 | J236: 261654.6667 | K236: 266391.3333 | L236: 271128 | M236: 282891.3333 | N236: 294654.6667 | O236: 306418 | P236: 313833 | Q236: 321248 | R236: 328663 | S236: 335538.3333 | T236: 342413.6667 | U236: 349289 | V236: 398831.3333 | W236: 448373.6667 | X236: 497916 | Y236: 601260.6667 | Z236: 704605.3333 | AA236: 807950 | AB236: 868504 | AC236: 929058 | AD236: 989612 | AE236: 1146740 | AF236: 1303868 | AG236: 1460996 | AH236: 1599724 | AI236: 1738452 | AJ236: 1877180 | AK236: 2049413.667 | AL236: 2221647.333 | AM236: 2393881 | AN236: 2557116.333 | AO236: 2720351.667 | AP236: 2883587 | AQ236: 2917839 | AR236: 2952091 | AS236: 2986343 | AT236: 3036929.333 | AU236: 3087515.667 | AV236: 3138102 | AW236: 3129509 | AX236: 3120916 | AY236: 3112323 | AZ236: 3126731 | BA236: 3141139 | BB236: 3155547 | BC236: 3229780 | BD236: 3304013 | BE236: 3378246 | BF236: 3385145.333 | BG236: 3392044.667 | BH236: 3398944 | BI236: 3466064 | BJ236: 3533184 | BK236: 3600304 | BL236: 3646753 | BM236: 3693202 | BN236: 3739651 | BO236: 3772964 | BP236: 3806277 | BQ236: 3839590 | BR236: 3794279 | BS236: 3748968 | BT236: 3703657 | BU236: 3796939.333 | BV236: 3890221.667 | BW236: 3983504 | BX236: 4075058.667 | BY236: 4166613.333 | BZ236: 4258168 | CA236: 4331964.333 | CB236: 4405760.667 | CC236: 4479557 | CD236: 4471598 | CE236: 4463639 | CF236: 4455680 | CG236: 4505985.667 | CH236: 4556291.333 | CI236: 4606597 | CJ236: 4706891.333 | CK236: 4807185.667 | CL236: 4907480 | CM236: 4908400 | CN236: 4909320 | CO236: 4910240 | CP236: 4975416.333 | CQ236: 5040592.667 | CR236: 5105769 | CS236: 4885561 | CT236: 4665353 | CU236: 4445145 | CV236: 4551658.667 | CW236: 4658172.333 | CX236: 4764686 | CY236: 4804174.667 | CZ236: 4843663.333 | DA236: 4883152 | DB236: 4874854.333 | DC236: 4866556.667 | DD236: 4858259 | DE236: 4739677 | DF236: 4621095 | DG236: 4502513 | DH236: 4430537.667 | DI236: 4358562.333 | DJ236: 4286587 | DK236: 4393855.667 | DL236: 4501124.333 | DM236: 4608393 | DN236: 4555303.333 | DO236: 4502213.667 | DP236: 4449124 | DQ236: 4415661 | DR236: 4382198 | DS236: 4348735 | DT236: 4260493 | DU236: 4172251 | DV236: 4084009 | DW236: 4127206.333 | DX236: 4170403.667 | DY236: 4213601 | DZ236: 4263523.667 | EA236: 4313446.333 | EB236: 4363369 | EC236: 4382665.333 | ED236: 4401961.667 | EE236: 4421258 | EF236: 4433156.667 | EG236: 4445055.333 | EH236: 4456954 | EI236: 4523163.667 | EJ236: 4589373.333 | EK236: 4655583 | EL236: 4675278.667 | EM236: 4694974.333 | EN236: 4714670 | EO236: 4776956.667 | EP236: 4839243.333 | EQ236: 4901530 | ER236: 5017755 | ES236: 5133980 | ET236: 5250205 | EU236: 5236579.333 | EV236: 5222953.667 | EW236: 5209328 | EX236: 5277134 | EY236: 5344940 | EZ236: 5412746 | FA236: 5468693.333 | FB236: 5524640.667 | FC236: 5580588 | FD236: 5557235.667 | FE236: 5533883.333 | FF236: 5510531 | FG236: 5583278.667 | FH236: 5656026.333 | FI236: 5728774 | FJ236: 5711563.667 | FK236: 5694353.333 | FL236: 5677143 | FM236: 5722852.062 | FN236: 5768561.123 | FO236: 5814270.185 | FP236: 5842166.928 | FQ236: 5870063.671 | FR236: 5897960.413 | FS236: 5917256.672 | FT236: 5936552.93 | FU236: 5955849.188 | FV236: 5984656.234 | FW236: 6013463.28 | FX236: 6042270.326 | FY236: 6087979.388 | FZ236: 6133688.449 | GA236: 6179397.511 | GB236: 6207294.254 | GC236: 6235190.996 | GD236: 6263087.739 | GE236: 6282383.998 | GF236: 6301680.256 | GG236: 6320976.514 | GH236: 6349783.56 | GI236: 6378590.606 | GJ236: 6407397.652 | GK236: 6453106.713 | GL236: 6498815.775 | GM236: 6544524.837 | GN236: 6572421.58 | GO236: 6600318.322 | GP236: 6628215.065 | GQ236: 6647511.323 | GR236: 6666807.582 | GS236: 6686103.84 | GT236: 6714910.886 | GU236: 6743717.932 | GV236: 6772524.978 | GW236: 6818234.039 | GX236: 6863943.101 | GY236: 6909652.163 | GZ236: 6937548.905 | HA236: 6965445.648 | HB236: 6993342.391 | HC236: 7012638.649 | HD236: 7031934.908 | HE236: 7051231.166 | HF236: 7080038.212 | HG236: 7108845.258 | HH236: 7137652.304 | HI236: 7183361.365 | HJ236: 7229070.427 | HK236: 7274779.489 | HL236: 7302676.231 | HM236: 7330572.974 | HN236: 7358469.717 | HO236: 7377765.975 | HP236: 7397062.233 | HQ236: 7416358.492 | HR236: 7445165.538 | HS236: 7473972.584 | HT236: 7502779.629 | HU236: 7548488.691 | HV236: 7594197.753 | HW236: 7639906.814 | HX236: 7667803.557 | HY236: 7695700.3 | HZ236: 7723597.043 | IA236: 7742893.301 | IB236: 7762189.559 | IC236: 7781485.818 | ID236: 7810292.864 | IE236: 7839099.909 | IF236: 7867906.955 | IG236: 7913616.017 | IH236: 7959325.079 | II236: 8005034.14 | IJ236: 8032930.883 | IK236: 8060827.626 | IL236: 8088724.369
C237: 7 | D237: libre | E237: [Abonados]
C238: 8 | D238: libre | E238: [Abonados]
C239: 9 | D239: libre | E239: [Abonados]
C240: 10 | D240: libre | E240: [Abonados]
C241: 11 | D241: libre | E241: [Abonados]
C242: =+C241+1 -> 12 | D242: libre | E242: [Abonados]
C243: =+C242+1 -> 13 | D243: libre | E243: [Abonados]
C244: =+C243+1 -> 14 | D244: libre | E244: [Abonados]
C245: =+C244+1 -> 15 | D245: libre | E245: [Abonados]
... 755 more rows

Sheet Demanda
E2: =Portada!$F$2 -> Modelo Empresa Eficiente Móvil
E3: Estimación y Proyección de Demanda por Servicios
B6: Salida Demanda Empresa Eficiente a Tarifas
D7: 2 | E7: 3 | F7: 5 | H7: 4 | I7: 7 | J7: 8 | K7: 9 | L7: 10 | M7: 11 | N7: 12
B8: N°Orden | C8: N°Lista | D8: Variable | E8: Tipo de Servicio | F8: Tarifa | I8: =años -> 0 | J8: 1 | K8: 2 | L8: 3 | M8: 4 | N8: 5 | P8: Multiplicador de Demanda | Q8: Aux_LRIC puro
B9: 1 | C9: 1 | D9: =IFERROR(INDEX(Dda.Servicios,$C9,D$7),"libre") -> Abonados | E9: =IFERROR(INDEX(Dda.Servicios,$C9,E$7),"libre") -> Servicio de telefonía móvil | F9: Plan móvil | H9: =IFERROR(INDEX(Dda.Servicios,$C9,H$7),"[-]") -> [Abonados] | I9: =IFERROR(INDEX(Dda.Servicios,$C9,I$7),0)*$P9 -> 31081217.73 | J9: 32374361.97 | K9: 33867349.81 | L9: 35307084.74 | M9: 36684179.63 | N9: 37746076.76 | P9: =INDEX(cip.id.base,Q9) -> 1 | Q9: 1
B10: =+B9+1 -> 2 | C10: 5 | D10: =IFERROR(INDEX(Dda.Servicios,$C10,D$7),"libre") -> Abonados de datos | E10: Servicio de acceso a Internet móvil | F10: Plan Internet móvil | H10: =IFERROR(INDEX(Dda.Servicios,$C10,H$7),"[-]") -> [Abonados] | I10: 17077698.25 | J10: 18160850.69 | K10: 19377459.05 | L10: 20735231.99 | M10: 22270875.07 | N10: 22673653.62 | P10: =INDEX(cip.id.base,Q10) -> 1 | Q10: 1
B11: =+B10+1 -> 3 | D11: =IFERROR(INDEX(Dda.Servicios,$C11,D$7),"libre") -> libre | E11: libre | F11: libre | H11: =IFERROR(INDEX(Dda.Servicios,$C11,H$7),"[-]") -> [-] | I11: 0 | J11: 0 | K11: 0 | L11: 0 | M11: 0 | N11: 0 | P11: 1 | Q11: 1
B12: 4 | D12: =E112&"_"&D112 -> TP_RP_Tráfico Móvil a Móvil (Entrada) | E12: =E112 -> TP_RP | H12: =F112 -> [Minutos] | I12: =I112*$P12 -> 1.076303592e+10 | J12: 1.278339005e+10 | K12: 1.307877608e+10 | L12: 1.385680255e+10 | M12: 1.512113701e+10 | N12: 1.61716634e+10 | P12: 1 | Q12: 2
B13: 5 | D13: =E113&"_"&D113 -> TP_RP_Tráfico Fijo a Móvil (Entrada) | E13: =E113 -> TP_RP | H13: =F113 -> [Minutos] | I13: =I113*$P13 -> 499330033.7 | J13: 589307255.4 | K13: 679828616.8 | L13: 776016623.2 | M13: 878011624.8 | N13: 985625332.4 | P13: 1 | Q13: 3
B14: 6 | D14: TP_RP_Tráfico Móvil a Larga Distancia (Entrada) | E14: TP_RP | H14: [Minutos] | I14: 70087529.31 | J14: 79411978.27 | K14: 76463690.53 | L14: 75080777.55 | M14: 74425780.34 | N14: 74163213.01 | P14: 1 | Q14: 4
B15: 7 | D15: TP_RP_Tráfico Móvil a otra Móvil (Salida) | E15: TP_RP | H15: [Minutos] | I15: 1.077557327e+10 | J15: 1.278978042e+10 | K15: 1.308681875e+10 | L15: 1.386639277e+10 | M15: 1.513208882e+10 | N15: 1.618401772e+10 | P15: 1 | Q15: 5
B16: 8 | D16: TP_RP_Tráfico Móvil a misma Móvil (Salida) | E16: TP_RP | H16: [Minutos] | I16: 1.355310942e+10 | J16: 1.626641656e+10 | K16: 1.611919721e+10 | L16: 1.594636739e+10 | M16: 1.58194881e+10 | N16: 1.577023889e+10 | P16: 1 | Q16: 6
B17: 9 | D17: TP_RP_Tráfico Móvil a Fijo (Salida) | E17: TP_RP | H17: [Minutos] | I17: 873971519.6 | J17: 1072224655 | K17: 1108816934 | L17: 1153940543 | M17: 1207190124 | N17: 1243976164 | P17: 1 | Q17: 7
B18: 10 | D18: TP_RP_Tráfico Móvil a Larga Distancia (Salida) | E18: TP_RP | H18: [Minutos] | I18: 58474309.13 | J18: 66209730.02 | K18: 63758925.98 | L18: 62610617.17 | M18: 62066404.03 | N18: 61849891.55 | P18: 1 | Q18: 8
B19: 11 | D19: TP_RP_Tráfico SMS Entrada | E19: TP_RP | H19: [Mensajes] | I19: =MAX(I119*$P19,0) -> 68501025.89 | J19: 65933155.72 | K19: 68720524.56 | L19: 69999798.19 | M19: 79140592.13 | N19: 94668973.39 | P19: 1 | Q19: 9
B20: 12 | D20: TP_RP_Tráfico SMS Salida | E20: TP_RP | H20: [Mensajes] | I20: =MAX(I120*$P20,0) -> 68501025.89 | J20: 65933155.72 | K20: 68720524.56 | L20: 69999798.19 | M20: 79140592.13 | N20: 94668973.39 | P20: 1 | Q20: 10
B21: 13 | D21: TP_RP_Tráfico SMS OnNet | E21: TP_RP | H21: [Mensajes] | I21: 146032161.6 | J21: 111219260.3 | K21: 83364755.95 | L21: 59592277.9 | M21: 41324473.53 | N21: 24312513.96 | P21: 1 | Q21: 11
B22: 14 | D22: TP_RP_Datos | E22: TP_RP | H22: [MB] | I22: 2.405776905e+12 | J22: 2.832793127e+12 | K22: 3.298711469e+12 | L22: 3.806260812e+12 | M22: 4.357032424e+12 | N22: 4.942856612e+12 | P22: 1 | Q22: 12
B23: 15 | D23: OMV_Tráfico Móvil a Móvil (Entrada) | E23: OMV | H23: [Minutos] | I23: 362483135.7 | J23: 393919351.8 | K23: 428519343.1 | L23: 464394553.9 | M23: 501556268.2 | N23: 539891040.9 | P23: 1 | Q23: 13
B24: 16 | D24: OMV_Tráfico Fijo a Móvil (Entrada) | E24: OMV | H24: [Minutos] | I24: 16816697.23 | J24: 18159465.62 | K24: 22274233.5 | L24: 26007290.81 | M24: 29122957.73 | N24: 32905105.27 | P24: 1 | Q24: 14
B25: 17 | D25: OMV_Tráfico Móvil a Larga Distancia (Entrada) | E25: OMV | H25: [Minutos] | I25: 2360444.356 | J25: 2447075.063 | K25: 2505293.327 | L25: 2516244.572 | M25: 2468644.826 | N25: 2475939.133 | P25: 1 | Q25: 15
B26: 18 | D26: OMV_Tráfico Móvil a otra Móvil (Salida) | E26: OMV | H26: [Minutos] | I26: 377274242.4 | J26: 411487527.7 | K26: 449861796.7 | L26: 490872664.7 | M26: 534582971.4 | N26: 579837065.6 | P26: 1 | Q26: 16
B27: 19 | D27: OMV_Tráfico Móvil a misma Móvil (Salida) | E27: OMV | H27: [Minutos] | I27: 50994043.79 | J27: 59582931.67 | K27: 69138137.88 | L27: 79371334.77 | M27: 90282522.36 | N27: 101871700.6 | P27: 1 | Q27: 17
B28: 20 | D28: OMV_Tráfico Móvil a Fijo (Salida) | E28: OMV | H28: [Minutos] | I28: 30599480.38 | J28: 34496844.97 | K28: 38115785.62 | L28: 40849691.66 | M28: 42647336.46 | N28: 44568876.58 | P28: 1 | Q28: 18
B29: 21 | D29: OMV_Tráfico Móvil a Larga Distancia (Salida) | E29: OMV | H29: [Minutos] | I29: 2047301.811 | J29: 2130175.596 | K29: 2191724.783 | L29: 2216426.506 | M29: 2192667.719 | N29: 2215942.929 | P29: 1 | Q29: 19
B30: 22 | D30: OMV_Tráfico SMS Entrada | E30: OMV | H30: [Mensajes] | I30: 1550327.379 | J30: 1488376.526 | K30: 1404008.456 | L30: 1293841.747 | M30: 1156015.874 | N30: 986137.046 | P30: 1 | Q30: 20
B31: 23 | D31: OMV_Tráfico SMS Salida | E31: OMV | H31: [Mensajes] | I31: 1550327.379 | J31: 1488376.526 | K31: 1404008.456 | L31: 1293841.747 | M31: 1156015.874 | N31: 986137.046 | P31: 1 | Q31: 21
B32: 24 | D32: OMV_Tráfico SMS OnNet | E32: OMV | H32: [Mensajes] | I32: 1691840.515 | J32: 1283225.787 | K32: 919445.4927 | L32: 607262.4755 | M32: 350397.7866 | N32: 157639.0074 | P32: 1 | Q32: 22
B33: 25 | D33: OMV_Datos | E33: OMV | H33: [MB] | I33: 1.842986913e+10 | J33: 2.22182418e+10 | K33: 2.598857526e+10 | L33: 3.015838131e+10 | M33: 3.474750354e+10 | N33: 3.977580332e+10 | P33: 1 | Q33: 23
B34: 26 | D34: RAN_Tráfico Móvil a Móvil (Entrada) | E34: RAN | H34: [Minutos] | I34: 170232543.4 | J34: 84049010.16 | K34: 104632145.7 | L34: 126727310.4 | M34: 150341440.6 | N34: 175441658 | P34: 1 | Q34: 24
B35: 27 | D35: RAN_Tráfico Fijo a Móvil (Entrada) | E35: RAN | H35: [Minutos] | I35: 7897606.425 | J35: 3874613.175 | K35: 5438729.623 | L35: 7097055.697 | M35: 8729603.632 | N35: 10692761.66 | P35: 1 | Q35: 25
B36: 28 | D36: RAN_Tráfico Móvil a Larga Distancia (Entrada) | E36: RAN | H36: [Minutos] | I36: 1108532.803 | J36: 522122.7033 | K36: 611720.8492 | L36: 686650.832 | M36: 739976.0368 | N36: 804575.06 | P36: 1 | Q36: 26
B37: 29 | D37: RAN_Tráfico Móvil a otra Móvil (Salida) | E37: RAN | H37: [Minutos] | I37: 157695192.1 | J37: 77658639.99 | K37: 96589472.71 | L37: 117137081.4 | M37: 139389627.4 | N37: 163087343.5 | P37: 1 | Q37: 27
B38: 30 | D38: RAN_Tráfico Móvil a misma Móvil (Salida) | E38: RAN | H38: [Minutos] | I38: 0 | J38: 0 | K38: 0 | L38: 0 | M38: 0 | N38: 0 | P38: 1 | Q38: 28
B39: 31 | D39: RAN_Tráfico Móvil a Fijo (Salida) | E39: RAN | H39: [Minutos] | I39: 12790141.48 | J39: 6510472.089 | K39: 8183810.366 | L39: 9747973.353 | M39: 11120063.03 | N39: 12535624.43 | P39: 1 | Q39: 29
B40: 32 | D40: RAN_Tráfico Móvil a Larga Distancia (Salida) | E40: RAN | H40: [Minutos] | I40: 855742.6301 | J40: 402020.7869 | K40: 470583.5052 | L40: 528906.4774 | M40: 571726.2851 | N40: 623265.1671 | P40: 1 | Q40: 30
B41: 33 | D41: RAN_Tráfico SMS Entrada | E41: RAN | H41: [Mensajes] | I41: 65316350.2 | J41: 63066851.94 | K41: 58578834.88 | L41: 56968325.23 | M41: 57195164.54 | N41: 57422003.84 | P41: 1 | Q41: 31
B42: 34 | D42: RAN_Tráfico SMS Salida | E42: RAN | H42: [Mensajes] | I42: 65316350.2 | J42: 63066851.94 | K42: 58578834.88 | L42: 56968325.23 | M42: 57195164.54 | N42: 57422003.84 | P42: 1 | Q42: 32
B43: 35 | D43: RAN_Tráfico SMS OnNet | E43: RAN | H43: [Mensajes] | I43: 0 | J43: 0 | K43: 0 | L43: 0 | M43: 0 | N43: 0 | P43: 1 | Q43: 33
B44: 36 | D44: RAN_Datos | E44: RAN | H44: [MB] | I44: 5688868707 | J44: 6869015975 | K44: 8224391947 | L44: 9722828061 | M44: 1.137033262e+10 | N44: 1.314150415e+10 | P44: 1 | Q44: 34
B45: 37 | D45: RI_Tráfico Móvil a Móvil (Entrada) | E45: RI | H45: [Minutos] | I45: 0 | J45: 0 | K45: 0 | L45: 0 | M45: 0 | N45: 0 | P45: 1 | Q45: 35
B46: 38 | D46: RI_Tráfico Fijo a Móvil (Entrada) | E46: RI | H46: [Minutos] | I46: 0 | J46: 0 | K46: 0 | L46: 0 | M46: 0 | N46: 0 | P46: 1 | Q46: 36
B47: 39 | D47: RI_Tráfico Móvil a Larga Distancia (Entrada) | E47: RI | H47: [Minutos] | I47: 3291384.496 | J47: 3610439.198 | K47: 3768884.272 | L47: 3927466.467 | M47: 4086048.661 | N47: 4244630.856 | P47: 1 | Q47: 37
B48: 40 | D48: RI_Tráfico Móvil a otra Móvil (Salida) | E48: RI | H48: [Minutos] | I48: 0 | J48: 0 | K48: 0 | L48: 0 | M48: 0 | N48: 0 | P48: 1 | Q48: 38
B49: 41 | D49: RI_Tráfico Móvil a misma Móvil (Salida) | E49: RI | H49: [Minutos] | I49: 0 | J49: 0 | K49: 0 | L49: 0 | M49: 0 | N49: 0 | P49: 1 | Q49: 39
B50: 42 | D50: RI_Tráfico Móvil a Fijo (Salida) | E50: RI | H50: [Minutos] | I50: 0 | J50: 0 | K50: 0 | L50: 0 | M50: 0 | N50: 0 | P50: 1 | Q50: 40
B51: 43 | D51: RI_Tráfico Móvil a Larga Distancia (Salida) | E51: RI | H51: [Minutos] | I51: 3550581.263 | J51: 3522225.125 | K51: 3588820.285 | L51: 3657722.468 | M51: 3726624.651 | N51: 3773717.24 | P51: 1 | Q51: 41
B52: 44 | D52: RI_Tráfico SMS Entrada | E52: RI | H52: [Mensajes] | I52: 121569.3555 | J52: 130510.9885 | K52: 138389.477 | L52: 146267.9655 | M52: 154146.454 | N52: 162024.9425 | P52: 1 | Q52: 42
B53: 45 | D53: RI_Tráfico SMS Salida | E53: RI | H53: [Mensajes] | I53: 121569.3555 | J53: 130510.9885 | K53: 138389.477 | L53: 146267.9655 | M53: 154146.454 | N53: 162024.9425 | P53: 1 | Q53: 43
B54: 46 | D54: RI_Tráfico SMS OnNet | E54: =E154 -> RI | H54: [Mensajes] | I54: 0 | J54: 0 | K54: 0 | L54: 0 | M54: 0 | N54: 0 | P54: 1 | Q54: 44
B55: 47 | D55: RI_Datos | E55: RI | H55: [MB] | I55: 2503919230 | J55: 2978449968 | K55: 3275475879 | L55: =L155*$P55 -> 3572501791 | M55: 3869527702 | N55: 4166553614 | P55: 1 | Q55: 45
B56: 48 | D56: =E156&"_"&D156 -> TP_RP_SMS Cortos Entrada | E56: TP_RP | F56: =IFERROR(INDEX(Dda.Servicios,$C56,F$7),"libre") -> libre | H56: [Mensajes] | I56: 1.741995289e+10 | J56: 1.759374068e+10 | K56: 1.807675924e+10 | L56: 1.855081787e+10 | M56: 1.90248765e+10 | N56: 1.949893514e+10 | P56: 1 | Q56: 46
B57: 49 | D57: =IFERROR(INDEX(Dda.Servicios,$C57,D$7),"libre") -> libre | E57: libre | F57: libre | H57: =IFERROR(INDEX(Dda.Servicios,$C57,H$7),"[-]") -> [-] | I57: =IFERROR(INDEX(Dda.Servicios,$C57,I$7),0) -> 0 | J57: 0 | K57: 0 | L57: 0 | M57: 0 | N57: 0 | P57: 1 | Q57: 47
B58: 50 | D58: =IFERROR(INDEX(Dda.Servicios,$C58,D$7),"libre") -> libre | E58: libre | F58: libre | H58: =IFERROR(INDEX(Dda.Servicios,$C58,H$7),"[-]") -> [-] | I58: 0 | J58: 0 | K58: 0 | L58: 0 | M58: 0 | N58: 0 | P58: 1 | Q58: 48
D59: Dda.Serv.serv | H59: Dda.Serv.unidades | N59: Dda.Serv.Sal.0 | O59: Dda.Serv.Sal
B61: Servicios Empresa Eficiente
B63: Lista de Servicios Empresa Eficiente
C65: N°Orden | D65: Tipo de Servicio
C66: 1 | D66: Servicio de telefonía móvil
C67: 2 | D67: Servicio de acceso a Internet móvil
C68: 3 | D68: Servicio de mensajería SMS
C69: 4 | D69: Voz Roaming Automático Nacional
C70: 5 | D70: Datos Roaming Automático Nacional
C71: 6 | D71: SMS Roaming Automático Nacional
C72: 7 | D72: Voz Operador Móvil Virtual
C73: 8 | D73: Datos Operador Móvil Virtual
C74: 9 | D74: SMS Operador Móvil Virtual
C75: 10 | D75: Otros Servicios de Red
C76: 11 | D76: Voz Roaming Internacional
C77: 12 | D77: Datos Roaming Internacional
C78: 13 | D78: SMS Roaming Internacional
C79: 14 | D79: libre
C80: 15 | D80: libre
D81: L.servicios
B83: Lista de Tarifas de Servicios Empresa Eficiente
C85: N°Orden | D85: Tarifa
C86: 1 | D86: Plan móvil
C87: 2 | D87: Servicio voz móvil
C88: 3 | D88: Cargos de acceso móvil
C89: 4 | D89: Plan Internet móvil
C90: 5 | D90: Datos móviles
C91: 6 | D91: SMS
C92: 7 | D92: RAN voz
C93: 8 | D93: RAN datos
C94: 9 | D94: RAN sms
C95: 10 | D95: OMV voz
C96: 11 | D96: OMV datos
C97: 12 | D97: OMV sms
C98: 13 | D98: RI voz
C99: 14 | D99: RI datos
C100: 15 | D100: RI sms
C101: 16 | D101: M2M/IoT
C102: 17 | D102: GPS
C103: 18 | D103: libre
C104: 19 | D104: libre
C105: 20 | D105: libre
D106: L.tarifas
B109: Demanda de Servicios Empresa Eficiente (Modelo de Red y Tarifas)
C111: Id | D111: Variable | E111: Tipo | F111: Unidades | I111: =años.calendario -> 2025 | J111: 2026 | K111: 2027 | L111: 2028 | M111: 2029 | N111: 2030
C112: 1 | D112: Tráfico Móvil a Móvil (Entrada) | E112: TP_RP | F112: [Minutos] | G112: Tráfico Propio en Red Propia | I112: =I190-I134 -> 1.076303592e+10 | J112: 1.278339005e+10 | K112: 1.307877608e+10 | L112: 1.385680255e+10 | M112: 1.512113701e+10 | N112: 1.61716634e+10
C113: 2 | D113: Tráfico Fijo a Móvil (Entrada) | E113: TP_RP | F113: [Minutos] | G113: Tráfico Propio en Red Propia | I113: 499330033.7 | J113: 589307255.4 | K113: 679828616.8 | L113: 776016623.2 | M113: 878011624.8 | N113: 985625332.4
C114: 3 | D114: Tráfico Móvil a Larga Distancia (Entrada) | E114: TP_RP | F114: [Minutos] | G114: Tráfico Propio en Red Propia | I114: 70087529.31 | J114: 79411978.27 | K114: 76463690.53 | L114: 75080777.55 | M114: 74425780.34 | N114: 74163213.01
C115: 4 | D115: Tráfico Móvil a otra Móvil (Salida) | E115: TP_RP | F115: [Minutos] | G115: Tráfico Propio en Red Propia | I115: =I185-I137 -> 1.077557327e+10 | J115: 1.278978042e+10 | K115: 1.308681875e+10 | L115: 1.386639277e+10 | M115: 1.513208882e+10 | N115: 1.618401772e+10
C116: 5 | D116: Tráfico Móvil a misma Móvil (Salida) | E116: TP_RP | F116: [Minutos] | G116: Tráfico Propio en Red Propia | I116: 1.355310942e+10 | J116: 1.626641656e+10 | K116: 1.611919721e+10 | L116: 1.594636739e+10 | M116: 1.58194881e+10 | N116: 1.577023889e+10
C117: 6 | D117: Tráfico Móvil a Fijo (Salida) | E117: TP_RP | F117: [Minutos] | G117: Tráfico Propio en Red Propia | I117: 873971519.6 | J117: 1072224655 | K117: 1108816934 | L117: 1153940543 | M117: 1207190124 | N117: 1243976164
C118: 7 | D118: Tráfico Móvil a Larga Distancia (Salida) | E118: TP_RP | F118: [Minutos] | G118: Tráfico Propio en Red Propia | I118: 58474309.13 | J118: 66209730.02 | K118: 63758925.98 | L118: 62610617.17 | M118: 62066404.03 | N118: 61849891.55
C119: 8 | D119: Tráfico SMS Entrada | E119: TP_RP | F119: [Mensajes] | G119: Tráfico Propio en Red Propia | I119: =I218-I141 -> 68501025.89 | J119: 65933155.72 | K119: 68720524.56 | L119: 69999798.19 | M119: 79140592.13 | N119: 94668973.39
C120: 9 | D120: Tráfico SMS Salida | E120: TP_RP | F120: [Mensajes] | G120: Tráfico Propio en Red Propia | I120: 68501025.89 | J120: 65933155.72 | K120: 68720524.56 | L120: 69999798.19 | M120: 79140592.13 | N120: 94668973.39
C121: 10 | D121: Tráfico SMS OnNet | E121: TP_RP | F121: [Mensajes] | G121: Tráfico Propio en Red Propia | I121: 146032161.6 | J121: 111219260.3 | K121: 83364755.95 | L121: 59592277.9 | M121: 41324473.53 | N121: 24312513.96
C122: 11 | D122: Datos | E122: TP_RP | F122: [MB] | G122: Tráfico Propio en Red Propia | I122: =I214-I144 -> 2.405776905e+12 | J122: 2.832793127e+12 | K122: 3.298711469e+12 | L122: 3.806260812e+12 | M122: 4.357032424e+12 | N122: 4.942856612e+12
C123: 12 | D123: Tráfico Móvil a Móvil (Entrada) | E123: OMV | F123: [Minutos] | I123: =I$221*I162 -> 362483135.7 | J123: 393919351.8 | K123: 428519343.1 | L123: 464394553.9 | M123: 501556268.2 | N123: 539891040.9
C124: 13 | D124: Tráfico Fijo a Móvil (Entrada) | E124: OMV | F124: [Minutos] | I124: 16816697.23 | J124: 18159465.62 | K124: 22274233.5 | L124: 26007290.81 | M124: 29122957.73 | N124: 32905105.27
C125: 14 | D125: Tráfico Móvil a Larga Distancia (Entrada) | E125: OMV | F125: [Minutos] | I125: 2360444.356 | J125: 2447075.063 | K125: 2505293.327 | L125: 2516244.572 | M125: 2468644.826 | N125: 2475939.133
C126: 15 | D126: Tráfico Móvil a otra Móvil (Salida) | E126: OMV | F126: [Minutos] | I126: =I$222*I165 -> 377274242.4 | J126: 411487527.7 | K126: 449861796.7 | L126: 490872664.7 | M126: 534582971.4 | N126: 579837065.6
C127: 16 | D127: Tráfico Móvil a misma Móvil (Salida) | E127: OMV | F127: [Minutos] | I127: =I223 -> 50994043.79 | J127: 59582931.67 | K127: 69138137.88 | L127: 79371334.77 | M127: 90282522.36 | N127: 101871700.6
C128: 17 | D128: Tráfico Móvil a Fijo (Salida) | E128: OMV | F128: [Minutos] | I128: =I$222*I167 -> 30599480.38 | J128: 34496844.97 | K128: 38115785.62 | L128: 40849691.66 | M128: 42647336.46 | N128: 44568876.58
C129: 18 | D129: Tráfico Móvil a Larga Distancia (Salida) | E129: OMV | F129: [Minutos] | I129: 2047301.811 | J129: 2130175.596 | K129: 2191724.783 | L129: 2216426.506 | M129: 2192667.719 | N129: 2215942.929
C130: 19 | D130: Tráfico SMS Entrada | E130: OMV | F130: [Mensajes] | I130: =I$224*I159 -> 1550327.379 | J130: 1488376.526 | K130: 1404008.456 | L130: 1293841.747 | M130: 1156015.874 | N130: 986137.046
C131: 20 | D131: Tráfico SMS Salida | E131: OMV | F131: [Mensajes] | I131: 1550327.379 | J131: 1488376.526 | K131: 1404008.456 | L131: 1293841.747 | M131: 1156015.874 | N131: 986137.046
C132: 21 | D132: Tráfico SMS OnNet | E132: OMV | F132: [Mensajes] | I132: 1691840.515 | J132: 1283225.787 | K132: 919445.4927 | L132: 607262.4755 | M132: 350397.7866 | N132: 157639.0074
C133: 22 | D133: Datos | E133: OMV | F133: [MB] | I133: =I225 -> 1.842986913e+10 | J133: 2.22182418e+10 | K133: 2.598857526e+10 | L133: 3.015838131e+10 | M133: 3.474750354e+10 | N133: 3.977580332e+10
C134: 23 | D134: Tráfico Móvil a Móvil (Entrada) | E134: RAN | F134: [Minutos] | I134: =I$226*I162 -> 170232543.4 | J134: 84049010.16 | K134: 104632145.7 | L134: 126727310.4 | M134: 150341440.6 | N134: 175441658
C135: 24 | D135: Tráfico Fijo a Móvil (Entrada) | E135: RAN | F135: [Minutos] | I135: 7897606.425 | J135: 3874613.175 | K135: 5438729.623 | L135: 7097055.697 | M135: 8729603.632 | N135: 10692761.66
C136: 25 | D136: Tráfico Móvil a Larga Distancia (Entrada) | E136: RAN | F136: [Minutos] | I136: 1108532.803 | J136: 522122.7033 | K136: 611720.8492 | L136: 686650.832 | M136: 739976.0368 | N136: 804575.06
C137: 26 | D137: Tráfico Móvil a otra Móvil (Salida) | E137: RAN | F137: [Minutos] | I137: =I$227*I165 -> 157695192.1 | J137: 77658639.99 | K137: 96589472.71 | L137: 117137081.4 | M137: 139389627.4 | N137: 163087343.5
C138: 27 | D138: Tráfico Móvil a misma Móvil (Salida) | E138: RAN | F138: [Minutos] | I138: 0 | J138: 0 | K138: 0 | L138: 0 | M138: 0 | N138: 0
C139: 28 | D139: Tráfico Móvil a Fijo (Salida) | E139: RAN | F139: [Minutos] | I139: 12790141.48 | J139: 6510472.089 | K139: 8183810.366 | L139: 9747973.353 | M139: 11120063.03 | N139: 12535624.43
C140: 29 | D140: Tráfico Móvil a Larga Distancia (Salida) | E140: RAN | F140: [Minutos] | I140: 855742.6301 | J140: 402020.7869 | K140: 470583.5052 | L140: 528906.4774 | M140: 571726.2851 | N140: 623265.1671
C141: 30 | D141: Tráfico SMS Entrada | E141: RAN | F141: [Mensajes] | I141: =I228*I158 -> 65316350.2 | J141: 63066851.94 | K141: 58578834.88 | L141: 56968325.23 | M141: 57195164.54 | N141: 57422003.84
C142: 31 | D142: Tráfico SMS Salida | E142: RAN | F142: [Mensajes] | I142: =I228*(1-I158) -> 65316350.2 | J142: 63066851.94 | K142: 58578834.88 | L142: 56968325.23 | M142: 57195164.54 | N142: 57422003.84
C143: 32 | D143: Tráfico SMS OnNet | E143: RAN | F143: [Mensajes]
C144: 33 | D144: Datos | E144: RAN | F144: [MB] | I144: =I229 -> 5688868707 | J144: 6869015975 | K144: 8224391947 | L144: 9722828061 | M144: 1.137033262e+10 | N144: 1.314150415e+10
C145: 34 | D145: Tráfico Móvil a Móvil (Entrada) | E145: RI | F145: [Minutos]
C146: 35 | D146: Tráfico Fijo a Móvil (Entrada) | E146: RI | F146: [Minutos]
C147: 36 | D147: Tráfico Móvil a Larga Distancia (Entrada) | E147: RI | F147: [Minutos] | I147: =I231 -> 3291384.496 | J147: 3610439.198 | K147: 3768884.272 | L147: 3927466.467 | M147: 4086048.661 | N147: 4244630.856
C148: 37 | D148: Tráfico Móvil a otra Móvil (Salida) | E148: RI | F148: [Minutos]
C149: 38 | D149: Tráfico Móvil a misma Móvil (Salida) | E149: RI | F149: [Minutos]
C150: 39 | D150: Tráfico Móvil a Fijo (Salida) | E150: RI | F150: [Minutos]
C151: 40 | D151: Tráfico Móvil a Larga Distancia (Salida) | E151: RI | F151: [Minutos] | I151: =I230 -> 3550581.263 | J151: 3522225.125 | K151: 3588820.285 | L151: 3657722.468 | M151: 3726624.651 | N151: 3773717.24
C152: 41 | D152: Tráfico SMS Entrada | E152: RI | F152: [Mensajes] | I152: =I232*I158 -> 121569.3555 | J152: 130510.9885 | K152: 138389.477 | L152: 146267.9655 | M152: 154146.454 | N152: 162024.9425
C153: 42 | D153: Tráfico SMS Salida | E153: RI | F153: [Mensajes] | I153: =I232*(1-I158) -> 121569.3555 | J153: 130510.9885 | K153: 138389.477 | L153: 146267.9655 | M153: 154146.454 | N153: 162024.9425
C154: 43 | D154: Tráfico SMS OnNet | E154: RI | F154: [Mensajes]
C155: 44 | D155: Datos | E155: RI | F155: [MB] | I155: =I233 -> 2503919230 | J155: 2978449968 | K155: 3275475879 | L155: 3572501791 | M155: 3869527702 | N155: 4166553614
C156: 45 | D156: SMS Cortos Entrada | E156: TP_RP | F156: [Mensajes] | I156: 1.741995289e+10 | J156: 1.759374068e+10 | K156: 1.807675924e+10 | L156: 1.855081787e+10 | M156: 1.90248765e+10 | N156: 1.949893514e+10
C158: 46 | D158: Prop SMS Entrada sobre entrada salida | E158: Traf total | I158: =I218/(I218+I219) -> 0.5 | J158: 0.5 | K158: 0.5 | L158: 0.5 | M158: 0.5 | N158: 0.5
C159: 47 | D159: Prop SMS Entrada sobre total | E159: Traf total | I159: =I218/(I218+I219+I220) -> 0.3234906434 | J159: 0.3493858966 | K159: 0.3766660273 | L159: 0.4049651416 | M159: 0.4341958572 | N159: 0.4629940284
C160: 48 | D160: Prop SMS Salida sobre total | E160: Traf total | I160: =I219/(I218+I219+I220) -> 0.3234906434 | J160: 0.3493858966 | K160: 0.3766660273 | L160: 0.4049651416 | M160: 0.4341958572 | N160: 0.4629940284
C161: 49 | D161: Prop SMS Onnet sobre total | E161: Traf total | I161: =I220/(I218+I219+I220) -> 0.3530187133 | J161: 0.3012282068 | K161: 0.2466679454 | L161: 0.1900697168 | M161: 0.1316082856 | N161: 0.07401194325
C162: 50 | D162: Prop Entrada Móvil sobre total Entrada | E162: Traf total | I162: =I190/I$189 -> 0.9935302566 | J162: 0.9938262302 | K162: 0.9941875867 | L162: 0.9946108666 | M162: 0.9951021373 | N162: 0.9954349376
C163: 51 | D163: Prop Entrada Fija sobre total Entrada | E163: Traf total | I163: 0.0460928961 | J163: 0.045814843 | K163: 0.05167740221 | L163: 0.05570076961 | M163: 0.05778079014 | N163: 0.06066944796
C164: 52 | D164: Prop Entrada LDI sobre total Entrada | E164: Traf total | I164: 0.006469743433 | J164: 0.006173769768 | K164: 0.005812413294 | L164: 0.005389133386 | M164: 0.004897862709 | N164: 0.004565062447
C165: 53 | D165: Prop Salida Móvil offnet sobre total sin onnet | E165: Traf total | I165: =I185/(I$185+I$187+I$188) -> 0.9203583612 | J165: 0.9182641565 | K165: 0.9177681878 | L165: 0.9193425922 | M165: 0.9226126576 | N165: 0.9253380378
C166: 54
C167: 55 | D167: Prop Salida Fija sobre total sobre total sin onnet | E167: Traf total | I167: =I187/(I$185+I$187+I$188) -> 0.07464725775 | J167: 0.07698220266 | K167: 0.07776044944 | L167: 0.07650632052 | M167: 0.07360311595 | N167: 0.07112563037
C168: 56 | D168: Prop Salida LDI sobre total sobre total sin onnet | E168: Traf total | I168: 0.004994381084 | J168: 0.004753640791 | K168: 0.004471362754 | L168: 0.00415108731 | M168: 0.003784226397 | N168: 0.003536331848
B172: Demanda de Servicios Empresa Eficiente
B174: Aux | C174: N°Lista | D174: Variable | E174: Tipo de Servicio | F174: Unidades | G174: Tarifa | H174: Tipo variable | I174: =años.calendario -> 2025 | J174: 2026 | K174: 2027 | L174: 2028 | M174: 2029 | N174: 2030 | P174: Multiplicador de Demanda | Q174: Aux_LRIC puro
B175: =MATCH($E175,L.servicios,0) -> 1 | C175: 1 | D175: Abonados | E175: Servicio de telefonía móvil | F175: [Abonados] | G175: Plan móvil | H175: Flujo | I175: =INDEX(Dda.partic.mdo,$B175)*I262*$P175 -> 31081217.73 | J175: 32374361.97 | K175: 33867349.81 | L175: 35307084.74 | M175: 36684179.63 | N175: 37746076.76 | P175: 1 | Q175: 1
B176: 1 | C176: 2 | D176: Abonados pospago | E176: Servicio de telefonía móvil | F176: [Abonados] | G176: Plan móvil | H176: Flujo | I176: 7582812.939 | J176: 8066895.602 | K176: 8705229.284 | L176: 9288133.011 | M176: 9808281.936 | N176: 10227465.12 | P176: 1 | Q176: 1
B177: 1 | C177: 3 | D177: Abonados prepago | E177: Servicio de telefonía móvil | F177: [Abonados] | G177: Plan móvil | H177: Flujo | I177: 23498404.79 | J177: 24307466.36 | K177: 25162120.53 | L177: 26018951.72 | M177: 26875897.69 | N177: 27518611.65 | P177: 1 | Q177: 1
B178: 14 | C178: 4 | E178: libre | I178: 0 | J178: 0 | K178: 0 | L178: 0 | M178: 0 | N178: 0 | P178: 1 | Q178: 13
B179: 2 | C179: 5 | D179: Abonados de datos | E179: Servicio de acceso a Internet móvil | F179: [Abonados] | G179: Plan Internet móvil | H179: Flujo | I179: 17077698.25 | J179: 18160850.69 | K179: 19377459.05 | L179: 20735231.99 | M179: 22270875.07 | N179: 22673653.62 | P179: 1 | Q179: 2
B180: 2 | C180: 6 | D180: Abonados por demanda | E180: Servicio de acceso a Internet móvil | F180: [Abonados] | G180: Plan Internet móvil | H180: Flujo | I180: 9497510.473 | J180: 9882824.764 | K180: 10280354.29 | L180: 10685469.32 | M180: 11088627.65 | N180: 11172409.26 | P180: 1 | Q180: 2
B181: 2 | C181: 7 | D181: Abonados por suscripción | E181: Servicio de acceso a Internet móvil | F181: [Abonados] | G181: Plan Internet móvil | H181: Flujo | I181: 7580187.781 | J181: 8278025.922 | K181: 9097104.759 | L181: 10049762.67 | M181: 11182247.42 | N181: 11501244.36 | P181: 1 | Q181: 2
B182: 14 | C182: 8 | E182: libre | I182: 0 | J182: 0 | K182: 0 | L182: 0 | M182: 0 | N182: 0 | P182: 1 | Q182: 13
B183: 1 | C183: 9 | D183: Tráfico Voz Móvil Salida | E183: Servicio de telefonía móvil | F183: [Minutos] | G183: Servicio voz móvil | H183: Stock | I183: 2.54324696e+10 | J183: 3.02792025e+10 | K183: 3.048383569e+10 | L183: 3.115672528e+10 | M183: 3.237191486e+10 | N183: 3.34363289e+10 | P183: 1 | Q183: 4
B184: 1 | C184: 10 | D184: Tráfico Móvil a Móvil (Salida) | E184: Servicio de telefonía móvil | F184: [Minutos] | G184: Servicio voz móvil | H184: Stock | I184: 2.448637788e+10 | J184: 2.913385562e+10 | K184: 2.930260544e+10 | L184: 2.992989724e+10 | M184: 3.109096655e+10 | N184: 3.211734395e+10 | P184: 1 | Q184: 4
B185: 1 | C185: 11 | D185: Tráfico Móvil a otra Móvil (Salida) | E185: Servicio de telefonía móvil | F185: [Minutos] | G185: Servicio voz móvil | H185: Stock | I185: =INDEX(Dda.partic.mdo,$B185)*I272*$P185 -> 1.093326847e+10 | J185: 1.286743906e+10 | K185: 1.318340823e+10 | L185: 1.398352986e+10 | M185: 1.527147845e+10 | N185: 1.634710506e+10 | P185: 1 | Q185: 4
